{"text_format":"1","workbook":"xlsx","n_sheets":2,"sheets":["algorithm","BAM tables"],"not_rendered":{"charts":0,"images":0,"macros":1,"external_links":0,"defined_names":17,"comments":1,"pivot_tables":0},"unopened":[],"bounds":{"document_bytes":16777216,"sheet_cells":100000,"rows_first":2000,"rows_last":500,"rows_between":2000,"halvings":0,"cell_chars":16384,"cell_head_chars":4096},"cells_cut":0,"cells_raw":0,"read":"whole","date_system":"1900"}

{"sheet":"algorithm","index":0,"n_rows":14,"n_cols":46,"rows_kept":14,"cut":false,"hidden":false,"merged":[[0,8,0,13],[1,14,1,20],[0,14,0,27],[1,21,1,27]]}
[null,null,null,null,null,null,null,null,"if only 3 dilutions from column F remain",null,null,null,null,null,"if more than 3 dilutions from column F remain"]
[null,null,null,null,null,null,null,null,null,null,null,null,null,null,"three remaining lowest dilutions to use if no dilution with all positive tubes",null,null,null,null,null,null,"three remaining highest dilutions to use if there is a dilution with all positive tubes"]
["dilution (g inocula)","# tubes showing positive growth"," # of tubes showing negative growth)","n (# of replicate tubes used in each dilution level)","does dilution and next lowest dilution both have 0 pos growth?","dilutions to use","dilution with all positive tubes","find the highest dilution with all positive tubes","1 dilution","2nd dilution","3rd dilution","# pos tubes to use for 1st dilution (lowest)","# pos tubes to use for 2nd (2nd lowest) dilution","# pos tubes to use for 3rd (lowest) dilution","lowest dilution to use","2ndlowest dilution to use","3rd lowest dilution to use","# pos tubes to use for lowest dilution","# pos tubes to use for 2nd lowest dilution","sum for # pos tubes for dilutions higher than 3rd lowest dilution","# pos tubes to use for 3rd lowest dilution","highest dilution to use","2nd highest dilution to use","3rd highest dilution to use","# pos tubes to use for 3rd highest dilution","# pos tubes to use for 2nd highest dilution","sum for # pos tubes for dilutions higher than highest dilution","# pos tubes to use for highest dilution","tentative final dilutions to use","# positive tubes corresponding to lowest dilutions","# positive tubes corresponding to 2nd lowest dilutions","# positive tubes corresponding to 3rd lowest dilutions","tentative final dilutions to use in order of increasing dilution","# positive tubes corresponding to final dilutions (in increasing order of dilution)","is # pos tube combination (colum AH) valid per table in BAM? (Yes=1,No=0)",null,"If column AJ=0 and do not wish to redo test use following dilutions:","final # positive tubes to use if column AK is filled in","is # pos tube combination (colum AL) valid per table in BAM? (Yes=1,No=0)",null,"If columns AI=0 and AM=0 then choose highest dilution with any positive tubes:","final # positive tubes to use if column AK is filled in",null,"final dilutions to use","final # pos tubes to use","Warning: Consider re-running the test if 'Yes' appears below (i.e. if outcome sufficiently improbable)"]
[10,4,{"$f":"D4-B4","v":1},5,{"$f":"IF(AND(IF(B4=0,1,0),IF(B4=0,1,0)),1,0)","v":0},{"$f":"IF(AND(IF(E4=1,1,0),IF(COUNT(A4)>=3,1,0)),\".\",A4)","v":10},{"$f":"IF(ISNUMBER(B4),IF(D4-B4=0,F4,999999))","v":999999},{"$f":"MIN($G$4:$G$11)","v":0.01},{"$f":"IF(COUNT($F$4:$F$11)=3,SMALL($F$4:$F$11,3),\".\")","v":"."},{"$f":"IF(COUNT($F$4:$F$11)=3,SMALL($F$4:$F$11,2),\".\")","v":"."},{"$f":"IF(COUNT($F$4:$F$11)=3,SMALL($F$4:$F$11,1),\".\")","v":"."},{"$f":"IF(AND(IF(F4<>\".\",1,0),IF(F4=I4,1,0)),B4,\".\")","v":"."},{"$f":"IF(AND(IF(F4<>\".\",1,0),IF(F4=J4,1,0)),B4,\".\")","v":"."},{"$f":"IF(AND(IF(F4<>\".\",1,0),IF(F4=K4,1,0)),B4,\".\")","v":"."},{"$f":"IF(COUNT($F$4:$F$11)>3,IF(AND(IF(H4=999999,1,0)),LARGE($F$4:$F$11,1),\".\"),\".\")","v":"."},{"$f":"IF(COUNT($F$4:$F$11)>3,IF(AND(IF(H4=999999,1,0)),LARGE($F$4:$F$11,2),\".\"),\".\")","v":"."},{"$f":"IF(COUNT($F$4:$F$11)>3,IF(AND(IF(H4=999999,1,0)),LARGE($F$4:$F$11,3),\".\"),\".\")","v":"."},{"$f":"IF(AND(IF(F4<>\".\",1,0),IF(F4=O4,1,0)),IF(O4=SMALL(O4:Q4,3),B4,\".\"),\".\")","v":"."},{"$f":"IF(AND(IF(F4<>\".\",1,0),IF(F4=P4,1,0)),IF(P4=SMALL(O4:Q4,2),B4,\".\"),\".\")","v":"."},{"$f":"IF(Q4<>\".\",IF(AND(IF(F4<=Q4,1,0),IF(Q4=SMALL(O4:Q4,1),1,0)),B4,\".\"),\".\")","v":"."},{"$f":"IF(Q4<>\".\",SUM($T$4:$T$11),\".\")","v":"."},{"$f":"IF(COUNT($F$4:$F$11)>3,IF(AND(IF(SMALL($F$4:$F$11,1)<=H4,1,0),IF(H4<=SMALL($F$4:$F$11,3),1,0)),SMALL($F$4:$F$11,1),H4/1000),\".\")","v":1E-3},{"$f":"IF(COUNT($F$4:$F$11)>3,IF(AND(IF(SMALL($F$4:$F$11,1)<=H4,1,0),IF(H4<=SMALL($F$4:$F$11,3),1,0)),SMALL($F$4:$F$11,2),H4/100),\".\")","v":0.01},{"$f":"IF(COUNT($F$4:$F$11)>3,IF(AND(IF(SMALL($F$4:$F$11,1)<=H4,1,0),IF(H4<=SMALL($F$4:$F$11,3),1,0)),SMALL($F$4:$F$11,3),H4/10),\".\")","v":0.1},{"$f":"IF(F4<>\".\",IF(F4=X4,IF(X4=SMALL(V4:X4,3),B4,\".\"),\".\"),\".\")","v":"."},{"$f":"IF(F4<>\".\",IF(F4=W4,IF(W4=SMALL(V4:X4,2),B4,\".\"),\".\"),\".\")","v":"."},{"$f":"IF(F4<>\".\",IF(AND(IF(V4<>\".\",1,0),IF(V4<MAX($A$4:$A$11),1,0),IF(F4<=V4,1,0),IF(V4=MIN(V4:X4),1,0)),B4,\".\"),\".\")","v":"."},{"$f":"IF(AND(IF(V4<>\".\",1,0),IF(V4<10,1,0)),SUM($AA$4:$AA$11),\".\")","v":1},{"$f":"MIN(I4,O4,V4)","v":1E-3},{"$f":"IF(AC4=LARGE($AC$4:$AC$6,1),IF(COUNT($L$4:$L$11,$R$4:$R$11,$Y$4:$Y$11),AVERAGE($L$4:$L$11,$R$4:$R$11,$Y$4:$Y$11),\".\"),\".\")","v":"."},{"$f":"IF(AC4=LARGE($AC$4:$AC$6,2),IF(COUNT($M$4:$M$11,$S$4:$S$11,$Z$4:$Z$11),AVERAGE($M$4:$M$11,$S$4:$S$11,$Z$4:$Z$11),\".\"),\".\")","v":"."},{"$f":"IF(AC4=LARGE($AC$4:$AC$6,3),IF(COUNT($N$4:$N$11,$U$4:$U$11,$AB$4:$AB$11),AVERAGE($N$4:$N$11,$U$4:$U$11,$AB$4:$AB$11),\".\"),\".\")","v":1},{"$f":"LARGE($AC$4:$AC$6,1)","v":0.1},{"$f":"IF(COUNT(AD4:AD6),AVERAGE(AD4:AD6),\".\")","v":4},{"$f":"MAX('BAM tables'!F2:F622)","v":1},null,{"$f":"IF($AI$4=0,SMALL($F$4:$F$11,3),\".\")","v":"."},{"$f":"IF(MAX(IF(AK4=$A$4,$B$4,-999999),IF(AK4=$A$5,$B$5,-999999),IF(AK4=$A$6,$B$6,-999999),IF(AK4=$A$7,$B$7,-999999),IF(AK4=$A$8,$B$8,-999999),IF(AK4=$A$9,$B$9,-999999),IF(AK4=$A$10,$B$10,-999999),IF(AK4=$A$11,$B$11,-999999))>=0,MAX(IF(AK4=$A$4,$B$4,-999999),IF(AK4=$A$5,$B$5,-999999),IF(AK4=$A$6,$B$6,-999999),IF(AK4=$A$7,$B$7,-999999),IF(AK4=$A$8,$B$8,-999999),IF(AK4=$A$9,$B$9,-999999),IF(AK4=$A$10,$B$10,-999999),IF(AK4=$A$11,$B$11,-999999)),\".\")","v":"."},{"$f":"MAX('BAM tables'!G2:G622)","v":0},null,{"$f":"IF(AND(IF(AI4=0,1,0),IF(AM4=0,1,0)),MIN(IF(B4>0,A4,999999),IF(B5>0,A5,999999),IF(B6>0,A6,999999),IF(B7>0,A7,999999),IF(B8>0,A8,999999),IF(B9>0,A9,999999),IF(B10>0,A10,999999),IF(B11>0,A11,999999)),\".\")","v":"."},{"$f":"IF(MAX(IF(AO4=$A$4,$B$4,0),IF(AO4=$A$5,$B$5,0),IF(AO4=$A$6,$B$6,0),IF(AO4=$A$7,$B$7,0),IF(AO4=$A$8,$B$8,0),IF(AO4=$A$9,$B$9,0),IF(AO4=$A$10,$B$10,0),IF(AO4=$A$11,$B$11,0))=0,\".\",MAX(IF(AO4=$A$4,$B$4,0),IF(AO4=$A$5,$B$5,0),IF(AO4=$A$6,$B$6,0),IF(AO4=$A$7,$B$7,0),IF(AO4=$A$8,$B$8,0),IF(AO4=$A$9,$B$9,0),IF(AO4=$A$10,$B$10,0),IF(AO4=$A$11,$B$11,0)))","v":"."},null,{"$f":"IF($AO$4=\".\",IF($AM$4=0,IF($AI$4=1,AG4),AK4),$AO$4)","v":0.1},{"$f":"IF($AP$4=\".\",IF($AM$4=0,IF($AI$4=1,AH4),AL4),$AP$4)","v":4},{"$f":"IF(AI4=0,\"Yes\",\"No\")","v":"No"}]
[{"$f":"A4/10","v":1},5,{"$f":"D5-B5","v":0},5,{"$f":"IF(AND(IF(B5=0,1,0),IF(B4=0,1,0)),1,0)","v":0},{"$f":"IF(AND(IF(E5=1,1,0),IF(COUNT(A4)>=3,1,0)),\".\",A5)","v":1},1,0.01,{"$f":"IF(COUNT($F$4:$F$11)=3,SMALL($F$4:$F$11,3),\".\")","v":"."},{"$f":"IF(COUNT($F$4:$F$11)=3,SMALL($F$4:$F$11,2),\".\")","v":"."},{"$f":"IF(COUNT($F$4:$F$11)=3,SMALL($F$4:$F$11,1),\".\")","v":"."},".",{"$f":"IF(AND(IF(F5<>\".\",1,0),IF(F5=J5,1,0)),B5,\".\")","v":"."},{"$f":"IF(AND(IF(F5<>\".\",1,0),IF(F5=K5,1,0)),B5,\".\")","v":"."},{"$f":"IF(COUNT($F$4:$F$11)>3,IF(AND(IF(H5=999999,1,0)),LARGE($F$4:$F$11,1),\".\"),\".\")","v":"."},{"$f":"IF(COUNT($F$4:$F$11)>3,IF(AND(IF(H5=999999,1,0)),LARGE($F$4:$F$11,2),\".\"),\".\")","v":"."},{"$f":"IF(COUNT($F$4:$F$11)>3,IF(AND(IF(H5=999999,1,0)),LARGE($F$4:$F$11,3),\".\"),\".\")","v":"."},".",".",".",{"$f":"IF(Q5<>\".\",SUM($T$4:$T$11),\".\")","v":"."},1E-3,0.01,0.1,".",".",{"$f":"IF(F5<>\".\",IF(AND(IF(V5<>\".\",1,0),IF(V5<MAX($A$4:$A$11),1,0),IF(F5<=V5,1,0),IF(V5=MIN(V5:X5),1,0)),B5,\".\"),\".\")","v":"."},{"$f":"IF(AND(IF(V5<>\".\",1,0),IF(V5<10,1,0)),SUM($AA$4:$AA$11),\".\")","v":1},{"$f":"MIN(J4,P4,W4)","v":0.01},{"$f":"IF(AC5=LARGE($AC$4:$AC$6,1),IF(COUNT($L$4:$L$11,$R$4:$R$11,$Y$4:$Y$11),AVERAGE($L$4:$L$11,$R$4:$R$11,$Y$4:$Y$11),\".\"),\".\")","v":"."},{"$f":"IF(AC5=LARGE($AC$4:$AC$6,2),IF(COUNT($M$4:$M$11,$S$4:$S$11,$Z$4:$Z$11),AVERAGE($M$4:$M$11,$S$4:$S$11,$Z$4:$Z$11),\".\"),\".\")","v":5},{"$f":"IF(AC5=LARGE($AC$4:$AC$6,3),IF(COUNT($N$4:$N$11,$U$4:$U$11,$AB$4:$AB$11),AVERAGE($N$4:$N$11,$U$4:$U$11,$AB$4:$AB$11),\".\"),\".\")","v":"."},{"$f":"LARGE($AC$4:$AC$6,2)","v":0.01},{"$f":"IF(COUNT(AE4:AE6),AVERAGE(AE4:AE6),\".\")","v":5},null,null,{"$f":"IF($AI$4=0,SMALL($F$4:$F$11,2),\".\")","v":"."},{"$f":"IF(MAX(IF(AK5=$A$4,$B$4,-999999),IF(AK5=$A$5,$B$5,-999999),IF(AK5=$A$6,$B$6,-999999),IF(AK5=$A$7,$B$7,-999999),IF(AK5=$A$8,$B$8,-999999),IF(AK5=$A$9,$B$9,-999999),IF(AK5=$A$10,$B$10,-999999),IF(AK5=$A$11,$B$11,-999999))>=0,MAX(IF(AK5=$A$4,$B$4,-999999),IF(AK5=$A$5,$B$5,-999999),IF(AK5=$A$6,$B$6,-999999),IF(AK5=$A$7,$B$7,-999999),IF(AK5=$A$8,$B$8,-999999),IF(AK5=$A$9,$B$9,-999999),IF(AK5=$A$10,$B$10,-999999),IF(AK5=$A$11,$B$11,-999999)),\".\")","v":"."},null,null,null,null,null,{"$f":"IF($AO$4=\".\",IF($AM$4=0,IF($AI$4=1,AG5),AK5),$AO$4)","v":0.01},{"$f":"IF($AP$4=\".\",IF($AM$4=0,IF($AI$4=1,AH5),AL5),$AP$4)","v":5}]
[{"$f":"A5/10","v":0.1},4,{"$f":"D6-B6","v":1},5,0,{"$f":"IF(AND(IF(E6=1,1,0),IF(COUNT(A4:A5)>=3,1,0)),\".\",A6)","v":0.1},999999,0.01,".",".",".",".",".",".",".",".",".",".",".",".",".",1E-3,0.01,0.1,4,".",".",1,{"$f":"MIN(K4,Q4,X4)","v":0.1},4,{"$f":"IF(AC6=LARGE($AC$4:$AC$6,2),IF(COUNT($M$4:$M$11,$S$4:$S$11,$Z$4:$Z$11),AVERAGE($M$4:$M$11,$S$4:$S$11,$Z$4:$Z$11),\".\"),\".\")","v":"."},{"$f":"IF(AC6=LARGE($AC$4:$AC$6,3),IF(COUNT($N$4:$N$11,$U$4:$U$11,$AB$4:$AB$11),AVERAGE($N$4:$N$11,$U$4:$U$11,$AB$4:$AB$11),\".\"),\".\")","v":"."},{"$f":"LARGE($AC$4:$AC$6,3)","v":1E-3},{"$f":"IF(COUNT(AF4:AF6),AVERAGE(AF4:AF6),\".\")","v":1},null,null,{"$f":"IF($AI$4=0,SMALL($F$4:$F$11,1),\".\")","v":"."},{"$f":"IF(MAX(IF(AK6=$A$4,$B$4,-999999),IF(AK6=$A$5,$B$5,-999999),IF(AK6=$A$6,$B$6,-999999),IF(AK6=$A$7,$B$7,-999999),IF(AK6=$A$8,$B$8,-999999),IF(AK6=$A$9,$B$9,-999999),IF(AK6=$A$10,$B$10,-999999),IF(AK6=$A$11,$B$11,-999999))>=0,MAX(IF(AK6=$A$4,$B$4,-999999),IF(AK6=$A$5,$B$5,-999999),IF(AK6=$A$6,$B$6,-999999),IF(AK6=$A$7,$B$7,-999999),IF(AK6=$A$8,$B$8,-999999),IF(AK6=$A$9,$B$9,-999999),IF(AK6=$A$10,$B$10,-999999),IF(AK6=$A$11,$B$11,-999999)),\".\")","v":"."},null,null,null,null,null,{"$f":"IF($AO$4=\".\",IF($AM$4=0,IF($AI$4=1,AG6),AK6),$AO$4)","v":1E-3},{"$f":"IF($AP$4=\".\",IF($AM$4=0,IF($AI$4=1,AH6),AL6),$AP$4)","v":1}]
[{"$f":"A6/10","v":0.01},5,{"$f":"D7-B7","v":0},5,0,{"$f":"IF(AND(IF(E7=1,1,0),IF(COUNT(A4:A6)>=3,1,0)),\".\",A7)","v":0.01},0.01,0.01,".",".",".",".",".",".",".",".",".",".",".",".",".",1E-3,0.01,0.1,".",5,".",1]
[{"$f":"A7/10","v":1E-3},1,{"$f":"D8-B8","v":4},5,0,{"$f":"IF(AND(IF(E8=1,1,0),IF(COUNT(A4:A7)>=3,1,0)),\".\",A8)","v":1E-3},999999,0.01,".",".",".",".",".",".",".",".",".",".",".",".",".",1E-3,0.01,0.1,".",".",1,1]
[".",".",".",5,0,{"$f":"IF(AND(IF(E9=1,1,0),IF(COUNT(A4:A8)>=3,1,0)),\".\",A9)","v":"."},false,0.01,".",".",".",".",".",".",".",".",".",".",".",".",".",1E-3,0.01,0.1,".",".",".",1,null,"."]
[".",".",".",5,0,{"$f":"IF(AND(IF(E10=1,1,0),IF(COUNT(A4:A9)>=3,1,0)),\".\",A10)","v":"."},false,0.01,".",".",".",".",".",".",".",".",".",".",".",".",".",1E-3,0.01,0.1,".",".",".",1,null,"."]
[".",".",".",5,0,{"$f":"IF(AND(IF(E11=1,1,0),IF(COUNT(A4:A10)>=3,1,0)),\".\",A11)","v":"."},false,0.01,".",".",".",".",".",".",".",".",".",".",".",".",".",1E-3,0.01,0.1,".",".",".",1,null,"."]
[]
[]
["Note: enter \".\" in columns A, B & C for missing cells. Example, if only have five diluions, enter \".\" for cells A9-A11, B9-B11 and C9-C11."]

{"sheet":"BAM tables","index":1,"n_rows":622,"n_cols":7,"rows_kept":622,"cut":false,"hidden":true,"merged":[[0,5,0,6]]}
["pos tubes 1","pos tubes 2","pos tubes 3","number tubes"]
[0,0,0,5,null,{"$f":"IF(AND(IF(algorithm!$D$4='BAM tables'!D2,1,0),IF(algorithm!$AH$4='BAM tables'!A2,1,0),IF(algorithm!$AH$5='BAM tables'!B2,1,0),IF(algorithm!$AH$6='BAM tables'!C2,1,0)),1,0)","v":0},{"$f":"IF(AND(IF(algorithm!$D$4='BAM tables'!D2,1,0),IF(algorithm!$AL$4='BAM tables'!A2,1,0),IF(algorithm!$AL$5='BAM tables'!B2,1,0),IF(algorithm!$AL$6='BAM tables'!C2,1,0)),1,0)","v":0}]
[0,0,0,3,null,{"$f":"IF(AND(IF(algorithm!$D$4='BAM tables'!D3,1,0),IF(algorithm!$AH$4='BAM tables'!A3,1,0),IF(algorithm!$AH$5='BAM tables'!B3,1,0),IF(algorithm!$AH$6='BAM tables'!C3,1,0)),1,0)","v":0},{"$f":"IF(AND(IF(algorithm!$D$4='BAM tables'!D3,1,0),IF(algorithm!$AL$4='BAM tables'!A3,1,0),IF(algorithm!$AL$5='BAM tables'!B3,1,0),IF(algorithm!$AL$6='BAM tables'!C3,1,0)),1,0)","v":0}]
[0,0,0,8,null,{"$f":"IF(AND(IF(algorithm!$D$4='BAM tables'!D4,1,0),IF(algorithm!$AH$4='BAM tables'!A4,1,0),IF(algorithm!$AH$5='BAM tables'!B4,1,0),IF(algorithm!$AH$6='BAM tables'!C4,1,0)),1,0)","v":0},{"$f":"IF(AND(IF(algorithm!$D$4='BAM tables'!D4,1,0),IF(algorithm!$AL$4='BAM tables'!A4,1,0),IF(algorithm!$AL$5='BAM tables'!B4,1,0),IF(algorithm!$AL$6='BAM tables'!C4,1,0)),1,0)","v":0}]
[0,0,0,10,null,{"$f":"IF(AND(IF(algorithm!$D$4='BAM tables'!D5,1,0),IF(algorithm!$AH$4='BAM tables'!A5,1,0),IF(algorithm!$AH$5='BAM tables'!B5,1,0),IF(algorithm!$AH$6='BAM tables'!C5,1,0)),1,0)","v":0},{"$f":"IF(AND(IF(algorithm!$D$4='BAM tables'!D5,1,0),IF(algorithm!$AL$4='BAM tables'!A5,1,0),IF(algorithm!$AL$5='BAM tables'!B5,1,0),IF(algorithm!$AL$6='BAM tables'!C5,1,0)),1,0)","v":0}]
[0,0,1,5,null,{"$f":"IF(AND(IF(algorithm!$D$4='BAM tables'!D6,1,0),IF(algorithm!$AH$4='BAM tables'!A6,1,0),IF(algorithm!$AH$5='BAM tables'!B6,1,0),IF(algorithm!$AH$6='BAM tables'!C6,1,0)),1,0)","v":0},{"$f":"IF(AND(IF(algorithm!$D$4='BAM tables'!D6,1,0),IF(algorithm!$AL$4='BAM tables'!A6,1,0),IF(algorithm!$AL$5='BAM tables'!B6,1,0),IF(algorithm!$AL$6='BAM tables'!C6,1,0)),1,0)","v":0}]
[0,0,1,3,null,{"$f":"IF(AND(IF(algorithm!$D$4='BAM tables'!D7,1,0),IF(algorithm!$AH$4='BAM tables'!A7,1,0),IF(algorithm!$AH$5='BAM tables'!B7,1,0),IF(algorithm!$AH$6='BAM tables'!C7,1,0)),1,0)","v":0},{"$f":"IF(AND(IF(algorithm!$D$4='BAM tables'!D7,1,0),IF(algorithm!$AL$4='BAM tables'!A7,1,0),IF(algorithm!$AL$5='BAM tables'!B7,1,0),IF(algorithm!$AL$6='BAM tables'!C7,1,0)),1,0)","v":0}]
[0,0,1,8,null,{"$f":"IF(AND(IF(algorithm!$D$4='BAM tables'!D8,1,0),IF(algorithm!$AH$4='BAM tables'!A8,1,0),IF(algorithm!$AH$5='BAM tables'!B8,1,0),IF(algorithm!$AH$6='BAM tables'!C8,1,0)),1,0)","v":0},{"$f":"IF(AND(IF(algorithm!$D$4='BAM tables'!D8,1,0),IF(algorithm!$AL$4='BAM tables'!A8,1,0),IF(algorithm!$AL$5='BAM tables'!B8,1,0),IF(algorithm!$AL$6='BAM tables'!C8,1,0)),1,0)","v":0}]
[0,0,1,10,null,{"$f":"IF(AND(IF(algorithm!$D$4='BAM tables'!D9,1,0),IF(algorithm!$AH$4='BAM tables'!A9,1,0),IF(algorithm!$AH$5='BAM tables'!B9,1,0),IF(algorithm!$AH$6='BAM tables'!C9,1,0)),1,0)","v":0},{"$f":"IF(AND(IF(algorithm!$D$4='BAM tables'!D9,1,0),IF(algorithm!$AL$4='BAM tables'!A9,1,0),IF(algorithm!$AL$5='BAM tables'!B9,1,0),IF(algorithm!$AL$6='BAM tables'!C9,1,0)),1,0)","v":0}]
[0,0,2,8,null,{"$f":"IF(AND(IF(algorithm!$D$4='BAM tables'!D10,1,0),IF(algorithm!$AH$4='BAM tables'!A10,1,0),IF(algorithm!$AH$5='BAM tables'!B10,1,0),IF(algorithm!$AH$6='BAM tables'!C10,1,0)),1,0)","v":0},{"$f":"IF(AND(IF(algorithm!$D$4='BAM tables'!D10,1,0),IF(algorithm!$AL$4='BAM tables'!A10,1,0),IF(algorithm!$AL$5='BAM tables'!B10,1,0),IF(algorithm!$AL$6='BAM tables'!C10,1,0)),1,0)","v":0}]
[0,0,2,10,null,{"$f":"IF(AND(IF(algorithm!$D$4='BAM tables'!D11,1,0),IF(algorithm!$AH$4='BAM tables'!A11,1,0),IF(algorithm!$AH$5='BAM tables'!B11,1,0),IF(algorithm!$AH$6='BAM tables'!C11,1,0)),1,0)","v":0},{"$f":"IF(AND(IF(algorithm!$D$4='BAM tables'!D11,1,0),IF(algorithm!$AL$4='BAM tables'!A11,1,0),IF(algorithm!$AL$5='BAM tables'!B11,1,0),IF(algorithm!$AL$6='BAM tables'!C11,1,0)),1,0)","v":0}]
[0,1,0,5,null,{"$f":"IF(AND(IF(algorithm!$D$4='BAM tables'!D12,1,0),IF(algorithm!$AH$4='BAM tables'!A12,1,0),IF(algorithm!$AH$5='BAM tables'!B12,1,0),IF(algorithm!$AH$6='BAM tables'!C12,1,0)),1,0)","v":0},{"$f":"IF(AND(IF(algorithm!$D$4='BAM tables'!D12,1,0),IF(algorithm!$AL$4='BAM tables'!A12,1,0),IF(algorithm!$AL$5='BAM tables'!B12,1,0),IF(algorithm!$AL$6='BAM tables'!C12,1,0)),1,0)","v":0}]
[0,1,0,3,null,{"$f":"IF(AND(IF(algorithm!$D$4='BAM tables'!D13,1,0),IF(algorithm!$AH$4='BAM tables'!A13,1,0),IF(algorithm!$AH$5='BAM tables'!B13,1,0),IF(algorithm!$AH$6='BAM tables'!C13,1,0)),1,0)","v":0},{"$f":"IF(AND(IF(algorithm!$D$4='BAM tables'!D13,1,0),IF(algorithm!$AL$4='BAM tables'!A13,1,0),IF(algorithm!$AL$5='BAM tables'!B13,1,0),IF(algorithm!$AL$6='BAM tables'!C13,1,0)),1,0)","v":0}]
[0,1,0,8,null,{"$f":"IF(AND(IF(algorithm!$D$4='BAM tables'!D14,1,0),IF(algorithm!$AH$4='BAM tables'!A14,1,0),IF(algorithm!$AH$5='BAM tables'!B14,1,0),IF(algorithm!$AH$6='BAM tables'!C14,1,0)),1,0)","v":0},{"$f":"IF(AND(IF(algorithm!$D$4='BAM tables'!D14,1,0),IF(algorithm!$AL$4='BAM tables'!A14,1,0),IF(algorithm!$AL$5='BAM tables'!B14,1,0),IF(algorithm!$AL$6='BAM tables'!C14,1,0)),1,0)","v":0}]
[0,1,0,10,null,{"$f":"IF(AND(IF(algorithm!$D$4='BAM tables'!D15,1,0),IF(algorithm!$AH$4='BAM tables'!A15,1,0),IF(algorithm!$AH$5='BAM tables'!B15,1,0),IF(algorithm!$AH$6='BAM tables'!C15,1,0)),1,0)","v":0},{"$f":"IF(AND(IF(algorithm!$D$4='BAM tables'!D15,1,0),IF(algorithm!$AL$4='BAM tables'!A15,1,0),IF(algorithm!$AL$5='BAM tables'!B15,1,0),IF(algorithm!$AL$6='BAM tables'!C15,1,0)),1,0)","v":0}]
[0,1,1,5,null,{"$f":"IF(AND(IF(algorithm!$D$4='BAM tables'!D16,1,0),IF(algorithm!$AH$4='BAM tables'!A16,1,0),IF(algorithm!$AH$5='BAM tables'!B16,1,0),IF(algorithm!$AH$6='BAM tables'!C16,1,0)),1,0)","v":0},{"$f":"IF(AND(IF(algorithm!$D$4='BAM tables'!D16,1,0),IF(algorithm!$AL$4='BAM tables'!A16,1,0),IF(algorithm!$AL$5='BAM tables'!B16,1,0),IF(algorithm!$AL$6='BAM tables'!C16,1,0)),1,0)","v":0}]
[0,1,1,3,null,{"$f":"IF(AND(IF(algorithm!$D$4='BAM tables'!D17,1,0),IF(algorithm!$AH$4='BAM tables'!A17,1,0),IF(algorithm!$AH$5='BAM tables'!B17,1,0),IF(algorithm!$AH$6='BAM tables'!C17,1,0)),1,0)","v":0},{"$f":"IF(AND(IF(algorithm!$D$4='BAM tables'!D17,1,0),IF(algorithm!$AL$4='BAM tables'!A17,1,0),IF(algorithm!$AL$5='BAM tables'!B17,1,0),IF(algorithm!$AL$6='BAM tables'!C17,1,0)),1,0)","v":0}]
[0,1,1,8,null,{"$f":"IF(AND(IF(algorithm!$D$4='BAM tables'!D18,1,0),IF(algorithm!$AH$4='BAM tables'!A18,1,0),IF(algorithm!$AH$5='BAM tables'!B18,1,0),IF(algorithm!$AH$6='BAM tables'!C18,1,0)),1,0)","v":0},{"$f":"IF(AND(IF(algorithm!$D$4='BAM tables'!D18,1,0),IF(algorithm!$AL$4='BAM tables'!A18,1,0),IF(algorithm!$AL$5='BAM tables'!B18,1,0),IF(algorithm!$AL$6='BAM tables'!C18,1,0)),1,0)","v":0}]
[0,1,1,10,null,{"$f":"IF(AND(IF(algorithm!$D$4='BAM tables'!D19,1,0),IF(algorithm!$AH$4='BAM tables'!A19,1,0),IF(algorithm!$AH$5='BAM tables'!B19,1,0),IF(algorithm!$AH$6='BAM tables'!C19,1,0)),1,0)","v":0},{"$f":"IF(AND(IF(algorithm!$D$4='BAM tables'!D19,1,0),IF(algorithm!$AL$4='BAM tables'!A19,1,0),IF(algorithm!$AL$5='BAM tables'!B19,1,0),IF(algorithm!$AL$6='BAM tables'!C19,1,0)),1,0)","v":0}]
[0,2,0,5,null,{"$f":"IF(AND(IF(algorithm!$D$4='BAM tables'!D20,1,0),IF(algorithm!$AH$4='BAM tables'!A20,1,0),IF(algorithm!$AH$5='BAM tables'!B20,1,0),IF(algorithm!$AH$6='BAM tables'!C20,1,0)),1,0)","v":0},{"$f":"IF(AND(IF(algorithm!$D$4='BAM tables'!D20,1,0),IF(algorithm!$AL$4='BAM tables'!A20,1,0),IF(algorithm!$AL$5='BAM tables'!B20,1,0),IF(algorithm!$AL$6='BAM tables'!C20,1,0)),1,0)","v":0}]
[0,2,0,3,null,{"$f":"IF(AND(IF(algorithm!$D$4='BAM tables'!D21,1,0),IF(algorithm!$AH$4='BAM tables'!A21,1,0),IF(algorithm!$AH$5='BAM tables'!B21,1,0),IF(algorithm!$AH$6='BAM tables'!C21,1,0)),1,0)","v":0},{"$f":"IF(AND(IF(algorithm!$D$4='BAM tables'!D21,1,0),IF(algorithm!$AL$4='BAM tables'!A21,1,0),IF(algorithm!$AL$5='BAM tables'!B21,1,0),IF(algorithm!$AL$6='BAM tables'!C21,1,0)),1,0)","v":0}]
[0,2,0,8,null,{"$f":"IF(AND(IF(algorithm!$D$4='BAM tables'!D22,1,0),IF(algorithm!$AH$4='BAM tables'!A22,1,0),IF(algorithm!$AH$5='BAM tables'!B22,1,0),IF(algorithm!$AH$6='BAM tables'!C22,1,0)),1,0)","v":0},{"$f":"IF(AND(IF(algorithm!$D$4='BAM tables'!D22,1,0),IF(algorithm!$AL$4='BAM tables'!A22,1,0),IF(algorithm!$AL$5='BAM tables'!B22,1,0),IF(algorithm!$AL$6='BAM tables'!C22,1,0)),1,0)","v":0}]
[0,2,0,10,null,{"$f":"IF(AND(IF(algorithm!$D$4='BAM tables'!D23,1,0),IF(algorithm!$AH$4='BAM tables'!A23,1,0),IF(algorithm!$AH$5='BAM tables'!B23,1,0),IF(algorithm!$AH$6='BAM tables'!C23,1,0)),1,0)","v":0},{"$f":"IF(AND(IF(algorithm!$D$4='BAM tables'!D23,1,0),IF(algorithm!$AL$4='BAM tables'!A23,1,0),IF(algorithm!$AL$5='BAM tables'!B23,1,0),IF(algorithm!$AL$6='BAM tables'!C23,1,0)),1,0)","v":0}]
[0,2,1,5,null,{"$f":"IF(AND(IF(algorithm!$D$4='BAM tables'!D24,1,0),IF(algorithm!$AH$4='BAM tables'!A24,1,0),IF(algorithm!$AH$5='BAM tables'!B24,1,0),IF(algorithm!$AH$6='BAM tables'!C24,1,0)),1,0)","v":0},{"$f":"IF(AND(IF(algorithm!$D$4='BAM tables'!D24,1,0),IF(algorithm!$AL$4='BAM tables'!A24,1,0),IF(algorithm!$AL$5='BAM tables'!B24,1,0),IF(algorithm!$AL$6='BAM tables'!C24,1,0)),1,0)","v":0}]
[0,2,1,8,null,{"$f":"IF(AND(IF(algorithm!$D$4='BAM tables'!D25,1,0),IF(algorithm!$AH$4='BAM tables'!A25,1,0),IF(algorithm!$AH$5='BAM tables'!B25,1,0),IF(algorithm!$AH$6='BAM tables'!C25,1,0)),1,0)","v":0},{"$f":"IF(AND(IF(algorithm!$D$4='BAM tables'!D25,1,0),IF(algorithm!$AL$4='BAM tables'!A25,1,0),IF(algorithm!$AL$5='BAM tables'!B25,1,0),IF(algorithm!$AL$6='BAM tables'!C25,1,0)),1,0)","v":0}]
[0,2,1,10,null,{"$f":"IF(AND(IF(algorithm!$D$4='BAM tables'!D26,1,0),IF(algorithm!$AH$4='BAM tables'!A26,1,0),IF(algorithm!$AH$5='BAM tables'!B26,1,0),IF(algorithm!$AH$6='BAM tables'!C26,1,0)),1,0)","v":0},{"$f":"IF(AND(IF(algorithm!$D$4='BAM tables'!D26,1,0),IF(algorithm!$AL$4='BAM tables'!A26,1,0),IF(algorithm!$AL$5='BAM tables'!B26,1,0),IF(algorithm!$AL$6='BAM tables'!C26,1,0)),1,0)","v":0}]
[0,3,0,5,null,{"$f":"IF(AND(IF(algorithm!$D$4='BAM tables'!D27,1,0),IF(algorithm!$AH$4='BAM tables'!A27,1,0),IF(algorithm!$AH$5='BAM tables'!B27,1,0),IF(algorithm!$AH$6='BAM tables'!C27,1,0)),1,0)","v":0},{"$f":"IF(AND(IF(algorithm!$D$4='BAM tables'!D27,1,0),IF(algorithm!$AL$4='BAM tables'!A27,1,0),IF(algorithm!$AL$5='BAM tables'!B27,1,0),IF(algorithm!$AL$6='BAM tables'!C27,1,0)),1,0)","v":0}]
[0,3,0,3,null,{"$f":"IF(AND(IF(algorithm!$D$4='BAM tables'!D28,1,0),IF(algorithm!$AH$4='BAM tables'!A28,1,0),IF(algorithm!$AH$5='BAM tables'!B28,1,0),IF(algorithm!$AH$6='BAM tables'!C28,1,0)),1,0)","v":0},{"$f":"IF(AND(IF(algorithm!$D$4='BAM tables'!D28,1,0),IF(algorithm!$AL$4='BAM tables'!A28,1,0),IF(algorithm!$AL$5='BAM tables'!B28,1,0),IF(algorithm!$AL$6='BAM tables'!C28,1,0)),1,0)","v":0}]
[0,3,0,8,null,{"$f":"IF(AND(IF(algorithm!$D$4='BAM tables'!D29,1,0),IF(algorithm!$AH$4='BAM tables'!A29,1,0),IF(algorithm!$AH$5='BAM tables'!B29,1,0),IF(algorithm!$AH$6='BAM tables'!C29,1,0)),1,0)","v":0},{"$f":"IF(AND(IF(algorithm!$D$4='BAM tables'!D29,1,0),IF(algorithm!$AL$4='BAM tables'!A29,1,0),IF(algorithm!$AL$5='BAM tables'!B29,1,0),IF(algorithm!$AL$6='BAM tables'!C29,1,0)),1,0)","v":0}]
[0,3,0,10,null,{"$f":"IF(AND(IF(algorithm!$D$4='BAM tables'!D30,1,0),IF(algorithm!$AH$4='BAM tables'!A30,1,0),IF(algorithm!$AH$5='BAM tables'!B30,1,0),IF(algorithm!$AH$6='BAM tables'!C30,1,0)),1,0)","v":0},{"$f":"IF(AND(IF(algorithm!$D$4='BAM tables'!D30,1,0),IF(algorithm!$AL$4='BAM tables'!A30,1,0),IF(algorithm!$AL$5='BAM tables'!B30,1,0),IF(algorithm!$AL$6='BAM tables'!C30,1,0)),1,0)","v":0}]
[1,0,0,5,null,{"$f":"IF(AND(IF(algorithm!$D$4='BAM tables'!D31,1,0),IF(algorithm!$AH$4='BAM tables'!A31,1,0),IF(algorithm!$AH$5='BAM tables'!B31,1,0),IF(algorithm!$AH$6='BAM tables'!C31,1,0)),1,0)","v":0},{"$f":"IF(AND(IF(algorithm!$D$4='BAM tables'!D31,1,0),IF(algorithm!$AL$4='BAM tables'!A31,1,0),IF(algorithm!$AL$5='BAM tables'!B31,1,0),IF(algorithm!$AL$6='BAM tables'!C31,1,0)),1,0)","v":0}]
[1,0,0,3,null,{"$f":"IF(AND(IF(algorithm!$D$4='BAM tables'!D32,1,0),IF(algorithm!$AH$4='BAM tables'!A32,1,0),IF(algorithm!$AH$5='BAM tables'!B32,1,0),IF(algorithm!$AH$6='BAM tables'!C32,1,0)),1,0)","v":0},{"$f":"IF(AND(IF(algorithm!$D$4='BAM tables'!D32,1,0),IF(algorithm!$AL$4='BAM tables'!A32,1,0),IF(algorithm!$AL$5='BAM tables'!B32,1,0),IF(algorithm!$AL$6='BAM tables'!C32,1,0)),1,0)","v":0}]
[1,0,0,8,null,{"$f":"IF(AND(IF(algorithm!$D$4='BAM tables'!D33,1,0),IF(algorithm!$AH$4='BAM tables'!A33,1,0),IF(algorithm!$AH$5='BAM tables'!B33,1,0),IF(algorithm!$AH$6='BAM tables'!C33,1,0)),1,0)","v":0},{"$f":"IF(AND(IF(algorithm!$D$4='BAM tables'!D33,1,0),IF(algorithm!$AL$4='BAM tables'!A33,1,0),IF(algorithm!$AL$5='BAM tables'!B33,1,0),IF(algorithm!$AL$6='BAM tables'!C33,1,0)),1,0)","v":0}]
[1,0,0,10,null,{"$f":"IF(AND(IF(algorithm!$D$4='BAM tables'!D34,1,0),IF(algorithm!$AH$4='BAM tables'!A34,1,0),IF(algorithm!$AH$5='BAM tables'!B34,1,0),IF(algorithm!$AH$6='BAM tables'!C34,1,0)),1,0)","v":0},{"$f":"IF(AND(IF(algorithm!$D$4='BAM tables'!D34,1,0),IF(algorithm!$AL$4='BAM tables'!A34,1,0),IF(algorithm!$AL$5='BAM tables'!B34,1,0),IF(algorithm!$AL$6='BAM tables'!C34,1,0)),1,0)","v":0}]
[1,0,1,5,null,{"$f":"IF(AND(IF(algorithm!$D$4='BAM tables'!D35,1,0),IF(algorithm!$AH$4='BAM tables'!A35,1,0),IF(algorithm!$AH$5='BAM tables'!B35,1,0),IF(algorithm!$AH$6='BAM tables'!C35,1,0)),1,0)","v":0},{"$f":"IF(AND(IF(algorithm!$D$4='BAM tables'!D35,1,0),IF(algorithm!$AL$4='BAM tables'!A35,1,0),IF(algorithm!$AL$5='BAM tables'!B35,1,0),IF(algorithm!$AL$6='BAM tables'!C35,1,0)),1,0)","v":0}]
[1,0,1,3,null,{"$f":"IF(AND(IF(algorithm!$D$4='BAM tables'!D36,1,0),IF(algorithm!$AH$4='BAM tables'!A36,1,0),IF(algorithm!$AH$5='BAM tables'!B36,1,0),IF(algorithm!$AH$6='BAM tables'!C36,1,0)),1,0)","v":0},{"$f":"IF(AND(IF(algorithm!$D$4='BAM tables'!D36,1,0),IF(algorithm!$AL$4='BAM tables'!A36,1,0),IF(algorithm!$AL$5='BAM tables'!B36,1,0),IF(algorithm!$AL$6='BAM tables'!C36,1,0)),1,0)","v":0}]
[1,0,1,8,null,{"$f":"IF(AND(IF(algorithm!$D$4='BAM tables'!D37,1,0),IF(algorithm!$AH$4='BAM tables'!A37,1,0),IF(algorithm!$AH$5='BAM tables'!B37,1,0),IF(algorithm!$AH$6='BAM tables'!C37,1,0)),1,0)","v":0},{"$f":"IF(AND(IF(algorithm!$D$4='BAM tables'!D37,1,0),IF(algorithm!$AL$4='BAM tables'!A37,1,0),IF(algorithm!$AL$5='BAM tables'!B37,1,0),IF(algorithm!$AL$6='BAM tables'!C37,1,0)),1,0)","v":0}]
[1,0,1,10,null,{"$f":"IF(AND(IF(algorithm!$D$4='BAM tables'!D38,1,0),IF(algorithm!$AH$4='BAM tables'!A38,1,0),IF(algorithm!$AH$5='BAM tables'!B38,1,0),IF(algorithm!$AH$6='BAM tables'!C38,1,0)),1,0)","v":0},{"$f":"IF(AND(IF(algorithm!$D$4='BAM tables'!D38,1,0),IF(algorithm!$AL$4='BAM tables'!A38,1,0),IF(algorithm!$AL$5='BAM tables'!B38,1,0),IF(algorithm!$AL$6='BAM tables'!C38,1,0)),1,0)","v":0}]
[1,0,2,5,null,{"$f":"IF(AND(IF(algorithm!$D$4='BAM tables'!D39,1,0),IF(algorithm!$AH$4='BAM tables'!A39,1,0),IF(algorithm!$AH$5='BAM tables'!B39,1,0),IF(algorithm!$AH$6='BAM tables'!C39,1,0)),1,0)","v":0},{"$f":"IF(AND(IF(algorithm!$D$4='BAM tables'!D39,1,0),IF(algorithm!$AL$4='BAM tables'!A39,1,0),IF(algorithm!$AL$5='BAM tables'!B39,1,0),IF(algorithm!$AL$6='BAM tables'!C39,1,0)),1,0)","v":0}]
[1,0,2,3,null,{"$f":"IF(AND(IF(algorithm!$D$4='BAM tables'!D40,1,0),IF(algorithm!$AH$4='BAM tables'!A40,1,0),IF(algorithm!$AH$5='BAM tables'!B40,1,0),IF(algorithm!$AH$6='BAM tables'!C40,1,0)),1,0)","v":0},{"$f":"IF(AND(IF(algorithm!$D$4='BAM tables'!D40,1,0),IF(algorithm!$AL$4='BAM tables'!A40,1,0),IF(algorithm!$AL$5='BAM tables'!B40,1,0),IF(algorithm!$AL$6='BAM tables'!C40,1,0)),1,0)","v":0}]
[1,0,2,8,null,{"$f":"IF(AND(IF(algorithm!$D$4='BAM tables'!D41,1,0),IF(algorithm!$AH$4='BAM tables'!A41,1,0),IF(algorithm!$AH$5='BAM tables'!B41,1,0),IF(algorithm!$AH$6='BAM tables'!C41,1,0)),1,0)","v":0},{"$f":"IF(AND(IF(algorithm!$D$4='BAM tables'!D41,1,0),IF(algorithm!$AL$4='BAM tables'!A41,1,0),IF(algorithm!$AL$5='BAM tables'!B41,1,0),IF(algorithm!$AL$6='BAM tables'!C41,1,0)),1,0)","v":0}]
[1,0,2,10,null,{"$f":"IF(AND(IF(algorithm!$D$4='BAM tables'!D42,1,0),IF(algorithm!$AH$4='BAM tables'!A42,1,0),IF(algorithm!$AH$5='BAM tables'!B42,1,0),IF(algorithm!$AH$6='BAM tables'!C42,1,0)),1,0)","v":0},{"$f":"IF(AND(IF(algorithm!$D$4='BAM tables'!D42,1,0),IF(algorithm!$AL$4='BAM tables'!A42,1,0),IF(algorithm!$AL$5='BAM tables'!B42,1,0),IF(algorithm!$AL$6='BAM tables'!C42,1,0)),1,0)","v":0}]
[1,1,0,5,null,{"$f":"IF(AND(IF(algorithm!$D$4='BAM tables'!D43,1,0),IF(algorithm!$AH$4='BAM tables'!A43,1,0),IF(algorithm!$AH$5='BAM tables'!B43,1,0),IF(algorithm!$AH$6='BAM tables'!C43,1,0)),1,0)","v":0},{"$f":"IF(AND(IF(algorithm!$D$4='BAM tables'!D43,1,0),IF(algorithm!$AL$4='BAM tables'!A43,1,0),IF(algorithm!$AL$5='BAM tables'!B43,1,0),IF(algorithm!$AL$6='BAM tables'!C43,1,0)),1,0)","v":0}]
[1,1,0,3,null,{"$f":"IF(AND(IF(algorithm!$D$4='BAM tables'!D44,1,0),IF(algorithm!$AH$4='BAM tables'!A44,1,0),IF(algorithm!$AH$5='BAM tables'!B44,1,0),IF(algorithm!$AH$6='BAM tables'!C44,1,0)),1,0)","v":0},{"$f":"IF(AND(IF(algorithm!$D$4='BAM tables'!D44,1,0),IF(algorithm!$AL$4='BAM tables'!A44,1,0),IF(algorithm!$AL$5='BAM tables'!B44,1,0),IF(algorithm!$AL$6='BAM tables'!C44,1,0)),1,0)","v":0}]
[1,1,0,8,null,{"$f":"IF(AND(IF(algorithm!$D$4='BAM tables'!D45,1,0),IF(algorithm!$AH$4='BAM tables'!A45,1,0),IF(algorithm!$AH$5='BAM tables'!B45,1,0),IF(algorithm!$AH$6='BAM tables'!C45,1,0)),1,0)","v":0},{"$f":"IF(AND(IF(algorithm!$D$4='BAM tables'!D45,1,0),IF(algorithm!$AL$4='BAM tables'!A45,1,0),IF(algorithm!$AL$5='BAM tables'!B45,1,0),IF(algorithm!$AL$6='BAM tables'!C45,1,0)),1,0)","v":0}]
[1,1,0,10,null,{"$f":"IF(AND(IF(algorithm!$D$4='BAM tables'!D46,1,0),IF(algorithm!$AH$4='BAM tables'!A46,1,0),IF(algorithm!$AH$5='BAM tables'!B46,1,0),IF(algorithm!$AH$6='BAM tables'!C46,1,0)),1,0)","v":0},{"$f":"IF(AND(IF(algorithm!$D$4='BAM tables'!D46,1,0),IF(algorithm!$AL$4='BAM tables'!A46,1,0),IF(algorithm!$AL$5='BAM tables'!B46,1,0),IF(algorithm!$AL$6='BAM tables'!C46,1,0)),1,0)","v":0}]
[1,1,1,5,null,{"$f":"IF(AND(IF(algorithm!$D$4='BAM tables'!D47,1,0),IF(algorithm!$AH$4='BAM tables'!A47,1,0),IF(algorithm!$AH$5='BAM tables'!B47,1,0),IF(algorithm!$AH$6='BAM tables'!C47,1,0)),1,0)","v":0},{"$f":"IF(AND(IF(algorithm!$D$4='BAM tables'!D47,1,0),IF(algorithm!$AL$4='BAM tables'!A47,1,0),IF(algorithm!$AL$5='BAM tables'!B47,1,0),IF(algorithm!$AL$6='BAM tables'!C47,1,0)),1,0)","v":0}]
[1,1,1,3,null,{"$f":"IF(AND(IF(algorithm!$D$4='BAM tables'!D48,1,0),IF(algorithm!$AH$4='BAM tables'!A48,1,0),IF(algorithm!$AH$5='BAM tables'!B48,1,0),IF(algorithm!$AH$6='BAM tables'!C48,1,0)),1,0)","v":0},{"$f":"IF(AND(IF(algorithm!$D$4='BAM tables'!D48,1,0),IF(algorithm!$AL$4='BAM tables'!A48,1,0),IF(algorithm!$AL$5='BAM tables'!B48,1,0),IF(algorithm!$AL$6='BAM tables'!C48,1,0)),1,0)","v":0}]
[1,1,1,8,null,{"$f":"IF(AND(IF(algorithm!$D$4='BAM tables'!D49,1,0),IF(algorithm!$AH$4='BAM tables'!A49,1,0),IF(algorithm!$AH$5='BAM tables'!B49,1,0),IF(algorithm!$AH$6='BAM tables'!C49,1,0)),1,0)","v":0},{"$f":"IF(AND(IF(algorithm!$D$4='BAM tables'!D49,1,0),IF(algorithm!$AL$4='BAM tables'!A49,1,0),IF(algorithm!$AL$5='BAM tables'!B49,1,0),IF(algorithm!$AL$6='BAM tables'!C49,1,0)),1,0)","v":0}]
[1,1,1,10,null,{"$f":"IF(AND(IF(algorithm!$D$4='BAM tables'!D50,1,0),IF(algorithm!$AH$4='BAM tables'!A50,1,0),IF(algorithm!$AH$5='BAM tables'!B50,1,0),IF(algorithm!$AH$6='BAM tables'!C50,1,0)),1,0)","v":0},{"$f":"IF(AND(IF(algorithm!$D$4='BAM tables'!D50,1,0),IF(algorithm!$AL$4='BAM tables'!A50,1,0),IF(algorithm!$AL$5='BAM tables'!B50,1,0),IF(algorithm!$AL$6='BAM tables'!C50,1,0)),1,0)","v":0}]
[1,1,2,5,null,{"$f":"IF(AND(IF(algorithm!$D$4='BAM tables'!D51,1,0),IF(algorithm!$AH$4='BAM tables'!A51,1,0),IF(algorithm!$AH$5='BAM tables'!B51,1,0),IF(algorithm!$AH$6='BAM tables'!C51,1,0)),1,0)","v":0},{"$f":"IF(AND(IF(algorithm!$D$4='BAM tables'!D51,1,0),IF(algorithm!$AL$4='BAM tables'!A51,1,0),IF(algorithm!$AL$5='BAM tables'!B51,1,0),IF(algorithm!$AL$6='BAM tables'!C51,1,0)),1,0)","v":0}]
[1,1,2,8,null,{"$f":"IF(AND(IF(algorithm!$D$4='BAM tables'!D52,1,0),IF(algorithm!$AH$4='BAM tables'!A52,1,0),IF(algorithm!$AH$5='BAM tables'!B52,1,0),IF(algorithm!$AH$6='BAM tables'!C52,1,0)),1,0)","v":0},{"$f":"IF(AND(IF(algorithm!$D$4='BAM tables'!D52,1,0),IF(algorithm!$AL$4='BAM tables'!A52,1,0),IF(algorithm!$AL$5='BAM tables'!B52,1,0),IF(algorithm!$AL$6='BAM tables'!C52,1,0)),1,0)","v":0}]
[1,1,2,10,null,{"$f":"IF(AND(IF(algorithm!$D$4='BAM tables'!D53,1,0),IF(algorithm!$AH$4='BAM tables'!A53,1,0),IF(algorithm!$AH$5='BAM tables'!B53,1,0),IF(algorithm!$AH$6='BAM tables'!C53,1,0)),1,0)","v":0},{"$f":"IF(AND(IF(algorithm!$D$4='BAM tables'!D53,1,0),IF(algorithm!$AL$4='BAM tables'!A53,1,0),IF(algorithm!$AL$5='BAM tables'!B53,1,0),IF(algorithm!$AL$6='BAM tables'!C53,1,0)),1,0)","v":0}]
[1,2,0,5,null,{"$f":"IF(AND(IF(algorithm!$D$4='BAM tables'!D54,1,0),IF(algorithm!$AH$4='BAM tables'!A54,1,0),IF(algorithm!$AH$5='BAM tables'!B54,1,0),IF(algorithm!$AH$6='BAM tables'!C54,1,0)),1,0)","v":0},{"$f":"IF(AND(IF(algorithm!$D$4='BAM tables'!D54,1,0),IF(algorithm!$AL$4='BAM tables'!A54,1,0),IF(algorithm!$AL$5='BAM tables'!B54,1,0),IF(algorithm!$AL$6='BAM tables'!C54,1,0)),1,0)","v":0}]
[1,2,0,3,null,{"$f":"IF(AND(IF(algorithm!$D$4='BAM tables'!D55,1,0),IF(algorithm!$AH$4='BAM tables'!A55,1,0),IF(algorithm!$AH$5='BAM tables'!B55,1,0),IF(algorithm!$AH$6='BAM tables'!C55,1,0)),1,0)","v":0},{"$f":"IF(AND(IF(algorithm!$D$4='BAM tables'!D55,1,0),IF(algorithm!$AL$4='BAM tables'!A55,1,0),IF(algorithm!$AL$5='BAM tables'!B55,1,0),IF(algorithm!$AL$6='BAM tables'!C55,1,0)),1,0)","v":0}]
[1,2,0,8,null,{"$f":"IF(AND(IF(algorithm!$D$4='BAM tables'!D56,1,0),IF(algorithm!$AH$4='BAM tables'!A56,1,0),IF(algorithm!$AH$5='BAM tables'!B56,1,0),IF(algorithm!$AH$6='BAM tables'!C56,1,0)),1,0)","v":0},{"$f":"IF(AND(IF(algorithm!$D$4='BAM tables'!D56,1,0),IF(algorithm!$AL$4='BAM tables'!A56,1,0),IF(algorithm!$AL$5='BAM tables'!B56,1,0),IF(algorithm!$AL$6='BAM tables'!C56,1,0)),1,0)","v":0}]
[1,2,0,10,null,{"$f":"IF(AND(IF(algorithm!$D$4='BAM tables'!D57,1,0),IF(algorithm!$AH$4='BAM tables'!A57,1,0),IF(algorithm!$AH$5='BAM tables'!B57,1,0),IF(algorithm!$AH$6='BAM tables'!C57,1,0)),1,0)","v":0},{"$f":"IF(AND(IF(algorithm!$D$4='BAM tables'!D57,1,0),IF(algorithm!$AL$4='BAM tables'!A57,1,0),IF(algorithm!$AL$5='BAM tables'!B57,1,0),IF(algorithm!$AL$6='BAM tables'!C57,1,0)),1,0)","v":0}]
[1,2,1,5,null,{"$f":"IF(AND(IF(algorithm!$D$4='BAM tables'!D58,1,0),IF(algorithm!$AH$4='BAM tables'!A58,1,0),IF(algorithm!$AH$5='BAM tables'!B58,1,0),IF(algorithm!$AH$6='BAM tables'!C58,1,0)),1,0)","v":0},{"$f":"IF(AND(IF(algorithm!$D$4='BAM tables'!D58,1,0),IF(algorithm!$AL$4='BAM tables'!A58,1,0),IF(algorithm!$AL$5='BAM tables'!B58,1,0),IF(algorithm!$AL$6='BAM tables'!C58,1,0)),1,0)","v":0}]
[1,2,1,3,null,{"$f":"IF(AND(IF(algorithm!$D$4='BAM tables'!D59,1,0),IF(algorithm!$AH$4='BAM tables'!A59,1,0),IF(algorithm!$AH$5='BAM tables'!B59,1,0),IF(algorithm!$AH$6='BAM tables'!C59,1,0)),1,0)","v":0},{"$f":"IF(AND(IF(algorithm!$D$4='BAM tables'!D59,1,0),IF(algorithm!$AL$4='BAM tables'!A59,1,0),IF(algorithm!$AL$5='BAM tables'!B59,1,0),IF(algorithm!$AL$6='BAM tables'!C59,1,0)),1,0)","v":0}]
[1,2,1,8,null,{"$f":"IF(AND(IF(algorithm!$D$4='BAM tables'!D60,1,0),IF(algorithm!$AH$4='BAM tables'!A60,1,0),IF(algorithm!$AH$5='BAM tables'!B60,1,0),IF(algorithm!$AH$6='BAM tables'!C60,1,0)),1,0)","v":0},{"$f":"IF(AND(IF(algorithm!$D$4='BAM tables'!D60,1,0),IF(algorithm!$AL$4='BAM tables'!A60,1,0),IF(algorithm!$AL$5='BAM tables'!B60,1,0),IF(algorithm!$AL$6='BAM tables'!C60,1,0)),1,0)","v":0}]
[1,2,1,10,null,{"$f":"IF(AND(IF(algorithm!$D$4='BAM tables'!D61,1,0),IF(algorithm!$AH$4='BAM tables'!A61,1,0),IF(algorithm!$AH$5='BAM tables'!B61,1,0),IF(algorithm!$AH$6='BAM tables'!C61,1,0)),1,0)","v":0},{"$f":"IF(AND(IF(algorithm!$D$4='BAM tables'!D61,1,0),IF(algorithm!$AL$4='BAM tables'!A61,1,0),IF(algorithm!$AL$5='BAM tables'!B61,1,0),IF(algorithm!$AL$6='BAM tables'!C61,1,0)),1,0)","v":0}]
[1,3,0,5,null,{"$f":"IF(AND(IF(algorithm!$D$4='BAM tables'!D62,1,0),IF(algorithm!$AH$4='BAM tables'!A62,1,0),IF(algorithm!$AH$5='BAM tables'!B62,1,0),IF(algorithm!$AH$6='BAM tables'!C62,1,0)),1,0)","v":0},{"$f":"IF(AND(IF(algorithm!$D$4='BAM tables'!D62,1,0),IF(algorithm!$AL$4='BAM tables'!A62,1,0),IF(algorithm!$AL$5='BAM tables'!B62,1,0),IF(algorithm!$AL$6='BAM tables'!C62,1,0)),1,0)","v":0}]
[1,3,0,3,null,{"$f":"IF(AND(IF(algorithm!$D$4='BAM tables'!D63,1,0),IF(algorithm!$AH$4='BAM tables'!A63,1,0),IF(algorithm!$AH$5='BAM tables'!B63,1,0),IF(algorithm!$AH$6='BAM tables'!C63,1,0)),1,0)","v":0},{"$f":"IF(AND(IF(algorithm!$D$4='BAM tables'!D63,1,0),IF(algorithm!$AL$4='BAM tables'!A63,1,0),IF(algorithm!$AL$5='BAM tables'!B63,1,0),IF(algorithm!$AL$6='BAM tables'!C63,1,0)),1,0)","v":0}]
[1,3,0,8,null,{"$f":"IF(AND(IF(algorithm!$D$4='BAM tables'!D64,1,0),IF(algorithm!$AH$4='BAM tables'!A64,1,0),IF(algorithm!$AH$5='BAM tables'!B64,1,0),IF(algorithm!$AH$6='BAM tables'!C64,1,0)),1,0)","v":0},{"$f":"IF(AND(IF(algorithm!$D$4='BAM tables'!D64,1,0),IF(algorithm!$AL$4='BAM tables'!A64,1,0),IF(algorithm!$AL$5='BAM tables'!B64,1,0),IF(algorithm!$AL$6='BAM tables'!C64,1,0)),1,0)","v":0}]
[1,3,0,10,null,{"$f":"IF(AND(IF(algorithm!$D$4='BAM tables'!D65,1,0),IF(algorithm!$AH$4='BAM tables'!A65,1,0),IF(algorithm!$AH$5='BAM tables'!B65,1,0),IF(algorithm!$AH$6='BAM tables'!C65,1,0)),1,0)","v":0},{"$f":"IF(AND(IF(algorithm!$D$4='BAM tables'!D65,1,0),IF(algorithm!$AL$4='BAM tables'!A65,1,0),IF(algorithm!$AL$5='BAM tables'!B65,1,0),IF(algorithm!$AL$6='BAM tables'!C65,1,0)),1,0)","v":0}]
[1,3,1,5,null,{"$f":"IF(AND(IF(algorithm!$D$4='BAM tables'!D66,1,0),IF(algorithm!$AH$4='BAM tables'!A66,1,0),IF(algorithm!$AH$5='BAM tables'!B66,1,0),IF(algorithm!$AH$6='BAM tables'!C66,1,0)),1,0)","v":0},{"$f":"IF(AND(IF(algorithm!$D$4='BAM tables'!D66,1,0),IF(algorithm!$AL$4='BAM tables'!A66,1,0),IF(algorithm!$AL$5='BAM tables'!B66,1,0),IF(algorithm!$AL$6='BAM tables'!C66,1,0)),1,0)","v":0}]
[1,3,1,8,null,{"$f":"IF(AND(IF(algorithm!$D$4='BAM tables'!D67,1,0),IF(algorithm!$AH$4='BAM tables'!A67,1,0),IF(algorithm!$AH$5='BAM tables'!B67,1,0),IF(algorithm!$AH$6='BAM tables'!C67,1,0)),1,0)","v":0},{"$f":"IF(AND(IF(algorithm!$D$4='BAM tables'!D67,1,0),IF(algorithm!$AL$4='BAM tables'!A67,1,0),IF(algorithm!$AL$5='BAM tables'!B67,1,0),IF(algorithm!$AL$6='BAM tables'!C67,1,0)),1,0)","v":0}]
[1,3,1,10,null,{"$f":"IF(AND(IF(algorithm!$D$4='BAM tables'!D68,1,0),IF(algorithm!$AH$4='BAM tables'!A68,1,0),IF(algorithm!$AH$5='BAM tables'!B68,1,0),IF(algorithm!$AH$6='BAM tables'!C68,1,0)),1,0)","v":0},{"$f":"IF(AND(IF(algorithm!$D$4='BAM tables'!D68,1,0),IF(algorithm!$AL$4='BAM tables'!A68,1,0),IF(algorithm!$AL$5='BAM tables'!B68,1,0),IF(algorithm!$AL$6='BAM tables'!C68,1,0)),1,0)","v":0}]
[1,4,0,5,null,{"$f":"IF(AND(IF(algorithm!$D$4='BAM tables'!D69,1,0),IF(algorithm!$AH$4='BAM tables'!A69,1,0),IF(algorithm!$AH$5='BAM tables'!B69,1,0),IF(algorithm!$AH$6='BAM tables'!C69,1,0)),1,0)","v":0},{"$f":"IF(AND(IF(algorithm!$D$4='BAM tables'!D69,1,0),IF(algorithm!$AL$4='BAM tables'!A69,1,0),IF(algorithm!$AL$5='BAM tables'!B69,1,0),IF(algorithm!$AL$6='BAM tables'!C69,1,0)),1,0)","v":0}]
[1,4,0,8,null,{"$f":"IF(AND(IF(algorithm!$D$4='BAM tables'!D70,1,0),IF(algorithm!$AH$4='BAM tables'!A70,1,0),IF(algorithm!$AH$5='BAM tables'!B70,1,0),IF(algorithm!$AH$6='BAM tables'!C70,1,0)),1,0)","v":0},{"$f":"IF(AND(IF(algorithm!$D$4='BAM tables'!D70,1,0),IF(algorithm!$AL$4='BAM tables'!A70,1,0),IF(algorithm!$AL$5='BAM tables'!B70,1,0),IF(algorithm!$AL$6='BAM tables'!C70,1,0)),1,0)","v":0}]
[1,4,0,10,null,{"$f":"IF(AND(IF(algorithm!$D$4='BAM tables'!D71,1,0),IF(algorithm!$AH$4='BAM tables'!A71,1,0),IF(algorithm!$AH$5='BAM tables'!B71,1,0),IF(algorithm!$AH$6='BAM tables'!C71,1,0)),1,0)","v":0},{"$f":"IF(AND(IF(algorithm!$D$4='BAM tables'!D71,1,0),IF(algorithm!$AL$4='BAM tables'!A71,1,0),IF(algorithm!$AL$5='BAM tables'!B71,1,0),IF(algorithm!$AL$6='BAM tables'!C71,1,0)),1,0)","v":0}]
[2,0,0,5,null,{"$f":"IF(AND(IF(algorithm!$D$4='BAM tables'!D72,1,0),IF(algorithm!$AH$4='BAM tables'!A72,1,0),IF(algorithm!$AH$5='BAM tables'!B72,1,0),IF(algorithm!$AH$6='BAM tables'!C72,1,0)),1,0)","v":0},{"$f":"IF(AND(IF(algorithm!$D$4='BAM tables'!D72,1,0),IF(algorithm!$AL$4='BAM tables'!A72,1,0),IF(algorithm!$AL$5='BAM tables'!B72,1,0),IF(algorithm!$AL$6='BAM tables'!C72,1,0)),1,0)","v":0}]
[2,0,0,3,null,{"$f":"IF(AND(IF(algorithm!$D$4='BAM tables'!D73,1,0),IF(algorithm!$AH$4='BAM tables'!A73,1,0),IF(algorithm!$AH$5='BAM tables'!B73,1,0),IF(algorithm!$AH$6='BAM tables'!C73,1,0)),1,0)","v":0},{"$f":"IF(AND(IF(algorithm!$D$4='BAM tables'!D73,1,0),IF(algorithm!$AL$4='BAM tables'!A73,1,0),IF(algorithm!$AL$5='BAM tables'!B73,1,0),IF(algorithm!$AL$6='BAM tables'!C73,1,0)),1,0)","v":0}]
[2,0,0,8,null,{"$f":"IF(AND(IF(algorithm!$D$4='BAM tables'!D74,1,0),IF(algorithm!$AH$4='BAM tables'!A74,1,0),IF(algorithm!$AH$5='BAM tables'!B74,1,0),IF(algorithm!$AH$6='BAM tables'!C74,1,0)),1,0)","v":0},{"$f":"IF(AND(IF(algorithm!$D$4='BAM tables'!D74,1,0),IF(algorithm!$AL$4='BAM tables'!A74,1,0),IF(algorithm!$AL$5='BAM tables'!B74,1,0),IF(algorithm!$AL$6='BAM tables'!C74,1,0)),1,0)","v":0}]
[2,0,0,10,null,{"$f":"IF(AND(IF(algorithm!$D$4='BAM tables'!D75,1,0),IF(algorithm!$AH$4='BAM tables'!A75,1,0),IF(algorithm!$AH$5='BAM tables'!B75,1,0),IF(algorithm!$AH$6='BAM tables'!C75,1,0)),1,0)","v":0},{"$f":"IF(AND(IF(algorithm!$D$4='BAM tables'!D75,1,0),IF(algorithm!$AL$4='BAM tables'!A75,1,0),IF(algorithm!$AL$5='BAM tables'!B75,1,0),IF(algorithm!$AL$6='BAM tables'!C75,1,0)),1,0)","v":0}]
[2,0,1,5,null,{"$f":"IF(AND(IF(algorithm!$D$4='BAM tables'!D76,1,0),IF(algorithm!$AH$4='BAM tables'!A76,1,0),IF(algorithm!$AH$5='BAM tables'!B76,1,0),IF(algorithm!$AH$6='BAM tables'!C76,1,0)),1,0)","v":0},{"$f":"IF(AND(IF(algorithm!$D$4='BAM tables'!D76,1,0),IF(algorithm!$AL$4='BAM tables'!A76,1,0),IF(algorithm!$AL$5='BAM tables'!B76,1,0),IF(algorithm!$AL$6='BAM tables'!C76,1,0)),1,0)","v":0}]
[2,0,1,3,null,{"$f":"IF(AND(IF(algorithm!$D$4='BAM tables'!D77,1,0),IF(algorithm!$AH$4='BAM tables'!A77,1,0),IF(algorithm!$AH$5='BAM tables'!B77,1,0),IF(algorithm!$AH$6='BAM tables'!C77,1,0)),1,0)","v":0},{"$f":"IF(AND(IF(algorithm!$D$4='BAM tables'!D77,1,0),IF(algorithm!$AL$4='BAM tables'!A77,1,0),IF(algorithm!$AL$5='BAM tables'!B77,1,0),IF(algorithm!$AL$6='BAM tables'!C77,1,0)),1,0)","v":0}]
[2,0,1,8,null,{"$f":"IF(AND(IF(algorithm!$D$4='BAM tables'!D78,1,0),IF(algorithm!$AH$4='BAM tables'!A78,1,0),IF(algorithm!$AH$5='BAM tables'!B78,1,0),IF(algorithm!$AH$6='BAM tables'!C78,1,0)),1,0)","v":0},{"$f":"IF(AND(IF(algorithm!$D$4='BAM tables'!D78,1,0),IF(algorithm!$AL$4='BAM tables'!A78,1,0),IF(algorithm!$AL$5='BAM tables'!B78,1,0),IF(algorithm!$AL$6='BAM tables'!C78,1,0)),1,0)","v":0}]
[2,0,1,10,null,{"$f":"IF(AND(IF(algorithm!$D$4='BAM tables'!D79,1,0),IF(algorithm!$AH$4='BAM tables'!A79,1,0),IF(algorithm!$AH$5='BAM tables'!B79,1,0),IF(algorithm!$AH$6='BAM tables'!C79,1,0)),1,0)","v":0},{"$f":"IF(AND(IF(algorithm!$D$4='BAM tables'!D79,1,0),IF(algorithm!$AL$4='BAM tables'!A79,1,0),IF(algorithm!$AL$5='BAM tables'!B79,1,0),IF(algorithm!$AL$6='BAM tables'!C79,1,0)),1,0)","v":0}]
[2,0,2,5,null,{"$f":"IF(AND(IF(algorithm!$D$4='BAM tables'!D80,1,0),IF(algorithm!$AH$4='BAM tables'!A80,1,0),IF(algorithm!$AH$5='BAM tables'!B80,1,0),IF(algorithm!$AH$6='BAM tables'!C80,1,0)),1,0)","v":0},{"$f":"IF(AND(IF(algorithm!$D$4='BAM tables'!D80,1,0),IF(algorithm!$AL$4='BAM tables'!A80,1,0),IF(algorithm!$AL$5='BAM tables'!B80,1,0),IF(algorithm!$AL$6='BAM tables'!C80,1,0)),1,0)","v":0}]
[2,0,2,3,null,{"$f":"IF(AND(IF(algorithm!$D$4='BAM tables'!D81,1,0),IF(algorithm!$AH$4='BAM tables'!A81,1,0),IF(algorithm!$AH$5='BAM tables'!B81,1,0),IF(algorithm!$AH$6='BAM tables'!C81,1,0)),1,0)","v":0},{"$f":"IF(AND(IF(algorithm!$D$4='BAM tables'!D81,1,0),IF(algorithm!$AL$4='BAM tables'!A81,1,0),IF(algorithm!$AL$5='BAM tables'!B81,1,0),IF(algorithm!$AL$6='BAM tables'!C81,1,0)),1,0)","v":0}]
[2,0,2,8,null,{"$f":"IF(AND(IF(algorithm!$D$4='BAM tables'!D82,1,0),IF(algorithm!$AH$4='BAM tables'!A82,1,0),IF(algorithm!$AH$5='BAM tables'!B82,1,0),IF(algorithm!$AH$6='BAM tables'!C82,1,0)),1,0)","v":0},{"$f":"IF(AND(IF(algorithm!$D$4='BAM tables'!D82,1,0),IF(algorithm!$AL$4='BAM tables'!A82,1,0),IF(algorithm!$AL$5='BAM tables'!B82,1,0),IF(algorithm!$AL$6='BAM tables'!C82,1,0)),1,0)","v":0}]
[2,0,2,10,null,{"$f":"IF(AND(IF(algorithm!$D$4='BAM tables'!D83,1,0),IF(algorithm!$AH$4='BAM tables'!A83,1,0),IF(algorithm!$AH$5='BAM tables'!B83,1,0),IF(algorithm!$AH$6='BAM tables'!C83,1,0)),1,0)","v":0},{"$f":"IF(AND(IF(algorithm!$D$4='BAM tables'!D83,1,0),IF(algorithm!$AL$4='BAM tables'!A83,1,0),IF(algorithm!$AL$5='BAM tables'!B83,1,0),IF(algorithm!$AL$6='BAM tables'!C83,1,0)),1,0)","v":0}]
[2,1,0,5,null,{"$f":"IF(AND(IF(algorithm!$D$4='BAM tables'!D84,1,0),IF(algorithm!$AH$4='BAM tables'!A84,1,0),IF(algorithm!$AH$5='BAM tables'!B84,1,0),IF(algorithm!$AH$6='BAM tables'!C84,1,0)),1,0)","v":0},{"$f":"IF(AND(IF(algorithm!$D$4='BAM tables'!D84,1,0),IF(algorithm!$AL$4='BAM tables'!A84,1,0),IF(algorithm!$AL$5='BAM tables'!B84,1,0),IF(algorithm!$AL$6='BAM tables'!C84,1,0)),1,0)","v":0}]
[2,1,0,3,null,{"$f":"IF(AND(IF(algorithm!$D$4='BAM tables'!D85,1,0),IF(algorithm!$AH$4='BAM tables'!A85,1,0),IF(algorithm!$AH$5='BAM tables'!B85,1,0),IF(algorithm!$AH$6='BAM tables'!C85,1,0)),1,0)","v":0},{"$f":"IF(AND(IF(algorithm!$D$4='BAM tables'!D85,1,0),IF(algorithm!$AL$4='BAM tables'!A85,1,0),IF(algorithm!$AL$5='BAM tables'!B85,1,0),IF(algorithm!$AL$6='BAM tables'!C85,1,0)),1,0)","v":0}]
[2,1,0,8,null,{"$f":"IF(AND(IF(algorithm!$D$4='BAM tables'!D86,1,0),IF(algorithm!$AH$4='BAM tables'!A86,1,0),IF(algorithm!$AH$5='BAM tables'!B86,1,0),IF(algorithm!$AH$6='BAM tables'!C86,1,0)),1,0)","v":0},{"$f":"IF(AND(IF(algorithm!$D$4='BAM tables'!D86,1,0),IF(algorithm!$AL$4='BAM tables'!A86,1,0),IF(algorithm!$AL$5='BAM tables'!B86,1,0),IF(algorithm!$AL$6='BAM tables'!C86,1,0)),1,0)","v":0}]
[2,1,0,10,null,{"$f":"IF(AND(IF(algorithm!$D$4='BAM tables'!D87,1,0),IF(algorithm!$AH$4='BAM tables'!A87,1,0),IF(algorithm!$AH$5='BAM tables'!B87,1,0),IF(algorithm!$AH$6='BAM tables'!C87,1,0)),1,0)","v":0},{"$f":"IF(AND(IF(algorithm!$D$4='BAM tables'!D87,1,0),IF(algorithm!$AL$4='BAM tables'!A87,1,0),IF(algorithm!$AL$5='BAM tables'!B87,1,0),IF(algorithm!$AL$6='BAM tables'!C87,1,0)),1,0)","v":0}]
[2,1,1,5,null,{"$f":"IF(AND(IF(algorithm!$D$4='BAM tables'!D88,1,0),IF(algorithm!$AH$4='BAM tables'!A88,1,0),IF(algorithm!$AH$5='BAM tables'!B88,1,0),IF(algorithm!$AH$6='BAM tables'!C88,1,0)),1,0)","v":0},{"$f":"IF(AND(IF(algorithm!$D$4='BAM tables'!D88,1,0),IF(algorithm!$AL$4='BAM tables'!A88,1,0),IF(algorithm!$AL$5='BAM tables'!B88,1,0),IF(algorithm!$AL$6='BAM tables'!C88,1,0)),1,0)","v":0}]
[2,1,1,3,null,{"$f":"IF(AND(IF(algorithm!$D$4='BAM tables'!D89,1,0),IF(algorithm!$AH$4='BAM tables'!A89,1,0),IF(algorithm!$AH$5='BAM tables'!B89,1,0),IF(algorithm!$AH$6='BAM tables'!C89,1,0)),1,0)","v":0},{"$f":"IF(AND(IF(algorithm!$D$4='BAM tables'!D89,1,0),IF(algorithm!$AL$4='BAM tables'!A89,1,0),IF(algorithm!$AL$5='BAM tables'!B89,1,0),IF(algorithm!$AL$6='BAM tables'!C89,1,0)),1,0)","v":0}]
[2,1,1,8,null,{"$f":"IF(AND(IF(algorithm!$D$4='BAM tables'!D90,1,0),IF(algorithm!$AH$4='BAM tables'!A90,1,0),IF(algorithm!$AH$5='BAM tables'!B90,1,0),IF(algorithm!$AH$6='BAM tables'!C90,1,0)),1,0)","v":0},{"$f":"IF(AND(IF(algorithm!$D$4='BAM tables'!D90,1,0),IF(algorithm!$AL$4='BAM tables'!A90,1,0),IF(algorithm!$AL$5='BAM tables'!B90,1,0),IF(algorithm!$AL$6='BAM tables'!C90,1,0)),1,0)","v":0}]
[2,1,1,10,null,{"$f":"IF(AND(IF(algorithm!$D$4='BAM tables'!D91,1,0),IF(algorithm!$AH$4='BAM tables'!A91,1,0),IF(algorithm!$AH$5='BAM tables'!B91,1,0),IF(algorithm!$AH$6='BAM tables'!C91,1,0)),1,0)","v":0},{"$f":"IF(AND(IF(algorithm!$D$4='BAM tables'!D91,1,0),IF(algorithm!$AL$4='BAM tables'!A91,1,0),IF(algorithm!$AL$5='BAM tables'!B91,1,0),IF(algorithm!$AL$6='BAM tables'!C91,1,0)),1,0)","v":0}]
[2,1,2,5,null,{"$f":"IF(AND(IF(algorithm!$D$4='BAM tables'!D92,1,0),IF(algorithm!$AH$4='BAM tables'!A92,1,0),IF(algorithm!$AH$5='BAM tables'!B92,1,0),IF(algorithm!$AH$6='BAM tables'!C92,1,0)),1,0)","v":0},{"$f":"IF(AND(IF(algorithm!$D$4='BAM tables'!D92,1,0),IF(algorithm!$AL$4='BAM tables'!A92,1,0),IF(algorithm!$AL$5='BAM tables'!B92,1,0),IF(algorithm!$AL$6='BAM tables'!C92,1,0)),1,0)","v":0}]
[2,1,2,3,null,{"$f":"IF(AND(IF(algorithm!$D$4='BAM tables'!D93,1,0),IF(algorithm!$AH$4='BAM tables'!A93,1,0),IF(algorithm!$AH$5='BAM tables'!B93,1,0),IF(algorithm!$AH$6='BAM tables'!C93,1,0)),1,0)","v":0},{"$f":"IF(AND(IF(algorithm!$D$4='BAM tables'!D93,1,0),IF(algorithm!$AL$4='BAM tables'!A93,1,0),IF(algorithm!$AL$5='BAM tables'!B93,1,0),IF(algorithm!$AL$6='BAM tables'!C93,1,0)),1,0)","v":0}]
[2,1,2,8,null,{"$f":"IF(AND(IF(algorithm!$D$4='BAM tables'!D94,1,0),IF(algorithm!$AH$4='BAM tables'!A94,1,0),IF(algorithm!$AH$5='BAM tables'!B94,1,0),IF(algorithm!$AH$6='BAM tables'!C94,1,0)),1,0)","v":0},{"$f":"IF(AND(IF(algorithm!$D$4='BAM tables'!D94,1,0),IF(algorithm!$AL$4='BAM tables'!A94,1,0),IF(algorithm!$AL$5='BAM tables'!B94,1,0),IF(algorithm!$AL$6='BAM tables'!C94,1,0)),1,0)","v":0}]
[2,1,2,10,null,{"$f":"IF(AND(IF(algorithm!$D$4='BAM tables'!D95,1,0),IF(algorithm!$AH$4='BAM tables'!A95,1,0),IF(algorithm!$AH$5='BAM tables'!B95,1,0),IF(algorithm!$AH$6='BAM tables'!C95,1,0)),1,0)","v":0},{"$f":"IF(AND(IF(algorithm!$D$4='BAM tables'!D95,1,0),IF(algorithm!$AL$4='BAM tables'!A95,1,0),IF(algorithm!$AL$5='BAM tables'!B95,1,0),IF(algorithm!$AL$6='BAM tables'!C95,1,0)),1,0)","v":0}]
[2,2,0,5,null,{"$f":"IF(AND(IF(algorithm!$D$4='BAM tables'!D96,1,0),IF(algorithm!$AH$4='BAM tables'!A96,1,0),IF(algorithm!$AH$5='BAM tables'!B96,1,0),IF(algorithm!$AH$6='BAM tables'!C96,1,0)),1,0)","v":0},{"$f":"IF(AND(IF(algorithm!$D$4='BAM tables'!D96,1,0),IF(algorithm!$AL$4='BAM tables'!A96,1,0),IF(algorithm!$AL$5='BAM tables'!B96,1,0),IF(algorithm!$AL$6='BAM tables'!C96,1,0)),1,0)","v":0}]
[2,2,0,3,null,{"$f":"IF(AND(IF(algorithm!$D$4='BAM tables'!D97,1,0),IF(algorithm!$AH$4='BAM tables'!A97,1,0),IF(algorithm!$AH$5='BAM tables'!B97,1,0),IF(algorithm!$AH$6='BAM tables'!C97,1,0)),1,0)","v":0},{"$f":"IF(AND(IF(algorithm!$D$4='BAM tables'!D97,1,0),IF(algorithm!$AL$4='BAM tables'!A97,1,0),IF(algorithm!$AL$5='BAM tables'!B97,1,0),IF(algorithm!$AL$6='BAM tables'!C97,1,0)),1,0)","v":0}]
[2,2,0,8,null,{"$f":"IF(AND(IF(algorithm!$D$4='BAM tables'!D98,1,0),IF(algorithm!$AH$4='BAM tables'!A98,1,0),IF(algorithm!$AH$5='BAM tables'!B98,1,0),IF(algorithm!$AH$6='BAM tables'!C98,1,0)),1,0)","v":0},{"$f":"IF(AND(IF(algorithm!$D$4='BAM tables'!D98,1,0),IF(algorithm!$AL$4='BAM tables'!A98,1,0),IF(algorithm!$AL$5='BAM tables'!B98,1,0),IF(algorithm!$AL$6='BAM tables'!C98,1,0)),1,0)","v":0}]
[2,2,0,10,null,{"$f":"IF(AND(IF(algorithm!$D$4='BAM tables'!D99,1,0),IF(algorithm!$AH$4='BAM tables'!A99,1,0),IF(algorithm!$AH$5='BAM tables'!B99,1,0),IF(algorithm!$AH$6='BAM tables'!C99,1,0)),1,0)","v":0},{"$f":"IF(AND(IF(algorithm!$D$4='BAM tables'!D99,1,0),IF(algorithm!$AL$4='BAM tables'!A99,1,0),IF(algorithm!$AL$5='BAM tables'!B99,1,0),IF(algorithm!$AL$6='BAM tables'!C99,1,0)),1,0)","v":0}]
[2,2,1,5,null,{"$f":"IF(AND(IF(algorithm!$D$4='BAM tables'!D100,1,0),IF(algorithm!$AH$4='BAM tables'!A100,1,0),IF(algorithm!$AH$5='BAM tables'!B100,1,0),IF(algorithm!$AH$6='BAM tables'!C100,1,0)),1,0)","v":0},{"$f":"IF(AND(IF(algorithm!$D$4='BAM tables'!D100,1,0),IF(algorithm!$AL$4='BAM tables'!A100,1,0),IF(algorithm!$AL$5='BAM tables'!B100,1,0),IF(algorithm!$AL$6='BAM tables'!C100,1,0)),1,0)","v":0}]
[2,2,1,3,null,{"$f":"IF(AND(IF(algorithm!$D$4='BAM tables'!D101,1,0),IF(algorithm!$AH$4='BAM tables'!A101,1,0),IF(algorithm!$AH$5='BAM tables'!B101,1,0),IF(algorithm!$AH$6='BAM tables'!C101,1,0)),1,0)","v":0},{"$f":"IF(AND(IF(algorithm!$D$4='BAM tables'!D101,1,0),IF(algorithm!$AL$4='BAM tables'!A101,1,0),IF(algorithm!$AL$5='BAM tables'!B101,1,0),IF(algorithm!$AL$6='BAM tables'!C101,1,0)),1,0)","v":0}]
[2,2,1,8,null,{"$f":"IF(AND(IF(algorithm!$D$4='BAM tables'!D102,1,0),IF(algorithm!$AH$4='BAM tables'!A102,1,0),IF(algorithm!$AH$5='BAM tables'!B102,1,0),IF(algorithm!$AH$6='BAM tables'!C102,1,0)),1,0)","v":0},{"$f":"IF(AND(IF(algorithm!$D$4='BAM tables'!D102,1,0),IF(algorithm!$AL$4='BAM tables'!A102,1,0),IF(algorithm!$AL$5='BAM tables'!B102,1,0),IF(algorithm!$AL$6='BAM tables'!C102,1,0)),1,0)","v":0}]
[2,2,1,10,null,{"$f":"IF(AND(IF(algorithm!$D$4='BAM tables'!D103,1,0),IF(algorithm!$AH$4='BAM tables'!A103,1,0),IF(algorithm!$AH$5='BAM tables'!B103,1,0),IF(algorithm!$AH$6='BAM tables'!C103,1,0)),1,0)","v":0},{"$f":"IF(AND(IF(algorithm!$D$4='BAM tables'!D103,1,0),IF(algorithm!$AL$4='BAM tables'!A103,1,0),IF(algorithm!$AL$5='BAM tables'!B103,1,0),IF(algorithm!$AL$6='BAM tables'!C103,1,0)),1,0)","v":0}]
[2,2,2,5,null,{"$f":"IF(AND(IF(algorithm!$D$4='BAM tables'!D104,1,0),IF(algorithm!$AH$4='BAM tables'!A104,1,0),IF(algorithm!$AH$5='BAM tables'!B104,1,0),IF(algorithm!$AH$6='BAM tables'!C104,1,0)),1,0)","v":0},{"$f":"IF(AND(IF(algorithm!$D$4='BAM tables'!D104,1,0),IF(algorithm!$AL$4='BAM tables'!A104,1,0),IF(algorithm!$AL$5='BAM tables'!B104,1,0),IF(algorithm!$AL$6='BAM tables'!C104,1,0)),1,0)","v":0}]
[2,2,2,3,null,{"$f":"IF(AND(IF(algorithm!$D$4='BAM tables'!D105,1,0),IF(algorithm!$AH$4='BAM tables'!A105,1,0),IF(algorithm!$AH$5='BAM tables'!B105,1,0),IF(algorithm!$AH$6='BAM tables'!C105,1,0)),1,0)","v":0},{"$f":"IF(AND(IF(algorithm!$D$4='BAM tables'!D105,1,0),IF(algorithm!$AL$4='BAM tables'!A105,1,0),IF(algorithm!$AL$5='BAM tables'!B105,1,0),IF(algorithm!$AL$6='BAM tables'!C105,1,0)),1,0)","v":0}]
[2,2,2,8,null,{"$f":"IF(AND(IF(algorithm!$D$4='BAM tables'!D106,1,0),IF(algorithm!$AH$4='BAM tables'!A106,1,0),IF(algorithm!$AH$5='BAM tables'!B106,1,0),IF(algorithm!$AH$6='BAM tables'!C106,1,0)),1,0)","v":0},{"$f":"IF(AND(IF(algorithm!$D$4='BAM tables'!D106,1,0),IF(algorithm!$AL$4='BAM tables'!A106,1,0),IF(algorithm!$AL$5='BAM tables'!B106,1,0),IF(algorithm!$AL$6='BAM tables'!C106,1,0)),1,0)","v":0}]
[2,2,2,10,null,{"$f":"IF(AND(IF(algorithm!$D$4='BAM tables'!D107,1,0),IF(algorithm!$AH$4='BAM tables'!A107,1,0),IF(algorithm!$AH$5='BAM tables'!B107,1,0),IF(algorithm!$AH$6='BAM tables'!C107,1,0)),1,0)","v":0},{"$f":"IF(AND(IF(algorithm!$D$4='BAM tables'!D107,1,0),IF(algorithm!$AL$4='BAM tables'!A107,1,0),IF(algorithm!$AL$5='BAM tables'!B107,1,0),IF(algorithm!$AL$6='BAM tables'!C107,1,0)),1,0)","v":0}]
[2,3,0,5,null,{"$f":"IF(AND(IF(algorithm!$D$4='BAM tables'!D108,1,0),IF(algorithm!$AH$4='BAM tables'!A108,1,0),IF(algorithm!$AH$5='BAM tables'!B108,1,0),IF(algorithm!$AH$6='BAM tables'!C108,1,0)),1,0)","v":0},{"$f":"IF(AND(IF(algorithm!$D$4='BAM tables'!D108,1,0),IF(algorithm!$AL$4='BAM tables'!A108,1,0),IF(algorithm!$AL$5='BAM tables'!B108,1,0),IF(algorithm!$AL$6='BAM tables'!C108,1,0)),1,0)","v":0}]
[2,3,0,3,null,{"$f":"IF(AND(IF(algorithm!$D$4='BAM tables'!D109,1,0),IF(algorithm!$AH$4='BAM tables'!A109,1,0),IF(algorithm!$AH$5='BAM tables'!B109,1,0),IF(algorithm!$AH$6='BAM tables'!C109,1,0)),1,0)","v":0},{"$f":"IF(AND(IF(algorithm!$D$4='BAM tables'!D109,1,0),IF(algorithm!$AL$4='BAM tables'!A109,1,0),IF(algorithm!$AL$5='BAM tables'!B109,1,0),IF(algorithm!$AL$6='BAM tables'!C109,1,0)),1,0)","v":0}]
[2,3,0,8,null,{"$f":"IF(AND(IF(algorithm!$D$4='BAM tables'!D110,1,0),IF(algorithm!$AH$4='BAM tables'!A110,1,0),IF(algorithm!$AH$5='BAM tables'!B110,1,0),IF(algorithm!$AH$6='BAM tables'!C110,1,0)),1,0)","v":0},{"$f":"IF(AND(IF(algorithm!$D$4='BAM tables'!D110,1,0),IF(algorithm!$AL$4='BAM tables'!A110,1,0),IF(algorithm!$AL$5='BAM tables'!B110,1,0),IF(algorithm!$AL$6='BAM tables'!C110,1,0)),1,0)","v":0}]
[2,3,0,10,null,{"$f":"IF(AND(IF(algorithm!$D$4='BAM tables'!D111,1,0),IF(algorithm!$AH$4='BAM tables'!A111,1,0),IF(algorithm!$AH$5='BAM tables'!B111,1,0),IF(algorithm!$AH$6='BAM tables'!C111,1,0)),1,0)","v":0},{"$f":"IF(AND(IF(algorithm!$D$4='BAM tables'!D111,1,0),IF(algorithm!$AL$4='BAM tables'!A111,1,0),IF(algorithm!$AL$5='BAM tables'!B111,1,0),IF(algorithm!$AL$6='BAM tables'!C111,1,0)),1,0)","v":0}]
[2,3,1,5,null,{"$f":"IF(AND(IF(algorithm!$D$4='BAM tables'!D112,1,0),IF(algorithm!$AH$4='BAM tables'!A112,1,0),IF(algorithm!$AH$5='BAM tables'!B112,1,0),IF(algorithm!$AH$6='BAM tables'!C112,1,0)),1,0)","v":0},{"$f":"IF(AND(IF(algorithm!$D$4='BAM tables'!D112,1,0),IF(algorithm!$AL$4='BAM tables'!A112,1,0),IF(algorithm!$AL$5='BAM tables'!B112,1,0),IF(algorithm!$AL$6='BAM tables'!C112,1,0)),1,0)","v":0}]
[2,3,1,3,null,{"$f":"IF(AND(IF(algorithm!$D$4='BAM tables'!D113,1,0),IF(algorithm!$AH$4='BAM tables'!A113,1,0),IF(algorithm!$AH$5='BAM tables'!B113,1,0),IF(algorithm!$AH$6='BAM tables'!C113,1,0)),1,0)","v":0},{"$f":"IF(AND(IF(algorithm!$D$4='BAM tables'!D113,1,0),IF(algorithm!$AL$4='BAM tables'!A113,1,0),IF(algorithm!$AL$5='BAM tables'!B113,1,0),IF(algorithm!$AL$6='BAM tables'!C113,1,0)),1,0)","v":0}]
[2,3,1,8,null,{"$f":"IF(AND(IF(algorithm!$D$4='BAM tables'!D114,1,0),IF(algorithm!$AH$4='BAM tables'!A114,1,0),IF(algorithm!$AH$5='BAM tables'!B114,1,0),IF(algorithm!$AH$6='BAM tables'!C114,1,0)),1,0)","v":0},{"$f":"IF(AND(IF(algorithm!$D$4='BAM tables'!D114,1,0),IF(algorithm!$AL$4='BAM tables'!A114,1,0),IF(algorithm!$AL$5='BAM tables'!B114,1,0),IF(algorithm!$AL$6='BAM tables'!C114,1,0)),1,0)","v":0}]
[2,3,1,10,null,{"$f":"IF(AND(IF(algorithm!$D$4='BAM tables'!D115,1,0),IF(algorithm!$AH$4='BAM tables'!A115,1,0),IF(algorithm!$AH$5='BAM tables'!B115,1,0),IF(algorithm!$AH$6='BAM tables'!C115,1,0)),1,0)","v":0},{"$f":"IF(AND(IF(algorithm!$D$4='BAM tables'!D115,1,0),IF(algorithm!$AL$4='BAM tables'!A115,1,0),IF(algorithm!$AL$5='BAM tables'!B115,1,0),IF(algorithm!$AL$6='BAM tables'!C115,1,0)),1,0)","v":0}]
[2,4,0,5,null,{"$f":"IF(AND(IF(algorithm!$D$4='BAM tables'!D116,1,0),IF(algorithm!$AH$4='BAM tables'!A116,1,0),IF(algorithm!$AH$5='BAM tables'!B116,1,0),IF(algorithm!$AH$6='BAM tables'!C116,1,0)),1,0)","v":0},{"$f":"IF(AND(IF(algorithm!$D$4='BAM tables'!D116,1,0),IF(algorithm!$AL$4='BAM tables'!A116,1,0),IF(algorithm!$AL$5='BAM tables'!B116,1,0),IF(algorithm!$AL$6='BAM tables'!C116,1,0)),1,0)","v":0}]
[2,4,0,8,null,{"$f":"IF(AND(IF(algorithm!$D$4='BAM tables'!D117,1,0),IF(algorithm!$AH$4='BAM tables'!A117,1,0),IF(algorithm!$AH$5='BAM tables'!B117,1,0),IF(algorithm!$AH$6='BAM tables'!C117,1,0)),1,0)","v":0},{"$f":"IF(AND(IF(algorithm!$D$4='BAM tables'!D117,1,0),IF(algorithm!$AL$4='BAM tables'!A117,1,0),IF(algorithm!$AL$5='BAM tables'!B117,1,0),IF(algorithm!$AL$6='BAM tables'!C117,1,0)),1,0)","v":0}]
[2,4,0,10,null,{"$f":"IF(AND(IF(algorithm!$D$4='BAM tables'!D118,1,0),IF(algorithm!$AH$4='BAM tables'!A118,1,0),IF(algorithm!$AH$5='BAM tables'!B118,1,0),IF(algorithm!$AH$6='BAM tables'!C118,1,0)),1,0)","v":0},{"$f":"IF(AND(IF(algorithm!$D$4='BAM tables'!D118,1,0),IF(algorithm!$AL$4='BAM tables'!A118,1,0),IF(algorithm!$AL$5='BAM tables'!B118,1,0),IF(algorithm!$AL$6='BAM tables'!C118,1,0)),1,0)","v":0}]
[2,4,1,10,null,{"$f":"IF(AND(IF(algorithm!$D$4='BAM tables'!D119,1,0),IF(algorithm!$AH$4='BAM tables'!A119,1,0),IF(algorithm!$AH$5='BAM tables'!B119,1,0),IF(algorithm!$AH$6='BAM tables'!C119,1,0)),1,0)","v":0},{"$f":"IF(AND(IF(algorithm!$D$4='BAM tables'!D119,1,0),IF(algorithm!$AL$4='BAM tables'!A119,1,0),IF(algorithm!$AL$5='BAM tables'!B119,1,0),IF(algorithm!$AL$6='BAM tables'!C119,1,0)),1,0)","v":0}]
[2,5,0,8,null,{"$f":"IF(AND(IF(algorithm!$D$4='BAM tables'!D120,1,0),IF(algorithm!$AH$4='BAM tables'!A120,1,0),IF(algorithm!$AH$5='BAM tables'!B120,1,0),IF(algorithm!$AH$6='BAM tables'!C120,1,0)),1,0)","v":0},{"$f":"IF(AND(IF(algorithm!$D$4='BAM tables'!D120,1,0),IF(algorithm!$AL$4='BAM tables'!A120,1,0),IF(algorithm!$AL$5='BAM tables'!B120,1,0),IF(algorithm!$AL$6='BAM tables'!C120,1,0)),1,0)","v":0}]
[2,5,0,10,null,{"$f":"IF(AND(IF(algorithm!$D$4='BAM tables'!D121,1,0),IF(algorithm!$AH$4='BAM tables'!A121,1,0),IF(algorithm!$AH$5='BAM tables'!B121,1,0),IF(algorithm!$AH$6='BAM tables'!C121,1,0)),1,0)","v":0},{"$f":"IF(AND(IF(algorithm!$D$4='BAM tables'!D121,1,0),IF(algorithm!$AL$4='BAM tables'!A121,1,0),IF(algorithm!$AL$5='BAM tables'!B121,1,0),IF(algorithm!$AL$6='BAM tables'!C121,1,0)),1,0)","v":0}]
[3,0,0,5,null,{"$f":"IF(AND(IF(algorithm!$D$4='BAM tables'!D122,1,0),IF(algorithm!$AH$4='BAM tables'!A122,1,0),IF(algorithm!$AH$5='BAM tables'!B122,1,0),IF(algorithm!$AH$6='BAM tables'!C122,1,0)),1,0)","v":0},{"$f":"IF(AND(IF(algorithm!$D$4='BAM tables'!D122,1,0),IF(algorithm!$AL$4='BAM tables'!A122,1,0),IF(algorithm!$AL$5='BAM tables'!B122,1,0),IF(algorithm!$AL$6='BAM tables'!C122,1,0)),1,0)","v":0}]
[3,0,0,3,null,{"$f":"IF(AND(IF(algorithm!$D$4='BAM tables'!D123,1,0),IF(algorithm!$AH$4='BAM tables'!A123,1,0),IF(algorithm!$AH$5='BAM tables'!B123,1,0),IF(algorithm!$AH$6='BAM tables'!C123,1,0)),1,0)","v":0},{"$f":"IF(AND(IF(algorithm!$D$4='BAM tables'!D123,1,0),IF(algorithm!$AL$4='BAM tables'!A123,1,0),IF(algorithm!$AL$5='BAM tables'!B123,1,0),IF(algorithm!$AL$6='BAM tables'!C123,1,0)),1,0)","v":0}]
[3,0,0,8,null,{"$f":"IF(AND(IF(algorithm!$D$4='BAM tables'!D124,1,0),IF(algorithm!$AH$4='BAM tables'!A124,1,0),IF(algorithm!$AH$5='BAM tables'!B124,1,0),IF(algorithm!$AH$6='BAM tables'!C124,1,0)),1,0)","v":0},{"$f":"IF(AND(IF(algorithm!$D$4='BAM tables'!D124,1,0),IF(algorithm!$AL$4='BAM tables'!A124,1,0),IF(algorithm!$AL$5='BAM tables'!B124,1,0),IF(algorithm!$AL$6='BAM tables'!C124,1,0)),1,0)","v":0}]
[3,0,0,10,null,{"$f":"IF(AND(IF(algorithm!$D$4='BAM tables'!D125,1,0),IF(algorithm!$AH$4='BAM tables'!A125,1,0),IF(algorithm!$AH$5='BAM tables'!B125,1,0),IF(algorithm!$AH$6='BAM tables'!C125,1,0)),1,0)","v":0},{"$f":"IF(AND(IF(algorithm!$D$4='BAM tables'!D125,1,0),IF(algorithm!$AL$4='BAM tables'!A125,1,0),IF(algorithm!$AL$5='BAM tables'!B125,1,0),IF(algorithm!$AL$6='BAM tables'!C125,1,0)),1,0)","v":0}]
[3,0,1,5,null,{"$f":"IF(AND(IF(algorithm!$D$4='BAM tables'!D126,1,0),IF(algorithm!$AH$4='BAM tables'!A126,1,0),IF(algorithm!$AH$5='BAM tables'!B126,1,0),IF(algorithm!$AH$6='BAM tables'!C126,1,0)),1,0)","v":0},{"$f":"IF(AND(IF(algorithm!$D$4='BAM tables'!D126,1,0),IF(algorithm!$AL$4='BAM tables'!A126,1,0),IF(algorithm!$AL$5='BAM tables'!B126,1,0),IF(algorithm!$AL$6='BAM tables'!C126,1,0)),1,0)","v":0}]
[3,0,1,3,null,{"$f":"IF(AND(IF(algorithm!$D$4='BAM tables'!D127,1,0),IF(algorithm!$AH$4='BAM tables'!A127,1,0),IF(algorithm!$AH$5='BAM tables'!B127,1,0),IF(algorithm!$AH$6='BAM tables'!C127,1,0)),1,0)","v":0},{"$f":"IF(AND(IF(algorithm!$D$4='BAM tables'!D127,1,0),IF(algorithm!$AL$4='BAM tables'!A127,1,0),IF(algorithm!$AL$5='BAM tables'!B127,1,0),IF(algorithm!$AL$6='BAM tables'!C127,1,0)),1,0)","v":0}]
[3,0,1,8,null,{"$f":"IF(AND(IF(algorithm!$D$4='BAM tables'!D128,1,0),IF(algorithm!$AH$4='BAM tables'!A128,1,0),IF(algorithm!$AH$5='BAM tables'!B128,1,0),IF(algorithm!$AH$6='BAM tables'!C128,1,0)),1,0)","v":0},{"$f":"IF(AND(IF(algorithm!$D$4='BAM tables'!D128,1,0),IF(algorithm!$AL$4='BAM tables'!A128,1,0),IF(algorithm!$AL$5='BAM tables'!B128,1,0),IF(algorithm!$AL$6='BAM tables'!C128,1,0)),1,0)","v":0}]
[3,0,1,10,null,{"$f":"IF(AND(IF(algorithm!$D$4='BAM tables'!D129,1,0),IF(algorithm!$AH$4='BAM tables'!A129,1,0),IF(algorithm!$AH$5='BAM tables'!B129,1,0),IF(algorithm!$AH$6='BAM tables'!C129,1,0)),1,0)","v":0},{"$f":"IF(AND(IF(algorithm!$D$4='BAM tables'!D129,1,0),IF(algorithm!$AL$4='BAM tables'!A129,1,0),IF(algorithm!$AL$5='BAM tables'!B129,1,0),IF(algorithm!$AL$6='BAM tables'!C129,1,0)),1,0)","v":0}]
[3,0,2,5,null,{"$f":"IF(AND(IF(algorithm!$D$4='BAM tables'!D130,1,0),IF(algorithm!$AH$4='BAM tables'!A130,1,0),IF(algorithm!$AH$5='BAM tables'!B130,1,0),IF(algorithm!$AH$6='BAM tables'!C130,1,0)),1,0)","v":0},{"$f":"IF(AND(IF(algorithm!$D$4='BAM tables'!D130,1,0),IF(algorithm!$AL$4='BAM tables'!A130,1,0),IF(algorithm!$AL$5='BAM tables'!B130,1,0),IF(algorithm!$AL$6='BAM tables'!C130,1,0)),1,0)","v":0}]
[3,0,2,3,null,{"$f":"IF(AND(IF(algorithm!$D$4='BAM tables'!D131,1,0),IF(algorithm!$AH$4='BAM tables'!A131,1,0),IF(algorithm!$AH$5='BAM tables'!B131,1,0),IF(algorithm!$AH$6='BAM tables'!C131,1,0)),1,0)","v":0},{"$f":"IF(AND(IF(algorithm!$D$4='BAM tables'!D131,1,0),IF(algorithm!$AL$4='BAM tables'!A131,1,0),IF(algorithm!$AL$5='BAM tables'!B131,1,0),IF(algorithm!$AL$6='BAM tables'!C131,1,0)),1,0)","v":0}]
[3,0,2,8,null,{"$f":"IF(AND(IF(algorithm!$D$4='BAM tables'!D132,1,0),IF(algorithm!$AH$4='BAM tables'!A132,1,0),IF(algorithm!$AH$5='BAM tables'!B132,1,0),IF(algorithm!$AH$6='BAM tables'!C132,1,0)),1,0)","v":0},{"$f":"IF(AND(IF(algorithm!$D$4='BAM tables'!D132,1,0),IF(algorithm!$AL$4='BAM tables'!A132,1,0),IF(algorithm!$AL$5='BAM tables'!B132,1,0),IF(algorithm!$AL$6='BAM tables'!C132,1,0)),1,0)","v":0}]
[3,0,2,10,null,{"$f":"IF(AND(IF(algorithm!$D$4='BAM tables'!D133,1,0),IF(algorithm!$AH$4='BAM tables'!A133,1,0),IF(algorithm!$AH$5='BAM tables'!B133,1,0),IF(algorithm!$AH$6='BAM tables'!C133,1,0)),1,0)","v":0},{"$f":"IF(AND(IF(algorithm!$D$4='BAM tables'!D133,1,0),IF(algorithm!$AL$4='BAM tables'!A133,1,0),IF(algorithm!$AL$5='BAM tables'!B133,1,0),IF(algorithm!$AL$6='BAM tables'!C133,1,0)),1,0)","v":0}]
[3,1,0,5,null,{"$f":"IF(AND(IF(algorithm!$D$4='BAM tables'!D134,1,0),IF(algorithm!$AH$4='BAM tables'!A134,1,0),IF(algorithm!$AH$5='BAM tables'!B134,1,0),IF(algorithm!$AH$6='BAM tables'!C134,1,0)),1,0)","v":0},{"$f":"IF(AND(IF(algorithm!$D$4='BAM tables'!D134,1,0),IF(algorithm!$AL$4='BAM tables'!A134,1,0),IF(algorithm!$AL$5='BAM tables'!B134,1,0),IF(algorithm!$AL$6='BAM tables'!C134,1,0)),1,0)","v":0}]
[3,1,0,3,null,{"$f":"IF(AND(IF(algorithm!$D$4='BAM tables'!D135,1,0),IF(algorithm!$AH$4='BAM tables'!A135,1,0),IF(algorithm!$AH$5='BAM tables'!B135,1,0),IF(algorithm!$AH$6='BAM tables'!C135,1,0)),1,0)","v":0},{"$f":"IF(AND(IF(algorithm!$D$4='BAM tables'!D135,1,0),IF(algorithm!$AL$4='BAM tables'!A135,1,0),IF(algorithm!$AL$5='BAM tables'!B135,1,0),IF(algorithm!$AL$6='BAM tables'!C135,1,0)),1,0)","v":0}]
[3,1,0,8,null,{"$f":"IF(AND(IF(algorithm!$D$4='BAM tables'!D136,1,0),IF(algorithm!$AH$4='BAM tables'!A136,1,0),IF(algorithm!$AH$5='BAM tables'!B136,1,0),IF(algorithm!$AH$6='BAM tables'!C136,1,0)),1,0)","v":0},{"$f":"IF(AND(IF(algorithm!$D$4='BAM tables'!D136,1,0),IF(algorithm!$AL$4='BAM tables'!A136,1,0),IF(algorithm!$AL$5='BAM tables'!B136,1,0),IF(algorithm!$AL$6='BAM tables'!C136,1,0)),1,0)","v":0}]
[3,1,0,10,null,{"$f":"IF(AND(IF(algorithm!$D$4='BAM tables'!D137,1,0),IF(algorithm!$AH$4='BAM tables'!A137,1,0),IF(algorithm!$AH$5='BAM tables'!B137,1,0),IF(algorithm!$AH$6='BAM tables'!C137,1,0)),1,0)","v":0},{"$f":"IF(AND(IF(algorithm!$D$4='BAM tables'!D137,1,0),IF(algorithm!$AL$4='BAM tables'!A137,1,0),IF(algorithm!$AL$5='BAM tables'!B137,1,0),IF(algorithm!$AL$6='BAM tables'!C137,1,0)),1,0)","v":0}]
[3,1,1,5,null,{"$f":"IF(AND(IF(algorithm!$D$4='BAM tables'!D138,1,0),IF(algorithm!$AH$4='BAM tables'!A138,1,0),IF(algorithm!$AH$5='BAM tables'!B138,1,0),IF(algorithm!$AH$6='BAM tables'!C138,1,0)),1,0)","v":0},{"$f":"IF(AND(IF(algorithm!$D$4='BAM tables'!D138,1,0),IF(algorithm!$AL$4='BAM tables'!A138,1,0),IF(algorithm!$AL$5='BAM tables'!B138,1,0),IF(algorithm!$AL$6='BAM tables'!C138,1,0)),1,0)","v":0}]
[3,1,1,3,null,{"$f":"IF(AND(IF(algorithm!$D$4='BAM tables'!D139,1,0),IF(algorithm!$AH$4='BAM tables'!A139,1,0),IF(algorithm!$AH$5='BAM tables'!B139,1,0),IF(algorithm!$AH$6='BAM tables'!C139,1,0)),1,0)","v":0},{"$f":"IF(AND(IF(algorithm!$D$4='BAM tables'!D139,1,0),IF(algorithm!$AL$4='BAM tables'!A139,1,0),IF(algorithm!$AL$5='BAM tables'!B139,1,0),IF(algorithm!$AL$6='BAM tables'!C139,1,0)),1,0)","v":0}]
[3,1,1,8,null,{"$f":"IF(AND(IF(algorithm!$D$4='BAM tables'!D140,1,0),IF(algorithm!$AH$4='BAM tables'!A140,1,0),IF(algorithm!$AH$5='BAM tables'!B140,1,0),IF(algorithm!$AH$6='BAM tables'!C140,1,0)),1,0)","v":0},{"$f":"IF(AND(IF(algorithm!$D$4='BAM tables'!D140,1,0),IF(algorithm!$AL$4='BAM tables'!A140,1,0),IF(algorithm!$AL$5='BAM tables'!B140,1,0),IF(algorithm!$AL$6='BAM tables'!C140,1,0)),1,0)","v":0}]
[3,1,1,10,null,{"$f":"IF(AND(IF(algorithm!$D$4='BAM tables'!D141,1,0),IF(algorithm!$AH$4='BAM tables'!A141,1,0),IF(algorithm!$AH$5='BAM tables'!B141,1,0),IF(algorithm!$AH$6='BAM tables'!C141,1,0)),1,0)","v":0},{"$f":"IF(AND(IF(algorithm!$D$4='BAM tables'!D141,1,0),IF(algorithm!$AL$4='BAM tables'!A141,1,0),IF(algorithm!$AL$5='BAM tables'!B141,1,0),IF(algorithm!$AL$6='BAM tables'!C141,1,0)),1,0)","v":0}]
[3,1,2,5,null,{"$f":"IF(AND(IF(algorithm!$D$4='BAM tables'!D142,1,0),IF(algorithm!$AH$4='BAM tables'!A142,1,0),IF(algorithm!$AH$5='BAM tables'!B142,1,0),IF(algorithm!$AH$6='BAM tables'!C142,1,0)),1,0)","v":0},{"$f":"IF(AND(IF(algorithm!$D$4='BAM tables'!D142,1,0),IF(algorithm!$AL$4='BAM tables'!A142,1,0),IF(algorithm!$AL$5='BAM tables'!B142,1,0),IF(algorithm!$AL$6='BAM tables'!C142,1,0)),1,0)","v":0}]
[3,1,2,3,null,{"$f":"IF(AND(IF(algorithm!$D$4='BAM tables'!D143,1,0),IF(algorithm!$AH$4='BAM tables'!A143,1,0),IF(algorithm!$AH$5='BAM tables'!B143,1,0),IF(algorithm!$AH$6='BAM tables'!C143,1,0)),1,0)","v":0},{"$f":"IF(AND(IF(algorithm!$D$4='BAM tables'!D143,1,0),IF(algorithm!$AL$4='BAM tables'!A143,1,0),IF(algorithm!$AL$5='BAM tables'!B143,1,0),IF(algorithm!$AL$6='BAM tables'!C143,1,0)),1,0)","v":0}]
[3,1,2,8,null,{"$f":"IF(AND(IF(algorithm!$D$4='BAM tables'!D144,1,0),IF(algorithm!$AH$4='BAM tables'!A144,1,0),IF(algorithm!$AH$5='BAM tables'!B144,1,0),IF(algorithm!$AH$6='BAM tables'!C144,1,0)),1,0)","v":0},{"$f":"IF(AND(IF(algorithm!$D$4='BAM tables'!D144,1,0),IF(algorithm!$AL$4='BAM tables'!A144,1,0),IF(algorithm!$AL$5='BAM tables'!B144,1,0),IF(algorithm!$AL$6='BAM tables'!C144,1,0)),1,0)","v":0}]
[3,1,2,10,null,{"$f":"IF(AND(IF(algorithm!$D$4='BAM tables'!D145,1,0),IF(algorithm!$AH$4='BAM tables'!A145,1,0),IF(algorithm!$AH$5='BAM tables'!B145,1,0),IF(algorithm!$AH$6='BAM tables'!C145,1,0)),1,0)","v":0},{"$f":"IF(AND(IF(algorithm!$D$4='BAM tables'!D145,1,0),IF(algorithm!$AL$4='BAM tables'!A145,1,0),IF(algorithm!$AL$5='BAM tables'!B145,1,0),IF(algorithm!$AL$6='BAM tables'!C145,1,0)),1,0)","v":0}]
[3,1,3,3,null,{"$f":"IF(AND(IF(algorithm!$D$4='BAM tables'!D146,1,0),IF(algorithm!$AH$4='BAM tables'!A146,1,0),IF(algorithm!$AH$5='BAM tables'!B146,1,0),IF(algorithm!$AH$6='BAM tables'!C146,1,0)),1,0)","v":0},{"$f":"IF(AND(IF(algorithm!$D$4='BAM tables'!D146,1,0),IF(algorithm!$AL$4='BAM tables'!A146,1,0),IF(algorithm!$AL$5='BAM tables'!B146,1,0),IF(algorithm!$AL$6='BAM tables'!C146,1,0)),1,0)","v":0}]
[3,2,0,5,null,{"$f":"IF(AND(IF(algorithm!$D$4='BAM tables'!D147,1,0),IF(algorithm!$AH$4='BAM tables'!A147,1,0),IF(algorithm!$AH$5='BAM tables'!B147,1,0),IF(algorithm!$AH$6='BAM tables'!C147,1,0)),1,0)","v":0},{"$f":"IF(AND(IF(algorithm!$D$4='BAM tables'!D147,1,0),IF(algorithm!$AL$4='BAM tables'!A147,1,0),IF(algorithm!$AL$5='BAM tables'!B147,1,0),IF(algorithm!$AL$6='BAM tables'!C147,1,0)),1,0)","v":0}]
[3,2,0,3,null,{"$f":"IF(AND(IF(algorithm!$D$4='BAM tables'!D148,1,0),IF(algorithm!$AH$4='BAM tables'!A148,1,0),IF(algorithm!$AH$5='BAM tables'!B148,1,0),IF(algorithm!$AH$6='BAM tables'!C148,1,0)),1,0)","v":0},{"$f":"IF(AND(IF(algorithm!$D$4='BAM tables'!D148,1,0),IF(algorithm!$AL$4='BAM tables'!A148,1,0),IF(algorithm!$AL$5='BAM tables'!B148,1,0),IF(algorithm!$AL$6='BAM tables'!C148,1,0)),1,0)","v":0}]
[3,2,0,8,null,{"$f":"IF(AND(IF(algorithm!$D$4='BAM tables'!D149,1,0),IF(algorithm!$AH$4='BAM tables'!A149,1,0),IF(algorithm!$AH$5='BAM tables'!B149,1,0),IF(algorithm!$AH$6='BAM tables'!C149,1,0)),1,0)","v":0},{"$f":"IF(AND(IF(algorithm!$D$4='BAM tables'!D149,1,0),IF(algorithm!$AL$4='BAM tables'!A149,1,0),IF(algorithm!$AL$5='BAM tables'!B149,1,0),IF(algorithm!$AL$6='BAM tables'!C149,1,0)),1,0)","v":0}]
[3,2,0,10,null,{"$f":"IF(AND(IF(algorithm!$D$4='BAM tables'!D150,1,0),IF(algorithm!$AH$4='BAM tables'!A150,1,0),IF(algorithm!$AH$5='BAM tables'!B150,1,0),IF(algorithm!$AH$6='BAM tables'!C150,1,0)),1,0)","v":0},{"$f":"IF(AND(IF(algorithm!$D$4='BAM tables'!D150,1,0),IF(algorithm!$AL$4='BAM tables'!A150,1,0),IF(algorithm!$AL$5='BAM tables'!B150,1,0),IF(algorithm!$AL$6='BAM tables'!C150,1,0)),1,0)","v":0}]
[3,2,1,5,null,{"$f":"IF(AND(IF(algorithm!$D$4='BAM tables'!D151,1,0),IF(algorithm!$AH$4='BAM tables'!A151,1,0),IF(algorithm!$AH$5='BAM tables'!B151,1,0),IF(algorithm!$AH$6='BAM tables'!C151,1,0)),1,0)","v":0},{"$f":"IF(AND(IF(algorithm!$D$4='BAM tables'!D151,1,0),IF(algorithm!$AL$4='BAM tables'!A151,1,0),IF(algorithm!$AL$5='BAM tables'!B151,1,0),IF(algorithm!$AL$6='BAM tables'!C151,1,0)),1,0)","v":0}]
[3,2,1,3,null,{"$f":"IF(AND(IF(algorithm!$D$4='BAM tables'!D152,1,0),IF(algorithm!$AH$4='BAM tables'!A152,1,0),IF(algorithm!$AH$5='BAM tables'!B152,1,0),IF(algorithm!$AH$6='BAM tables'!C152,1,0)),1,0)","v":0},{"$f":"IF(AND(IF(algorithm!$D$4='BAM tables'!D152,1,0),IF(algorithm!$AL$4='BAM tables'!A152,1,0),IF(algorithm!$AL$5='BAM tables'!B152,1,0),IF(algorithm!$AL$6='BAM tables'!C152,1,0)),1,0)","v":0}]
[3,2,1,8,null,{"$f":"IF(AND(IF(algorithm!$D$4='BAM tables'!D153,1,0),IF(algorithm!$AH$4='BAM tables'!A153,1,0),IF(algorithm!$AH$5='BAM tables'!B153,1,0),IF(algorithm!$AH$6='BAM tables'!C153,1,0)),1,0)","v":0},{"$f":"IF(AND(IF(algorithm!$D$4='BAM tables'!D153,1,0),IF(algorithm!$AL$4='BAM tables'!A153,1,0),IF(algorithm!$AL$5='BAM tables'!B153,1,0),IF(algorithm!$AL$6='BAM tables'!C153,1,0)),1,0)","v":0}]
[3,2,1,10,null,{"$f":"IF(AND(IF(algorithm!$D$4='BAM tables'!D154,1,0),IF(algorithm!$AH$4='BAM tables'!A154,1,0),IF(algorithm!$AH$5='BAM tables'!B154,1,0),IF(algorithm!$AH$6='BAM tables'!C154,1,0)),1,0)","v":0},{"$f":"IF(AND(IF(algorithm!$D$4='BAM tables'!D154,1,0),IF(algorithm!$AL$4='BAM tables'!A154,1,0),IF(algorithm!$AL$5='BAM tables'!B154,1,0),IF(algorithm!$AL$6='BAM tables'!C154,1,0)),1,0)","v":0}]
[3,2,2,5,null,{"$f":"IF(AND(IF(algorithm!$D$4='BAM tables'!D155,1,0),IF(algorithm!$AH$4='BAM tables'!A155,1,0),IF(algorithm!$AH$5='BAM tables'!B155,1,0),IF(algorithm!$AH$6='BAM tables'!C155,1,0)),1,0)","v":0},{"$f":"IF(AND(IF(algorithm!$D$4='BAM tables'!D155,1,0),IF(algorithm!$AL$4='BAM tables'!A155,1,0),IF(algorithm!$AL$5='BAM tables'!B155,1,0),IF(algorithm!$AL$6='BAM tables'!C155,1,0)),1,0)","v":0}]
[3,2,2,3,null,{"$f":"IF(AND(IF(algorithm!$D$4='BAM tables'!D156,1,0),IF(algorithm!$AH$4='BAM tables'!A156,1,0),IF(algorithm!$AH$5='BAM tables'!B156,1,0),IF(algorithm!$AH$6='BAM tables'!C156,1,0)),1,0)","v":0},{"$f":"IF(AND(IF(algorithm!$D$4='BAM tables'!D156,1,0),IF(algorithm!$AL$4='BAM tables'!A156,1,0),IF(algorithm!$AL$5='BAM tables'!B156,1,0),IF(algorithm!$AL$6='BAM tables'!C156,1,0)),1,0)","v":0}]
[3,2,2,8,null,{"$f":"IF(AND(IF(algorithm!$D$4='BAM tables'!D157,1,0),IF(algorithm!$AH$4='BAM tables'!A157,1,0),IF(algorithm!$AH$5='BAM tables'!B157,1,0),IF(algorithm!$AH$6='BAM tables'!C157,1,0)),1,0)","v":0},{"$f":"IF(AND(IF(algorithm!$D$4='BAM tables'!D157,1,0),IF(algorithm!$AL$4='BAM tables'!A157,1,0),IF(algorithm!$AL$5='BAM tables'!B157,1,0),IF(algorithm!$AL$6='BAM tables'!C157,1,0)),1,0)","v":0}]
[3,2,2,10,null,{"$f":"IF(AND(IF(algorithm!$D$4='BAM tables'!D158,1,0),IF(algorithm!$AH$4='BAM tables'!A158,1,0),IF(algorithm!$AH$5='BAM tables'!B158,1,0),IF(algorithm!$AH$6='BAM tables'!C158,1,0)),1,0)","v":0},{"$f":"IF(AND(IF(algorithm!$D$4='BAM tables'!D158,1,0),IF(algorithm!$AL$4='BAM tables'!A158,1,0),IF(algorithm!$AL$5='BAM tables'!B158,1,0),IF(algorithm!$AL$6='BAM tables'!C158,1,0)),1,0)","v":0}]
[3,2,3,3,null,{"$f":"IF(AND(IF(algorithm!$D$4='BAM tables'!D159,1,0),IF(algorithm!$AH$4='BAM tables'!A159,1,0),IF(algorithm!$AH$5='BAM tables'!B159,1,0),IF(algorithm!$AH$6='BAM tables'!C159,1,0)),1,0)","v":0},{"$f":"IF(AND(IF(algorithm!$D$4='BAM tables'!D159,1,0),IF(algorithm!$AL$4='BAM tables'!A159,1,0),IF(algorithm!$AL$5='BAM tables'!B159,1,0),IF(algorithm!$AL$6='BAM tables'!C159,1,0)),1,0)","v":0}]
[3,3,0,5,null,{"$f":"IF(AND(IF(algorithm!$D$4='BAM tables'!D160,1,0),IF(algorithm!$AH$4='BAM tables'!A160,1,0),IF(algorithm!$AH$5='BAM tables'!B160,1,0),IF(algorithm!$AH$6='BAM tables'!C160,1,0)),1,0)","v":0},{"$f":"IF(AND(IF(algorithm!$D$4='BAM tables'!D160,1,0),IF(algorithm!$AL$4='BAM tables'!A160,1,0),IF(algorithm!$AL$5='BAM tables'!B160,1,0),IF(algorithm!$AL$6='BAM tables'!C160,1,0)),1,0)","v":0}]
[3,3,0,3,null,{"$f":"IF(AND(IF(algorithm!$D$4='BAM tables'!D161,1,0),IF(algorithm!$AH$4='BAM tables'!A161,1,0),IF(algorithm!$AH$5='BAM tables'!B161,1,0),IF(algorithm!$AH$6='BAM tables'!C161,1,0)),1,0)","v":0},{"$f":"IF(AND(IF(algorithm!$D$4='BAM tables'!D161,1,0),IF(algorithm!$AL$4='BAM tables'!A161,1,0),IF(algorithm!$AL$5='BAM tables'!B161,1,0),IF(algorithm!$AL$6='BAM tables'!C161,1,0)),1,0)","v":0}]
[3,3,0,8,null,{"$f":"IF(AND(IF(algorithm!$D$4='BAM tables'!D162,1,0),IF(algorithm!$AH$4='BAM tables'!A162,1,0),IF(algorithm!$AH$5='BAM tables'!B162,1,0),IF(algorithm!$AH$6='BAM tables'!C162,1,0)),1,0)","v":0},{"$f":"IF(AND(IF(algorithm!$D$4='BAM tables'!D162,1,0),IF(algorithm!$AL$4='BAM tables'!A162,1,0),IF(algorithm!$AL$5='BAM tables'!B162,1,0),IF(algorithm!$AL$6='BAM tables'!C162,1,0)),1,0)","v":0}]
[3,3,0,10,null,{"$f":"IF(AND(IF(algorithm!$D$4='BAM tables'!D163,1,0),IF(algorithm!$AH$4='BAM tables'!A163,1,0),IF(algorithm!$AH$5='BAM tables'!B163,1,0),IF(algorithm!$AH$6='BAM tables'!C163,1,0)),1,0)","v":0},{"$f":"IF(AND(IF(algorithm!$D$4='BAM tables'!D163,1,0),IF(algorithm!$AL$4='BAM tables'!A163,1,0),IF(algorithm!$AL$5='BAM tables'!B163,1,0),IF(algorithm!$AL$6='BAM tables'!C163,1,0)),1,0)","v":0}]
[3,3,1,5,null,{"$f":"IF(AND(IF(algorithm!$D$4='BAM tables'!D164,1,0),IF(algorithm!$AH$4='BAM tables'!A164,1,0),IF(algorithm!$AH$5='BAM tables'!B164,1,0),IF(algorithm!$AH$6='BAM tables'!C164,1,0)),1,0)","v":0},{"$f":"IF(AND(IF(algorithm!$D$4='BAM tables'!D164,1,0),IF(algorithm!$AL$4='BAM tables'!A164,1,0),IF(algorithm!$AL$5='BAM tables'!B164,1,0),IF(algorithm!$AL$6='BAM tables'!C164,1,0)),1,0)","v":0}]
[3,3,1,3,null,{"$f":"IF(AND(IF(algorithm!$D$4='BAM tables'!D165,1,0),IF(algorithm!$AH$4='BAM tables'!A165,1,0),IF(algorithm!$AH$5='BAM tables'!B165,1,0),IF(algorithm!$AH$6='BAM tables'!C165,1,0)),1,0)","v":0},{"$f":"IF(AND(IF(algorithm!$D$4='BAM tables'!D165,1,0),IF(algorithm!$AL$4='BAM tables'!A165,1,0),IF(algorithm!$AL$5='BAM tables'!B165,1,0),IF(algorithm!$AL$6='BAM tables'!C165,1,0)),1,0)","v":0}]
[3,3,1,8,null,{"$f":"IF(AND(IF(algorithm!$D$4='BAM tables'!D166,1,0),IF(algorithm!$AH$4='BAM tables'!A166,1,0),IF(algorithm!$AH$5='BAM tables'!B166,1,0),IF(algorithm!$AH$6='BAM tables'!C166,1,0)),1,0)","v":0},{"$f":"IF(AND(IF(algorithm!$D$4='BAM tables'!D166,1,0),IF(algorithm!$AL$4='BAM tables'!A166,1,0),IF(algorithm!$AL$5='BAM tables'!B166,1,0),IF(algorithm!$AL$6='BAM tables'!C166,1,0)),1,0)","v":0}]
[3,3,1,10,null,{"$f":"IF(AND(IF(algorithm!$D$4='BAM tables'!D167,1,0),IF(algorithm!$AH$4='BAM tables'!A167,1,0),IF(algorithm!$AH$5='BAM tables'!B167,1,0),IF(algorithm!$AH$6='BAM tables'!C167,1,0)),1,0)","v":0},{"$f":"IF(AND(IF(algorithm!$D$4='BAM tables'!D167,1,0),IF(algorithm!$AL$4='BAM tables'!A167,1,0),IF(algorithm!$AL$5='BAM tables'!B167,1,0),IF(algorithm!$AL$6='BAM tables'!C167,1,0)),1,0)","v":0}]
[3,3,2,5,null,{"$f":"IF(AND(IF(algorithm!$D$4='BAM tables'!D168,1,0),IF(algorithm!$AH$4='BAM tables'!A168,1,0),IF(algorithm!$AH$5='BAM tables'!B168,1,0),IF(algorithm!$AH$6='BAM tables'!C168,1,0)),1,0)","v":0},{"$f":"IF(AND(IF(algorithm!$D$4='BAM tables'!D168,1,0),IF(algorithm!$AL$4='BAM tables'!A168,1,0),IF(algorithm!$AL$5='BAM tables'!B168,1,0),IF(algorithm!$AL$6='BAM tables'!C168,1,0)),1,0)","v":0}]
[3,3,2,3,null,{"$f":"IF(AND(IF(algorithm!$D$4='BAM tables'!D169,1,0),IF(algorithm!$AH$4='BAM tables'!A169,1,0),IF(algorithm!$AH$5='BAM tables'!B169,1,0),IF(algorithm!$AH$6='BAM tables'!C169,1,0)),1,0)","v":0},{"$f":"IF(AND(IF(algorithm!$D$4='BAM tables'!D169,1,0),IF(algorithm!$AL$4='BAM tables'!A169,1,0),IF(algorithm!$AL$5='BAM tables'!B169,1,0),IF(algorithm!$AL$6='BAM tables'!C169,1,0)),1,0)","v":0}]
[3,3,2,8,null,{"$f":"IF(AND(IF(algorithm!$D$4='BAM tables'!D170,1,0),IF(algorithm!$AH$4='BAM tables'!A170,1,0),IF(algorithm!$AH$5='BAM tables'!B170,1,0),IF(algorithm!$AH$6='BAM tables'!C170,1,0)),1,0)","v":0},{"$f":"IF(AND(IF(algorithm!$D$4='BAM tables'!D170,1,0),IF(algorithm!$AL$4='BAM tables'!A170,1,0),IF(algorithm!$AL$5='BAM tables'!B170,1,0),IF(algorithm!$AL$6='BAM tables'!C170,1,0)),1,0)","v":0}]
[3,3,2,10,null,{"$f":"IF(AND(IF(algorithm!$D$4='BAM tables'!D171,1,0),IF(algorithm!$AH$4='BAM tables'!A171,1,0),IF(algorithm!$AH$5='BAM tables'!B171,1,0),IF(algorithm!$AH$6='BAM tables'!C171,1,0)),1,0)","v":0},{"$f":"IF(AND(IF(algorithm!$D$4='BAM tables'!D171,1,0),IF(algorithm!$AL$4='BAM tables'!A171,1,0),IF(algorithm!$AL$5='BAM tables'!B171,1,0),IF(algorithm!$AL$6='BAM tables'!C171,1,0)),1,0)","v":0}]
[3,3,"3 ",3,null,{"$f":"IF(AND(IF(algorithm!$D$4='BAM tables'!D172,1,0),IF(algorithm!$AH$4='BAM tables'!A172,1,0),IF(algorithm!$AH$5='BAM tables'!B172,1,0),IF(algorithm!$AH$6='BAM tables'!C172,1,0)),1,0)","v":0},{"$f":"IF(AND(IF(algorithm!$D$4='BAM tables'!D172,1,0),IF(algorithm!$AL$4='BAM tables'!A172,1,0),IF(algorithm!$AL$5='BAM tables'!B172,1,0),IF(algorithm!$AL$6='BAM tables'!C172,1,0)),1,0)","v":0}]
[3,4,0,5,null,{"$f":"IF(AND(IF(algorithm!$D$4='BAM tables'!D173,1,0),IF(algorithm!$AH$4='BAM tables'!A173,1,0),IF(algorithm!$AH$5='BAM tables'!B173,1,0),IF(algorithm!$AH$6='BAM tables'!C173,1,0)),1,0)","v":0},{"$f":"IF(AND(IF(algorithm!$D$4='BAM tables'!D173,1,0),IF(algorithm!$AL$4='BAM tables'!A173,1,0),IF(algorithm!$AL$5='BAM tables'!B173,1,0),IF(algorithm!$AL$6='BAM tables'!C173,1,0)),1,0)","v":0}]
[3,4,0,8,null,{"$f":"IF(AND(IF(algorithm!$D$4='BAM tables'!D174,1,0),IF(algorithm!$AH$4='BAM tables'!A174,1,0),IF(algorithm!$AH$5='BAM tables'!B174,1,0),IF(algorithm!$AH$6='BAM tables'!C174,1,0)),1,0)","v":0},{"$f":"IF(AND(IF(algorithm!$D$4='BAM tables'!D174,1,0),IF(algorithm!$AL$4='BAM tables'!A174,1,0),IF(algorithm!$AL$5='BAM tables'!B174,1,0),IF(algorithm!$AL$6='BAM tables'!C174,1,0)),1,0)","v":0}]
[3,4,0,10,null,{"$f":"IF(AND(IF(algorithm!$D$4='BAM tables'!D175,1,0),IF(algorithm!$AH$4='BAM tables'!A175,1,0),IF(algorithm!$AH$5='BAM tables'!B175,1,0),IF(algorithm!$AH$6='BAM tables'!C175,1,0)),1,0)","v":0},{"$f":"IF(AND(IF(algorithm!$D$4='BAM tables'!D175,1,0),IF(algorithm!$AL$4='BAM tables'!A175,1,0),IF(algorithm!$AL$5='BAM tables'!B175,1,0),IF(algorithm!$AL$6='BAM tables'!C175,1,0)),1,0)","v":0}]
[3,4,1,5,null,{"$f":"IF(AND(IF(algorithm!$D$4='BAM tables'!D176,1,0),IF(algorithm!$AH$4='BAM tables'!A176,1,0),IF(algorithm!$AH$5='BAM tables'!B176,1,0),IF(algorithm!$AH$6='BAM tables'!C176,1,0)),1,0)","v":0},{"$f":"IF(AND(IF(algorithm!$D$4='BAM tables'!D176,1,0),IF(algorithm!$AL$4='BAM tables'!A176,1,0),IF(algorithm!$AL$5='BAM tables'!B176,1,0),IF(algorithm!$AL$6='BAM tables'!C176,1,0)),1,0)","v":0}]
[3,4,1,8,null,{"$f":"IF(AND(IF(algorithm!$D$4='BAM tables'!D177,1,0),IF(algorithm!$AH$4='BAM tables'!A177,1,0),IF(algorithm!$AH$5='BAM tables'!B177,1,0),IF(algorithm!$AH$6='BAM tables'!C177,1,0)),1,0)","v":0},{"$f":"IF(AND(IF(algorithm!$D$4='BAM tables'!D177,1,0),IF(algorithm!$AL$4='BAM tables'!A177,1,0),IF(algorithm!$AL$5='BAM tables'!B177,1,0),IF(algorithm!$AL$6='BAM tables'!C177,1,0)),1,0)","v":0}]
[3,4,1,10,null,{"$f":"IF(AND(IF(algorithm!$D$4='BAM tables'!D178,1,0),IF(algorithm!$AH$4='BAM tables'!A178,1,0),IF(algorithm!$AH$5='BAM tables'!B178,1,0),IF(algorithm!$AH$6='BAM tables'!C178,1,0)),1,0)","v":0},{"$f":"IF(AND(IF(algorithm!$D$4='BAM tables'!D178,1,0),IF(algorithm!$AL$4='BAM tables'!A178,1,0),IF(algorithm!$AL$5='BAM tables'!B178,1,0),IF(algorithm!$AL$6='BAM tables'!C178,1,0)),1,0)","v":0}]
[3,5,0,5,null,{"$f":"IF(AND(IF(algorithm!$D$4='BAM tables'!D179,1,0),IF(algorithm!$AH$4='BAM tables'!A179,1,0),IF(algorithm!$AH$5='BAM tables'!B179,1,0),IF(algorithm!$AH$6='BAM tables'!C179,1,0)),1,0)","v":0},{"$f":"IF(AND(IF(algorithm!$D$4='BAM tables'!D179,1,0),IF(algorithm!$AL$4='BAM tables'!A179,1,0),IF(algorithm!$AL$5='BAM tables'!B179,1,0),IF(algorithm!$AL$6='BAM tables'!C179,1,0)),1,0)","v":0}]
[3,5,0,8,null,{"$f":"IF(AND(IF(algorithm!$D$4='BAM tables'!D180,1,0),IF(algorithm!$AH$4='BAM tables'!A180,1,0),IF(algorithm!$AH$5='BAM tables'!B180,1,0),IF(algorithm!$AH$6='BAM tables'!C180,1,0)),1,0)","v":0},{"$f":"IF(AND(IF(algorithm!$D$4='BAM tables'!D180,1,0),IF(algorithm!$AL$4='BAM tables'!A180,1,0),IF(algorithm!$AL$5='BAM tables'!B180,1,0),IF(algorithm!$AL$6='BAM tables'!C180,1,0)),1,0)","v":0}]
[3,5,0,10,null,{"$f":"IF(AND(IF(algorithm!$D$4='BAM tables'!D181,1,0),IF(algorithm!$AH$4='BAM tables'!A181,1,0),IF(algorithm!$AH$5='BAM tables'!B181,1,0),IF(algorithm!$AH$6='BAM tables'!C181,1,0)),1,0)","v":0},{"$f":"IF(AND(IF(algorithm!$D$4='BAM tables'!D181,1,0),IF(algorithm!$AL$4='BAM tables'!A181,1,0),IF(algorithm!$AL$5='BAM tables'!B181,1,0),IF(algorithm!$AL$6='BAM tables'!C181,1,0)),1,0)","v":0}]
[4,0,0,5,null,{"$f":"IF(AND(IF(algorithm!$D$4='BAM tables'!D182,1,0),IF(algorithm!$AH$4='BAM tables'!A182,1,0),IF(algorithm!$AH$5='BAM tables'!B182,1,0),IF(algorithm!$AH$6='BAM tables'!C182,1,0)),1,0)","v":0},{"$f":"IF(AND(IF(algorithm!$D$4='BAM tables'!D182,1,0),IF(algorithm!$AL$4='BAM tables'!A182,1,0),IF(algorithm!$AL$5='BAM tables'!B182,1,0),IF(algorithm!$AL$6='BAM tables'!C182,1,0)),1,0)","v":0}]
[4,0,0,8,null,{"$f":"IF(AND(IF(algorithm!$D$4='BAM tables'!D183,1,0),IF(algorithm!$AH$4='BAM tables'!A183,1,0),IF(algorithm!$AH$5='BAM tables'!B183,1,0),IF(algorithm!$AH$6='BAM tables'!C183,1,0)),1,0)","v":0},{"$f":"IF(AND(IF(algorithm!$D$4='BAM tables'!D183,1,0),IF(algorithm!$AL$4='BAM tables'!A183,1,0),IF(algorithm!$AL$5='BAM tables'!B183,1,0),IF(algorithm!$AL$6='BAM tables'!C183,1,0)),1,0)","v":0}]
[4,0,0,10,null,{"$f":"IF(AND(IF(algorithm!$D$4='BAM tables'!D184,1,0),IF(algorithm!$AH$4='BAM tables'!A184,1,0),IF(algorithm!$AH$5='BAM tables'!B184,1,0),IF(algorithm!$AH$6='BAM tables'!C184,1,0)),1,0)","v":0},{"$f":"IF(AND(IF(algorithm!$D$4='BAM tables'!D184,1,0),IF(algorithm!$AL$4='BAM tables'!A184,1,0),IF(algorithm!$AL$5='BAM tables'!B184,1,0),IF(algorithm!$AL$6='BAM tables'!C184,1,0)),1,0)","v":0}]
[4,0,1,5,null,{"$f":"IF(AND(IF(algorithm!$D$4='BAM tables'!D185,1,0),IF(algorithm!$AH$4='BAM tables'!A185,1,0),IF(algorithm!$AH$5='BAM tables'!B185,1,0),IF(algorithm!$AH$6='BAM tables'!C185,1,0)),1,0)","v":0},{"$f":"IF(AND(IF(algorithm!$D$4='BAM tables'!D185,1,0),IF(algorithm!$AL$4='BAM tables'!A185,1,0),IF(algorithm!$AL$5='BAM tables'!B185,1,0),IF(algorithm!$AL$6='BAM tables'!C185,1,0)),1,0)","v":0}]
[4,0,1,8,null,{"$f":"IF(AND(IF(algorithm!$D$4='BAM tables'!D186,1,0),IF(algorithm!$AH$4='BAM tables'!A186,1,0),IF(algorithm!$AH$5='BAM tables'!B186,1,0),IF(algorithm!$AH$6='BAM tables'!C186,1,0)),1,0)","v":0},{"$f":"IF(AND(IF(algorithm!$D$4='BAM tables'!D186,1,0),IF(algorithm!$AL$4='BAM tables'!A186,1,0),IF(algorithm!$AL$5='BAM tables'!B186,1,0),IF(algorithm!$AL$6='BAM tables'!C186,1,0)),1,0)","v":0}]
[4,0,1,10,null,{"$f":"IF(AND(IF(algorithm!$D$4='BAM tables'!D187,1,0),IF(algorithm!$AH$4='BAM tables'!A187,1,0),IF(algorithm!$AH$5='BAM tables'!B187,1,0),IF(algorithm!$AH$6='BAM tables'!C187,1,0)),1,0)","v":0},{"$f":"IF(AND(IF(algorithm!$D$4='BAM tables'!D187,1,0),IF(algorithm!$AL$4='BAM tables'!A187,1,0),IF(algorithm!$AL$5='BAM tables'!B187,1,0),IF(algorithm!$AL$6='BAM tables'!C187,1,0)),1,0)","v":0}]
[4,0,2,5,null,{"$f":"IF(AND(IF(algorithm!$D$4='BAM tables'!D188,1,0),IF(algorithm!$AH$4='BAM tables'!A188,1,0),IF(algorithm!$AH$5='BAM tables'!B188,1,0),IF(algorithm!$AH$6='BAM tables'!C188,1,0)),1,0)","v":0},{"$f":"IF(AND(IF(algorithm!$D$4='BAM tables'!D188,1,0),IF(algorithm!$AL$4='BAM tables'!A188,1,0),IF(algorithm!$AL$5='BAM tables'!B188,1,0),IF(algorithm!$AL$6='BAM tables'!C188,1,0)),1,0)","v":0}]
[4,0,2,8,null,{"$f":"IF(AND(IF(algorithm!$D$4='BAM tables'!D189,1,0),IF(algorithm!$AH$4='BAM tables'!A189,1,0),IF(algorithm!$AH$5='BAM tables'!B189,1,0),IF(algorithm!$AH$6='BAM tables'!C189,1,0)),1,0)","v":0},{"$f":"IF(AND(IF(algorithm!$D$4='BAM tables'!D189,1,0),IF(algorithm!$AL$4='BAM tables'!A189,1,0),IF(algorithm!$AL$5='BAM tables'!B189,1,0),IF(algorithm!$AL$6='BAM tables'!C189,1,0)),1,0)","v":0}]
[4,0,2,10,null,{"$f":"IF(AND(IF(algorithm!$D$4='BAM tables'!D190,1,0),IF(algorithm!$AH$4='BAM tables'!A190,1,0),IF(algorithm!$AH$5='BAM tables'!B190,1,0),IF(algorithm!$AH$6='BAM tables'!C190,1,0)),1,0)","v":0},{"$f":"IF(AND(IF(algorithm!$D$4='BAM tables'!D190,1,0),IF(algorithm!$AL$4='BAM tables'!A190,1,0),IF(algorithm!$AL$5='BAM tables'!B190,1,0),IF(algorithm!$AL$6='BAM tables'!C190,1,0)),1,0)","v":0}]
[4,0,3,5,null,{"$f":"IF(AND(IF(algorithm!$D$4='BAM tables'!D191,1,0),IF(algorithm!$AH$4='BAM tables'!A191,1,0),IF(algorithm!$AH$5='BAM tables'!B191,1,0),IF(algorithm!$AH$6='BAM tables'!C191,1,0)),1,0)","v":0},{"$f":"IF(AND(IF(algorithm!$D$4='BAM tables'!D191,1,0),IF(algorithm!$AL$4='BAM tables'!A191,1,0),IF(algorithm!$AL$5='BAM tables'!B191,1,0),IF(algorithm!$AL$6='BAM tables'!C191,1,0)),1,0)","v":0}]
[4,1,0,5,null,{"$f":"IF(AND(IF(algorithm!$D$4='BAM tables'!D192,1,0),IF(algorithm!$AH$4='BAM tables'!A192,1,0),IF(algorithm!$AH$5='BAM tables'!B192,1,0),IF(algorithm!$AH$6='BAM tables'!C192,1,0)),1,0)","v":0},{"$f":"IF(AND(IF(algorithm!$D$4='BAM tables'!D192,1,0),IF(algorithm!$AL$4='BAM tables'!A192,1,0),IF(algorithm!$AL$5='BAM tables'!B192,1,0),IF(algorithm!$AL$6='BAM tables'!C192,1,0)),1,0)","v":0}]
[4,1,0,8,null,{"$f":"IF(AND(IF(algorithm!$D$4='BAM tables'!D193,1,0),IF(algorithm!$AH$4='BAM tables'!A193,1,0),IF(algorithm!$AH$5='BAM tables'!B193,1,0),IF(algorithm!$AH$6='BAM tables'!C193,1,0)),1,0)","v":0},{"$f":"IF(AND(IF(algorithm!$D$4='BAM tables'!D193,1,0),IF(algorithm!$AL$4='BAM tables'!A193,1,0),IF(algorithm!$AL$5='BAM tables'!B193,1,0),IF(algorithm!$AL$6='BAM tables'!C193,1,0)),1,0)","v":0}]
[4,1,0,10,null,{"$f":"IF(AND(IF(algorithm!$D$4='BAM tables'!D194,1,0),IF(algorithm!$AH$4='BAM tables'!A194,1,0),IF(algorithm!$AH$5='BAM tables'!B194,1,0),IF(algorithm!$AH$6='BAM tables'!C194,1,0)),1,0)","v":0},{"$f":"IF(AND(IF(algorithm!$D$4='BAM tables'!D194,1,0),IF(algorithm!$AL$4='BAM tables'!A194,1,0),IF(algorithm!$AL$5='BAM tables'!B194,1,0),IF(algorithm!$AL$6='BAM tables'!C194,1,0)),1,0)","v":0}]
[4,1,1,5,null,{"$f":"IF(AND(IF(algorithm!$D$4='BAM tables'!D195,1,0),IF(algorithm!$AH$4='BAM tables'!A195,1,0),IF(algorithm!$AH$5='BAM tables'!B195,1,0),IF(algorithm!$AH$6='BAM tables'!C195,1,0)),1,0)","v":0},{"$f":"IF(AND(IF(algorithm!$D$4='BAM tables'!D195,1,0),IF(algorithm!$AL$4='BAM tables'!A195,1,0),IF(algorithm!$AL$5='BAM tables'!B195,1,0),IF(algorithm!$AL$6='BAM tables'!C195,1,0)),1,0)","v":0}]
[4,1,1,8,null,{"$f":"IF(AND(IF(algorithm!$D$4='BAM tables'!D196,1,0),IF(algorithm!$AH$4='BAM tables'!A196,1,0),IF(algorithm!$AH$5='BAM tables'!B196,1,0),IF(algorithm!$AH$6='BAM tables'!C196,1,0)),1,0)","v":0},{"$f":"IF(AND(IF(algorithm!$D$4='BAM tables'!D196,1,0),IF(algorithm!$AL$4='BAM tables'!A196,1,0),IF(algorithm!$AL$5='BAM tables'!B196,1,0),IF(algorithm!$AL$6='BAM tables'!C196,1,0)),1,0)","v":0}]
[4,1,1,10,null,{"$f":"IF(AND(IF(algorithm!$D$4='BAM tables'!D197,1,0),IF(algorithm!$AH$4='BAM tables'!A197,1,0),IF(algorithm!$AH$5='BAM tables'!B197,1,0),IF(algorithm!$AH$6='BAM tables'!C197,1,0)),1,0)","v":0},{"$f":"IF(AND(IF(algorithm!$D$4='BAM tables'!D197,1,0),IF(algorithm!$AL$4='BAM tables'!A197,1,0),IF(algorithm!$AL$5='BAM tables'!B197,1,0),IF(algorithm!$AL$6='BAM tables'!C197,1,0)),1,0)","v":0}]
[4,1,2,5,null,{"$f":"IF(AND(IF(algorithm!$D$4='BAM tables'!D198,1,0),IF(algorithm!$AH$4='BAM tables'!A198,1,0),IF(algorithm!$AH$5='BAM tables'!B198,1,0),IF(algorithm!$AH$6='BAM tables'!C198,1,0)),1,0)","v":0},{"$f":"IF(AND(IF(algorithm!$D$4='BAM tables'!D198,1,0),IF(algorithm!$AL$4='BAM tables'!A198,1,0),IF(algorithm!$AL$5='BAM tables'!B198,1,0),IF(algorithm!$AL$6='BAM tables'!C198,1,0)),1,0)","v":0}]
[4,1,2,8,null,{"$f":"IF(AND(IF(algorithm!$D$4='BAM tables'!D199,1,0),IF(algorithm!$AH$4='BAM tables'!A199,1,0),IF(algorithm!$AH$5='BAM tables'!B199,1,0),IF(algorithm!$AH$6='BAM tables'!C199,1,0)),1,0)","v":0},{"$f":"IF(AND(IF(algorithm!$D$4='BAM tables'!D199,1,0),IF(algorithm!$AL$4='BAM tables'!A199,1,0),IF(algorithm!$AL$5='BAM tables'!B199,1,0),IF(algorithm!$AL$6='BAM tables'!C199,1,0)),1,0)","v":0}]
[4,1,2,10,null,{"$f":"IF(AND(IF(algorithm!$D$4='BAM tables'!D200,1,0),IF(algorithm!$AH$4='BAM tables'!A200,1,0),IF(algorithm!$AH$5='BAM tables'!B200,1,0),IF(algorithm!$AH$6='BAM tables'!C200,1,0)),1,0)","v":0},{"$f":"IF(AND(IF(algorithm!$D$4='BAM tables'!D200,1,0),IF(algorithm!$AL$4='BAM tables'!A200,1,0),IF(algorithm!$AL$5='BAM tables'!B200,1,0),IF(algorithm!$AL$6='BAM tables'!C200,1,0)),1,0)","v":0}]
[4,1,3,5,null,{"$f":"IF(AND(IF(algorithm!$D$4='BAM tables'!D201,1,0),IF(algorithm!$AH$4='BAM tables'!A201,1,0),IF(algorithm!$AH$5='BAM tables'!B201,1,0),IF(algorithm!$AH$6='BAM tables'!C201,1,0)),1,0)","v":0},{"$f":"IF(AND(IF(algorithm!$D$4='BAM tables'!D201,1,0),IF(algorithm!$AL$4='BAM tables'!A201,1,0),IF(algorithm!$AL$5='BAM tables'!B201,1,0),IF(algorithm!$AL$6='BAM tables'!C201,1,0)),1,0)","v":0}]
[4,2,0,5,null,{"$f":"IF(AND(IF(algorithm!$D$4='BAM tables'!D202,1,0),IF(algorithm!$AH$4='BAM tables'!A202,1,0),IF(algorithm!$AH$5='BAM tables'!B202,1,0),IF(algorithm!$AH$6='BAM tables'!C202,1,0)),1,0)","v":0},{"$f":"IF(AND(IF(algorithm!$D$4='BAM tables'!D202,1,0),IF(algorithm!$AL$4='BAM tables'!A202,1,0),IF(algorithm!$AL$5='BAM tables'!B202,1,0),IF(algorithm!$AL$6='BAM tables'!C202,1,0)),1,0)","v":0}]
[4,2,0,8,null,{"$f":"IF(AND(IF(algorithm!$D$4='BAM tables'!D203,1,0),IF(algorithm!$AH$4='BAM tables'!A203,1,0),IF(algorithm!$AH$5='BAM tables'!B203,1,0),IF(algorithm!$AH$6='BAM tables'!C203,1,0)),1,0)","v":0},{"$f":"IF(AND(IF(algorithm!$D$4='BAM tables'!D203,1,0),IF(algorithm!$AL$4='BAM tables'!A203,1,0),IF(algorithm!$AL$5='BAM tables'!B203,1,0),IF(algorithm!$AL$6='BAM tables'!C203,1,0)),1,0)","v":0}]
[4,2,0,10,null,{"$f":"IF(AND(IF(algorithm!$D$4='BAM tables'!D204,1,0),IF(algorithm!$AH$4='BAM tables'!A204,1,0),IF(algorithm!$AH$5='BAM tables'!B204,1,0),IF(algorithm!$AH$6='BAM tables'!C204,1,0)),1,0)","v":0},{"$f":"IF(AND(IF(algorithm!$D$4='BAM tables'!D204,1,0),IF(algorithm!$AL$4='BAM tables'!A204,1,0),IF(algorithm!$AL$5='BAM tables'!B204,1,0),IF(algorithm!$AL$6='BAM tables'!C204,1,0)),1,0)","v":0}]
[4,2,1,5,null,{"$f":"IF(AND(IF(algorithm!$D$4='BAM tables'!D205,1,0),IF(algorithm!$AH$4='BAM tables'!A205,1,0),IF(algorithm!$AH$5='BAM tables'!B205,1,0),IF(algorithm!$AH$6='BAM tables'!C205,1,0)),1,0)","v":0},{"$f":"IF(AND(IF(algorithm!$D$4='BAM tables'!D205,1,0),IF(algorithm!$AL$4='BAM tables'!A205,1,0),IF(algorithm!$AL$5='BAM tables'!B205,1,0),IF(algorithm!$AL$6='BAM tables'!C205,1,0)),1,0)","v":0}]
[4,2,1,8,null,{"$f":"IF(AND(IF(algorithm!$D$4='BAM tables'!D206,1,0),IF(algorithm!$AH$4='BAM tables'!A206,1,0),IF(algorithm!$AH$5='BAM tables'!B206,1,0),IF(algorithm!$AH$6='BAM tables'!C206,1,0)),1,0)","v":0},{"$f":"IF(AND(IF(algorithm!$D$4='BAM tables'!D206,1,0),IF(algorithm!$AL$4='BAM tables'!A206,1,0),IF(algorithm!$AL$5='BAM tables'!B206,1,0),IF(algorithm!$AL$6='BAM tables'!C206,1,0)),1,0)","v":0}]
[4,2,1,10,null,{"$f":"IF(AND(IF(algorithm!$D$4='BAM tables'!D207,1,0),IF(algorithm!$AH$4='BAM tables'!A207,1,0),IF(algorithm!$AH$5='BAM tables'!B207,1,0),IF(algorithm!$AH$6='BAM tables'!C207,1,0)),1,0)","v":0},{"$f":"IF(AND(IF(algorithm!$D$4='BAM tables'!D207,1,0),IF(algorithm!$AL$4='BAM tables'!A207,1,0),IF(algorithm!$AL$5='BAM tables'!B207,1,0),IF(algorithm!$AL$6='BAM tables'!C207,1,0)),1,0)","v":0}]
[4,2,2,5,null,{"$f":"IF(AND(IF(algorithm!$D$4='BAM tables'!D208,1,0),IF(algorithm!$AH$4='BAM tables'!A208,1,0),IF(algorithm!$AH$5='BAM tables'!B208,1,0),IF(algorithm!$AH$6='BAM tables'!C208,1,0)),1,0)","v":0},{"$f":"IF(AND(IF(algorithm!$D$4='BAM tables'!D208,1,0),IF(algorithm!$AL$4='BAM tables'!A208,1,0),IF(algorithm!$AL$5='BAM tables'!B208,1,0),IF(algorithm!$AL$6='BAM tables'!C208,1,0)),1,0)","v":0}]
[4,2,2,8,null,{"$f":"IF(AND(IF(algorithm!$D$4='BAM tables'!D209,1,0),IF(algorithm!$AH$4='BAM tables'!A209,1,0),IF(algorithm!$AH$5='BAM tables'!B209,1,0),IF(algorithm!$AH$6='BAM tables'!C209,1,0)),1,0)","v":0},{"$f":"IF(AND(IF(algorithm!$D$4='BAM tables'!D209,1,0),IF(algorithm!$AL$4='BAM tables'!A209,1,0),IF(algorithm!$AL$5='BAM tables'!B209,1,0),IF(algorithm!$AL$6='BAM tables'!C209,1,0)),1,0)","v":0}]
[4,2,2,10,null,{"$f":"IF(AND(IF(algorithm!$D$4='BAM tables'!D210,1,0),IF(algorithm!$AH$4='BAM tables'!A210,1,0),IF(algorithm!$AH$5='BAM tables'!B210,1,0),IF(algorithm!$AH$6='BAM tables'!C210,1,0)),1,0)","v":0},{"$f":"IF(AND(IF(algorithm!$D$4='BAM tables'!D210,1,0),IF(algorithm!$AL$4='BAM tables'!A210,1,0),IF(algorithm!$AL$5='BAM tables'!B210,1,0),IF(algorithm!$AL$6='BAM tables'!C210,1,0)),1,0)","v":0}]
[4,2,3,5,null,{"$f":"IF(AND(IF(algorithm!$D$4='BAM tables'!D211,1,0),IF(algorithm!$AH$4='BAM tables'!A211,1,0),IF(algorithm!$AH$5='BAM tables'!B211,1,0),IF(algorithm!$AH$6='BAM tables'!C211,1,0)),1,0)","v":0},{"$f":"IF(AND(IF(algorithm!$D$4='BAM tables'!D211,1,0),IF(algorithm!$AL$4='BAM tables'!A211,1,0),IF(algorithm!$AL$5='BAM tables'!B211,1,0),IF(algorithm!$AL$6='BAM tables'!C211,1,0)),1,0)","v":0}]
[4,3,0,5,null,{"$f":"IF(AND(IF(algorithm!$D$4='BAM tables'!D212,1,0),IF(algorithm!$AH$4='BAM tables'!A212,1,0),IF(algorithm!$AH$5='BAM tables'!B212,1,0),IF(algorithm!$AH$6='BAM tables'!C212,1,0)),1,0)","v":0},{"$f":"IF(AND(IF(algorithm!$D$4='BAM tables'!D212,1,0),IF(algorithm!$AL$4='BAM tables'!A212,1,0),IF(algorithm!$AL$5='BAM tables'!B212,1,0),IF(algorithm!$AL$6='BAM tables'!C212,1,0)),1,0)","v":0}]
[4,3,0,8,null,{"$f":"IF(AND(IF(algorithm!$D$4='BAM tables'!D213,1,0),IF(algorithm!$AH$4='BAM tables'!A213,1,0),IF(algorithm!$AH$5='BAM tables'!B213,1,0),IF(algorithm!$AH$6='BAM tables'!C213,1,0)),1,0)","v":0},{"$f":"IF(AND(IF(algorithm!$D$4='BAM tables'!D213,1,0),IF(algorithm!$AL$4='BAM tables'!A213,1,0),IF(algorithm!$AL$5='BAM tables'!B213,1,0),IF(algorithm!$AL$6='BAM tables'!C213,1,0)),1,0)","v":0}]
[4,3,0,10,null,{"$f":"IF(AND(IF(algorithm!$D$4='BAM tables'!D214,1,0),IF(algorithm!$AH$4='BAM tables'!A214,1,0),IF(algorithm!$AH$5='BAM tables'!B214,1,0),IF(algorithm!$AH$6='BAM tables'!C214,1,0)),1,0)","v":0},{"$f":"IF(AND(IF(algorithm!$D$4='BAM tables'!D214,1,0),IF(algorithm!$AL$4='BAM tables'!A214,1,0),IF(algorithm!$AL$5='BAM tables'!B214,1,0),IF(algorithm!$AL$6='BAM tables'!C214,1,0)),1,0)","v":0}]
[4,3,1,5,null,{"$f":"IF(AND(IF(algorithm!$D$4='BAM tables'!D215,1,0),IF(algorithm!$AH$4='BAM tables'!A215,1,0),IF(algorithm!$AH$5='BAM tables'!B215,1,0),IF(algorithm!$AH$6='BAM tables'!C215,1,0)),1,0)","v":0},{"$f":"IF(AND(IF(algorithm!$D$4='BAM tables'!D215,1,0),IF(algorithm!$AL$4='BAM tables'!A215,1,0),IF(algorithm!$AL$5='BAM tables'!B215,1,0),IF(algorithm!$AL$6='BAM tables'!C215,1,0)),1,0)","v":0}]
[4,3,1,8,null,{"$f":"IF(AND(IF(algorithm!$D$4='BAM tables'!D216,1,0),IF(algorithm!$AH$4='BAM tables'!A216,1,0),IF(algorithm!$AH$5='BAM tables'!B216,1,0),IF(algorithm!$AH$6='BAM tables'!C216,1,0)),1,0)","v":0},{"$f":"IF(AND(IF(algorithm!$D$4='BAM tables'!D216,1,0),IF(algorithm!$AL$4='BAM tables'!A216,1,0),IF(algorithm!$AL$5='BAM tables'!B216,1,0),IF(algorithm!$AL$6='BAM tables'!C216,1,0)),1,0)","v":0}]
[4,3,1,10,null,{"$f":"IF(AND(IF(algorithm!$D$4='BAM tables'!D217,1,0),IF(algorithm!$AH$4='BAM tables'!A217,1,0),IF(algorithm!$AH$5='BAM tables'!B217,1,0),IF(algorithm!$AH$6='BAM tables'!C217,1,0)),1,0)","v":0},{"$f":"IF(AND(IF(algorithm!$D$4='BAM tables'!D217,1,0),IF(algorithm!$AL$4='BAM tables'!A217,1,0),IF(algorithm!$AL$5='BAM tables'!B217,1,0),IF(algorithm!$AL$6='BAM tables'!C217,1,0)),1,0)","v":0}]
[4,3,2,5,null,{"$f":"IF(AND(IF(algorithm!$D$4='BAM tables'!D218,1,0),IF(algorithm!$AH$4='BAM tables'!A218,1,0),IF(algorithm!$AH$5='BAM tables'!B218,1,0),IF(algorithm!$AH$6='BAM tables'!C218,1,0)),1,0)","v":0},{"$f":"IF(AND(IF(algorithm!$D$4='BAM tables'!D218,1,0),IF(algorithm!$AL$4='BAM tables'!A218,1,0),IF(algorithm!$AL$5='BAM tables'!B218,1,0),IF(algorithm!$AL$6='BAM tables'!C218,1,0)),1,0)","v":0}]
[4,3,2,8,null,{"$f":"IF(AND(IF(algorithm!$D$4='BAM tables'!D219,1,0),IF(algorithm!$AH$4='BAM tables'!A219,1,0),IF(algorithm!$AH$5='BAM tables'!B219,1,0),IF(algorithm!$AH$6='BAM tables'!C219,1,0)),1,0)","v":0},{"$f":"IF(AND(IF(algorithm!$D$4='BAM tables'!D219,1,0),IF(algorithm!$AL$4='BAM tables'!A219,1,0),IF(algorithm!$AL$5='BAM tables'!B219,1,0),IF(algorithm!$AL$6='BAM tables'!C219,1,0)),1,0)","v":0}]
[4,3,2,10,null,{"$f":"IF(AND(IF(algorithm!$D$4='BAM tables'!D220,1,0),IF(algorithm!$AH$4='BAM tables'!A220,1,0),IF(algorithm!$AH$5='BAM tables'!B220,1,0),IF(algorithm!$AH$6='BAM tables'!C220,1,0)),1,0)","v":0},{"$f":"IF(AND(IF(algorithm!$D$4='BAM tables'!D220,1,0),IF(algorithm!$AL$4='BAM tables'!A220,1,0),IF(algorithm!$AL$5='BAM tables'!B220,1,0),IF(algorithm!$AL$6='BAM tables'!C220,1,0)),1,0)","v":0}]
[4,4,0,5,null,{"$f":"IF(AND(IF(algorithm!$D$4='BAM tables'!D221,1,0),IF(algorithm!$AH$4='BAM tables'!A221,1,0),IF(algorithm!$AH$5='BAM tables'!B221,1,0),IF(algorithm!$AH$6='BAM tables'!C221,1,0)),1,0)","v":0},{"$f":"IF(AND(IF(algorithm!$D$4='BAM tables'!D221,1,0),IF(algorithm!$AL$4='BAM tables'!A221,1,0),IF(algorithm!$AL$5='BAM tables'!B221,1,0),IF(algorithm!$AL$6='BAM tables'!C221,1,0)),1,0)","v":0}]
[4,4,0,8,null,{"$f":"IF(AND(IF(algorithm!$D$4='BAM tables'!D222,1,0),IF(algorithm!$AH$4='BAM tables'!A222,1,0),IF(algorithm!$AH$5='BAM tables'!B222,1,0),IF(algorithm!$AH$6='BAM tables'!C222,1,0)),1,0)","v":0},{"$f":"IF(AND(IF(algorithm!$D$4='BAM tables'!D222,1,0),IF(algorithm!$AL$4='BAM tables'!A222,1,0),IF(algorithm!$AL$5='BAM tables'!B222,1,0),IF(algorithm!$AL$6='BAM tables'!C222,1,0)),1,0)","v":0}]
[4,4,0,10,null,{"$f":"IF(AND(IF(algorithm!$D$4='BAM tables'!D223,1,0),IF(algorithm!$AH$4='BAM tables'!A223,1,0),IF(algorithm!$AH$5='BAM tables'!B223,1,0),IF(algorithm!$AH$6='BAM tables'!C223,1,0)),1,0)","v":0},{"$f":"IF(AND(IF(algorithm!$D$4='BAM tables'!D223,1,0),IF(algorithm!$AL$4='BAM tables'!A223,1,0),IF(algorithm!$AL$5='BAM tables'!B223,1,0),IF(algorithm!$AL$6='BAM tables'!C223,1,0)),1,0)","v":0}]
[4,4,1,5,null,{"$f":"IF(AND(IF(algorithm!$D$4='BAM tables'!D224,1,0),IF(algorithm!$AH$4='BAM tables'!A224,1,0),IF(algorithm!$AH$5='BAM tables'!B224,1,0),IF(algorithm!$AH$6='BAM tables'!C224,1,0)),1,0)","v":0},{"$f":"IF(AND(IF(algorithm!$D$4='BAM tables'!D224,1,0),IF(algorithm!$AL$4='BAM tables'!A224,1,0),IF(algorithm!$AL$5='BAM tables'!B224,1,0),IF(algorithm!$AL$6='BAM tables'!C224,1,0)),1,0)","v":0}]
[4,4,1,8,null,{"$f":"IF(AND(IF(algorithm!$D$4='BAM tables'!D225,1,0),IF(algorithm!$AH$4='BAM tables'!A225,1,0),IF(algorithm!$AH$5='BAM tables'!B225,1,0),IF(algorithm!$AH$6='BAM tables'!C225,1,0)),1,0)","v":0},{"$f":"IF(AND(IF(algorithm!$D$4='BAM tables'!D225,1,0),IF(algorithm!$AL$4='BAM tables'!A225,1,0),IF(algorithm!$AL$5='BAM tables'!B225,1,0),IF(algorithm!$AL$6='BAM tables'!C225,1,0)),1,0)","v":0}]
[4,4,1,10,null,{"$f":"IF(AND(IF(algorithm!$D$4='BAM tables'!D226,1,0),IF(algorithm!$AH$4='BAM tables'!A226,1,0),IF(algorithm!$AH$5='BAM tables'!B226,1,0),IF(algorithm!$AH$6='BAM tables'!C226,1,0)),1,0)","v":0},{"$f":"IF(AND(IF(algorithm!$D$4='BAM tables'!D226,1,0),IF(algorithm!$AL$4='BAM tables'!A226,1,0),IF(algorithm!$AL$5='BAM tables'!B226,1,0),IF(algorithm!$AL$6='BAM tables'!C226,1,0)),1,0)","v":0}]
[4,4,2,5,null,{"$f":"IF(AND(IF(algorithm!$D$4='BAM tables'!D227,1,0),IF(algorithm!$AH$4='BAM tables'!A227,1,0),IF(algorithm!$AH$5='BAM tables'!B227,1,0),IF(algorithm!$AH$6='BAM tables'!C227,1,0)),1,0)","v":0},{"$f":"IF(AND(IF(algorithm!$D$4='BAM tables'!D227,1,0),IF(algorithm!$AL$4='BAM tables'!A227,1,0),IF(algorithm!$AL$5='BAM tables'!B227,1,0),IF(algorithm!$AL$6='BAM tables'!C227,1,0)),1,0)","v":0}]
[4,5,0,5,null,{"$f":"IF(AND(IF(algorithm!$D$4='BAM tables'!D228,1,0),IF(algorithm!$AH$4='BAM tables'!A228,1,0),IF(algorithm!$AH$5='BAM tables'!B228,1,0),IF(algorithm!$AH$6='BAM tables'!C228,1,0)),1,0)","v":0},{"$f":"IF(AND(IF(algorithm!$D$4='BAM tables'!D228,1,0),IF(algorithm!$AL$4='BAM tables'!A228,1,0),IF(algorithm!$AL$5='BAM tables'!B228,1,0),IF(algorithm!$AL$6='BAM tables'!C228,1,0)),1,0)","v":0}]
[4,5,0,8,null,{"$f":"IF(AND(IF(algorithm!$D$4='BAM tables'!D229,1,0),IF(algorithm!$AH$4='BAM tables'!A229,1,0),IF(algorithm!$AH$5='BAM tables'!B229,1,0),IF(algorithm!$AH$6='BAM tables'!C229,1,0)),1,0)","v":0},{"$f":"IF(AND(IF(algorithm!$D$4='BAM tables'!D229,1,0),IF(algorithm!$AL$4='BAM tables'!A229,1,0),IF(algorithm!$AL$5='BAM tables'!B229,1,0),IF(algorithm!$AL$6='BAM tables'!C229,1,0)),1,0)","v":0}]
[4,5,0,10,null,{"$f":"IF(AND(IF(algorithm!$D$4='BAM tables'!D230,1,0),IF(algorithm!$AH$4='BAM tables'!A230,1,0),IF(algorithm!$AH$5='BAM tables'!B230,1,0),IF(algorithm!$AH$6='BAM tables'!C230,1,0)),1,0)","v":0},{"$f":"IF(AND(IF(algorithm!$D$4='BAM tables'!D230,1,0),IF(algorithm!$AL$4='BAM tables'!A230,1,0),IF(algorithm!$AL$5='BAM tables'!B230,1,0),IF(algorithm!$AL$6='BAM tables'!C230,1,0)),1,0)","v":0}]
[4,5,1,5,null,{"$f":"IF(AND(IF(algorithm!$D$4='BAM tables'!D231,1,0),IF(algorithm!$AH$4='BAM tables'!A231,1,0),IF(algorithm!$AH$5='BAM tables'!B231,1,0),IF(algorithm!$AH$6='BAM tables'!C231,1,0)),1,0)","v":1},{"$f":"IF(AND(IF(algorithm!$D$4='BAM tables'!D231,1,0),IF(algorithm!$AL$4='BAM tables'!A231,1,0),IF(algorithm!$AL$5='BAM tables'!B231,1,0),IF(algorithm!$AL$6='BAM tables'!C231,1,0)),1,0)","v":0}]
[4,5,1,8,null,{"$f":"IF(AND(IF(algorithm!$D$4='BAM tables'!D232,1,0),IF(algorithm!$AH$4='BAM tables'!A232,1,0),IF(algorithm!$AH$5='BAM tables'!B232,1,0),IF(algorithm!$AH$6='BAM tables'!C232,1,0)),1,0)","v":0},{"$f":"IF(AND(IF(algorithm!$D$4='BAM tables'!D232,1,0),IF(algorithm!$AL$4='BAM tables'!A232,1,0),IF(algorithm!$AL$5='BAM tables'!B232,1,0),IF(algorithm!$AL$6='BAM tables'!C232,1,0)),1,0)","v":0}]
[4,5,1,10,null,{"$f":"IF(AND(IF(algorithm!$D$4='BAM tables'!D233,1,0),IF(algorithm!$AH$4='BAM tables'!A233,1,0),IF(algorithm!$AH$5='BAM tables'!B233,1,0),IF(algorithm!$AH$6='BAM tables'!C233,1,0)),1,0)","v":0},{"$f":"IF(AND(IF(algorithm!$D$4='BAM tables'!D233,1,0),IF(algorithm!$AL$4='BAM tables'!A233,1,0),IF(algorithm!$AL$5='BAM tables'!B233,1,0),IF(algorithm!$AL$6='BAM tables'!C233,1,0)),1,0)","v":0}]
[4,6,0,8,null,{"$f":"IF(AND(IF(algorithm!$D$4='BAM tables'!D234,1,0),IF(algorithm!$AH$4='BAM tables'!A234,1,0),IF(algorithm!$AH$5='BAM tables'!B234,1,0),IF(algorithm!$AH$6='BAM tables'!C234,1,0)),1,0)","v":0},{"$f":"IF(AND(IF(algorithm!$D$4='BAM tables'!D234,1,0),IF(algorithm!$AL$4='BAM tables'!A234,1,0),IF(algorithm!$AL$5='BAM tables'!B234,1,0),IF(algorithm!$AL$6='BAM tables'!C234,1,0)),1,0)","v":0}]
[4,6,0,10,null,{"$f":"IF(AND(IF(algorithm!$D$4='BAM tables'!D235,1,0),IF(algorithm!$AH$4='BAM tables'!A235,1,0),IF(algorithm!$AH$5='BAM tables'!B235,1,0),IF(algorithm!$AH$6='BAM tables'!C235,1,0)),1,0)","v":0},{"$f":"IF(AND(IF(algorithm!$D$4='BAM tables'!D235,1,0),IF(algorithm!$AL$4='BAM tables'!A235,1,0),IF(algorithm!$AL$5='BAM tables'!B235,1,0),IF(algorithm!$AL$6='BAM tables'!C235,1,0)),1,0)","v":0}]
[5,0,0,5,null,{"$f":"IF(AND(IF(algorithm!$D$4='BAM tables'!D236,1,0),IF(algorithm!$AH$4='BAM tables'!A236,1,0),IF(algorithm!$AH$5='BAM tables'!B236,1,0),IF(algorithm!$AH$6='BAM tables'!C236,1,0)),1,0)","v":0},{"$f":"IF(AND(IF(algorithm!$D$4='BAM tables'!D236,1,0),IF(algorithm!$AL$4='BAM tables'!A236,1,0),IF(algorithm!$AL$5='BAM tables'!B236,1,0),IF(algorithm!$AL$6='BAM tables'!C236,1,0)),1,0)","v":0}]
[5,0,0,8,null,{"$f":"IF(AND(IF(algorithm!$D$4='BAM tables'!D237,1,0),IF(algorithm!$AH$4='BAM tables'!A237,1,0),IF(algorithm!$AH$5='BAM tables'!B237,1,0),IF(algorithm!$AH$6='BAM tables'!C237,1,0)),1,0)","v":0},{"$f":"IF(AND(IF(algorithm!$D$4='BAM tables'!D237,1,0),IF(algorithm!$AL$4='BAM tables'!A237,1,0),IF(algorithm!$AL$5='BAM tables'!B237,1,0),IF(algorithm!$AL$6='BAM tables'!C237,1,0)),1,0)","v":0}]
[5,0,0,10,null,{"$f":"IF(AND(IF(algorithm!$D$4='BAM tables'!D238,1,0),IF(algorithm!$AH$4='BAM tables'!A238,1,0),IF(algorithm!$AH$5='BAM tables'!B238,1,0),IF(algorithm!$AH$6='BAM tables'!C238,1,0)),1,0)","v":0},{"$f":"IF(AND(IF(algorithm!$D$4='BAM tables'!D238,1,0),IF(algorithm!$AL$4='BAM tables'!A238,1,0),IF(algorithm!$AL$5='BAM tables'!B238,1,0),IF(algorithm!$AL$6='BAM tables'!C238,1,0)),1,0)","v":0}]
[5,0,1,5,null,{"$f":"IF(AND(IF(algorithm!$D$4='BAM tables'!D239,1,0),IF(algorithm!$AH$4='BAM tables'!A239,1,0),IF(algorithm!$AH$5='BAM tables'!B239,1,0),IF(algorithm!$AH$6='BAM tables'!C239,1,0)),1,0)","v":0},{"$f":"IF(AND(IF(algorithm!$D$4='BAM tables'!D239,1,0),IF(algorithm!$AL$4='BAM tables'!A239,1,0),IF(algorithm!$AL$5='BAM tables'!B239,1,0),IF(algorithm!$AL$6='BAM tables'!C239,1,0)),1,0)","v":0}]
[5,0,1,8,null,{"$f":"IF(AND(IF(algorithm!$D$4='BAM tables'!D240,1,0),IF(algorithm!$AH$4='BAM tables'!A240,1,0),IF(algorithm!$AH$5='BAM tables'!B240,1,0),IF(algorithm!$AH$6='BAM tables'!C240,1,0)),1,0)","v":0},{"$f":"IF(AND(IF(algorithm!$D$4='BAM tables'!D240,1,0),IF(algorithm!$AL$4='BAM tables'!A240,1,0),IF(algorithm!$AL$5='BAM tables'!B240,1,0),IF(algorithm!$AL$6='BAM tables'!C240,1,0)),1,0)","v":0}]
[5,0,1,10,null,{"$f":"IF(AND(IF(algorithm!$D$4='BAM tables'!D241,1,0),IF(algorithm!$AH$4='BAM tables'!A241,1,0),IF(algorithm!$AH$5='BAM tables'!B241,1,0),IF(algorithm!$AH$6='BAM tables'!C241,1,0)),1,0)","v":0},{"$f":"IF(AND(IF(algorithm!$D$4='BAM tables'!D241,1,0),IF(algorithm!$AL$4='BAM tables'!A241,1,0),IF(algorithm!$AL$5='BAM tables'!B241,1,0),IF(algorithm!$AL$6='BAM tables'!C241,1,0)),1,0)","v":0}]
[5,0,2,5,null,{"$f":"IF(AND(IF(algorithm!$D$4='BAM tables'!D242,1,0),IF(algorithm!$AH$4='BAM tables'!A242,1,0),IF(algorithm!$AH$5='BAM tables'!B242,1,0),IF(algorithm!$AH$6='BAM tables'!C242,1,0)),1,0)","v":0},{"$f":"IF(AND(IF(algorithm!$D$4='BAM tables'!D242,1,0),IF(algorithm!$AL$4='BAM tables'!A242,1,0),IF(algorithm!$AL$5='BAM tables'!B242,1,0),IF(algorithm!$AL$6='BAM tables'!C242,1,0)),1,0)","v":0}]
[5,0,2,8,null,{"$f":"IF(AND(IF(algorithm!$D$4='BAM tables'!D243,1,0),IF(algorithm!$AH$4='BAM tables'!A243,1,0),IF(algorithm!$AH$5='BAM tables'!B243,1,0),IF(algorithm!$AH$6='BAM tables'!C243,1,0)),1,0)","v":0},{"$f":"IF(AND(IF(algorithm!$D$4='BAM tables'!D243,1,0),IF(algorithm!$AL$4='BAM tables'!A243,1,0),IF(algorithm!$AL$5='BAM tables'!B243,1,0),IF(algorithm!$AL$6='BAM tables'!C243,1,0)),1,0)","v":0}]
[5,0,2,10,null,{"$f":"IF(AND(IF(algorithm!$D$4='BAM tables'!D244,1,0),IF(algorithm!$AH$4='BAM tables'!A244,1,0),IF(algorithm!$AH$5='BAM tables'!B244,1,0),IF(algorithm!$AH$6='BAM tables'!C244,1,0)),1,0)","v":0},{"$f":"IF(AND(IF(algorithm!$D$4='BAM tables'!D244,1,0),IF(algorithm!$AL$4='BAM tables'!A244,1,0),IF(algorithm!$AL$5='BAM tables'!B244,1,0),IF(algorithm!$AL$6='BAM tables'!C244,1,0)),1,0)","v":0}]
[5,0,3,5,null,{"$f":"IF(AND(IF(algorithm!$D$4='BAM tables'!D245,1,0),IF(algorithm!$AH$4='BAM tables'!A245,1,0),IF(algorithm!$AH$5='BAM tables'!B245,1,0),IF(algorithm!$AH$6='BAM tables'!C245,1,0)),1,0)","v":0},{"$f":"IF(AND(IF(algorithm!$D$4='BAM tables'!D245,1,0),IF(algorithm!$AL$4='BAM tables'!A245,1,0),IF(algorithm!$AL$5='BAM tables'!B245,1,0),IF(algorithm!$AL$6='BAM tables'!C245,1,0)),1,0)","v":0}]
[5,0,3,8,null,{"$f":"IF(AND(IF(algorithm!$D$4='BAM tables'!D246,1,0),IF(algorithm!$AH$4='BAM tables'!A246,1,0),IF(algorithm!$AH$5='BAM tables'!B246,1,0),IF(algorithm!$AH$6='BAM tables'!C246,1,0)),1,0)","v":0},{"$f":"IF(AND(IF(algorithm!$D$4='BAM tables'!D246,1,0),IF(algorithm!$AL$4='BAM tables'!A246,1,0),IF(algorithm!$AL$5='BAM tables'!B246,1,0),IF(algorithm!$AL$6='BAM tables'!C246,1,0)),1,0)","v":0}]
[5,0,3,10,null,{"$f":"IF(AND(IF(algorithm!$D$4='BAM tables'!D247,1,0),IF(algorithm!$AH$4='BAM tables'!A247,1,0),IF(algorithm!$AH$5='BAM tables'!B247,1,0),IF(algorithm!$AH$6='BAM tables'!C247,1,0)),1,0)","v":0},{"$f":"IF(AND(IF(algorithm!$D$4='BAM tables'!D247,1,0),IF(algorithm!$AL$4='BAM tables'!A247,1,0),IF(algorithm!$AL$5='BAM tables'!B247,1,0),IF(algorithm!$AL$6='BAM tables'!C247,1,0)),1,0)","v":0}]
[5,1,0,5,null,{"$f":"IF(AND(IF(algorithm!$D$4='BAM tables'!D248,1,0),IF(algorithm!$AH$4='BAM tables'!A248,1,0),IF(algorithm!$AH$5='BAM tables'!B248,1,0),IF(algorithm!$AH$6='BAM tables'!C248,1,0)),1,0)","v":0},{"$f":"IF(AND(IF(algorithm!$D$4='BAM tables'!D248,1,0),IF(algorithm!$AL$4='BAM tables'!A248,1,0),IF(algorithm!$AL$5='BAM tables'!B248,1,0),IF(algorithm!$AL$6='BAM tables'!C248,1,0)),1,0)","v":0}]
[5,1,0,8,null,{"$f":"IF(AND(IF(algorithm!$D$4='BAM tables'!D249,1,0),IF(algorithm!$AH$4='BAM tables'!A249,1,0),IF(algorithm!$AH$5='BAM tables'!B249,1,0),IF(algorithm!$AH$6='BAM tables'!C249,1,0)),1,0)","v":0},{"$f":"IF(AND(IF(algorithm!$D$4='BAM tables'!D249,1,0),IF(algorithm!$AL$4='BAM tables'!A249,1,0),IF(algorithm!$AL$5='BAM tables'!B249,1,0),IF(algorithm!$AL$6='BAM tables'!C249,1,0)),1,0)","v":0}]
[5,1,0,10,null,{"$f":"IF(AND(IF(algorithm!$D$4='BAM tables'!D250,1,0),IF(algorithm!$AH$4='BAM tables'!A250,1,0),IF(algorithm!$AH$5='BAM tables'!B250,1,0),IF(algorithm!$AH$6='BAM tables'!C250,1,0)),1,0)","v":0},{"$f":"IF(AND(IF(algorithm!$D$4='BAM tables'!D250,1,0),IF(algorithm!$AL$4='BAM tables'!A250,1,0),IF(algorithm!$AL$5='BAM tables'!B250,1,0),IF(algorithm!$AL$6='BAM tables'!C250,1,0)),1,0)","v":0}]
[5,1,1,5,null,{"$f":"IF(AND(IF(algorithm!$D$4='BAM tables'!D251,1,0),IF(algorithm!$AH$4='BAM tables'!A251,1,0),IF(algorithm!$AH$5='BAM tables'!B251,1,0),IF(algorithm!$AH$6='BAM tables'!C251,1,0)),1,0)","v":0},{"$f":"IF(AND(IF(algorithm!$D$4='BAM tables'!D251,1,0),IF(algorithm!$AL$4='BAM tables'!A251,1,0),IF(algorithm!$AL$5='BAM tables'!B251,1,0),IF(algorithm!$AL$6='BAM tables'!C251,1,0)),1,0)","v":0}]
[5,1,1,8,null,{"$f":"IF(AND(IF(algorithm!$D$4='BAM tables'!D252,1,0),IF(algorithm!$AH$4='BAM tables'!A252,1,0),IF(algorithm!$AH$5='BAM tables'!B252,1,0),IF(algorithm!$AH$6='BAM tables'!C252,1,0)),1,0)","v":0},{"$f":"IF(AND(IF(algorithm!$D$4='BAM tables'!D252,1,0),IF(algorithm!$AL$4='BAM tables'!A252,1,0),IF(algorithm!$AL$5='BAM tables'!B252,1,0),IF(algorithm!$AL$6='BAM tables'!C252,1,0)),1,0)","v":0}]
[5,1,1,10,null,{"$f":"IF(AND(IF(algorithm!$D$4='BAM tables'!D253,1,0),IF(algorithm!$AH$4='BAM tables'!A253,1,0),IF(algorithm!$AH$5='BAM tables'!B253,1,0),IF(algorithm!$AH$6='BAM tables'!C253,1,0)),1,0)","v":0},{"$f":"IF(AND(IF(algorithm!$D$4='BAM tables'!D253,1,0),IF(algorithm!$AL$4='BAM tables'!A253,1,0),IF(algorithm!$AL$5='BAM tables'!B253,1,0),IF(algorithm!$AL$6='BAM tables'!C253,1,0)),1,0)","v":0}]
[5,1,2,5,null,{"$f":"IF(AND(IF(algorithm!$D$4='BAM tables'!D254,1,0),IF(algorithm!$AH$4='BAM tables'!A254,1,0),IF(algorithm!$AH$5='BAM tables'!B254,1,0),IF(algorithm!$AH$6='BAM tables'!C254,1,0)),1,0)","v":0},{"$f":"IF(AND(IF(algorithm!$D$4='BAM tables'!D254,1,0),IF(algorithm!$AL$4='BAM tables'!A254,1,0),IF(algorithm!$AL$5='BAM tables'!B254,1,0),IF(algorithm!$AL$6='BAM tables'!C254,1,0)),1,0)","v":0}]
[5,1,2,8,null,{"$f":"IF(AND(IF(algorithm!$D$4='BAM tables'!D255,1,0),IF(algorithm!$AH$4='BAM tables'!A255,1,0),IF(algorithm!$AH$5='BAM tables'!B255,1,0),IF(algorithm!$AH$6='BAM tables'!C255,1,0)),1,0)","v":0},{"$f":"IF(AND(IF(algorithm!$D$4='BAM tables'!D255,1,0),IF(algorithm!$AL$4='BAM tables'!A255,1,0),IF(algorithm!$AL$5='BAM tables'!B255,1,0),IF(algorithm!$AL$6='BAM tables'!C255,1,0)),1,0)","v":0}]
[5,1,2,10,null,{"$f":"IF(AND(IF(algorithm!$D$4='BAM tables'!D256,1,0),IF(algorithm!$AH$4='BAM tables'!A256,1,0),IF(algorithm!$AH$5='BAM tables'!B256,1,0),IF(algorithm!$AH$6='BAM tables'!C256,1,0)),1,0)","v":0},{"$f":"IF(AND(IF(algorithm!$D$4='BAM tables'!D256,1,0),IF(algorithm!$AL$4='BAM tables'!A256,1,0),IF(algorithm!$AL$5='BAM tables'!B256,1,0),IF(algorithm!$AL$6='BAM tables'!C256,1,0)),1,0)","v":0}]
[5,1,3,5,null,{"$f":"IF(AND(IF(algorithm!$D$4='BAM tables'!D257,1,0),IF(algorithm!$AH$4='BAM tables'!A257,1,0),IF(algorithm!$AH$5='BAM tables'!B257,1,0),IF(algorithm!$AH$6='BAM tables'!C257,1,0)),1,0)","v":0},{"$f":"IF(AND(IF(algorithm!$D$4='BAM tables'!D257,1,0),IF(algorithm!$AL$4='BAM tables'!A257,1,0),IF(algorithm!$AL$5='BAM tables'!B257,1,0),IF(algorithm!$AL$6='BAM tables'!C257,1,0)),1,0)","v":0}]
[5,1,3,8,null,{"$f":"IF(AND(IF(algorithm!$D$4='BAM tables'!D258,1,0),IF(algorithm!$AH$4='BAM tables'!A258,1,0),IF(algorithm!$AH$5='BAM tables'!B258,1,0),IF(algorithm!$AH$6='BAM tables'!C258,1,0)),1,0)","v":0},{"$f":"IF(AND(IF(algorithm!$D$4='BAM tables'!D258,1,0),IF(algorithm!$AL$4='BAM tables'!A258,1,0),IF(algorithm!$AL$5='BAM tables'!B258,1,0),IF(algorithm!$AL$6='BAM tables'!C258,1,0)),1,0)","v":0}]
[5,1,3,10,null,{"$f":"IF(AND(IF(algorithm!$D$4='BAM tables'!D259,1,0),IF(algorithm!$AH$4='BAM tables'!A259,1,0),IF(algorithm!$AH$5='BAM tables'!B259,1,0),IF(algorithm!$AH$6='BAM tables'!C259,1,0)),1,0)","v":0},{"$f":"IF(AND(IF(algorithm!$D$4='BAM tables'!D259,1,0),IF(algorithm!$AL$4='BAM tables'!A259,1,0),IF(algorithm!$AL$5='BAM tables'!B259,1,0),IF(algorithm!$AL$6='BAM tables'!C259,1,0)),1,0)","v":0}]
[5,2,0,5,null,{"$f":"IF(AND(IF(algorithm!$D$4='BAM tables'!D260,1,0),IF(algorithm!$AH$4='BAM tables'!A260,1,0),IF(algorithm!$AH$5='BAM tables'!B260,1,0),IF(algorithm!$AH$6='BAM tables'!C260,1,0)),1,0)","v":0},{"$f":"IF(AND(IF(algorithm!$D$4='BAM tables'!D260,1,0),IF(algorithm!$AL$4='BAM tables'!A260,1,0),IF(algorithm!$AL$5='BAM tables'!B260,1,0),IF(algorithm!$AL$6='BAM tables'!C260,1,0)),1,0)","v":0}]
[5,2,0,8,null,{"$f":"IF(AND(IF(algorithm!$D$4='BAM tables'!D261,1,0),IF(algorithm!$AH$4='BAM tables'!A261,1,0),IF(algorithm!$AH$5='BAM tables'!B261,1,0),IF(algorithm!$AH$6='BAM tables'!C261,1,0)),1,0)","v":0},{"$f":"IF(AND(IF(algorithm!$D$4='BAM tables'!D261,1,0),IF(algorithm!$AL$4='BAM tables'!A261,1,0),IF(algorithm!$AL$5='BAM tables'!B261,1,0),IF(algorithm!$AL$6='BAM tables'!C261,1,0)),1,0)","v":0}]
[5,2,0,10,null,{"$f":"IF(AND(IF(algorithm!$D$4='BAM tables'!D262,1,0),IF(algorithm!$AH$4='BAM tables'!A262,1,0),IF(algorithm!$AH$5='BAM tables'!B262,1,0),IF(algorithm!$AH$6='BAM tables'!C262,1,0)),1,0)","v":0},{"$f":"IF(AND(IF(algorithm!$D$4='BAM tables'!D262,1,0),IF(algorithm!$AL$4='BAM tables'!A262,1,0),IF(algorithm!$AL$5='BAM tables'!B262,1,0),IF(algorithm!$AL$6='BAM tables'!C262,1,0)),1,0)","v":0}]
[5,2,1,5,null,{"$f":"IF(AND(IF(algorithm!$D$4='BAM tables'!D263,1,0),IF(algorithm!$AH$4='BAM tables'!A263,1,0),IF(algorithm!$AH$5='BAM tables'!B263,1,0),IF(algorithm!$AH$6='BAM tables'!C263,1,0)),1,0)","v":0},{"$f":"IF(AND(IF(algorithm!$D$4='BAM tables'!D263,1,0),IF(algorithm!$AL$4='BAM tables'!A263,1,0),IF(algorithm!$AL$5='BAM tables'!B263,1,0),IF(algorithm!$AL$6='BAM tables'!C263,1,0)),1,0)","v":0}]
[5,2,1,8,null,{"$f":"IF(AND(IF(algorithm!$D$4='BAM tables'!D264,1,0),IF(algorithm!$AH$4='BAM tables'!A264,1,0),IF(algorithm!$AH$5='BAM tables'!B264,1,0),IF(algorithm!$AH$6='BAM tables'!C264,1,0)),1,0)","v":0},{"$f":"IF(AND(IF(algorithm!$D$4='BAM tables'!D264,1,0),IF(algorithm!$AL$4='BAM tables'!A264,1,0),IF(algorithm!$AL$5='BAM tables'!B264,1,0),IF(algorithm!$AL$6='BAM tables'!C264,1,0)),1,0)","v":0}]
[5,2,1,10,null,{"$f":"IF(AND(IF(algorithm!$D$4='BAM tables'!D265,1,0),IF(algorithm!$AH$4='BAM tables'!A265,1,0),IF(algorithm!$AH$5='BAM tables'!B265,1,0),IF(algorithm!$AH$6='BAM tables'!C265,1,0)),1,0)","v":0},{"$f":"IF(AND(IF(algorithm!$D$4='BAM tables'!D265,1,0),IF(algorithm!$AL$4='BAM tables'!A265,1,0),IF(algorithm!$AL$5='BAM tables'!B265,1,0),IF(algorithm!$AL$6='BAM tables'!C265,1,0)),1,0)","v":0}]
[5,2,2,5,null,{"$f":"IF(AND(IF(algorithm!$D$4='BAM tables'!D266,1,0),IF(algorithm!$AH$4='BAM tables'!A266,1,0),IF(algorithm!$AH$5='BAM tables'!B266,1,0),IF(algorithm!$AH$6='BAM tables'!C266,1,0)),1,0)","v":0},{"$f":"IF(AND(IF(algorithm!$D$4='BAM tables'!D266,1,0),IF(algorithm!$AL$4='BAM tables'!A266,1,0),IF(algorithm!$AL$5='BAM tables'!B266,1,0),IF(algorithm!$AL$6='BAM tables'!C266,1,0)),1,0)","v":0}]
[5,2,2,8,null,{"$f":"IF(AND(IF(algorithm!$D$4='BAM tables'!D267,1,0),IF(algorithm!$AH$4='BAM tables'!A267,1,0),IF(algorithm!$AH$5='BAM tables'!B267,1,0),IF(algorithm!$AH$6='BAM tables'!C267,1,0)),1,0)","v":0},{"$f":"IF(AND(IF(algorithm!$D$4='BAM tables'!D267,1,0),IF(algorithm!$AL$4='BAM tables'!A267,1,0),IF(algorithm!$AL$5='BAM tables'!B267,1,0),IF(algorithm!$AL$6='BAM tables'!C267,1,0)),1,0)","v":0}]
[5,2,2,10,null,{"$f":"IF(AND(IF(algorithm!$D$4='BAM tables'!D268,1,0),IF(algorithm!$AH$4='BAM tables'!A268,1,0),IF(algorithm!$AH$5='BAM tables'!B268,1,0),IF(algorithm!$AH$6='BAM tables'!C268,1,0)),1,0)","v":0},{"$f":"IF(AND(IF(algorithm!$D$4='BAM tables'!D268,1,0),IF(algorithm!$AL$4='BAM tables'!A268,1,0),IF(algorithm!$AL$5='BAM tables'!B268,1,0),IF(algorithm!$AL$6='BAM tables'!C268,1,0)),1,0)","v":0}]
[5,2,3,5,null,{"$f":"IF(AND(IF(algorithm!$D$4='BAM tables'!D269,1,0),IF(algorithm!$AH$4='BAM tables'!A269,1,0),IF(algorithm!$AH$5='BAM tables'!B269,1,0),IF(algorithm!$AH$6='BAM tables'!C269,1,0)),1,0)","v":0},{"$f":"IF(AND(IF(algorithm!$D$4='BAM tables'!D269,1,0),IF(algorithm!$AL$4='BAM tables'!A269,1,0),IF(algorithm!$AL$5='BAM tables'!B269,1,0),IF(algorithm!$AL$6='BAM tables'!C269,1,0)),1,0)","v":0}]
[5,2,3,8,null,{"$f":"IF(AND(IF(algorithm!$D$4='BAM tables'!D270,1,0),IF(algorithm!$AH$4='BAM tables'!A270,1,0),IF(algorithm!$AH$5='BAM tables'!B270,1,0),IF(algorithm!$AH$6='BAM tables'!C270,1,0)),1,0)","v":0},{"$f":"IF(AND(IF(algorithm!$D$4='BAM tables'!D270,1,0),IF(algorithm!$AL$4='BAM tables'!A270,1,0),IF(algorithm!$AL$5='BAM tables'!B270,1,0),IF(algorithm!$AL$6='BAM tables'!C270,1,0)),1,0)","v":0}]
[5,2,4,5,null,{"$f":"IF(AND(IF(algorithm!$D$4='BAM tables'!D271,1,0),IF(algorithm!$AH$4='BAM tables'!A271,1,0),IF(algorithm!$AH$5='BAM tables'!B271,1,0),IF(algorithm!$AH$6='BAM tables'!C271,1,0)),1,0)","v":0},{"$f":"IF(AND(IF(algorithm!$D$4='BAM tables'!D271,1,0),IF(algorithm!$AL$4='BAM tables'!A271,1,0),IF(algorithm!$AL$5='BAM tables'!B271,1,0),IF(algorithm!$AL$6='BAM tables'!C271,1,0)),1,0)","v":0}]
[5,3,0,5,null,{"$f":"IF(AND(IF(algorithm!$D$4='BAM tables'!D272,1,0),IF(algorithm!$AH$4='BAM tables'!A272,1,0),IF(algorithm!$AH$5='BAM tables'!B272,1,0),IF(algorithm!$AH$6='BAM tables'!C272,1,0)),1,0)","v":0},{"$f":"IF(AND(IF(algorithm!$D$4='BAM tables'!D272,1,0),IF(algorithm!$AL$4='BAM tables'!A272,1,0),IF(algorithm!$AL$5='BAM tables'!B272,1,0),IF(algorithm!$AL$6='BAM tables'!C272,1,0)),1,0)","v":0}]
[5,3,0,8,null,{"$f":"IF(AND(IF(algorithm!$D$4='BAM tables'!D273,1,0),IF(algorithm!$AH$4='BAM tables'!A273,1,0),IF(algorithm!$AH$5='BAM tables'!B273,1,0),IF(algorithm!$AH$6='BAM tables'!C273,1,0)),1,0)","v":0},{"$f":"IF(AND(IF(algorithm!$D$4='BAM tables'!D273,1,0),IF(algorithm!$AL$4='BAM tables'!A273,1,0),IF(algorithm!$AL$5='BAM tables'!B273,1,0),IF(algorithm!$AL$6='BAM tables'!C273,1,0)),1,0)","v":0}]
[5,3,0,10,null,{"$f":"IF(AND(IF(algorithm!$D$4='BAM tables'!D274,1,0),IF(algorithm!$AH$4='BAM tables'!A274,1,0),IF(algorithm!$AH$5='BAM tables'!B274,1,0),IF(algorithm!$AH$6='BAM tables'!C274,1,0)),1,0)","v":0},{"$f":"IF(AND(IF(algorithm!$D$4='BAM tables'!D274,1,0),IF(algorithm!$AL$4='BAM tables'!A274,1,0),IF(algorithm!$AL$5='BAM tables'!B274,1,0),IF(algorithm!$AL$6='BAM tables'!C274,1,0)),1,0)","v":0}]
[5,3,1,5,null,{"$f":"IF(AND(IF(algorithm!$D$4='BAM tables'!D275,1,0),IF(algorithm!$AH$4='BAM tables'!A275,1,0),IF(algorithm!$AH$5='BAM tables'!B275,1,0),IF(algorithm!$AH$6='BAM tables'!C275,1,0)),1,0)","v":0},{"$f":"IF(AND(IF(algorithm!$D$4='BAM tables'!D275,1,0),IF(algorithm!$AL$4='BAM tables'!A275,1,0),IF(algorithm!$AL$5='BAM tables'!B275,1,0),IF(algorithm!$AL$6='BAM tables'!C275,1,0)),1,0)","v":0}]
[5,3,1,8,null,{"$f":"IF(AND(IF(algorithm!$D$4='BAM tables'!D276,1,0),IF(algorithm!$AH$4='BAM tables'!A276,1,0),IF(algorithm!$AH$5='BAM tables'!B276,1,0),IF(algorithm!$AH$6='BAM tables'!C276,1,0)),1,0)","v":0},{"$f":"IF(AND(IF(algorithm!$D$4='BAM tables'!D276,1,0),IF(algorithm!$AL$4='BAM tables'!A276,1,0),IF(algorithm!$AL$5='BAM tables'!B276,1,0),IF(algorithm!$AL$6='BAM tables'!C276,1,0)),1,0)","v":0}]
[5,3,1,10,null,{"$f":"IF(AND(IF(algorithm!$D$4='BAM tables'!D277,1,0),IF(algorithm!$AH$4='BAM tables'!A277,1,0),IF(algorithm!$AH$5='BAM tables'!B277,1,0),IF(algorithm!$AH$6='BAM tables'!C277,1,0)),1,0)","v":0},{"$f":"IF(AND(IF(algorithm!$D$4='BAM tables'!D277,1,0),IF(algorithm!$AL$4='BAM tables'!A277,1,0),IF(algorithm!$AL$5='BAM tables'!B277,1,0),IF(algorithm!$AL$6='BAM tables'!C277,1,0)),1,0)","v":0}]
[5,3,2,5,null,{"$f":"IF(AND(IF(algorithm!$D$4='BAM tables'!D278,1,0),IF(algorithm!$AH$4='BAM tables'!A278,1,0),IF(algorithm!$AH$5='BAM tables'!B278,1,0),IF(algorithm!$AH$6='BAM tables'!C278,1,0)),1,0)","v":0},{"$f":"IF(AND(IF(algorithm!$D$4='BAM tables'!D278,1,0),IF(algorithm!$AL$4='BAM tables'!A278,1,0),IF(algorithm!$AL$5='BAM tables'!B278,1,0),IF(algorithm!$AL$6='BAM tables'!C278,1,0)),1,0)","v":0}]
[5,3,2,8,null,{"$f":"IF(AND(IF(algorithm!$D$4='BAM tables'!D279,1,0),IF(algorithm!$AH$4='BAM tables'!A279,1,0),IF(algorithm!$AH$5='BAM tables'!B279,1,0),IF(algorithm!$AH$6='BAM tables'!C279,1,0)),1,0)","v":0},{"$f":"IF(AND(IF(algorithm!$D$4='BAM tables'!D279,1,0),IF(algorithm!$AL$4='BAM tables'!A279,1,0),IF(algorithm!$AL$5='BAM tables'!B279,1,0),IF(algorithm!$AL$6='BAM tables'!C279,1,0)),1,0)","v":0}]
[5,3,2,10,null,{"$f":"IF(AND(IF(algorithm!$D$4='BAM tables'!D280,1,0),IF(algorithm!$AH$4='BAM tables'!A280,1,0),IF(algorithm!$AH$5='BAM tables'!B280,1,0),IF(algorithm!$AH$6='BAM tables'!C280,1,0)),1,0)","v":0},{"$f":"IF(AND(IF(algorithm!$D$4='BAM tables'!D280,1,0),IF(algorithm!$AL$4='BAM tables'!A280,1,0),IF(algorithm!$AL$5='BAM tables'!B280,1,0),IF(algorithm!$AL$6='BAM tables'!C280,1,0)),1,0)","v":0}]
[5,3,3,5,null,{"$f":"IF(AND(IF(algorithm!$D$4='BAM tables'!D281,1,0),IF(algorithm!$AH$4='BAM tables'!A281,1,0),IF(algorithm!$AH$5='BAM tables'!B281,1,0),IF(algorithm!$AH$6='BAM tables'!C281,1,0)),1,0)","v":0},{"$f":"IF(AND(IF(algorithm!$D$4='BAM tables'!D281,1,0),IF(algorithm!$AL$4='BAM tables'!A281,1,0),IF(algorithm!$AL$5='BAM tables'!B281,1,0),IF(algorithm!$AL$6='BAM tables'!C281,1,0)),1,0)","v":0}]
[5,3,4,5,null,{"$f":"IF(AND(IF(algorithm!$D$4='BAM tables'!D282,1,0),IF(algorithm!$AH$4='BAM tables'!A282,1,0),IF(algorithm!$AH$5='BAM tables'!B282,1,0),IF(algorithm!$AH$6='BAM tables'!C282,1,0)),1,0)","v":0},{"$f":"IF(AND(IF(algorithm!$D$4='BAM tables'!D282,1,0),IF(algorithm!$AL$4='BAM tables'!A282,1,0),IF(algorithm!$AL$5='BAM tables'!B282,1,0),IF(algorithm!$AL$6='BAM tables'!C282,1,0)),1,0)","v":0}]
[5,4,0,5,null,{"$f":"IF(AND(IF(algorithm!$D$4='BAM tables'!D283,1,0),IF(algorithm!$AH$4='BAM tables'!A283,1,0),IF(algorithm!$AH$5='BAM tables'!B283,1,0),IF(algorithm!$AH$6='BAM tables'!C283,1,0)),1,0)","v":0},{"$f":"IF(AND(IF(algorithm!$D$4='BAM tables'!D283,1,0),IF(algorithm!$AL$4='BAM tables'!A283,1,0),IF(algorithm!$AL$5='BAM tables'!B283,1,0),IF(algorithm!$AL$6='BAM tables'!C283,1,0)),1,0)","v":0}]
[5,4,0,8,null,{"$f":"IF(AND(IF(algorithm!$D$4='BAM tables'!D284,1,0),IF(algorithm!$AH$4='BAM tables'!A284,1,0),IF(algorithm!$AH$5='BAM tables'!B284,1,0),IF(algorithm!$AH$6='BAM tables'!C284,1,0)),1,0)","v":0},{"$f":"IF(AND(IF(algorithm!$D$4='BAM tables'!D284,1,0),IF(algorithm!$AL$4='BAM tables'!A284,1,0),IF(algorithm!$AL$5='BAM tables'!B284,1,0),IF(algorithm!$AL$6='BAM tables'!C284,1,0)),1,0)","v":0}]
[5,4,0,10,null,{"$f":"IF(AND(IF(algorithm!$D$4='BAM tables'!D285,1,0),IF(algorithm!$AH$4='BAM tables'!A285,1,0),IF(algorithm!$AH$5='BAM tables'!B285,1,0),IF(algorithm!$AH$6='BAM tables'!C285,1,0)),1,0)","v":0},{"$f":"IF(AND(IF(algorithm!$D$4='BAM tables'!D285,1,0),IF(algorithm!$AL$4='BAM tables'!A285,1,0),IF(algorithm!$AL$5='BAM tables'!B285,1,0),IF(algorithm!$AL$6='BAM tables'!C285,1,0)),1,0)","v":0}]
[5,4,1,5,null,{"$f":"IF(AND(IF(algorithm!$D$4='BAM tables'!D286,1,0),IF(algorithm!$AH$4='BAM tables'!A286,1,0),IF(algorithm!$AH$5='BAM tables'!B286,1,0),IF(algorithm!$AH$6='BAM tables'!C286,1,0)),1,0)","v":0},{"$f":"IF(AND(IF(algorithm!$D$4='BAM tables'!D286,1,0),IF(algorithm!$AL$4='BAM tables'!A286,1,0),IF(algorithm!$AL$5='BAM tables'!B286,1,0),IF(algorithm!$AL$6='BAM tables'!C286,1,0)),1,0)","v":0}]
[5,4,1,8,null,{"$f":"IF(AND(IF(algorithm!$D$4='BAM tables'!D287,1,0),IF(algorithm!$AH$4='BAM tables'!A287,1,0),IF(algorithm!$AH$5='BAM tables'!B287,1,0),IF(algorithm!$AH$6='BAM tables'!C287,1,0)),1,0)","v":0},{"$f":"IF(AND(IF(algorithm!$D$4='BAM tables'!D287,1,0),IF(algorithm!$AL$4='BAM tables'!A287,1,0),IF(algorithm!$AL$5='BAM tables'!B287,1,0),IF(algorithm!$AL$6='BAM tables'!C287,1,0)),1,0)","v":0}]
[5,4,1,10,null,{"$f":"IF(AND(IF(algorithm!$D$4='BAM tables'!D288,1,0),IF(algorithm!$AH$4='BAM tables'!A288,1,0),IF(algorithm!$AH$5='BAM tables'!B288,1,0),IF(algorithm!$AH$6='BAM tables'!C288,1,0)),1,0)","v":0},{"$f":"IF(AND(IF(algorithm!$D$4='BAM tables'!D288,1,0),IF(algorithm!$AL$4='BAM tables'!A288,1,0),IF(algorithm!$AL$5='BAM tables'!B288,1,0),IF(algorithm!$AL$6='BAM tables'!C288,1,0)),1,0)","v":0}]
[5,4,2,5,null,{"$f":"IF(AND(IF(algorithm!$D$4='BAM tables'!D289,1,0),IF(algorithm!$AH$4='BAM tables'!A289,1,0),IF(algorithm!$AH$5='BAM tables'!B289,1,0),IF(algorithm!$AH$6='BAM tables'!C289,1,0)),1,0)","v":0},{"$f":"IF(AND(IF(algorithm!$D$4='BAM tables'!D289,1,0),IF(algorithm!$AL$4='BAM tables'!A289,1,0),IF(algorithm!$AL$5='BAM tables'!B289,1,0),IF(algorithm!$AL$6='BAM tables'!C289,1,0)),1,0)","v":0}]
[5,4,2,8,null,{"$f":"IF(AND(IF(algorithm!$D$4='BAM tables'!D290,1,0),IF(algorithm!$AH$4='BAM tables'!A290,1,0),IF(algorithm!$AH$5='BAM tables'!B290,1,0),IF(algorithm!$AH$6='BAM tables'!C290,1,0)),1,0)","v":0},{"$f":"IF(AND(IF(algorithm!$D$4='BAM tables'!D290,1,0),IF(algorithm!$AL$4='BAM tables'!A290,1,0),IF(algorithm!$AL$5='BAM tables'!B290,1,0),IF(algorithm!$AL$6='BAM tables'!C290,1,0)),1,0)","v":0}]
[5,4,2,10,null,{"$f":"IF(AND(IF(algorithm!$D$4='BAM tables'!D291,1,0),IF(algorithm!$AH$4='BAM tables'!A291,1,0),IF(algorithm!$AH$5='BAM tables'!B291,1,0),IF(algorithm!$AH$6='BAM tables'!C291,1,0)),1,0)","v":0},{"$f":"IF(AND(IF(algorithm!$D$4='BAM tables'!D291,1,0),IF(algorithm!$AL$4='BAM tables'!A291,1,0),IF(algorithm!$AL$5='BAM tables'!B291,1,0),IF(algorithm!$AL$6='BAM tables'!C291,1,0)),1,0)","v":0}]
[5,4,3,5,null,{"$f":"IF(AND(IF(algorithm!$D$4='BAM tables'!D292,1,0),IF(algorithm!$AH$4='BAM tables'!A292,1,0),IF(algorithm!$AH$5='BAM tables'!B292,1,0),IF(algorithm!$AH$6='BAM tables'!C292,1,0)),1,0)","v":0},{"$f":"IF(AND(IF(algorithm!$D$4='BAM tables'!D292,1,0),IF(algorithm!$AL$4='BAM tables'!A292,1,0),IF(algorithm!$AL$5='BAM tables'!B292,1,0),IF(algorithm!$AL$6='BAM tables'!C292,1,0)),1,0)","v":0}]
[5,4,4,5,null,{"$f":"IF(AND(IF(algorithm!$D$4='BAM tables'!D293,1,0),IF(algorithm!$AH$4='BAM tables'!A293,1,0),IF(algorithm!$AH$5='BAM tables'!B293,1,0),IF(algorithm!$AH$6='BAM tables'!C293,1,0)),1,0)","v":0},{"$f":"IF(AND(IF(algorithm!$D$4='BAM tables'!D293,1,0),IF(algorithm!$AL$4='BAM tables'!A293,1,0),IF(algorithm!$AL$5='BAM tables'!B293,1,0),IF(algorithm!$AL$6='BAM tables'!C293,1,0)),1,0)","v":0}]
[5,4,5,5,null,{"$f":"IF(AND(IF(algorithm!$D$4='BAM tables'!D294,1,0),IF(algorithm!$AH$4='BAM tables'!A294,1,0),IF(algorithm!$AH$5='BAM tables'!B294,1,0),IF(algorithm!$AH$6='BAM tables'!C294,1,0)),1,0)","v":0},{"$f":"IF(AND(IF(algorithm!$D$4='BAM tables'!D294,1,0),IF(algorithm!$AL$4='BAM tables'!A294,1,0),IF(algorithm!$AL$5='BAM tables'!B294,1,0),IF(algorithm!$AL$6='BAM tables'!C294,1,0)),1,0)","v":0}]
[5,5,0,5,null,{"$f":"IF(AND(IF(algorithm!$D$4='BAM tables'!D295,1,0),IF(algorithm!$AH$4='BAM tables'!A295,1,0),IF(algorithm!$AH$5='BAM tables'!B295,1,0),IF(algorithm!$AH$6='BAM tables'!C295,1,0)),1,0)","v":0},{"$f":"IF(AND(IF(algorithm!$D$4='BAM tables'!D295,1,0),IF(algorithm!$AL$4='BAM tables'!A295,1,0),IF(algorithm!$AL$5='BAM tables'!B295,1,0),IF(algorithm!$AL$6='BAM tables'!C295,1,0)),1,0)","v":0}]
[5,5,0,8,null,{"$f":"IF(AND(IF(algorithm!$D$4='BAM tables'!D296,1,0),IF(algorithm!$AH$4='BAM tables'!A296,1,0),IF(algorithm!$AH$5='BAM tables'!B296,1,0),IF(algorithm!$AH$6='BAM tables'!C296,1,0)),1,0)","v":0},{"$f":"IF(AND(IF(algorithm!$D$4='BAM tables'!D296,1,0),IF(algorithm!$AL$4='BAM tables'!A296,1,0),IF(algorithm!$AL$5='BAM tables'!B296,1,0),IF(algorithm!$AL$6='BAM tables'!C296,1,0)),1,0)","v":0}]
[5,5,0,10,null,{"$f":"IF(AND(IF(algorithm!$D$4='BAM tables'!D297,1,0),IF(algorithm!$AH$4='BAM tables'!A297,1,0),IF(algorithm!$AH$5='BAM tables'!B297,1,0),IF(algorithm!$AH$6='BAM tables'!C297,1,0)),1,0)","v":0},{"$f":"IF(AND(IF(algorithm!$D$4='BAM tables'!D297,1,0),IF(algorithm!$AL$4='BAM tables'!A297,1,0),IF(algorithm!$AL$5='BAM tables'!B297,1,0),IF(algorithm!$AL$6='BAM tables'!C297,1,0)),1,0)","v":0}]
[5,5,1,5,null,{"$f":"IF(AND(IF(algorithm!$D$4='BAM tables'!D298,1,0),IF(algorithm!$AH$4='BAM tables'!A298,1,0),IF(algorithm!$AH$5='BAM tables'!B298,1,0),IF(algorithm!$AH$6='BAM tables'!C298,1,0)),1,0)","v":0},{"$f":"IF(AND(IF(algorithm!$D$4='BAM tables'!D298,1,0),IF(algorithm!$AL$4='BAM tables'!A298,1,0),IF(algorithm!$AL$5='BAM tables'!B298,1,0),IF(algorithm!$AL$6='BAM tables'!C298,1,0)),1,0)","v":0}]
[5,5,1,8,null,{"$f":"IF(AND(IF(algorithm!$D$4='BAM tables'!D299,1,0),IF(algorithm!$AH$4='BAM tables'!A299,1,0),IF(algorithm!$AH$5='BAM tables'!B299,1,0),IF(algorithm!$AH$6='BAM tables'!C299,1,0)),1,0)","v":0},{"$f":"IF(AND(IF(algorithm!$D$4='BAM tables'!D299,1,0),IF(algorithm!$AL$4='BAM tables'!A299,1,0),IF(algorithm!$AL$5='BAM tables'!B299,1,0),IF(algorithm!$AL$6='BAM tables'!C299,1,0)),1,0)","v":0}]
[5,5,1,10,null,{"$f":"IF(AND(IF(algorithm!$D$4='BAM tables'!D300,1,0),IF(algorithm!$AH$4='BAM tables'!A300,1,0),IF(algorithm!$AH$5='BAM tables'!B300,1,0),IF(algorithm!$AH$6='BAM tables'!C300,1,0)),1,0)","v":0},{"$f":"IF(AND(IF(algorithm!$D$4='BAM tables'!D300,1,0),IF(algorithm!$AL$4='BAM tables'!A300,1,0),IF(algorithm!$AL$5='BAM tables'!B300,1,0),IF(algorithm!$AL$6='BAM tables'!C300,1,0)),1,0)","v":0}]
[5,5,2,5,null,{"$f":"IF(AND(IF(algorithm!$D$4='BAM tables'!D301,1,0),IF(algorithm!$AH$4='BAM tables'!A301,1,0),IF(algorithm!$AH$5='BAM tables'!B301,1,0),IF(algorithm!$AH$6='BAM tables'!C301,1,0)),1,0)","v":0},{"$f":"IF(AND(IF(algorithm!$D$4='BAM tables'!D301,1,0),IF(algorithm!$AL$4='BAM tables'!A301,1,0),IF(algorithm!$AL$5='BAM tables'!B301,1,0),IF(algorithm!$AL$6='BAM tables'!C301,1,0)),1,0)","v":0}]
[5,5,3,5,null,{"$f":"IF(AND(IF(algorithm!$D$4='BAM tables'!D302,1,0),IF(algorithm!$AH$4='BAM tables'!A302,1,0),IF(algorithm!$AH$5='BAM tables'!B302,1,0),IF(algorithm!$AH$6='BAM tables'!C302,1,0)),1,0)","v":0},{"$f":"IF(AND(IF(algorithm!$D$4='BAM tables'!D302,1,0),IF(algorithm!$AL$4='BAM tables'!A302,1,0),IF(algorithm!$AL$5='BAM tables'!B302,1,0),IF(algorithm!$AL$6='BAM tables'!C302,1,0)),1,0)","v":0}]
[5,5,4,5,null,{"$f":"IF(AND(IF(algorithm!$D$4='BAM tables'!D303,1,0),IF(algorithm!$AH$4='BAM tables'!A303,1,0),IF(algorithm!$AH$5='BAM tables'!B303,1,0),IF(algorithm!$AH$6='BAM tables'!C303,1,0)),1,0)","v":0},{"$f":"IF(AND(IF(algorithm!$D$4='BAM tables'!D303,1,0),IF(algorithm!$AL$4='BAM tables'!A303,1,0),IF(algorithm!$AL$5='BAM tables'!B303,1,0),IF(algorithm!$AL$6='BAM tables'!C303,1,0)),1,0)","v":0}]
[5,5,5,5,null,{"$f":"IF(AND(IF(algorithm!$D$4='BAM tables'!D304,1,0),IF(algorithm!$AH$4='BAM tables'!A304,1,0),IF(algorithm!$AH$5='BAM tables'!B304,1,0),IF(algorithm!$AH$6='BAM tables'!C304,1,0)),1,0)","v":0},{"$f":"IF(AND(IF(algorithm!$D$4='BAM tables'!D304,1,0),IF(algorithm!$AL$4='BAM tables'!A304,1,0),IF(algorithm!$AL$5='BAM tables'!B304,1,0),IF(algorithm!$AL$6='BAM tables'!C304,1,0)),1,0)","v":0}]
[5,6,0,8,null,{"$f":"IF(AND(IF(algorithm!$D$4='BAM tables'!D305,1,0),IF(algorithm!$AH$4='BAM tables'!A305,1,0),IF(algorithm!$AH$5='BAM tables'!B305,1,0),IF(algorithm!$AH$6='BAM tables'!C305,1,0)),1,0)","v":0},{"$f":"IF(AND(IF(algorithm!$D$4='BAM tables'!D305,1,0),IF(algorithm!$AL$4='BAM tables'!A305,1,0),IF(algorithm!$AL$5='BAM tables'!B305,1,0),IF(algorithm!$AL$6='BAM tables'!C305,1,0)),1,0)","v":0}]
[5,6,0,10,null,{"$f":"IF(AND(IF(algorithm!$D$4='BAM tables'!D306,1,0),IF(algorithm!$AH$4='BAM tables'!A306,1,0),IF(algorithm!$AH$5='BAM tables'!B306,1,0),IF(algorithm!$AH$6='BAM tables'!C306,1,0)),1,0)","v":0},{"$f":"IF(AND(IF(algorithm!$D$4='BAM tables'!D306,1,0),IF(algorithm!$AL$4='BAM tables'!A306,1,0),IF(algorithm!$AL$5='BAM tables'!B306,1,0),IF(algorithm!$AL$6='BAM tables'!C306,1,0)),1,0)","v":0}]
[6,0,0,8,null,{"$f":"IF(AND(IF(algorithm!$D$4='BAM tables'!D307,1,0),IF(algorithm!$AH$4='BAM tables'!A307,1,0),IF(algorithm!$AH$5='BAM tables'!B307,1,0),IF(algorithm!$AH$6='BAM tables'!C307,1,0)),1,0)","v":0},{"$f":"IF(AND(IF(algorithm!$D$4='BAM tables'!D307,1,0),IF(algorithm!$AL$4='BAM tables'!A307,1,0),IF(algorithm!$AL$5='BAM tables'!B307,1,0),IF(algorithm!$AL$6='BAM tables'!C307,1,0)),1,0)","v":0}]
[6,0,0,10,null,{"$f":"IF(AND(IF(algorithm!$D$4='BAM tables'!D308,1,0),IF(algorithm!$AH$4='BAM tables'!A308,1,0),IF(algorithm!$AH$5='BAM tables'!B308,1,0),IF(algorithm!$AH$6='BAM tables'!C308,1,0)),1,0)","v":0},{"$f":"IF(AND(IF(algorithm!$D$4='BAM tables'!D308,1,0),IF(algorithm!$AL$4='BAM tables'!A308,1,0),IF(algorithm!$AL$5='BAM tables'!B308,1,0),IF(algorithm!$AL$6='BAM tables'!C308,1,0)),1,0)","v":0}]
[6,0,1,8,null,{"$f":"IF(AND(IF(algorithm!$D$4='BAM tables'!D309,1,0),IF(algorithm!$AH$4='BAM tables'!A309,1,0),IF(algorithm!$AH$5='BAM tables'!B309,1,0),IF(algorithm!$AH$6='BAM tables'!C309,1,0)),1,0)","v":0},{"$f":"IF(AND(IF(algorithm!$D$4='BAM tables'!D309,1,0),IF(algorithm!$AL$4='BAM tables'!A309,1,0),IF(algorithm!$AL$5='BAM tables'!B309,1,0),IF(algorithm!$AL$6='BAM tables'!C309,1,0)),1,0)","v":0}]
[6,0,1,10,null,{"$f":"IF(AND(IF(algorithm!$D$4='BAM tables'!D310,1,0),IF(algorithm!$AH$4='BAM tables'!A310,1,0),IF(algorithm!$AH$5='BAM tables'!B310,1,0),IF(algorithm!$AH$6='BAM tables'!C310,1,0)),1,0)","v":0},{"$f":"IF(AND(IF(algorithm!$D$4='BAM tables'!D310,1,0),IF(algorithm!$AL$4='BAM tables'!A310,1,0),IF(algorithm!$AL$5='BAM tables'!B310,1,0),IF(algorithm!$AL$6='BAM tables'!C310,1,0)),1,0)","v":0}]
[6,0,2,8,null,{"$f":"IF(AND(IF(algorithm!$D$4='BAM tables'!D311,1,0),IF(algorithm!$AH$4='BAM tables'!A311,1,0),IF(algorithm!$AH$5='BAM tables'!B311,1,0),IF(algorithm!$AH$6='BAM tables'!C311,1,0)),1,0)","v":0},{"$f":"IF(AND(IF(algorithm!$D$4='BAM tables'!D311,1,0),IF(algorithm!$AL$4='BAM tables'!A311,1,0),IF(algorithm!$AL$5='BAM tables'!B311,1,0),IF(algorithm!$AL$6='BAM tables'!C311,1,0)),1,0)","v":0}]
[6,0,2,10,null,{"$f":"IF(AND(IF(algorithm!$D$4='BAM tables'!D312,1,0),IF(algorithm!$AH$4='BAM tables'!A312,1,0),IF(algorithm!$AH$5='BAM tables'!B312,1,0),IF(algorithm!$AH$6='BAM tables'!C312,1,0)),1,0)","v":0},{"$f":"IF(AND(IF(algorithm!$D$4='BAM tables'!D312,1,0),IF(algorithm!$AL$4='BAM tables'!A312,1,0),IF(algorithm!$AL$5='BAM tables'!B312,1,0),IF(algorithm!$AL$6='BAM tables'!C312,1,0)),1,0)","v":0}]
[6,0,3,8,null,{"$f":"IF(AND(IF(algorithm!$D$4='BAM tables'!D313,1,0),IF(algorithm!$AH$4='BAM tables'!A313,1,0),IF(algorithm!$AH$5='BAM tables'!B313,1,0),IF(algorithm!$AH$6='BAM tables'!C313,1,0)),1,0)","v":0},{"$f":"IF(AND(IF(algorithm!$D$4='BAM tables'!D313,1,0),IF(algorithm!$AL$4='BAM tables'!A313,1,0),IF(algorithm!$AL$5='BAM tables'!B313,1,0),IF(algorithm!$AL$6='BAM tables'!C313,1,0)),1,0)","v":0}]
[6,0,3,10,null,{"$f":"IF(AND(IF(algorithm!$D$4='BAM tables'!D314,1,0),IF(algorithm!$AH$4='BAM tables'!A314,1,0),IF(algorithm!$AH$5='BAM tables'!B314,1,0),IF(algorithm!$AH$6='BAM tables'!C314,1,0)),1,0)","v":0},{"$f":"IF(AND(IF(algorithm!$D$4='BAM tables'!D314,1,0),IF(algorithm!$AL$4='BAM tables'!A314,1,0),IF(algorithm!$AL$5='BAM tables'!B314,1,0),IF(algorithm!$AL$6='BAM tables'!C314,1,0)),1,0)","v":0}]
[6,1,0,8,null,{"$f":"IF(AND(IF(algorithm!$D$4='BAM tables'!D315,1,0),IF(algorithm!$AH$4='BAM tables'!A315,1,0),IF(algorithm!$AH$5='BAM tables'!B315,1,0),IF(algorithm!$AH$6='BAM tables'!C315,1,0)),1,0)","v":0},{"$f":"IF(AND(IF(algorithm!$D$4='BAM tables'!D315,1,0),IF(algorithm!$AL$4='BAM tables'!A315,1,0),IF(algorithm!$AL$5='BAM tables'!B315,1,0),IF(algorithm!$AL$6='BAM tables'!C315,1,0)),1,0)","v":0}]
[6,1,0,10,null,{"$f":"IF(AND(IF(algorithm!$D$4='BAM tables'!D316,1,0),IF(algorithm!$AH$4='BAM tables'!A316,1,0),IF(algorithm!$AH$5='BAM tables'!B316,1,0),IF(algorithm!$AH$6='BAM tables'!C316,1,0)),1,0)","v":0},{"$f":"IF(AND(IF(algorithm!$D$4='BAM tables'!D316,1,0),IF(algorithm!$AL$4='BAM tables'!A316,1,0),IF(algorithm!$AL$5='BAM tables'!B316,1,0),IF(algorithm!$AL$6='BAM tables'!C316,1,0)),1,0)","v":0}]
[6,1,1,8,null,{"$f":"IF(AND(IF(algorithm!$D$4='BAM tables'!D317,1,0),IF(algorithm!$AH$4='BAM tables'!A317,1,0),IF(algorithm!$AH$5='BAM tables'!B317,1,0),IF(algorithm!$AH$6='BAM tables'!C317,1,0)),1,0)","v":0},{"$f":"IF(AND(IF(algorithm!$D$4='BAM tables'!D317,1,0),IF(algorithm!$AL$4='BAM tables'!A317,1,0),IF(algorithm!$AL$5='BAM tables'!B317,1,0),IF(algorithm!$AL$6='BAM tables'!C317,1,0)),1,0)","v":0}]
[6,1,1,10,null,{"$f":"IF(AND(IF(algorithm!$D$4='BAM tables'!D318,1,0),IF(algorithm!$AH$4='BAM tables'!A318,1,0),IF(algorithm!$AH$5='BAM tables'!B318,1,0),IF(algorithm!$AH$6='BAM tables'!C318,1,0)),1,0)","v":0},{"$f":"IF(AND(IF(algorithm!$D$4='BAM tables'!D318,1,0),IF(algorithm!$AL$4='BAM tables'!A318,1,0),IF(algorithm!$AL$5='BAM tables'!B318,1,0),IF(algorithm!$AL$6='BAM tables'!C318,1,0)),1,0)","v":0}]
[6,1,2,8,null,{"$f":"IF(AND(IF(algorithm!$D$4='BAM tables'!D319,1,0),IF(algorithm!$AH$4='BAM tables'!A319,1,0),IF(algorithm!$AH$5='BAM tables'!B319,1,0),IF(algorithm!$AH$6='BAM tables'!C319,1,0)),1,0)","v":0},{"$f":"IF(AND(IF(algorithm!$D$4='BAM tables'!D319,1,0),IF(algorithm!$AL$4='BAM tables'!A319,1,0),IF(algorithm!$AL$5='BAM tables'!B319,1,0),IF(algorithm!$AL$6='BAM tables'!C319,1,0)),1,0)","v":0}]
[6,1,2,10,null,{"$f":"IF(AND(IF(algorithm!$D$4='BAM tables'!D320,1,0),IF(algorithm!$AH$4='BAM tables'!A320,1,0),IF(algorithm!$AH$5='BAM tables'!B320,1,0),IF(algorithm!$AH$6='BAM tables'!C320,1,0)),1,0)","v":0},{"$f":"IF(AND(IF(algorithm!$D$4='BAM tables'!D320,1,0),IF(algorithm!$AL$4='BAM tables'!A320,1,0),IF(algorithm!$AL$5='BAM tables'!B320,1,0),IF(algorithm!$AL$6='BAM tables'!C320,1,0)),1,0)","v":0}]
[6,1,3,8,null,{"$f":"IF(AND(IF(algorithm!$D$4='BAM tables'!D321,1,0),IF(algorithm!$AH$4='BAM tables'!A321,1,0),IF(algorithm!$AH$5='BAM tables'!B321,1,0),IF(algorithm!$AH$6='BAM tables'!C321,1,0)),1,0)","v":0},{"$f":"IF(AND(IF(algorithm!$D$4='BAM tables'!D321,1,0),IF(algorithm!$AL$4='BAM tables'!A321,1,0),IF(algorithm!$AL$5='BAM tables'!B321,1,0),IF(algorithm!$AL$6='BAM tables'!C321,1,0)),1,0)","v":0}]
[6,1,3,10,null,{"$f":"IF(AND(IF(algorithm!$D$4='BAM tables'!D322,1,0),IF(algorithm!$AH$4='BAM tables'!A322,1,0),IF(algorithm!$AH$5='BAM tables'!B322,1,0),IF(algorithm!$AH$6='BAM tables'!C322,1,0)),1,0)","v":0},{"$f":"IF(AND(IF(algorithm!$D$4='BAM tables'!D322,1,0),IF(algorithm!$AL$4='BAM tables'!A322,1,0),IF(algorithm!$AL$5='BAM tables'!B322,1,0),IF(algorithm!$AL$6='BAM tables'!C322,1,0)),1,0)","v":0}]
[6,2,0,8,null,{"$f":"IF(AND(IF(algorithm!$D$4='BAM tables'!D323,1,0),IF(algorithm!$AH$4='BAM tables'!A323,1,0),IF(algorithm!$AH$5='BAM tables'!B323,1,0),IF(algorithm!$AH$6='BAM tables'!C323,1,0)),1,0)","v":0},{"$f":"IF(AND(IF(algorithm!$D$4='BAM tables'!D323,1,0),IF(algorithm!$AL$4='BAM tables'!A323,1,0),IF(algorithm!$AL$5='BAM tables'!B323,1,0),IF(algorithm!$AL$6='BAM tables'!C323,1,0)),1,0)","v":0}]
[6,2,0,10,null,{"$f":"IF(AND(IF(algorithm!$D$4='BAM tables'!D324,1,0),IF(algorithm!$AH$4='BAM tables'!A324,1,0),IF(algorithm!$AH$5='BAM tables'!B324,1,0),IF(algorithm!$AH$6='BAM tables'!C324,1,0)),1,0)","v":0},{"$f":"IF(AND(IF(algorithm!$D$4='BAM tables'!D324,1,0),IF(algorithm!$AL$4='BAM tables'!A324,1,0),IF(algorithm!$AL$5='BAM tables'!B324,1,0),IF(algorithm!$AL$6='BAM tables'!C324,1,0)),1,0)","v":0}]
[6,2,1,8,null,{"$f":"IF(AND(IF(algorithm!$D$4='BAM tables'!D325,1,0),IF(algorithm!$AH$4='BAM tables'!A325,1,0),IF(algorithm!$AH$5='BAM tables'!B325,1,0),IF(algorithm!$AH$6='BAM tables'!C325,1,0)),1,0)","v":0},{"$f":"IF(AND(IF(algorithm!$D$4='BAM tables'!D325,1,0),IF(algorithm!$AL$4='BAM tables'!A325,1,0),IF(algorithm!$AL$5='BAM tables'!B325,1,0),IF(algorithm!$AL$6='BAM tables'!C325,1,0)),1,0)","v":0}]
[6,2,1,10,null,{"$f":"IF(AND(IF(algorithm!$D$4='BAM tables'!D326,1,0),IF(algorithm!$AH$4='BAM tables'!A326,1,0),IF(algorithm!$AH$5='BAM tables'!B326,1,0),IF(algorithm!$AH$6='BAM tables'!C326,1,0)),1,0)","v":0},{"$f":"IF(AND(IF(algorithm!$D$4='BAM tables'!D326,1,0),IF(algorithm!$AL$4='BAM tables'!A326,1,0),IF(algorithm!$AL$5='BAM tables'!B326,1,0),IF(algorithm!$AL$6='BAM tables'!C326,1,0)),1,0)","v":0}]
[6,2,2,8,null,{"$f":"IF(AND(IF(algorithm!$D$4='BAM tables'!D327,1,0),IF(algorithm!$AH$4='BAM tables'!A327,1,0),IF(algorithm!$AH$5='BAM tables'!B327,1,0),IF(algorithm!$AH$6='BAM tables'!C327,1,0)),1,0)","v":0},{"$f":"IF(AND(IF(algorithm!$D$4='BAM tables'!D327,1,0),IF(algorithm!$AL$4='BAM tables'!A327,1,0),IF(algorithm!$AL$5='BAM tables'!B327,1,0),IF(algorithm!$AL$6='BAM tables'!C327,1,0)),1,0)","v":0}]
[6,2,2,10,null,{"$f":"IF(AND(IF(algorithm!$D$4='BAM tables'!D328,1,0),IF(algorithm!$AH$4='BAM tables'!A328,1,0),IF(algorithm!$AH$5='BAM tables'!B328,1,0),IF(algorithm!$AH$6='BAM tables'!C328,1,0)),1,0)","v":0},{"$f":"IF(AND(IF(algorithm!$D$4='BAM tables'!D328,1,0),IF(algorithm!$AL$4='BAM tables'!A328,1,0),IF(algorithm!$AL$5='BAM tables'!B328,1,0),IF(algorithm!$AL$6='BAM tables'!C328,1,0)),1,0)","v":0}]
[6,2,3,8,null,{"$f":"IF(AND(IF(algorithm!$D$4='BAM tables'!D329,1,0),IF(algorithm!$AH$4='BAM tables'!A329,1,0),IF(algorithm!$AH$5='BAM tables'!B329,1,0),IF(algorithm!$AH$6='BAM tables'!C329,1,0)),1,0)","v":0},{"$f":"IF(AND(IF(algorithm!$D$4='BAM tables'!D329,1,0),IF(algorithm!$AL$4='BAM tables'!A329,1,0),IF(algorithm!$AL$5='BAM tables'!B329,1,0),IF(algorithm!$AL$6='BAM tables'!C329,1,0)),1,0)","v":0}]
[6,2,3,10,null,{"$f":"IF(AND(IF(algorithm!$D$4='BAM tables'!D330,1,0),IF(algorithm!$AH$4='BAM tables'!A330,1,0),IF(algorithm!$AH$5='BAM tables'!B330,1,0),IF(algorithm!$AH$6='BAM tables'!C330,1,0)),1,0)","v":0},{"$f":"IF(AND(IF(algorithm!$D$4='BAM tables'!D330,1,0),IF(algorithm!$AL$4='BAM tables'!A330,1,0),IF(algorithm!$AL$5='BAM tables'!B330,1,0),IF(algorithm!$AL$6='BAM tables'!C330,1,0)),1,0)","v":0}]
[6,3,0,8,null,{"$f":"IF(AND(IF(algorithm!$D$4='BAM tables'!D331,1,0),IF(algorithm!$AH$4='BAM tables'!A331,1,0),IF(algorithm!$AH$5='BAM tables'!B331,1,0),IF(algorithm!$AH$6='BAM tables'!C331,1,0)),1,0)","v":0},{"$f":"IF(AND(IF(algorithm!$D$4='BAM tables'!D331,1,0),IF(algorithm!$AL$4='BAM tables'!A331,1,0),IF(algorithm!$AL$5='BAM tables'!B331,1,0),IF(algorithm!$AL$6='BAM tables'!C331,1,0)),1,0)","v":0}]
[6,3,0,10,null,{"$f":"IF(AND(IF(algorithm!$D$4='BAM tables'!D332,1,0),IF(algorithm!$AH$4='BAM tables'!A332,1,0),IF(algorithm!$AH$5='BAM tables'!B332,1,0),IF(algorithm!$AH$6='BAM tables'!C332,1,0)),1,0)","v":0},{"$f":"IF(AND(IF(algorithm!$D$4='BAM tables'!D332,1,0),IF(algorithm!$AL$4='BAM tables'!A332,1,0),IF(algorithm!$AL$5='BAM tables'!B332,1,0),IF(algorithm!$AL$6='BAM tables'!C332,1,0)),1,0)","v":0}]
[6,3,1,8,null,{"$f":"IF(AND(IF(algorithm!$D$4='BAM tables'!D333,1,0),IF(algorithm!$AH$4='BAM tables'!A333,1,0),IF(algorithm!$AH$5='BAM tables'!B333,1,0),IF(algorithm!$AH$6='BAM tables'!C333,1,0)),1,0)","v":0},{"$f":"IF(AND(IF(algorithm!$D$4='BAM tables'!D333,1,0),IF(algorithm!$AL$4='BAM tables'!A333,1,0),IF(algorithm!$AL$5='BAM tables'!B333,1,0),IF(algorithm!$AL$6='BAM tables'!C333,1,0)),1,0)","v":0}]
[6,3,1,10,null,{"$f":"IF(AND(IF(algorithm!$D$4='BAM tables'!D334,1,0),IF(algorithm!$AH$4='BAM tables'!A334,1,0),IF(algorithm!$AH$5='BAM tables'!B334,1,0),IF(algorithm!$AH$6='BAM tables'!C334,1,0)),1,0)","v":0},{"$f":"IF(AND(IF(algorithm!$D$4='BAM tables'!D334,1,0),IF(algorithm!$AL$4='BAM tables'!A334,1,0),IF(algorithm!$AL$5='BAM tables'!B334,1,0),IF(algorithm!$AL$6='BAM tables'!C334,1,0)),1,0)","v":0}]
[6,3,2,8,null,{"$f":"IF(AND(IF(algorithm!$D$4='BAM tables'!D335,1,0),IF(algorithm!$AH$4='BAM tables'!A335,1,0),IF(algorithm!$AH$5='BAM tables'!B335,1,0),IF(algorithm!$AH$6='BAM tables'!C335,1,0)),1,0)","v":0},{"$f":"IF(AND(IF(algorithm!$D$4='BAM tables'!D335,1,0),IF(algorithm!$AL$4='BAM tables'!A335,1,0),IF(algorithm!$AL$5='BAM tables'!B335,1,0),IF(algorithm!$AL$6='BAM tables'!C335,1,0)),1,0)","v":0}]
[6,3,2,10,null,{"$f":"IF(AND(IF(algorithm!$D$4='BAM tables'!D336,1,0),IF(algorithm!$AH$4='BAM tables'!A336,1,0),IF(algorithm!$AH$5='BAM tables'!B336,1,0),IF(algorithm!$AH$6='BAM tables'!C336,1,0)),1,0)","v":0},{"$f":"IF(AND(IF(algorithm!$D$4='BAM tables'!D336,1,0),IF(algorithm!$AL$4='BAM tables'!A336,1,0),IF(algorithm!$AL$5='BAM tables'!B336,1,0),IF(algorithm!$AL$6='BAM tables'!C336,1,0)),1,0)","v":0}]
[6,3,3,8,null,{"$f":"IF(AND(IF(algorithm!$D$4='BAM tables'!D337,1,0),IF(algorithm!$AH$4='BAM tables'!A337,1,0),IF(algorithm!$AH$5='BAM tables'!B337,1,0),IF(algorithm!$AH$6='BAM tables'!C337,1,0)),1,0)","v":0},{"$f":"IF(AND(IF(algorithm!$D$4='BAM tables'!D337,1,0),IF(algorithm!$AL$4='BAM tables'!A337,1,0),IF(algorithm!$AL$5='BAM tables'!B337,1,0),IF(algorithm!$AL$6='BAM tables'!C337,1,0)),1,0)","v":0}]
[6,4,0,8,null,{"$f":"IF(AND(IF(algorithm!$D$4='BAM tables'!D338,1,0),IF(algorithm!$AH$4='BAM tables'!A338,1,0),IF(algorithm!$AH$5='BAM tables'!B338,1,0),IF(algorithm!$AH$6='BAM tables'!C338,1,0)),1,0)","v":0},{"$f":"IF(AND(IF(algorithm!$D$4='BAM tables'!D338,1,0),IF(algorithm!$AL$4='BAM tables'!A338,1,0),IF(algorithm!$AL$5='BAM tables'!B338,1,0),IF(algorithm!$AL$6='BAM tables'!C338,1,0)),1,0)","v":0}]
[6,4,0,10,null,{"$f":"IF(AND(IF(algorithm!$D$4='BAM tables'!D339,1,0),IF(algorithm!$AH$4='BAM tables'!A339,1,0),IF(algorithm!$AH$5='BAM tables'!B339,1,0),IF(algorithm!$AH$6='BAM tables'!C339,1,0)),1,0)","v":0},{"$f":"IF(AND(IF(algorithm!$D$4='BAM tables'!D339,1,0),IF(algorithm!$AL$4='BAM tables'!A339,1,0),IF(algorithm!$AL$5='BAM tables'!B339,1,0),IF(algorithm!$AL$6='BAM tables'!C339,1,0)),1,0)","v":0}]
[6,4,1,8,null,{"$f":"IF(AND(IF(algorithm!$D$4='BAM tables'!D340,1,0),IF(algorithm!$AH$4='BAM tables'!A340,1,0),IF(algorithm!$AH$5='BAM tables'!B340,1,0),IF(algorithm!$AH$6='BAM tables'!C340,1,0)),1,0)","v":0},{"$f":"IF(AND(IF(algorithm!$D$4='BAM tables'!D340,1,0),IF(algorithm!$AL$4='BAM tables'!A340,1,0),IF(algorithm!$AL$5='BAM tables'!B340,1,0),IF(algorithm!$AL$6='BAM tables'!C340,1,0)),1,0)","v":0}]
[6,4,1,10,null,{"$f":"IF(AND(IF(algorithm!$D$4='BAM tables'!D341,1,0),IF(algorithm!$AH$4='BAM tables'!A341,1,0),IF(algorithm!$AH$5='BAM tables'!B341,1,0),IF(algorithm!$AH$6='BAM tables'!C341,1,0)),1,0)","v":0},{"$f":"IF(AND(IF(algorithm!$D$4='BAM tables'!D341,1,0),IF(algorithm!$AL$4='BAM tables'!A341,1,0),IF(algorithm!$AL$5='BAM tables'!B341,1,0),IF(algorithm!$AL$6='BAM tables'!C341,1,0)),1,0)","v":0}]
[6,4,2,8,null,{"$f":"IF(AND(IF(algorithm!$D$4='BAM tables'!D342,1,0),IF(algorithm!$AH$4='BAM tables'!A342,1,0),IF(algorithm!$AH$5='BAM tables'!B342,1,0),IF(algorithm!$AH$6='BAM tables'!C342,1,0)),1,0)","v":0},{"$f":"IF(AND(IF(algorithm!$D$4='BAM tables'!D342,1,0),IF(algorithm!$AL$4='BAM tables'!A342,1,0),IF(algorithm!$AL$5='BAM tables'!B342,1,0),IF(algorithm!$AL$6='BAM tables'!C342,1,0)),1,0)","v":0}]
[6,4,2,10,null,{"$f":"IF(AND(IF(algorithm!$D$4='BAM tables'!D343,1,0),IF(algorithm!$AH$4='BAM tables'!A343,1,0),IF(algorithm!$AH$5='BAM tables'!B343,1,0),IF(algorithm!$AH$6='BAM tables'!C343,1,0)),1,0)","v":0},{"$f":"IF(AND(IF(algorithm!$D$4='BAM tables'!D343,1,0),IF(algorithm!$AL$4='BAM tables'!A343,1,0),IF(algorithm!$AL$5='BAM tables'!B343,1,0),IF(algorithm!$AL$6='BAM tables'!C343,1,0)),1,0)","v":0}]
[6,5,0,10,null,{"$f":"IF(AND(IF(algorithm!$D$4='BAM tables'!D344,1,0),IF(algorithm!$AH$4='BAM tables'!A344,1,0),IF(algorithm!$AH$5='BAM tables'!B344,1,0),IF(algorithm!$AH$6='BAM tables'!C344,1,0)),1,0)","v":0},{"$f":"IF(AND(IF(algorithm!$D$4='BAM tables'!D344,1,0),IF(algorithm!$AL$4='BAM tables'!A344,1,0),IF(algorithm!$AL$5='BAM tables'!B344,1,0),IF(algorithm!$AL$6='BAM tables'!C344,1,0)),1,0)","v":0}]
[6,5,1,10,null,{"$f":"IF(AND(IF(algorithm!$D$4='BAM tables'!D345,1,0),IF(algorithm!$AH$4='BAM tables'!A345,1,0),IF(algorithm!$AH$5='BAM tables'!B345,1,0),IF(algorithm!$AH$6='BAM tables'!C345,1,0)),1,0)","v":0},{"$f":"IF(AND(IF(algorithm!$D$4='BAM tables'!D345,1,0),IF(algorithm!$AL$4='BAM tables'!A345,1,0),IF(algorithm!$AL$5='BAM tables'!B345,1,0),IF(algorithm!$AL$6='BAM tables'!C345,1,0)),1,0)","v":0}]
[6,5,2,10,null,{"$f":"IF(AND(IF(algorithm!$D$4='BAM tables'!D346,1,0),IF(algorithm!$AH$4='BAM tables'!A346,1,0),IF(algorithm!$AH$5='BAM tables'!B346,1,0),IF(algorithm!$AH$6='BAM tables'!C346,1,0)),1,0)","v":0},{"$f":"IF(AND(IF(algorithm!$D$4='BAM tables'!D346,1,0),IF(algorithm!$AL$4='BAM tables'!A346,1,0),IF(algorithm!$AL$5='BAM tables'!B346,1,0),IF(algorithm!$AL$6='BAM tables'!C346,1,0)),1,0)","v":0}]
[6,6,0,10,null,{"$f":"IF(AND(IF(algorithm!$D$4='BAM tables'!D347,1,0),IF(algorithm!$AH$4='BAM tables'!A347,1,0),IF(algorithm!$AH$5='BAM tables'!B347,1,0),IF(algorithm!$AH$6='BAM tables'!C347,1,0)),1,0)","v":0},{"$f":"IF(AND(IF(algorithm!$D$4='BAM tables'!D347,1,0),IF(algorithm!$AL$4='BAM tables'!A347,1,0),IF(algorithm!$AL$5='BAM tables'!B347,1,0),IF(algorithm!$AL$6='BAM tables'!C347,1,0)),1,0)","v":0}]
[6,6,1,8,null,{"$f":"IF(AND(IF(algorithm!$D$4='BAM tables'!D348,1,0),IF(algorithm!$AH$4='BAM tables'!A348,1,0),IF(algorithm!$AH$5='BAM tables'!B348,1,0),IF(algorithm!$AH$6='BAM tables'!C348,1,0)),1,0)","v":0},{"$f":"IF(AND(IF(algorithm!$D$4='BAM tables'!D348,1,0),IF(algorithm!$AL$4='BAM tables'!A348,1,0),IF(algorithm!$AL$5='BAM tables'!B348,1,0),IF(algorithm!$AL$6='BAM tables'!C348,1,0)),1,0)","v":0}]
[6,6,1,10,null,{"$f":"IF(AND(IF(algorithm!$D$4='BAM tables'!D349,1,0),IF(algorithm!$AH$4='BAM tables'!A349,1,0),IF(algorithm!$AH$5='BAM tables'!B349,1,0),IF(algorithm!$AH$6='BAM tables'!C349,1,0)),1,0)","v":0},{"$f":"IF(AND(IF(algorithm!$D$4='BAM tables'!D349,1,0),IF(algorithm!$AL$4='BAM tables'!A349,1,0),IF(algorithm!$AL$5='BAM tables'!B349,1,0),IF(algorithm!$AL$6='BAM tables'!C349,1,0)),1,0)","v":0}]
[6,7,0,8,null,{"$f":"IF(AND(IF(algorithm!$D$4='BAM tables'!D350,1,0),IF(algorithm!$AH$4='BAM tables'!A350,1,0),IF(algorithm!$AH$5='BAM tables'!B350,1,0),IF(algorithm!$AH$6='BAM tables'!C350,1,0)),1,0)","v":0},{"$f":"IF(AND(IF(algorithm!$D$4='BAM tables'!D350,1,0),IF(algorithm!$AL$4='BAM tables'!A350,1,0),IF(algorithm!$AL$5='BAM tables'!B350,1,0),IF(algorithm!$AL$6='BAM tables'!C350,1,0)),1,0)","v":0}]
[6,7,0,10,null,{"$f":"IF(AND(IF(algorithm!$D$4='BAM tables'!D351,1,0),IF(algorithm!$AH$4='BAM tables'!A351,1,0),IF(algorithm!$AH$5='BAM tables'!B351,1,0),IF(algorithm!$AH$6='BAM tables'!C351,1,0)),1,0)","v":0},{"$f":"IF(AND(IF(algorithm!$D$4='BAM tables'!D351,1,0),IF(algorithm!$AL$4='BAM tables'!A351,1,0),IF(algorithm!$AL$5='BAM tables'!B351,1,0),IF(algorithm!$AL$6='BAM tables'!C351,1,0)),1,0)","v":0}]
[7,0,0,8,null,{"$f":"IF(AND(IF(algorithm!$D$4='BAM tables'!D352,1,0),IF(algorithm!$AH$4='BAM tables'!A352,1,0),IF(algorithm!$AH$5='BAM tables'!B352,1,0),IF(algorithm!$AH$6='BAM tables'!C352,1,0)),1,0)","v":0},{"$f":"IF(AND(IF(algorithm!$D$4='BAM tables'!D352,1,0),IF(algorithm!$AL$4='BAM tables'!A352,1,0),IF(algorithm!$AL$5='BAM tables'!B352,1,0),IF(algorithm!$AL$6='BAM tables'!C352,1,0)),1,0)","v":0}]
[7,0,0,10,null,{"$f":"IF(AND(IF(algorithm!$D$4='BAM tables'!D353,1,0),IF(algorithm!$AH$4='BAM tables'!A353,1,0),IF(algorithm!$AH$5='BAM tables'!B353,1,0),IF(algorithm!$AH$6='BAM tables'!C353,1,0)),1,0)","v":0},{"$f":"IF(AND(IF(algorithm!$D$4='BAM tables'!D353,1,0),IF(algorithm!$AL$4='BAM tables'!A353,1,0),IF(algorithm!$AL$5='BAM tables'!B353,1,0),IF(algorithm!$AL$6='BAM tables'!C353,1,0)),1,0)","v":0}]
[7,0,1,8,null,{"$f":"IF(AND(IF(algorithm!$D$4='BAM tables'!D354,1,0),IF(algorithm!$AH$4='BAM tables'!A354,1,0),IF(algorithm!$AH$5='BAM tables'!B354,1,0),IF(algorithm!$AH$6='BAM tables'!C354,1,0)),1,0)","v":0},{"$f":"IF(AND(IF(algorithm!$D$4='BAM tables'!D354,1,0),IF(algorithm!$AL$4='BAM tables'!A354,1,0),IF(algorithm!$AL$5='BAM tables'!B354,1,0),IF(algorithm!$AL$6='BAM tables'!C354,1,0)),1,0)","v":0}]
[7,0,1,10,null,{"$f":"IF(AND(IF(algorithm!$D$4='BAM tables'!D355,1,0),IF(algorithm!$AH$4='BAM tables'!A355,1,0),IF(algorithm!$AH$5='BAM tables'!B355,1,0),IF(algorithm!$AH$6='BAM tables'!C355,1,0)),1,0)","v":0},{"$f":"IF(AND(IF(algorithm!$D$4='BAM tables'!D355,1,0),IF(algorithm!$AL$4='BAM tables'!A355,1,0),IF(algorithm!$AL$5='BAM tables'!B355,1,0),IF(algorithm!$AL$6='BAM tables'!C355,1,0)),1,0)","v":0}]
[7,0,2,8,null,{"$f":"IF(AND(IF(algorithm!$D$4='BAM tables'!D356,1,0),IF(algorithm!$AH$4='BAM tables'!A356,1,0),IF(algorithm!$AH$5='BAM tables'!B356,1,0),IF(algorithm!$AH$6='BAM tables'!C356,1,0)),1,0)","v":0},{"$f":"IF(AND(IF(algorithm!$D$4='BAM tables'!D356,1,0),IF(algorithm!$AL$4='BAM tables'!A356,1,0),IF(algorithm!$AL$5='BAM tables'!B356,1,0),IF(algorithm!$AL$6='BAM tables'!C356,1,0)),1,0)","v":0}]
[7,0,2,10,null,{"$f":"IF(AND(IF(algorithm!$D$4='BAM tables'!D357,1,0),IF(algorithm!$AH$4='BAM tables'!A357,1,0),IF(algorithm!$AH$5='BAM tables'!B357,1,0),IF(algorithm!$AH$6='BAM tables'!C357,1,0)),1,0)","v":0},{"$f":"IF(AND(IF(algorithm!$D$4='BAM tables'!D357,1,0),IF(algorithm!$AL$4='BAM tables'!A357,1,0),IF(algorithm!$AL$5='BAM tables'!B357,1,0),IF(algorithm!$AL$6='BAM tables'!C357,1,0)),1,0)","v":0}]
[7,0,3,8,null,{"$f":"IF(AND(IF(algorithm!$D$4='BAM tables'!D358,1,0),IF(algorithm!$AH$4='BAM tables'!A358,1,0),IF(algorithm!$AH$5='BAM tables'!B358,1,0),IF(algorithm!$AH$6='BAM tables'!C358,1,0)),1,0)","v":0},{"$f":"IF(AND(IF(algorithm!$D$4='BAM tables'!D358,1,0),IF(algorithm!$AL$4='BAM tables'!A358,1,0),IF(algorithm!$AL$5='BAM tables'!B358,1,0),IF(algorithm!$AL$6='BAM tables'!C358,1,0)),1,0)","v":0}]
[7,0,3,10,null,{"$f":"IF(AND(IF(algorithm!$D$4='BAM tables'!D359,1,0),IF(algorithm!$AH$4='BAM tables'!A359,1,0),IF(algorithm!$AH$5='BAM tables'!B359,1,0),IF(algorithm!$AH$6='BAM tables'!C359,1,0)),1,0)","v":0},{"$f":"IF(AND(IF(algorithm!$D$4='BAM tables'!D359,1,0),IF(algorithm!$AL$4='BAM tables'!A359,1,0),IF(algorithm!$AL$5='BAM tables'!B359,1,0),IF(algorithm!$AL$6='BAM tables'!C359,1,0)),1,0)","v":0}]
[7,1,0,8,null,{"$f":"IF(AND(IF(algorithm!$D$4='BAM tables'!D360,1,0),IF(algorithm!$AH$4='BAM tables'!A360,1,0),IF(algorithm!$AH$5='BAM tables'!B360,1,0),IF(algorithm!$AH$6='BAM tables'!C360,1,0)),1,0)","v":0},{"$f":"IF(AND(IF(algorithm!$D$4='BAM tables'!D360,1,0),IF(algorithm!$AL$4='BAM tables'!A360,1,0),IF(algorithm!$AL$5='BAM tables'!B360,1,0),IF(algorithm!$AL$6='BAM tables'!C360,1,0)),1,0)","v":0}]
[7,1,0,10,null,{"$f":"IF(AND(IF(algorithm!$D$4='BAM tables'!D361,1,0),IF(algorithm!$AH$4='BAM tables'!A361,1,0),IF(algorithm!$AH$5='BAM tables'!B361,1,0),IF(algorithm!$AH$6='BAM tables'!C361,1,0)),1,0)","v":0},{"$f":"IF(AND(IF(algorithm!$D$4='BAM tables'!D361,1,0),IF(algorithm!$AL$4='BAM tables'!A361,1,0),IF(algorithm!$AL$5='BAM tables'!B361,1,0),IF(algorithm!$AL$6='BAM tables'!C361,1,0)),1,0)","v":0}]
[7,1,1,8,null,{"$f":"IF(AND(IF(algorithm!$D$4='BAM tables'!D362,1,0),IF(algorithm!$AH$4='BAM tables'!A362,1,0),IF(algorithm!$AH$5='BAM tables'!B362,1,0),IF(algorithm!$AH$6='BAM tables'!C362,1,0)),1,0)","v":0},{"$f":"IF(AND(IF(algorithm!$D$4='BAM tables'!D362,1,0),IF(algorithm!$AL$4='BAM tables'!A362,1,0),IF(algorithm!$AL$5='BAM tables'!B362,1,0),IF(algorithm!$AL$6='BAM tables'!C362,1,0)),1,0)","v":0}]
[7,1,1,10,null,{"$f":"IF(AND(IF(algorithm!$D$4='BAM tables'!D363,1,0),IF(algorithm!$AH$4='BAM tables'!A363,1,0),IF(algorithm!$AH$5='BAM tables'!B363,1,0),IF(algorithm!$AH$6='BAM tables'!C363,1,0)),1,0)","v":0},{"$f":"IF(AND(IF(algorithm!$D$4='BAM tables'!D363,1,0),IF(algorithm!$AL$4='BAM tables'!A363,1,0),IF(algorithm!$AL$5='BAM tables'!B363,1,0),IF(algorithm!$AL$6='BAM tables'!C363,1,0)),1,0)","v":0}]
[7,1,2,8,null,{"$f":"IF(AND(IF(algorithm!$D$4='BAM tables'!D364,1,0),IF(algorithm!$AH$4='BAM tables'!A364,1,0),IF(algorithm!$AH$5='BAM tables'!B364,1,0),IF(algorithm!$AH$6='BAM tables'!C364,1,0)),1,0)","v":0},{"$f":"IF(AND(IF(algorithm!$D$4='BAM tables'!D364,1,0),IF(algorithm!$AL$4='BAM tables'!A364,1,0),IF(algorithm!$AL$5='BAM tables'!B364,1,0),IF(algorithm!$AL$6='BAM tables'!C364,1,0)),1,0)","v":0}]
[7,1,2,10,null,{"$f":"IF(AND(IF(algorithm!$D$4='BAM tables'!D365,1,0),IF(algorithm!$AH$4='BAM tables'!A365,1,0),IF(algorithm!$AH$5='BAM tables'!B365,1,0),IF(algorithm!$AH$6='BAM tables'!C365,1,0)),1,0)","v":0},{"$f":"IF(AND(IF(algorithm!$D$4='BAM tables'!D365,1,0),IF(algorithm!$AL$4='BAM tables'!A365,1,0),IF(algorithm!$AL$5='BAM tables'!B365,1,0),IF(algorithm!$AL$6='BAM tables'!C365,1,0)),1,0)","v":0}]
[7,1,3,8,null,{"$f":"IF(AND(IF(algorithm!$D$4='BAM tables'!D366,1,0),IF(algorithm!$AH$4='BAM tables'!A366,1,0),IF(algorithm!$AH$5='BAM tables'!B366,1,0),IF(algorithm!$AH$6='BAM tables'!C366,1,0)),1,0)","v":0},{"$f":"IF(AND(IF(algorithm!$D$4='BAM tables'!D366,1,0),IF(algorithm!$AL$4='BAM tables'!A366,1,0),IF(algorithm!$AL$5='BAM tables'!B366,1,0),IF(algorithm!$AL$6='BAM tables'!C366,1,0)),1,0)","v":0}]
[7,1,3,10,null,{"$f":"IF(AND(IF(algorithm!$D$4='BAM tables'!D367,1,0),IF(algorithm!$AH$4='BAM tables'!A367,1,0),IF(algorithm!$AH$5='BAM tables'!B367,1,0),IF(algorithm!$AH$6='BAM tables'!C367,1,0)),1,0)","v":0},{"$f":"IF(AND(IF(algorithm!$D$4='BAM tables'!D367,1,0),IF(algorithm!$AL$4='BAM tables'!A367,1,0),IF(algorithm!$AL$5='BAM tables'!B367,1,0),IF(algorithm!$AL$6='BAM tables'!C367,1,0)),1,0)","v":0}]
[7,2,0,8,null,{"$f":"IF(AND(IF(algorithm!$D$4='BAM tables'!D368,1,0),IF(algorithm!$AH$4='BAM tables'!A368,1,0),IF(algorithm!$AH$5='BAM tables'!B368,1,0),IF(algorithm!$AH$6='BAM tables'!C368,1,0)),1,0)","v":0},{"$f":"IF(AND(IF(algorithm!$D$4='BAM tables'!D368,1,0),IF(algorithm!$AL$4='BAM tables'!A368,1,0),IF(algorithm!$AL$5='BAM tables'!B368,1,0),IF(algorithm!$AL$6='BAM tables'!C368,1,0)),1,0)","v":0}]
[7,2,0,10,null,{"$f":"IF(AND(IF(algorithm!$D$4='BAM tables'!D369,1,0),IF(algorithm!$AH$4='BAM tables'!A369,1,0),IF(algorithm!$AH$5='BAM tables'!B369,1,0),IF(algorithm!$AH$6='BAM tables'!C369,1,0)),1,0)","v":0},{"$f":"IF(AND(IF(algorithm!$D$4='BAM tables'!D369,1,0),IF(algorithm!$AL$4='BAM tables'!A369,1,0),IF(algorithm!$AL$5='BAM tables'!B369,1,0),IF(algorithm!$AL$6='BAM tables'!C369,1,0)),1,0)","v":0}]
[7,2,1,8,null,{"$f":"IF(AND(IF(algorithm!$D$4='BAM tables'!D370,1,0),IF(algorithm!$AH$4='BAM tables'!A370,1,0),IF(algorithm!$AH$5='BAM tables'!B370,1,0),IF(algorithm!$AH$6='BAM tables'!C370,1,0)),1,0)","v":0},{"$f":"IF(AND(IF(algorithm!$D$4='BAM tables'!D370,1,0),IF(algorithm!$AL$4='BAM tables'!A370,1,0),IF(algorithm!$AL$5='BAM tables'!B370,1,0),IF(algorithm!$AL$6='BAM tables'!C370,1,0)),1,0)","v":0}]
[7,2,1,10,null,{"$f":"IF(AND(IF(algorithm!$D$4='BAM tables'!D371,1,0),IF(algorithm!$AH$4='BAM tables'!A371,1,0),IF(algorithm!$AH$5='BAM tables'!B371,1,0),IF(algorithm!$AH$6='BAM tables'!C371,1,0)),1,0)","v":0},{"$f":"IF(AND(IF(algorithm!$D$4='BAM tables'!D371,1,0),IF(algorithm!$AL$4='BAM tables'!A371,1,0),IF(algorithm!$AL$5='BAM tables'!B371,1,0),IF(algorithm!$AL$6='BAM tables'!C371,1,0)),1,0)","v":0}]
[7,2,2,8,null,{"$f":"IF(AND(IF(algorithm!$D$4='BAM tables'!D372,1,0),IF(algorithm!$AH$4='BAM tables'!A372,1,0),IF(algorithm!$AH$5='BAM tables'!B372,1,0),IF(algorithm!$AH$6='BAM tables'!C372,1,0)),1,0)","v":0},{"$f":"IF(AND(IF(algorithm!$D$4='BAM tables'!D372,1,0),IF(algorithm!$AL$4='BAM tables'!A372,1,0),IF(algorithm!$AL$5='BAM tables'!B372,1,0),IF(algorithm!$AL$6='BAM tables'!C372,1,0)),1,0)","v":0}]
[7,2,2,10,null,{"$f":"IF(AND(IF(algorithm!$D$4='BAM tables'!D373,1,0),IF(algorithm!$AH$4='BAM tables'!A373,1,0),IF(algorithm!$AH$5='BAM tables'!B373,1,0),IF(algorithm!$AH$6='BAM tables'!C373,1,0)),1,0)","v":0},{"$f":"IF(AND(IF(algorithm!$D$4='BAM tables'!D373,1,0),IF(algorithm!$AL$4='BAM tables'!A373,1,0),IF(algorithm!$AL$5='BAM tables'!B373,1,0),IF(algorithm!$AL$6='BAM tables'!C373,1,0)),1,0)","v":0}]
[7,2,3,8,null,{"$f":"IF(AND(IF(algorithm!$D$4='BAM tables'!D374,1,0),IF(algorithm!$AH$4='BAM tables'!A374,1,0),IF(algorithm!$AH$5='BAM tables'!B374,1,0),IF(algorithm!$AH$6='BAM tables'!C374,1,0)),1,0)","v":0},{"$f":"IF(AND(IF(algorithm!$D$4='BAM tables'!D374,1,0),IF(algorithm!$AL$4='BAM tables'!A374,1,0),IF(algorithm!$AL$5='BAM tables'!B374,1,0),IF(algorithm!$AL$6='BAM tables'!C374,1,0)),1,0)","v":0}]
[7,2,3,10,null,{"$f":"IF(AND(IF(algorithm!$D$4='BAM tables'!D375,1,0),IF(algorithm!$AH$4='BAM tables'!A375,1,0),IF(algorithm!$AH$5='BAM tables'!B375,1,0),IF(algorithm!$AH$6='BAM tables'!C375,1,0)),1,0)","v":0},{"$f":"IF(AND(IF(algorithm!$D$4='BAM tables'!D375,1,0),IF(algorithm!$AL$4='BAM tables'!A375,1,0),IF(algorithm!$AL$5='BAM tables'!B375,1,0),IF(algorithm!$AL$6='BAM tables'!C375,1,0)),1,0)","v":0}]
[7,3,0,8,null,{"$f":"IF(AND(IF(algorithm!$D$4='BAM tables'!D376,1,0),IF(algorithm!$AH$4='BAM tables'!A376,1,0),IF(algorithm!$AH$5='BAM tables'!B376,1,0),IF(algorithm!$AH$6='BAM tables'!C376,1,0)),1,0)","v":0},{"$f":"IF(AND(IF(algorithm!$D$4='BAM tables'!D376,1,0),IF(algorithm!$AL$4='BAM tables'!A376,1,0),IF(algorithm!$AL$5='BAM tables'!B376,1,0),IF(algorithm!$AL$6='BAM tables'!C376,1,0)),1,0)","v":0}]
[7,3,0,10,null,{"$f":"IF(AND(IF(algorithm!$D$4='BAM tables'!D377,1,0),IF(algorithm!$AH$4='BAM tables'!A377,1,0),IF(algorithm!$AH$5='BAM tables'!B377,1,0),IF(algorithm!$AH$6='BAM tables'!C377,1,0)),1,0)","v":0},{"$f":"IF(AND(IF(algorithm!$D$4='BAM tables'!D377,1,0),IF(algorithm!$AL$4='BAM tables'!A377,1,0),IF(algorithm!$AL$5='BAM tables'!B377,1,0),IF(algorithm!$AL$6='BAM tables'!C377,1,0)),1,0)","v":0}]
[7,3,1,8,null,{"$f":"IF(AND(IF(algorithm!$D$4='BAM tables'!D378,1,0),IF(algorithm!$AH$4='BAM tables'!A378,1,0),IF(algorithm!$AH$5='BAM tables'!B378,1,0),IF(algorithm!$AH$6='BAM tables'!C378,1,0)),1,0)","v":0},{"$f":"IF(AND(IF(algorithm!$D$4='BAM tables'!D378,1,0),IF(algorithm!$AL$4='BAM tables'!A378,1,0),IF(algorithm!$AL$5='BAM tables'!B378,1,0),IF(algorithm!$AL$6='BAM tables'!C378,1,0)),1,0)","v":0}]
[7,3,1,10,null,{"$f":"IF(AND(IF(algorithm!$D$4='BAM tables'!D379,1,0),IF(algorithm!$AH$4='BAM tables'!A379,1,0),IF(algorithm!$AH$5='BAM tables'!B379,1,0),IF(algorithm!$AH$6='BAM tables'!C379,1,0)),1,0)","v":0},{"$f":"IF(AND(IF(algorithm!$D$4='BAM tables'!D379,1,0),IF(algorithm!$AL$4='BAM tables'!A379,1,0),IF(algorithm!$AL$5='BAM tables'!B379,1,0),IF(algorithm!$AL$6='BAM tables'!C379,1,0)),1,0)","v":0}]
[7,3,2,8,null,{"$f":"IF(AND(IF(algorithm!$D$4='BAM tables'!D380,1,0),IF(algorithm!$AH$4='BAM tables'!A380,1,0),IF(algorithm!$AH$5='BAM tables'!B380,1,0),IF(algorithm!$AH$6='BAM tables'!C380,1,0)),1,0)","v":0},{"$f":"IF(AND(IF(algorithm!$D$4='BAM tables'!D380,1,0),IF(algorithm!$AL$4='BAM tables'!A380,1,0),IF(algorithm!$AL$5='BAM tables'!B380,1,0),IF(algorithm!$AL$6='BAM tables'!C380,1,0)),1,0)","v":0}]
[7,3,2,10,null,{"$f":"IF(AND(IF(algorithm!$D$4='BAM tables'!D381,1,0),IF(algorithm!$AH$4='BAM tables'!A381,1,0),IF(algorithm!$AH$5='BAM tables'!B381,1,0),IF(algorithm!$AH$6='BAM tables'!C381,1,0)),1,0)","v":0},{"$f":"IF(AND(IF(algorithm!$D$4='BAM tables'!D381,1,0),IF(algorithm!$AL$4='BAM tables'!A381,1,0),IF(algorithm!$AL$5='BAM tables'!B381,1,0),IF(algorithm!$AL$6='BAM tables'!C381,1,0)),1,0)","v":0}]
[7,3,3,8,null,{"$f":"IF(AND(IF(algorithm!$D$4='BAM tables'!D382,1,0),IF(algorithm!$AH$4='BAM tables'!A382,1,0),IF(algorithm!$AH$5='BAM tables'!B382,1,0),IF(algorithm!$AH$6='BAM tables'!C382,1,0)),1,0)","v":0},{"$f":"IF(AND(IF(algorithm!$D$4='BAM tables'!D382,1,0),IF(algorithm!$AL$4='BAM tables'!A382,1,0),IF(algorithm!$AL$5='BAM tables'!B382,1,0),IF(algorithm!$AL$6='BAM tables'!C382,1,0)),1,0)","v":0}]
[7,3,3,10,null,{"$f":"IF(AND(IF(algorithm!$D$4='BAM tables'!D383,1,0),IF(algorithm!$AH$4='BAM tables'!A383,1,0),IF(algorithm!$AH$5='BAM tables'!B383,1,0),IF(algorithm!$AH$6='BAM tables'!C383,1,0)),1,0)","v":0},{"$f":"IF(AND(IF(algorithm!$D$4='BAM tables'!D383,1,0),IF(algorithm!$AL$4='BAM tables'!A383,1,0),IF(algorithm!$AL$5='BAM tables'!B383,1,0),IF(algorithm!$AL$6='BAM tables'!C383,1,0)),1,0)","v":0}]
[7,4,0,8,null,{"$f":"IF(AND(IF(algorithm!$D$4='BAM tables'!D384,1,0),IF(algorithm!$AH$4='BAM tables'!A384,1,0),IF(algorithm!$AH$5='BAM tables'!B384,1,0),IF(algorithm!$AH$6='BAM tables'!C384,1,0)),1,0)","v":0},{"$f":"IF(AND(IF(algorithm!$D$4='BAM tables'!D384,1,0),IF(algorithm!$AL$4='BAM tables'!A384,1,0),IF(algorithm!$AL$5='BAM tables'!B384,1,0),IF(algorithm!$AL$6='BAM tables'!C384,1,0)),1,0)","v":0}]
[7,4,0,10,null,{"$f":"IF(AND(IF(algorithm!$D$4='BAM tables'!D385,1,0),IF(algorithm!$AH$4='BAM tables'!A385,1,0),IF(algorithm!$AH$5='BAM tables'!B385,1,0),IF(algorithm!$AH$6='BAM tables'!C385,1,0)),1,0)","v":0},{"$f":"IF(AND(IF(algorithm!$D$4='BAM tables'!D385,1,0),IF(algorithm!$AL$4='BAM tables'!A385,1,0),IF(algorithm!$AL$5='BAM tables'!B385,1,0),IF(algorithm!$AL$6='BAM tables'!C385,1,0)),1,0)","v":0}]
[7,4,1,8,null,{"$f":"IF(AND(IF(algorithm!$D$4='BAM tables'!D386,1,0),IF(algorithm!$AH$4='BAM tables'!A386,1,0),IF(algorithm!$AH$5='BAM tables'!B386,1,0),IF(algorithm!$AH$6='BAM tables'!C386,1,0)),1,0)","v":0},{"$f":"IF(AND(IF(algorithm!$D$4='BAM tables'!D386,1,0),IF(algorithm!$AL$4='BAM tables'!A386,1,0),IF(algorithm!$AL$5='BAM tables'!B386,1,0),IF(algorithm!$AL$6='BAM tables'!C386,1,0)),1,0)","v":0}]
[7,4,1,10,null,{"$f":"IF(AND(IF(algorithm!$D$4='BAM tables'!D387,1,0),IF(algorithm!$AH$4='BAM tables'!A387,1,0),IF(algorithm!$AH$5='BAM tables'!B387,1,0),IF(algorithm!$AH$6='BAM tables'!C387,1,0)),1,0)","v":0},{"$f":"IF(AND(IF(algorithm!$D$4='BAM tables'!D387,1,0),IF(algorithm!$AL$4='BAM tables'!A387,1,0),IF(algorithm!$AL$5='BAM tables'!B387,1,0),IF(algorithm!$AL$6='BAM tables'!C387,1,0)),1,0)","v":0}]
[7,4,2,8,null,{"$f":"IF(AND(IF(algorithm!$D$4='BAM tables'!D388,1,0),IF(algorithm!$AH$4='BAM tables'!A388,1,0),IF(algorithm!$AH$5='BAM tables'!B388,1,0),IF(algorithm!$AH$6='BAM tables'!C388,1,0)),1,0)","v":0},{"$f":"IF(AND(IF(algorithm!$D$4='BAM tables'!D388,1,0),IF(algorithm!$AL$4='BAM tables'!A388,1,0),IF(algorithm!$AL$5='BAM tables'!B388,1,0),IF(algorithm!$AL$6='BAM tables'!C388,1,0)),1,0)","v":0}]
[7,4,2,10,null,{"$f":"IF(AND(IF(algorithm!$D$4='BAM tables'!D389,1,0),IF(algorithm!$AH$4='BAM tables'!A389,1,0),IF(algorithm!$AH$5='BAM tables'!B389,1,0),IF(algorithm!$AH$6='BAM tables'!C389,1,0)),1,0)","v":0},{"$f":"IF(AND(IF(algorithm!$D$4='BAM tables'!D389,1,0),IF(algorithm!$AL$4='BAM tables'!A389,1,0),IF(algorithm!$AL$5='BAM tables'!B389,1,0),IF(algorithm!$AL$6='BAM tables'!C389,1,0)),1,0)","v":0}]
[7,4,3,8,null,{"$f":"IF(AND(IF(algorithm!$D$4='BAM tables'!D390,1,0),IF(algorithm!$AH$4='BAM tables'!A390,1,0),IF(algorithm!$AH$5='BAM tables'!B390,1,0),IF(algorithm!$AH$6='BAM tables'!C390,1,0)),1,0)","v":0},{"$f":"IF(AND(IF(algorithm!$D$4='BAM tables'!D390,1,0),IF(algorithm!$AL$4='BAM tables'!A390,1,0),IF(algorithm!$AL$5='BAM tables'!B390,1,0),IF(algorithm!$AL$6='BAM tables'!C390,1,0)),1,0)","v":0}]
[7,4,3,10,null,{"$f":"IF(AND(IF(algorithm!$D$4='BAM tables'!D391,1,0),IF(algorithm!$AH$4='BAM tables'!A391,1,0),IF(algorithm!$AH$5='BAM tables'!B391,1,0),IF(algorithm!$AH$6='BAM tables'!C391,1,0)),1,0)","v":0},{"$f":"IF(AND(IF(algorithm!$D$4='BAM tables'!D391,1,0),IF(algorithm!$AL$4='BAM tables'!A391,1,0),IF(algorithm!$AL$5='BAM tables'!B391,1,0),IF(algorithm!$AL$6='BAM tables'!C391,1,0)),1,0)","v":0}]
[7,5,0,8,null,{"$f":"IF(AND(IF(algorithm!$D$4='BAM tables'!D392,1,0),IF(algorithm!$AH$4='BAM tables'!A392,1,0),IF(algorithm!$AH$5='BAM tables'!B392,1,0),IF(algorithm!$AH$6='BAM tables'!C392,1,0)),1,0)","v":0},{"$f":"IF(AND(IF(algorithm!$D$4='BAM tables'!D392,1,0),IF(algorithm!$AL$4='BAM tables'!A392,1,0),IF(algorithm!$AL$5='BAM tables'!B392,1,0),IF(algorithm!$AL$6='BAM tables'!C392,1,0)),1,0)","v":0}]
[7,5,0,10,null,{"$f":"IF(AND(IF(algorithm!$D$4='BAM tables'!D393,1,0),IF(algorithm!$AH$4='BAM tables'!A393,1,0),IF(algorithm!$AH$5='BAM tables'!B393,1,0),IF(algorithm!$AH$6='BAM tables'!C393,1,0)),1,0)","v":0},{"$f":"IF(AND(IF(algorithm!$D$4='BAM tables'!D393,1,0),IF(algorithm!$AL$4='BAM tables'!A393,1,0),IF(algorithm!$AL$5='BAM tables'!B393,1,0),IF(algorithm!$AL$6='BAM tables'!C393,1,0)),1,0)","v":0}]
[7,5,1,8,null,{"$f":"IF(AND(IF(algorithm!$D$4='BAM tables'!D394,1,0),IF(algorithm!$AH$4='BAM tables'!A394,1,0),IF(algorithm!$AH$5='BAM tables'!B394,1,0),IF(algorithm!$AH$6='BAM tables'!C394,1,0)),1,0)","v":0},{"$f":"IF(AND(IF(algorithm!$D$4='BAM tables'!D394,1,0),IF(algorithm!$AL$4='BAM tables'!A394,1,0),IF(algorithm!$AL$5='BAM tables'!B394,1,0),IF(algorithm!$AL$6='BAM tables'!C394,1,0)),1,0)","v":0}]
[7,5,1,10,null,{"$f":"IF(AND(IF(algorithm!$D$4='BAM tables'!D395,1,0),IF(algorithm!$AH$4='BAM tables'!A395,1,0),IF(algorithm!$AH$5='BAM tables'!B395,1,0),IF(algorithm!$AH$6='BAM tables'!C395,1,0)),1,0)","v":0},{"$f":"IF(AND(IF(algorithm!$D$4='BAM tables'!D395,1,0),IF(algorithm!$AL$4='BAM tables'!A395,1,0),IF(algorithm!$AL$5='BAM tables'!B395,1,0),IF(algorithm!$AL$6='BAM tables'!C395,1,0)),1,0)","v":0}]
[7,5,2,8,null,{"$f":"IF(AND(IF(algorithm!$D$4='BAM tables'!D396,1,0),IF(algorithm!$AH$4='BAM tables'!A396,1,0),IF(algorithm!$AH$5='BAM tables'!B396,1,0),IF(algorithm!$AH$6='BAM tables'!C396,1,0)),1,0)","v":0},{"$f":"IF(AND(IF(algorithm!$D$4='BAM tables'!D396,1,0),IF(algorithm!$AL$4='BAM tables'!A396,1,0),IF(algorithm!$AL$5='BAM tables'!B396,1,0),IF(algorithm!$AL$6='BAM tables'!C396,1,0)),1,0)","v":0}]
[7,5,2,10,null,{"$f":"IF(AND(IF(algorithm!$D$4='BAM tables'!D397,1,0),IF(algorithm!$AH$4='BAM tables'!A397,1,0),IF(algorithm!$AH$5='BAM tables'!B397,1,0),IF(algorithm!$AH$6='BAM tables'!C397,1,0)),1,0)","v":0},{"$f":"IF(AND(IF(algorithm!$D$4='BAM tables'!D397,1,0),IF(algorithm!$AL$4='BAM tables'!A397,1,0),IF(algorithm!$AL$5='BAM tables'!B397,1,0),IF(algorithm!$AL$6='BAM tables'!C397,1,0)),1,0)","v":0}]
[7,5,3,8,null,{"$f":"IF(AND(IF(algorithm!$D$4='BAM tables'!D398,1,0),IF(algorithm!$AH$4='BAM tables'!A398,1,0),IF(algorithm!$AH$5='BAM tables'!B398,1,0),IF(algorithm!$AH$6='BAM tables'!C398,1,0)),1,0)","v":0},{"$f":"IF(AND(IF(algorithm!$D$4='BAM tables'!D398,1,0),IF(algorithm!$AL$4='BAM tables'!A398,1,0),IF(algorithm!$AL$5='BAM tables'!B398,1,0),IF(algorithm!$AL$6='BAM tables'!C398,1,0)),1,0)","v":0}]
[7,6,0,8,null,{"$f":"IF(AND(IF(algorithm!$D$4='BAM tables'!D399,1,0),IF(algorithm!$AH$4='BAM tables'!A399,1,0),IF(algorithm!$AH$5='BAM tables'!B399,1,0),IF(algorithm!$AH$6='BAM tables'!C399,1,0)),1,0)","v":0},{"$f":"IF(AND(IF(algorithm!$D$4='BAM tables'!D399,1,0),IF(algorithm!$AL$4='BAM tables'!A399,1,0),IF(algorithm!$AL$5='BAM tables'!B399,1,0),IF(algorithm!$AL$6='BAM tables'!C399,1,0)),1,0)","v":0}]
[7,6,0,10,null,{"$f":"IF(AND(IF(algorithm!$D$4='BAM tables'!D400,1,0),IF(algorithm!$AH$4='BAM tables'!A400,1,0),IF(algorithm!$AH$5='BAM tables'!B400,1,0),IF(algorithm!$AH$6='BAM tables'!C400,1,0)),1,0)","v":0},{"$f":"IF(AND(IF(algorithm!$D$4='BAM tables'!D400,1,0),IF(algorithm!$AL$4='BAM tables'!A400,1,0),IF(algorithm!$AL$5='BAM tables'!B400,1,0),IF(algorithm!$AL$6='BAM tables'!C400,1,0)),1,0)","v":0}]
[7,6,1,8,null,{"$f":"IF(AND(IF(algorithm!$D$4='BAM tables'!D401,1,0),IF(algorithm!$AH$4='BAM tables'!A401,1,0),IF(algorithm!$AH$5='BAM tables'!B401,1,0),IF(algorithm!$AH$6='BAM tables'!C401,1,0)),1,0)","v":0},{"$f":"IF(AND(IF(algorithm!$D$4='BAM tables'!D401,1,0),IF(algorithm!$AL$4='BAM tables'!A401,1,0),IF(algorithm!$AL$5='BAM tables'!B401,1,0),IF(algorithm!$AL$6='BAM tables'!C401,1,0)),1,0)","v":0}]
[7,6,1,10,null,{"$f":"IF(AND(IF(algorithm!$D$4='BAM tables'!D402,1,0),IF(algorithm!$AH$4='BAM tables'!A402,1,0),IF(algorithm!$AH$5='BAM tables'!B402,1,0),IF(algorithm!$AH$6='BAM tables'!C402,1,0)),1,0)","v":0},{"$f":"IF(AND(IF(algorithm!$D$4='BAM tables'!D402,1,0),IF(algorithm!$AL$4='BAM tables'!A402,1,0),IF(algorithm!$AL$5='BAM tables'!B402,1,0),IF(algorithm!$AL$6='BAM tables'!C402,1,0)),1,0)","v":0}]
[7,6,2,8,null,{"$f":"IF(AND(IF(algorithm!$D$4='BAM tables'!D403,1,0),IF(algorithm!$AH$4='BAM tables'!A403,1,0),IF(algorithm!$AH$5='BAM tables'!B403,1,0),IF(algorithm!$AH$6='BAM tables'!C403,1,0)),1,0)","v":0},{"$f":"IF(AND(IF(algorithm!$D$4='BAM tables'!D403,1,0),IF(algorithm!$AL$4='BAM tables'!A403,1,0),IF(algorithm!$AL$5='BAM tables'!B403,1,0),IF(algorithm!$AL$6='BAM tables'!C403,1,0)),1,0)","v":0}]
[7,6,2,10,null,{"$f":"IF(AND(IF(algorithm!$D$4='BAM tables'!D404,1,0),IF(algorithm!$AH$4='BAM tables'!A404,1,0),IF(algorithm!$AH$5='BAM tables'!B404,1,0),IF(algorithm!$AH$6='BAM tables'!C404,1,0)),1,0)","v":0},{"$f":"IF(AND(IF(algorithm!$D$4='BAM tables'!D404,1,0),IF(algorithm!$AL$4='BAM tables'!A404,1,0),IF(algorithm!$AL$5='BAM tables'!B404,1,0),IF(algorithm!$AL$6='BAM tables'!C404,1,0)),1,0)","v":0}]
[7,6,3,8,null,{"$f":"IF(AND(IF(algorithm!$D$4='BAM tables'!D405,1,0),IF(algorithm!$AH$4='BAM tables'!A405,1,0),IF(algorithm!$AH$5='BAM tables'!B405,1,0),IF(algorithm!$AH$6='BAM tables'!C405,1,0)),1,0)","v":0},{"$f":"IF(AND(IF(algorithm!$D$4='BAM tables'!D405,1,0),IF(algorithm!$AL$4='BAM tables'!A405,1,0),IF(algorithm!$AL$5='BAM tables'!B405,1,0),IF(algorithm!$AL$6='BAM tables'!C405,1,0)),1,0)","v":0}]
[7,7,0,8,null,{"$f":"IF(AND(IF(algorithm!$D$4='BAM tables'!D406,1,0),IF(algorithm!$AH$4='BAM tables'!A406,1,0),IF(algorithm!$AH$5='BAM tables'!B406,1,0),IF(algorithm!$AH$6='BAM tables'!C406,1,0)),1,0)","v":0},{"$f":"IF(AND(IF(algorithm!$D$4='BAM tables'!D406,1,0),IF(algorithm!$AL$4='BAM tables'!A406,1,0),IF(algorithm!$AL$5='BAM tables'!B406,1,0),IF(algorithm!$AL$6='BAM tables'!C406,1,0)),1,0)","v":0}]
[7,7,0,10,null,{"$f":"IF(AND(IF(algorithm!$D$4='BAM tables'!D407,1,0),IF(algorithm!$AH$4='BAM tables'!A407,1,0),IF(algorithm!$AH$5='BAM tables'!B407,1,0),IF(algorithm!$AH$6='BAM tables'!C407,1,0)),1,0)","v":0},{"$f":"IF(AND(IF(algorithm!$D$4='BAM tables'!D407,1,0),IF(algorithm!$AL$4='BAM tables'!A407,1,0),IF(algorithm!$AL$5='BAM tables'!B407,1,0),IF(algorithm!$AL$6='BAM tables'!C407,1,0)),1,0)","v":0}]
[7,7,1,8,null,{"$f":"IF(AND(IF(algorithm!$D$4='BAM tables'!D408,1,0),IF(algorithm!$AH$4='BAM tables'!A408,1,0),IF(algorithm!$AH$5='BAM tables'!B408,1,0),IF(algorithm!$AH$6='BAM tables'!C408,1,0)),1,0)","v":0},{"$f":"IF(AND(IF(algorithm!$D$4='BAM tables'!D408,1,0),IF(algorithm!$AL$4='BAM tables'!A408,1,0),IF(algorithm!$AL$5='BAM tables'!B408,1,0),IF(algorithm!$AL$6='BAM tables'!C408,1,0)),1,0)","v":0}]
[7,7,1,10,null,{"$f":"IF(AND(IF(algorithm!$D$4='BAM tables'!D409,1,0),IF(algorithm!$AH$4='BAM tables'!A409,1,0),IF(algorithm!$AH$5='BAM tables'!B409,1,0),IF(algorithm!$AH$6='BAM tables'!C409,1,0)),1,0)","v":0},{"$f":"IF(AND(IF(algorithm!$D$4='BAM tables'!D409,1,0),IF(algorithm!$AL$4='BAM tables'!A409,1,0),IF(algorithm!$AL$5='BAM tables'!B409,1,0),IF(algorithm!$AL$6='BAM tables'!C409,1,0)),1,0)","v":0}]
[7,7,2,8,null,{"$f":"IF(AND(IF(algorithm!$D$4='BAM tables'!D410,1,0),IF(algorithm!$AH$4='BAM tables'!A410,1,0),IF(algorithm!$AH$5='BAM tables'!B410,1,0),IF(algorithm!$AH$6='BAM tables'!C410,1,0)),1,0)","v":0},{"$f":"IF(AND(IF(algorithm!$D$4='BAM tables'!D410,1,0),IF(algorithm!$AL$4='BAM tables'!A410,1,0),IF(algorithm!$AL$5='BAM tables'!B410,1,0),IF(algorithm!$AL$6='BAM tables'!C410,1,0)),1,0)","v":0}]
[7,8,0,8,null,{"$f":"IF(AND(IF(algorithm!$D$4='BAM tables'!D411,1,0),IF(algorithm!$AH$4='BAM tables'!A411,1,0),IF(algorithm!$AH$5='BAM tables'!B411,1,0),IF(algorithm!$AH$6='BAM tables'!C411,1,0)),1,0)","v":0},{"$f":"IF(AND(IF(algorithm!$D$4='BAM tables'!D411,1,0),IF(algorithm!$AL$4='BAM tables'!A411,1,0),IF(algorithm!$AL$5='BAM tables'!B411,1,0),IF(algorithm!$AL$6='BAM tables'!C411,1,0)),1,0)","v":0}]
[8,0,0,8,null,{"$f":"IF(AND(IF(algorithm!$D$4='BAM tables'!D412,1,0),IF(algorithm!$AH$4='BAM tables'!A412,1,0),IF(algorithm!$AH$5='BAM tables'!B412,1,0),IF(algorithm!$AH$6='BAM tables'!C412,1,0)),1,0)","v":0},{"$f":"IF(AND(IF(algorithm!$D$4='BAM tables'!D412,1,0),IF(algorithm!$AL$4='BAM tables'!A412,1,0),IF(algorithm!$AL$5='BAM tables'!B412,1,0),IF(algorithm!$AL$6='BAM tables'!C412,1,0)),1,0)","v":0}]
[8,0,0,10,null,{"$f":"IF(AND(IF(algorithm!$D$4='BAM tables'!D413,1,0),IF(algorithm!$AH$4='BAM tables'!A413,1,0),IF(algorithm!$AH$5='BAM tables'!B413,1,0),IF(algorithm!$AH$6='BAM tables'!C413,1,0)),1,0)","v":0},{"$f":"IF(AND(IF(algorithm!$D$4='BAM tables'!D413,1,0),IF(algorithm!$AL$4='BAM tables'!A413,1,0),IF(algorithm!$AL$5='BAM tables'!B413,1,0),IF(algorithm!$AL$6='BAM tables'!C413,1,0)),1,0)","v":0}]
[8,0,1,8,null,{"$f":"IF(AND(IF(algorithm!$D$4='BAM tables'!D414,1,0),IF(algorithm!$AH$4='BAM tables'!A414,1,0),IF(algorithm!$AH$5='BAM tables'!B414,1,0),IF(algorithm!$AH$6='BAM tables'!C414,1,0)),1,0)","v":0},{"$f":"IF(AND(IF(algorithm!$D$4='BAM tables'!D414,1,0),IF(algorithm!$AL$4='BAM tables'!A414,1,0),IF(algorithm!$AL$5='BAM tables'!B414,1,0),IF(algorithm!$AL$6='BAM tables'!C414,1,0)),1,0)","v":0}]
[8,0,1,10,null,{"$f":"IF(AND(IF(algorithm!$D$4='BAM tables'!D415,1,0),IF(algorithm!$AH$4='BAM tables'!A415,1,0),IF(algorithm!$AH$5='BAM tables'!B415,1,0),IF(algorithm!$AH$6='BAM tables'!C415,1,0)),1,0)","v":0},{"$f":"IF(AND(IF(algorithm!$D$4='BAM tables'!D415,1,0),IF(algorithm!$AL$4='BAM tables'!A415,1,0),IF(algorithm!$AL$5='BAM tables'!B415,1,0),IF(algorithm!$AL$6='BAM tables'!C415,1,0)),1,0)","v":0}]
[8,0,2,8,null,{"$f":"IF(AND(IF(algorithm!$D$4='BAM tables'!D416,1,0),IF(algorithm!$AH$4='BAM tables'!A416,1,0),IF(algorithm!$AH$5='BAM tables'!B416,1,0),IF(algorithm!$AH$6='BAM tables'!C416,1,0)),1,0)","v":0},{"$f":"IF(AND(IF(algorithm!$D$4='BAM tables'!D416,1,0),IF(algorithm!$AL$4='BAM tables'!A416,1,0),IF(algorithm!$AL$5='BAM tables'!B416,1,0),IF(algorithm!$AL$6='BAM tables'!C416,1,0)),1,0)","v":0}]
[8,0,2,10,null,{"$f":"IF(AND(IF(algorithm!$D$4='BAM tables'!D417,1,0),IF(algorithm!$AH$4='BAM tables'!A417,1,0),IF(algorithm!$AH$5='BAM tables'!B417,1,0),IF(algorithm!$AH$6='BAM tables'!C417,1,0)),1,0)","v":0},{"$f":"IF(AND(IF(algorithm!$D$4='BAM tables'!D417,1,0),IF(algorithm!$AL$4='BAM tables'!A417,1,0),IF(algorithm!$AL$5='BAM tables'!B417,1,0),IF(algorithm!$AL$6='BAM tables'!C417,1,0)),1,0)","v":0}]
[8,0,3,8,null,{"$f":"IF(AND(IF(algorithm!$D$4='BAM tables'!D418,1,0),IF(algorithm!$AH$4='BAM tables'!A418,1,0),IF(algorithm!$AH$5='BAM tables'!B418,1,0),IF(algorithm!$AH$6='BAM tables'!C418,1,0)),1,0)","v":0},{"$f":"IF(AND(IF(algorithm!$D$4='BAM tables'!D418,1,0),IF(algorithm!$AL$4='BAM tables'!A418,1,0),IF(algorithm!$AL$5='BAM tables'!B418,1,0),IF(algorithm!$AL$6='BAM tables'!C418,1,0)),1,0)","v":0}]
[8,0,3,10,null,{"$f":"IF(AND(IF(algorithm!$D$4='BAM tables'!D419,1,0),IF(algorithm!$AH$4='BAM tables'!A419,1,0),IF(algorithm!$AH$5='BAM tables'!B419,1,0),IF(algorithm!$AH$6='BAM tables'!C419,1,0)),1,0)","v":0},{"$f":"IF(AND(IF(algorithm!$D$4='BAM tables'!D419,1,0),IF(algorithm!$AL$4='BAM tables'!A419,1,0),IF(algorithm!$AL$5='BAM tables'!B419,1,0),IF(algorithm!$AL$6='BAM tables'!C419,1,0)),1,0)","v":0}]
[8,1,0,8,null,{"$f":"IF(AND(IF(algorithm!$D$4='BAM tables'!D420,1,0),IF(algorithm!$AH$4='BAM tables'!A420,1,0),IF(algorithm!$AH$5='BAM tables'!B420,1,0),IF(algorithm!$AH$6='BAM tables'!C420,1,0)),1,0)","v":0},{"$f":"IF(AND(IF(algorithm!$D$4='BAM tables'!D420,1,0),IF(algorithm!$AL$4='BAM tables'!A420,1,0),IF(algorithm!$AL$5='BAM tables'!B420,1,0),IF(algorithm!$AL$6='BAM tables'!C420,1,0)),1,0)","v":0}]
[8,1,0,10,null,{"$f":"IF(AND(IF(algorithm!$D$4='BAM tables'!D421,1,0),IF(algorithm!$AH$4='BAM tables'!A421,1,0),IF(algorithm!$AH$5='BAM tables'!B421,1,0),IF(algorithm!$AH$6='BAM tables'!C421,1,0)),1,0)","v":0},{"$f":"IF(AND(IF(algorithm!$D$4='BAM tables'!D421,1,0),IF(algorithm!$AL$4='BAM tables'!A421,1,0),IF(algorithm!$AL$5='BAM tables'!B421,1,0),IF(algorithm!$AL$6='BAM tables'!C421,1,0)),1,0)","v":0}]
[8,1,1,8,null,{"$f":"IF(AND(IF(algorithm!$D$4='BAM tables'!D422,1,0),IF(algorithm!$AH$4='BAM tables'!A422,1,0),IF(algorithm!$AH$5='BAM tables'!B422,1,0),IF(algorithm!$AH$6='BAM tables'!C422,1,0)),1,0)","v":0},{"$f":"IF(AND(IF(algorithm!$D$4='BAM tables'!D422,1,0),IF(algorithm!$AL$4='BAM tables'!A422,1,0),IF(algorithm!$AL$5='BAM tables'!B422,1,0),IF(algorithm!$AL$6='BAM tables'!C422,1,0)),1,0)","v":0}]
[8,1,1,10,null,{"$f":"IF(AND(IF(algorithm!$D$4='BAM tables'!D423,1,0),IF(algorithm!$AH$4='BAM tables'!A423,1,0),IF(algorithm!$AH$5='BAM tables'!B423,1,0),IF(algorithm!$AH$6='BAM tables'!C423,1,0)),1,0)","v":0},{"$f":"IF(AND(IF(algorithm!$D$4='BAM tables'!D423,1,0),IF(algorithm!$AL$4='BAM tables'!A423,1,0),IF(algorithm!$AL$5='BAM tables'!B423,1,0),IF(algorithm!$AL$6='BAM tables'!C423,1,0)),1,0)","v":0}]
[8,1,2,8,null,{"$f":"IF(AND(IF(algorithm!$D$4='BAM tables'!D424,1,0),IF(algorithm!$AH$4='BAM tables'!A424,1,0),IF(algorithm!$AH$5='BAM tables'!B424,1,0),IF(algorithm!$AH$6='BAM tables'!C424,1,0)),1,0)","v":0},{"$f":"IF(AND(IF(algorithm!$D$4='BAM tables'!D424,1,0),IF(algorithm!$AL$4='BAM tables'!A424,1,0),IF(algorithm!$AL$5='BAM tables'!B424,1,0),IF(algorithm!$AL$6='BAM tables'!C424,1,0)),1,0)","v":0}]
[8,1,2,10,null,{"$f":"IF(AND(IF(algorithm!$D$4='BAM tables'!D425,1,0),IF(algorithm!$AH$4='BAM tables'!A425,1,0),IF(algorithm!$AH$5='BAM tables'!B425,1,0),IF(algorithm!$AH$6='BAM tables'!C425,1,0)),1,0)","v":0},{"$f":"IF(AND(IF(algorithm!$D$4='BAM tables'!D425,1,0),IF(algorithm!$AL$4='BAM tables'!A425,1,0),IF(algorithm!$AL$5='BAM tables'!B425,1,0),IF(algorithm!$AL$6='BAM tables'!C425,1,0)),1,0)","v":0}]
[8,1,3,8,null,{"$f":"IF(AND(IF(algorithm!$D$4='BAM tables'!D426,1,0),IF(algorithm!$AH$4='BAM tables'!A426,1,0),IF(algorithm!$AH$5='BAM tables'!B426,1,0),IF(algorithm!$AH$6='BAM tables'!C426,1,0)),1,0)","v":0},{"$f":"IF(AND(IF(algorithm!$D$4='BAM tables'!D426,1,0),IF(algorithm!$AL$4='BAM tables'!A426,1,0),IF(algorithm!$AL$5='BAM tables'!B426,1,0),IF(algorithm!$AL$6='BAM tables'!C426,1,0)),1,0)","v":0}]
[8,1,3,10,null,{"$f":"IF(AND(IF(algorithm!$D$4='BAM tables'!D427,1,0),IF(algorithm!$AH$4='BAM tables'!A427,1,0),IF(algorithm!$AH$5='BAM tables'!B427,1,0),IF(algorithm!$AH$6='BAM tables'!C427,1,0)),1,0)","v":0},{"$f":"IF(AND(IF(algorithm!$D$4='BAM tables'!D427,1,0),IF(algorithm!$AL$4='BAM tables'!A427,1,0),IF(algorithm!$AL$5='BAM tables'!B427,1,0),IF(algorithm!$AL$6='BAM tables'!C427,1,0)),1,0)","v":0}]
[8,1,4,8,null,{"$f":"IF(AND(IF(algorithm!$D$4='BAM tables'!D428,1,0),IF(algorithm!$AH$4='BAM tables'!A428,1,0),IF(algorithm!$AH$5='BAM tables'!B428,1,0),IF(algorithm!$AH$6='BAM tables'!C428,1,0)),1,0)","v":0},{"$f":"IF(AND(IF(algorithm!$D$4='BAM tables'!D428,1,0),IF(algorithm!$AL$4='BAM tables'!A428,1,0),IF(algorithm!$AL$5='BAM tables'!B428,1,0),IF(algorithm!$AL$6='BAM tables'!C428,1,0)),1,0)","v":0}]
[8,2,0,8,null,{"$f":"IF(AND(IF(algorithm!$D$4='BAM tables'!D429,1,0),IF(algorithm!$AH$4='BAM tables'!A429,1,0),IF(algorithm!$AH$5='BAM tables'!B429,1,0),IF(algorithm!$AH$6='BAM tables'!C429,1,0)),1,0)","v":0},{"$f":"IF(AND(IF(algorithm!$D$4='BAM tables'!D429,1,0),IF(algorithm!$AL$4='BAM tables'!A429,1,0),IF(algorithm!$AL$5='BAM tables'!B429,1,0),IF(algorithm!$AL$6='BAM tables'!C429,1,0)),1,0)","v":0}]
[8,2,0,10,null,{"$f":"IF(AND(IF(algorithm!$D$4='BAM tables'!D430,1,0),IF(algorithm!$AH$4='BAM tables'!A430,1,0),IF(algorithm!$AH$5='BAM tables'!B430,1,0),IF(algorithm!$AH$6='BAM tables'!C430,1,0)),1,0)","v":0},{"$f":"IF(AND(IF(algorithm!$D$4='BAM tables'!D430,1,0),IF(algorithm!$AL$4='BAM tables'!A430,1,0),IF(algorithm!$AL$5='BAM tables'!B430,1,0),IF(algorithm!$AL$6='BAM tables'!C430,1,0)),1,0)","v":0}]
[8,2,1,8,null,{"$f":"IF(AND(IF(algorithm!$D$4='BAM tables'!D431,1,0),IF(algorithm!$AH$4='BAM tables'!A431,1,0),IF(algorithm!$AH$5='BAM tables'!B431,1,0),IF(algorithm!$AH$6='BAM tables'!C431,1,0)),1,0)","v":0},{"$f":"IF(AND(IF(algorithm!$D$4='BAM tables'!D431,1,0),IF(algorithm!$AL$4='BAM tables'!A431,1,0),IF(algorithm!$AL$5='BAM tables'!B431,1,0),IF(algorithm!$AL$6='BAM tables'!C431,1,0)),1,0)","v":0}]
[8,2,1,10,null,{"$f":"IF(AND(IF(algorithm!$D$4='BAM tables'!D432,1,0),IF(algorithm!$AH$4='BAM tables'!A432,1,0),IF(algorithm!$AH$5='BAM tables'!B432,1,0),IF(algorithm!$AH$6='BAM tables'!C432,1,0)),1,0)","v":0},{"$f":"IF(AND(IF(algorithm!$D$4='BAM tables'!D432,1,0),IF(algorithm!$AL$4='BAM tables'!A432,1,0),IF(algorithm!$AL$5='BAM tables'!B432,1,0),IF(algorithm!$AL$6='BAM tables'!C432,1,0)),1,0)","v":0}]
[8,2,2,8,null,{"$f":"IF(AND(IF(algorithm!$D$4='BAM tables'!D433,1,0),IF(algorithm!$AH$4='BAM tables'!A433,1,0),IF(algorithm!$AH$5='BAM tables'!B433,1,0),IF(algorithm!$AH$6='BAM tables'!C433,1,0)),1,0)","v":0},{"$f":"IF(AND(IF(algorithm!$D$4='BAM tables'!D433,1,0),IF(algorithm!$AL$4='BAM tables'!A433,1,0),IF(algorithm!$AL$5='BAM tables'!B433,1,0),IF(algorithm!$AL$6='BAM tables'!C433,1,0)),1,0)","v":0}]
[8,2,2,10,null,{"$f":"IF(AND(IF(algorithm!$D$4='BAM tables'!D434,1,0),IF(algorithm!$AH$4='BAM tables'!A434,1,0),IF(algorithm!$AH$5='BAM tables'!B434,1,0),IF(algorithm!$AH$6='BAM tables'!C434,1,0)),1,0)","v":0},{"$f":"IF(AND(IF(algorithm!$D$4='BAM tables'!D434,1,0),IF(algorithm!$AL$4='BAM tables'!A434,1,0),IF(algorithm!$AL$5='BAM tables'!B434,1,0),IF(algorithm!$AL$6='BAM tables'!C434,1,0)),1,0)","v":0}]
[8,2,3,8,null,{"$f":"IF(AND(IF(algorithm!$D$4='BAM tables'!D435,1,0),IF(algorithm!$AH$4='BAM tables'!A435,1,0),IF(algorithm!$AH$5='BAM tables'!B435,1,0),IF(algorithm!$AH$6='BAM tables'!C435,1,0)),1,0)","v":0},{"$f":"IF(AND(IF(algorithm!$D$4='BAM tables'!D435,1,0),IF(algorithm!$AL$4='BAM tables'!A435,1,0),IF(algorithm!$AL$5='BAM tables'!B435,1,0),IF(algorithm!$AL$6='BAM tables'!C435,1,0)),1,0)","v":0}]
[8,2,3,10,null,{"$f":"IF(AND(IF(algorithm!$D$4='BAM tables'!D436,1,0),IF(algorithm!$AH$4='BAM tables'!A436,1,0),IF(algorithm!$AH$5='BAM tables'!B436,1,0),IF(algorithm!$AH$6='BAM tables'!C436,1,0)),1,0)","v":0},{"$f":"IF(AND(IF(algorithm!$D$4='BAM tables'!D436,1,0),IF(algorithm!$AL$4='BAM tables'!A436,1,0),IF(algorithm!$AL$5='BAM tables'!B436,1,0),IF(algorithm!$AL$6='BAM tables'!C436,1,0)),1,0)","v":0}]
[8,2,4,8,null,{"$f":"IF(AND(IF(algorithm!$D$4='BAM tables'!D437,1,0),IF(algorithm!$AH$4='BAM tables'!A437,1,0),IF(algorithm!$AH$5='BAM tables'!B437,1,0),IF(algorithm!$AH$6='BAM tables'!C437,1,0)),1,0)","v":0},{"$f":"IF(AND(IF(algorithm!$D$4='BAM tables'!D437,1,0),IF(algorithm!$AL$4='BAM tables'!A437,1,0),IF(algorithm!$AL$5='BAM tables'!B437,1,0),IF(algorithm!$AL$6='BAM tables'!C437,1,0)),1,0)","v":0}]
[8,3,0,8,null,{"$f":"IF(AND(IF(algorithm!$D$4='BAM tables'!D438,1,0),IF(algorithm!$AH$4='BAM tables'!A438,1,0),IF(algorithm!$AH$5='BAM tables'!B438,1,0),IF(algorithm!$AH$6='BAM tables'!C438,1,0)),1,0)","v":0},{"$f":"IF(AND(IF(algorithm!$D$4='BAM tables'!D438,1,0),IF(algorithm!$AL$4='BAM tables'!A438,1,0),IF(algorithm!$AL$5='BAM tables'!B438,1,0),IF(algorithm!$AL$6='BAM tables'!C438,1,0)),1,0)","v":0}]
[8,3,0,10,null,{"$f":"IF(AND(IF(algorithm!$D$4='BAM tables'!D439,1,0),IF(algorithm!$AH$4='BAM tables'!A439,1,0),IF(algorithm!$AH$5='BAM tables'!B439,1,0),IF(algorithm!$AH$6='BAM tables'!C439,1,0)),1,0)","v":0},{"$f":"IF(AND(IF(algorithm!$D$4='BAM tables'!D439,1,0),IF(algorithm!$AL$4='BAM tables'!A439,1,0),IF(algorithm!$AL$5='BAM tables'!B439,1,0),IF(algorithm!$AL$6='BAM tables'!C439,1,0)),1,0)","v":0}]
[8,3,1,8,null,{"$f":"IF(AND(IF(algorithm!$D$4='BAM tables'!D440,1,0),IF(algorithm!$AH$4='BAM tables'!A440,1,0),IF(algorithm!$AH$5='BAM tables'!B440,1,0),IF(algorithm!$AH$6='BAM tables'!C440,1,0)),1,0)","v":0},{"$f":"IF(AND(IF(algorithm!$D$4='BAM tables'!D440,1,0),IF(algorithm!$AL$4='BAM tables'!A440,1,0),IF(algorithm!$AL$5='BAM tables'!B440,1,0),IF(algorithm!$AL$6='BAM tables'!C440,1,0)),1,0)","v":0}]
[8,3,1,10,null,{"$f":"IF(AND(IF(algorithm!$D$4='BAM tables'!D441,1,0),IF(algorithm!$AH$4='BAM tables'!A441,1,0),IF(algorithm!$AH$5='BAM tables'!B441,1,0),IF(algorithm!$AH$6='BAM tables'!C441,1,0)),1,0)","v":0},{"$f":"IF(AND(IF(algorithm!$D$4='BAM tables'!D441,1,0),IF(algorithm!$AL$4='BAM tables'!A441,1,0),IF(algorithm!$AL$5='BAM tables'!B441,1,0),IF(algorithm!$AL$6='BAM tables'!C441,1,0)),1,0)","v":0}]
[8,3,2,8,null,{"$f":"IF(AND(IF(algorithm!$D$4='BAM tables'!D442,1,0),IF(algorithm!$AH$4='BAM tables'!A442,1,0),IF(algorithm!$AH$5='BAM tables'!B442,1,0),IF(algorithm!$AH$6='BAM tables'!C442,1,0)),1,0)","v":0},{"$f":"IF(AND(IF(algorithm!$D$4='BAM tables'!D442,1,0),IF(algorithm!$AL$4='BAM tables'!A442,1,0),IF(algorithm!$AL$5='BAM tables'!B442,1,0),IF(algorithm!$AL$6='BAM tables'!C442,1,0)),1,0)","v":0}]
[8,3,2,10,null,{"$f":"IF(AND(IF(algorithm!$D$4='BAM tables'!D443,1,0),IF(algorithm!$AH$4='BAM tables'!A443,1,0),IF(algorithm!$AH$5='BAM tables'!B443,1,0),IF(algorithm!$AH$6='BAM tables'!C443,1,0)),1,0)","v":0},{"$f":"IF(AND(IF(algorithm!$D$4='BAM tables'!D443,1,0),IF(algorithm!$AL$4='BAM tables'!A443,1,0),IF(algorithm!$AL$5='BAM tables'!B443,1,0),IF(algorithm!$AL$6='BAM tables'!C443,1,0)),1,0)","v":0}]
[8,3,3,8,null,{"$f":"IF(AND(IF(algorithm!$D$4='BAM tables'!D444,1,0),IF(algorithm!$AH$4='BAM tables'!A444,1,0),IF(algorithm!$AH$5='BAM tables'!B444,1,0),IF(algorithm!$AH$6='BAM tables'!C444,1,0)),1,0)","v":0},{"$f":"IF(AND(IF(algorithm!$D$4='BAM tables'!D444,1,0),IF(algorithm!$AL$4='BAM tables'!A444,1,0),IF(algorithm!$AL$5='BAM tables'!B444,1,0),IF(algorithm!$AL$6='BAM tables'!C444,1,0)),1,0)","v":0}]
[8,3,3,10,null,{"$f":"IF(AND(IF(algorithm!$D$4='BAM tables'!D445,1,0),IF(algorithm!$AH$4='BAM tables'!A445,1,0),IF(algorithm!$AH$5='BAM tables'!B445,1,0),IF(algorithm!$AH$6='BAM tables'!C445,1,0)),1,0)","v":0},{"$f":"IF(AND(IF(algorithm!$D$4='BAM tables'!D445,1,0),IF(algorithm!$AL$4='BAM tables'!A445,1,0),IF(algorithm!$AL$5='BAM tables'!B445,1,0),IF(algorithm!$AL$6='BAM tables'!C445,1,0)),1,0)","v":0}]
[8,3,4,8,null,{"$f":"IF(AND(IF(algorithm!$D$4='BAM tables'!D446,1,0),IF(algorithm!$AH$4='BAM tables'!A446,1,0),IF(algorithm!$AH$5='BAM tables'!B446,1,0),IF(algorithm!$AH$6='BAM tables'!C446,1,0)),1,0)","v":0},{"$f":"IF(AND(IF(algorithm!$D$4='BAM tables'!D446,1,0),IF(algorithm!$AL$4='BAM tables'!A446,1,0),IF(algorithm!$AL$5='BAM tables'!B446,1,0),IF(algorithm!$AL$6='BAM tables'!C446,1,0)),1,0)","v":0}]
[8,3,5,8,null,{"$f":"IF(AND(IF(algorithm!$D$4='BAM tables'!D447,1,0),IF(algorithm!$AH$4='BAM tables'!A447,1,0),IF(algorithm!$AH$5='BAM tables'!B447,1,0),IF(algorithm!$AH$6='BAM tables'!C447,1,0)),1,0)","v":0},{"$f":"IF(AND(IF(algorithm!$D$4='BAM tables'!D447,1,0),IF(algorithm!$AL$4='BAM tables'!A447,1,0),IF(algorithm!$AL$5='BAM tables'!B447,1,0),IF(algorithm!$AL$6='BAM tables'!C447,1,0)),1,0)","v":0}]
[8,4,0,8,null,{"$f":"IF(AND(IF(algorithm!$D$4='BAM tables'!D448,1,0),IF(algorithm!$AH$4='BAM tables'!A448,1,0),IF(algorithm!$AH$5='BAM tables'!B448,1,0),IF(algorithm!$AH$6='BAM tables'!C448,1,0)),1,0)","v":0},{"$f":"IF(AND(IF(algorithm!$D$4='BAM tables'!D448,1,0),IF(algorithm!$AL$4='BAM tables'!A448,1,0),IF(algorithm!$AL$5='BAM tables'!B448,1,0),IF(algorithm!$AL$6='BAM tables'!C448,1,0)),1,0)","v":0}]
[8,4,0,10,null,{"$f":"IF(AND(IF(algorithm!$D$4='BAM tables'!D449,1,0),IF(algorithm!$AH$4='BAM tables'!A449,1,0),IF(algorithm!$AH$5='BAM tables'!B449,1,0),IF(algorithm!$AH$6='BAM tables'!C449,1,0)),1,0)","v":0},{"$f":"IF(AND(IF(algorithm!$D$4='BAM tables'!D449,1,0),IF(algorithm!$AL$4='BAM tables'!A449,1,0),IF(algorithm!$AL$5='BAM tables'!B449,1,0),IF(algorithm!$AL$6='BAM tables'!C449,1,0)),1,0)","v":0}]
[8,4,1,8,null,{"$f":"IF(AND(IF(algorithm!$D$4='BAM tables'!D450,1,0),IF(algorithm!$AH$4='BAM tables'!A450,1,0),IF(algorithm!$AH$5='BAM tables'!B450,1,0),IF(algorithm!$AH$6='BAM tables'!C450,1,0)),1,0)","v":0},{"$f":"IF(AND(IF(algorithm!$D$4='BAM tables'!D450,1,0),IF(algorithm!$AL$4='BAM tables'!A450,1,0),IF(algorithm!$AL$5='BAM tables'!B450,1,0),IF(algorithm!$AL$6='BAM tables'!C450,1,0)),1,0)","v":0}]
[8,4,1,10,null,{"$f":"IF(AND(IF(algorithm!$D$4='BAM tables'!D451,1,0),IF(algorithm!$AH$4='BAM tables'!A451,1,0),IF(algorithm!$AH$5='BAM tables'!B451,1,0),IF(algorithm!$AH$6='BAM tables'!C451,1,0)),1,0)","v":0},{"$f":"IF(AND(IF(algorithm!$D$4='BAM tables'!D451,1,0),IF(algorithm!$AL$4='BAM tables'!A451,1,0),IF(algorithm!$AL$5='BAM tables'!B451,1,0),IF(algorithm!$AL$6='BAM tables'!C451,1,0)),1,0)","v":0}]
[8,4,2,8,null,{"$f":"IF(AND(IF(algorithm!$D$4='BAM tables'!D452,1,0),IF(algorithm!$AH$4='BAM tables'!A452,1,0),IF(algorithm!$AH$5='BAM tables'!B452,1,0),IF(algorithm!$AH$6='BAM tables'!C452,1,0)),1,0)","v":0},{"$f":"IF(AND(IF(algorithm!$D$4='BAM tables'!D452,1,0),IF(algorithm!$AL$4='BAM tables'!A452,1,0),IF(algorithm!$AL$5='BAM tables'!B452,1,0),IF(algorithm!$AL$6='BAM tables'!C452,1,0)),1,0)","v":0}]
[8,4,2,10,null,{"$f":"IF(AND(IF(algorithm!$D$4='BAM tables'!D453,1,0),IF(algorithm!$AH$4='BAM tables'!A453,1,0),IF(algorithm!$AH$5='BAM tables'!B453,1,0),IF(algorithm!$AH$6='BAM tables'!C453,1,0)),1,0)","v":0},{"$f":"IF(AND(IF(algorithm!$D$4='BAM tables'!D453,1,0),IF(algorithm!$AL$4='BAM tables'!A453,1,0),IF(algorithm!$AL$5='BAM tables'!B453,1,0),IF(algorithm!$AL$6='BAM tables'!C453,1,0)),1,0)","v":0}]
[8,4,3,8,null,{"$f":"IF(AND(IF(algorithm!$D$4='BAM tables'!D454,1,0),IF(algorithm!$AH$4='BAM tables'!A454,1,0),IF(algorithm!$AH$5='BAM tables'!B454,1,0),IF(algorithm!$AH$6='BAM tables'!C454,1,0)),1,0)","v":0},{"$f":"IF(AND(IF(algorithm!$D$4='BAM tables'!D454,1,0),IF(algorithm!$AL$4='BAM tables'!A454,1,0),IF(algorithm!$AL$5='BAM tables'!B454,1,0),IF(algorithm!$AL$6='BAM tables'!C454,1,0)),1,0)","v":0}]
[8,4,3,10,null,{"$f":"IF(AND(IF(algorithm!$D$4='BAM tables'!D455,1,0),IF(algorithm!$AH$4='BAM tables'!A455,1,0),IF(algorithm!$AH$5='BAM tables'!B455,1,0),IF(algorithm!$AH$6='BAM tables'!C455,1,0)),1,0)","v":0},{"$f":"IF(AND(IF(algorithm!$D$4='BAM tables'!D455,1,0),IF(algorithm!$AL$4='BAM tables'!A455,1,0),IF(algorithm!$AL$5='BAM tables'!B455,1,0),IF(algorithm!$AL$6='BAM tables'!C455,1,0)),1,0)","v":0}]
[8,4,4,8,null,{"$f":"IF(AND(IF(algorithm!$D$4='BAM tables'!D456,1,0),IF(algorithm!$AH$4='BAM tables'!A456,1,0),IF(algorithm!$AH$5='BAM tables'!B456,1,0),IF(algorithm!$AH$6='BAM tables'!C456,1,0)),1,0)","v":0},{"$f":"IF(AND(IF(algorithm!$D$4='BAM tables'!D456,1,0),IF(algorithm!$AL$4='BAM tables'!A456,1,0),IF(algorithm!$AL$5='BAM tables'!B456,1,0),IF(algorithm!$AL$6='BAM tables'!C456,1,0)),1,0)","v":0}]
[8,4,5,8,null,{"$f":"IF(AND(IF(algorithm!$D$4='BAM tables'!D457,1,0),IF(algorithm!$AH$4='BAM tables'!A457,1,0),IF(algorithm!$AH$5='BAM tables'!B457,1,0),IF(algorithm!$AH$6='BAM tables'!C457,1,0)),1,0)","v":0},{"$f":"IF(AND(IF(algorithm!$D$4='BAM tables'!D457,1,0),IF(algorithm!$AL$4='BAM tables'!A457,1,0),IF(algorithm!$AL$5='BAM tables'!B457,1,0),IF(algorithm!$AL$6='BAM tables'!C457,1,0)),1,0)","v":0}]
[8,5,0,8,null,{"$f":"IF(AND(IF(algorithm!$D$4='BAM tables'!D458,1,0),IF(algorithm!$AH$4='BAM tables'!A458,1,0),IF(algorithm!$AH$5='BAM tables'!B458,1,0),IF(algorithm!$AH$6='BAM tables'!C458,1,0)),1,0)","v":0},{"$f":"IF(AND(IF(algorithm!$D$4='BAM tables'!D458,1,0),IF(algorithm!$AL$4='BAM tables'!A458,1,0),IF(algorithm!$AL$5='BAM tables'!B458,1,0),IF(algorithm!$AL$6='BAM tables'!C458,1,0)),1,0)","v":0}]
[8,5,0,10,null,{"$f":"IF(AND(IF(algorithm!$D$4='BAM tables'!D459,1,0),IF(algorithm!$AH$4='BAM tables'!A459,1,0),IF(algorithm!$AH$5='BAM tables'!B459,1,0),IF(algorithm!$AH$6='BAM tables'!C459,1,0)),1,0)","v":0},{"$f":"IF(AND(IF(algorithm!$D$4='BAM tables'!D459,1,0),IF(algorithm!$AL$4='BAM tables'!A459,1,0),IF(algorithm!$AL$5='BAM tables'!B459,1,0),IF(algorithm!$AL$6='BAM tables'!C459,1,0)),1,0)","v":0}]
[8,5,1,8,null,{"$f":"IF(AND(IF(algorithm!$D$4='BAM tables'!D460,1,0),IF(algorithm!$AH$4='BAM tables'!A460,1,0),IF(algorithm!$AH$5='BAM tables'!B460,1,0),IF(algorithm!$AH$6='BAM tables'!C460,1,0)),1,0)","v":0},{"$f":"IF(AND(IF(algorithm!$D$4='BAM tables'!D460,1,0),IF(algorithm!$AL$4='BAM tables'!A460,1,0),IF(algorithm!$AL$5='BAM tables'!B460,1,0),IF(algorithm!$AL$6='BAM tables'!C460,1,0)),1,0)","v":0}]
[8,5,1,10,null,{"$f":"IF(AND(IF(algorithm!$D$4='BAM tables'!D461,1,0),IF(algorithm!$AH$4='BAM tables'!A461,1,0),IF(algorithm!$AH$5='BAM tables'!B461,1,0),IF(algorithm!$AH$6='BAM tables'!C461,1,0)),1,0)","v":0},{"$f":"IF(AND(IF(algorithm!$D$4='BAM tables'!D461,1,0),IF(algorithm!$AL$4='BAM tables'!A461,1,0),IF(algorithm!$AL$5='BAM tables'!B461,1,0),IF(algorithm!$AL$6='BAM tables'!C461,1,0)),1,0)","v":0}]
[8,5,2,8,null,{"$f":"IF(AND(IF(algorithm!$D$4='BAM tables'!D462,1,0),IF(algorithm!$AH$4='BAM tables'!A462,1,0),IF(algorithm!$AH$5='BAM tables'!B462,1,0),IF(algorithm!$AH$6='BAM tables'!C462,1,0)),1,0)","v":0},{"$f":"IF(AND(IF(algorithm!$D$4='BAM tables'!D462,1,0),IF(algorithm!$AL$4='BAM tables'!A462,1,0),IF(algorithm!$AL$5='BAM tables'!B462,1,0),IF(algorithm!$AL$6='BAM tables'!C462,1,0)),1,0)","v":0}]
[8,5,2,10,null,{"$f":"IF(AND(IF(algorithm!$D$4='BAM tables'!D463,1,0),IF(algorithm!$AH$4='BAM tables'!A463,1,0),IF(algorithm!$AH$5='BAM tables'!B463,1,0),IF(algorithm!$AH$6='BAM tables'!C463,1,0)),1,0)","v":0},{"$f":"IF(AND(IF(algorithm!$D$4='BAM tables'!D463,1,0),IF(algorithm!$AL$4='BAM tables'!A463,1,0),IF(algorithm!$AL$5='BAM tables'!B463,1,0),IF(algorithm!$AL$6='BAM tables'!C463,1,0)),1,0)","v":0}]
[8,5,3,8,null,{"$f":"IF(AND(IF(algorithm!$D$4='BAM tables'!D464,1,0),IF(algorithm!$AH$4='BAM tables'!A464,1,0),IF(algorithm!$AH$5='BAM tables'!B464,1,0),IF(algorithm!$AH$6='BAM tables'!C464,1,0)),1,0)","v":0},{"$f":"IF(AND(IF(algorithm!$D$4='BAM tables'!D464,1,0),IF(algorithm!$AL$4='BAM tables'!A464,1,0),IF(algorithm!$AL$5='BAM tables'!B464,1,0),IF(algorithm!$AL$6='BAM tables'!C464,1,0)),1,0)","v":0}]
[8,5,3,10,null,{"$f":"IF(AND(IF(algorithm!$D$4='BAM tables'!D465,1,0),IF(algorithm!$AH$4='BAM tables'!A465,1,0),IF(algorithm!$AH$5='BAM tables'!B465,1,0),IF(algorithm!$AH$6='BAM tables'!C465,1,0)),1,0)","v":0},{"$f":"IF(AND(IF(algorithm!$D$4='BAM tables'!D465,1,0),IF(algorithm!$AL$4='BAM tables'!A465,1,0),IF(algorithm!$AL$5='BAM tables'!B465,1,0),IF(algorithm!$AL$6='BAM tables'!C465,1,0)),1,0)","v":0}]
[8,5,4,8,null,{"$f":"IF(AND(IF(algorithm!$D$4='BAM tables'!D466,1,0),IF(algorithm!$AH$4='BAM tables'!A466,1,0),IF(algorithm!$AH$5='BAM tables'!B466,1,0),IF(algorithm!$AH$6='BAM tables'!C466,1,0)),1,0)","v":0},{"$f":"IF(AND(IF(algorithm!$D$4='BAM tables'!D466,1,0),IF(algorithm!$AL$4='BAM tables'!A466,1,0),IF(algorithm!$AL$5='BAM tables'!B466,1,0),IF(algorithm!$AL$6='BAM tables'!C466,1,0)),1,0)","v":0}]
[8,5,5,8,null,{"$f":"IF(AND(IF(algorithm!$D$4='BAM tables'!D467,1,0),IF(algorithm!$AH$4='BAM tables'!A467,1,0),IF(algorithm!$AH$5='BAM tables'!B467,1,0),IF(algorithm!$AH$6='BAM tables'!C467,1,0)),1,0)","v":0},{"$f":"IF(AND(IF(algorithm!$D$4='BAM tables'!D467,1,0),IF(algorithm!$AL$4='BAM tables'!A467,1,0),IF(algorithm!$AL$5='BAM tables'!B467,1,0),IF(algorithm!$AL$6='BAM tables'!C467,1,0)),1,0)","v":0}]
[8,5,6,8,null,{"$f":"IF(AND(IF(algorithm!$D$4='BAM tables'!D468,1,0),IF(algorithm!$AH$4='BAM tables'!A468,1,0),IF(algorithm!$AH$5='BAM tables'!B468,1,0),IF(algorithm!$AH$6='BAM tables'!C468,1,0)),1,0)","v":0},{"$f":"IF(AND(IF(algorithm!$D$4='BAM tables'!D468,1,0),IF(algorithm!$AL$4='BAM tables'!A468,1,0),IF(algorithm!$AL$5='BAM tables'!B468,1,0),IF(algorithm!$AL$6='BAM tables'!C468,1,0)),1,0)","v":0}]
[8,6,0,8,null,{"$f":"IF(AND(IF(algorithm!$D$4='BAM tables'!D469,1,0),IF(algorithm!$AH$4='BAM tables'!A469,1,0),IF(algorithm!$AH$5='BAM tables'!B469,1,0),IF(algorithm!$AH$6='BAM tables'!C469,1,0)),1,0)","v":0},{"$f":"IF(AND(IF(algorithm!$D$4='BAM tables'!D469,1,0),IF(algorithm!$AL$4='BAM tables'!A469,1,0),IF(algorithm!$AL$5='BAM tables'!B469,1,0),IF(algorithm!$AL$6='BAM tables'!C469,1,0)),1,0)","v":0}]
[8,6,0,10,null,{"$f":"IF(AND(IF(algorithm!$D$4='BAM tables'!D470,1,0),IF(algorithm!$AH$4='BAM tables'!A470,1,0),IF(algorithm!$AH$5='BAM tables'!B470,1,0),IF(algorithm!$AH$6='BAM tables'!C470,1,0)),1,0)","v":0},{"$f":"IF(AND(IF(algorithm!$D$4='BAM tables'!D470,1,0),IF(algorithm!$AL$4='BAM tables'!A470,1,0),IF(algorithm!$AL$5='BAM tables'!B470,1,0),IF(algorithm!$AL$6='BAM tables'!C470,1,0)),1,0)","v":0}]
[8,6,1,8,null,{"$f":"IF(AND(IF(algorithm!$D$4='BAM tables'!D471,1,0),IF(algorithm!$AH$4='BAM tables'!A471,1,0),IF(algorithm!$AH$5='BAM tables'!B471,1,0),IF(algorithm!$AH$6='BAM tables'!C471,1,0)),1,0)","v":0},{"$f":"IF(AND(IF(algorithm!$D$4='BAM tables'!D471,1,0),IF(algorithm!$AL$4='BAM tables'!A471,1,0),IF(algorithm!$AL$5='BAM tables'!B471,1,0),IF(algorithm!$AL$6='BAM tables'!C471,1,0)),1,0)","v":0}]
[8,6,1,10,null,{"$f":"IF(AND(IF(algorithm!$D$4='BAM tables'!D472,1,0),IF(algorithm!$AH$4='BAM tables'!A472,1,0),IF(algorithm!$AH$5='BAM tables'!B472,1,0),IF(algorithm!$AH$6='BAM tables'!C472,1,0)),1,0)","v":0},{"$f":"IF(AND(IF(algorithm!$D$4='BAM tables'!D472,1,0),IF(algorithm!$AL$4='BAM tables'!A472,1,0),IF(algorithm!$AL$5='BAM tables'!B472,1,0),IF(algorithm!$AL$6='BAM tables'!C472,1,0)),1,0)","v":0}]
[8,6,2,8,null,{"$f":"IF(AND(IF(algorithm!$D$4='BAM tables'!D473,1,0),IF(algorithm!$AH$4='BAM tables'!A473,1,0),IF(algorithm!$AH$5='BAM tables'!B473,1,0),IF(algorithm!$AH$6='BAM tables'!C473,1,0)),1,0)","v":0},{"$f":"IF(AND(IF(algorithm!$D$4='BAM tables'!D473,1,0),IF(algorithm!$AL$4='BAM tables'!A473,1,0),IF(algorithm!$AL$5='BAM tables'!B473,1,0),IF(algorithm!$AL$6='BAM tables'!C473,1,0)),1,0)","v":0}]
[8,6,2,10,null,{"$f":"IF(AND(IF(algorithm!$D$4='BAM tables'!D474,1,0),IF(algorithm!$AH$4='BAM tables'!A474,1,0),IF(algorithm!$AH$5='BAM tables'!B474,1,0),IF(algorithm!$AH$6='BAM tables'!C474,1,0)),1,0)","v":0},{"$f":"IF(AND(IF(algorithm!$D$4='BAM tables'!D474,1,0),IF(algorithm!$AL$4='BAM tables'!A474,1,0),IF(algorithm!$AL$5='BAM tables'!B474,1,0),IF(algorithm!$AL$6='BAM tables'!C474,1,0)),1,0)","v":0}]
[8,6,3,8,null,{"$f":"IF(AND(IF(algorithm!$D$4='BAM tables'!D475,1,0),IF(algorithm!$AH$4='BAM tables'!A475,1,0),IF(algorithm!$AH$5='BAM tables'!B475,1,0),IF(algorithm!$AH$6='BAM tables'!C475,1,0)),1,0)","v":0},{"$f":"IF(AND(IF(algorithm!$D$4='BAM tables'!D475,1,0),IF(algorithm!$AL$4='BAM tables'!A475,1,0),IF(algorithm!$AL$5='BAM tables'!B475,1,0),IF(algorithm!$AL$6='BAM tables'!C475,1,0)),1,0)","v":0}]
[8,6,4,8,null,{"$f":"IF(AND(IF(algorithm!$D$4='BAM tables'!D476,1,0),IF(algorithm!$AH$4='BAM tables'!A476,1,0),IF(algorithm!$AH$5='BAM tables'!B476,1,0),IF(algorithm!$AH$6='BAM tables'!C476,1,0)),1,0)","v":0},{"$f":"IF(AND(IF(algorithm!$D$4='BAM tables'!D476,1,0),IF(algorithm!$AL$4='BAM tables'!A476,1,0),IF(algorithm!$AL$5='BAM tables'!B476,1,0),IF(algorithm!$AL$6='BAM tables'!C476,1,0)),1,0)","v":0}]
[8,6,5,8,null,{"$f":"IF(AND(IF(algorithm!$D$4='BAM tables'!D477,1,0),IF(algorithm!$AH$4='BAM tables'!A477,1,0),IF(algorithm!$AH$5='BAM tables'!B477,1,0),IF(algorithm!$AH$6='BAM tables'!C477,1,0)),1,0)","v":0},{"$f":"IF(AND(IF(algorithm!$D$4='BAM tables'!D477,1,0),IF(algorithm!$AL$4='BAM tables'!A477,1,0),IF(algorithm!$AL$5='BAM tables'!B477,1,0),IF(algorithm!$AL$6='BAM tables'!C477,1,0)),1,0)","v":0}]
[8,6,6,8,null,{"$f":"IF(AND(IF(algorithm!$D$4='BAM tables'!D478,1,0),IF(algorithm!$AH$4='BAM tables'!A478,1,0),IF(algorithm!$AH$5='BAM tables'!B478,1,0),IF(algorithm!$AH$6='BAM tables'!C478,1,0)),1,0)","v":0},{"$f":"IF(AND(IF(algorithm!$D$4='BAM tables'!D478,1,0),IF(algorithm!$AL$4='BAM tables'!A478,1,0),IF(algorithm!$AL$5='BAM tables'!B478,1,0),IF(algorithm!$AL$6='BAM tables'!C478,1,0)),1,0)","v":0}]
[8,7,0,8,null,{"$f":"IF(AND(IF(algorithm!$D$4='BAM tables'!D479,1,0),IF(algorithm!$AH$4='BAM tables'!A479,1,0),IF(algorithm!$AH$5='BAM tables'!B479,1,0),IF(algorithm!$AH$6='BAM tables'!C479,1,0)),1,0)","v":0},{"$f":"IF(AND(IF(algorithm!$D$4='BAM tables'!D479,1,0),IF(algorithm!$AL$4='BAM tables'!A479,1,0),IF(algorithm!$AL$5='BAM tables'!B479,1,0),IF(algorithm!$AL$6='BAM tables'!C479,1,0)),1,0)","v":0}]
[8,7,0,10,null,{"$f":"IF(AND(IF(algorithm!$D$4='BAM tables'!D480,1,0),IF(algorithm!$AH$4='BAM tables'!A480,1,0),IF(algorithm!$AH$5='BAM tables'!B480,1,0),IF(algorithm!$AH$6='BAM tables'!C480,1,0)),1,0)","v":0},{"$f":"IF(AND(IF(algorithm!$D$4='BAM tables'!D480,1,0),IF(algorithm!$AL$4='BAM tables'!A480,1,0),IF(algorithm!$AL$5='BAM tables'!B480,1,0),IF(algorithm!$AL$6='BAM tables'!C480,1,0)),1,0)","v":0}]
[8,7,1,8,null,{"$f":"IF(AND(IF(algorithm!$D$4='BAM tables'!D481,1,0),IF(algorithm!$AH$4='BAM tables'!A481,1,0),IF(algorithm!$AH$5='BAM tables'!B481,1,0),IF(algorithm!$AH$6='BAM tables'!C481,1,0)),1,0)","v":0},{"$f":"IF(AND(IF(algorithm!$D$4='BAM tables'!D481,1,0),IF(algorithm!$AL$4='BAM tables'!A481,1,0),IF(algorithm!$AL$5='BAM tables'!B481,1,0),IF(algorithm!$AL$6='BAM tables'!C481,1,0)),1,0)","v":0}]
[8,7,1,10,null,{"$f":"IF(AND(IF(algorithm!$D$4='BAM tables'!D482,1,0),IF(algorithm!$AH$4='BAM tables'!A482,1,0),IF(algorithm!$AH$5='BAM tables'!B482,1,0),IF(algorithm!$AH$6='BAM tables'!C482,1,0)),1,0)","v":0},{"$f":"IF(AND(IF(algorithm!$D$4='BAM tables'!D482,1,0),IF(algorithm!$AL$4='BAM tables'!A482,1,0),IF(algorithm!$AL$5='BAM tables'!B482,1,0),IF(algorithm!$AL$6='BAM tables'!C482,1,0)),1,0)","v":0}]
[8,7,2,8,null,{"$f":"IF(AND(IF(algorithm!$D$4='BAM tables'!D483,1,0),IF(algorithm!$AH$4='BAM tables'!A483,1,0),IF(algorithm!$AH$5='BAM tables'!B483,1,0),IF(algorithm!$AH$6='BAM tables'!C483,1,0)),1,0)","v":0},{"$f":"IF(AND(IF(algorithm!$D$4='BAM tables'!D483,1,0),IF(algorithm!$AL$4='BAM tables'!A483,1,0),IF(algorithm!$AL$5='BAM tables'!B483,1,0),IF(algorithm!$AL$6='BAM tables'!C483,1,0)),1,0)","v":0}]
[8,7,2,10,null,{"$f":"IF(AND(IF(algorithm!$D$4='BAM tables'!D484,1,0),IF(algorithm!$AH$4='BAM tables'!A484,1,0),IF(algorithm!$AH$5='BAM tables'!B484,1,0),IF(algorithm!$AH$6='BAM tables'!C484,1,0)),1,0)","v":0},{"$f":"IF(AND(IF(algorithm!$D$4='BAM tables'!D484,1,0),IF(algorithm!$AL$4='BAM tables'!A484,1,0),IF(algorithm!$AL$5='BAM tables'!B484,1,0),IF(algorithm!$AL$6='BAM tables'!C484,1,0)),1,0)","v":0}]
[8,7,3,8,null,{"$f":"IF(AND(IF(algorithm!$D$4='BAM tables'!D485,1,0),IF(algorithm!$AH$4='BAM tables'!A485,1,0),IF(algorithm!$AH$5='BAM tables'!B485,1,0),IF(algorithm!$AH$6='BAM tables'!C485,1,0)),1,0)","v":0},{"$f":"IF(AND(IF(algorithm!$D$4='BAM tables'!D485,1,0),IF(algorithm!$AL$4='BAM tables'!A485,1,0),IF(algorithm!$AL$5='BAM tables'!B485,1,0),IF(algorithm!$AL$6='BAM tables'!C485,1,0)),1,0)","v":0}]
[8,7,4,8,null,{"$f":"IF(AND(IF(algorithm!$D$4='BAM tables'!D486,1,0),IF(algorithm!$AH$4='BAM tables'!A486,1,0),IF(algorithm!$AH$5='BAM tables'!B486,1,0),IF(algorithm!$AH$6='BAM tables'!C486,1,0)),1,0)","v":0},{"$f":"IF(AND(IF(algorithm!$D$4='BAM tables'!D486,1,0),IF(algorithm!$AL$4='BAM tables'!A486,1,0),IF(algorithm!$AL$5='BAM tables'!B486,1,0),IF(algorithm!$AL$6='BAM tables'!C486,1,0)),1,0)","v":0}]
[8,7,5,8,null,{"$f":"IF(AND(IF(algorithm!$D$4='BAM tables'!D487,1,0),IF(algorithm!$AH$4='BAM tables'!A487,1,0),IF(algorithm!$AH$5='BAM tables'!B487,1,0),IF(algorithm!$AH$6='BAM tables'!C487,1,0)),1,0)","v":0},{"$f":"IF(AND(IF(algorithm!$D$4='BAM tables'!D487,1,0),IF(algorithm!$AL$4='BAM tables'!A487,1,0),IF(algorithm!$AL$5='BAM tables'!B487,1,0),IF(algorithm!$AL$6='BAM tables'!C487,1,0)),1,0)","v":0}]
[8,7,6,8,null,{"$f":"IF(AND(IF(algorithm!$D$4='BAM tables'!D488,1,0),IF(algorithm!$AH$4='BAM tables'!A488,1,0),IF(algorithm!$AH$5='BAM tables'!B488,1,0),IF(algorithm!$AH$6='BAM tables'!C488,1,0)),1,0)","v":0},{"$f":"IF(AND(IF(algorithm!$D$4='BAM tables'!D488,1,0),IF(algorithm!$AL$4='BAM tables'!A488,1,0),IF(algorithm!$AL$5='BAM tables'!B488,1,0),IF(algorithm!$AL$6='BAM tables'!C488,1,0)),1,0)","v":0}]
[8,7,7,8,null,{"$f":"IF(AND(IF(algorithm!$D$4='BAM tables'!D489,1,0),IF(algorithm!$AH$4='BAM tables'!A489,1,0),IF(algorithm!$AH$5='BAM tables'!B489,1,0),IF(algorithm!$AH$6='BAM tables'!C489,1,0)),1,0)","v":0},{"$f":"IF(AND(IF(algorithm!$D$4='BAM tables'!D489,1,0),IF(algorithm!$AL$4='BAM tables'!A489,1,0),IF(algorithm!$AL$5='BAM tables'!B489,1,0),IF(algorithm!$AL$6='BAM tables'!C489,1,0)),1,0)","v":0}]
[8,8,0,8,null,{"$f":"IF(AND(IF(algorithm!$D$4='BAM tables'!D490,1,0),IF(algorithm!$AH$4='BAM tables'!A490,1,0),IF(algorithm!$AH$5='BAM tables'!B490,1,0),IF(algorithm!$AH$6='BAM tables'!C490,1,0)),1,0)","v":0},{"$f":"IF(AND(IF(algorithm!$D$4='BAM tables'!D490,1,0),IF(algorithm!$AL$4='BAM tables'!A490,1,0),IF(algorithm!$AL$5='BAM tables'!B490,1,0),IF(algorithm!$AL$6='BAM tables'!C490,1,0)),1,0)","v":0}]
[8,8,0,10,null,{"$f":"IF(AND(IF(algorithm!$D$4='BAM tables'!D491,1,0),IF(algorithm!$AH$4='BAM tables'!A491,1,0),IF(algorithm!$AH$5='BAM tables'!B491,1,0),IF(algorithm!$AH$6='BAM tables'!C491,1,0)),1,0)","v":0},{"$f":"IF(AND(IF(algorithm!$D$4='BAM tables'!D491,1,0),IF(algorithm!$AL$4='BAM tables'!A491,1,0),IF(algorithm!$AL$5='BAM tables'!B491,1,0),IF(algorithm!$AL$6='BAM tables'!C491,1,0)),1,0)","v":0}]
[8,8,1,8,null,{"$f":"IF(AND(IF(algorithm!$D$4='BAM tables'!D492,1,0),IF(algorithm!$AH$4='BAM tables'!A492,1,0),IF(algorithm!$AH$5='BAM tables'!B492,1,0),IF(algorithm!$AH$6='BAM tables'!C492,1,0)),1,0)","v":0},{"$f":"IF(AND(IF(algorithm!$D$4='BAM tables'!D492,1,0),IF(algorithm!$AL$4='BAM tables'!A492,1,0),IF(algorithm!$AL$5='BAM tables'!B492,1,0),IF(algorithm!$AL$6='BAM tables'!C492,1,0)),1,0)","v":0}]
[8,8,1,10,null,{"$f":"IF(AND(IF(algorithm!$D$4='BAM tables'!D493,1,0),IF(algorithm!$AH$4='BAM tables'!A493,1,0),IF(algorithm!$AH$5='BAM tables'!B493,1,0),IF(algorithm!$AH$6='BAM tables'!C493,1,0)),1,0)","v":0},{"$f":"IF(AND(IF(algorithm!$D$4='BAM tables'!D493,1,0),IF(algorithm!$AL$4='BAM tables'!A493,1,0),IF(algorithm!$AL$5='BAM tables'!B493,1,0),IF(algorithm!$AL$6='BAM tables'!C493,1,0)),1,0)","v":0}]
[8,8,2,8,null,{"$f":"IF(AND(IF(algorithm!$D$4='BAM tables'!D494,1,0),IF(algorithm!$AH$4='BAM tables'!A494,1,0),IF(algorithm!$AH$5='BAM tables'!B494,1,0),IF(algorithm!$AH$6='BAM tables'!C494,1,0)),1,0)","v":0},{"$f":"IF(AND(IF(algorithm!$D$4='BAM tables'!D494,1,0),IF(algorithm!$AL$4='BAM tables'!A494,1,0),IF(algorithm!$AL$5='BAM tables'!B494,1,0),IF(algorithm!$AL$6='BAM tables'!C494,1,0)),1,0)","v":0}]
[8,8,3,8,null,{"$f":"IF(AND(IF(algorithm!$D$4='BAM tables'!D495,1,0),IF(algorithm!$AH$4='BAM tables'!A495,1,0),IF(algorithm!$AH$5='BAM tables'!B495,1,0),IF(algorithm!$AH$6='BAM tables'!C495,1,0)),1,0)","v":0},{"$f":"IF(AND(IF(algorithm!$D$4='BAM tables'!D495,1,0),IF(algorithm!$AL$4='BAM tables'!A495,1,0),IF(algorithm!$AL$5='BAM tables'!B495,1,0),IF(algorithm!$AL$6='BAM tables'!C495,1,0)),1,0)","v":0}]
[8,8,4,8,null,{"$f":"IF(AND(IF(algorithm!$D$4='BAM tables'!D496,1,0),IF(algorithm!$AH$4='BAM tables'!A496,1,0),IF(algorithm!$AH$5='BAM tables'!B496,1,0),IF(algorithm!$AH$6='BAM tables'!C496,1,0)),1,0)","v":0},{"$f":"IF(AND(IF(algorithm!$D$4='BAM tables'!D496,1,0),IF(algorithm!$AL$4='BAM tables'!A496,1,0),IF(algorithm!$AL$5='BAM tables'!B496,1,0),IF(algorithm!$AL$6='BAM tables'!C496,1,0)),1,0)","v":0}]
[8,8,5,8,null,{"$f":"IF(AND(IF(algorithm!$D$4='BAM tables'!D497,1,0),IF(algorithm!$AH$4='BAM tables'!A497,1,0),IF(algorithm!$AH$5='BAM tables'!B497,1,0),IF(algorithm!$AH$6='BAM tables'!C497,1,0)),1,0)","v":0},{"$f":"IF(AND(IF(algorithm!$D$4='BAM tables'!D497,1,0),IF(algorithm!$AL$4='BAM tables'!A497,1,0),IF(algorithm!$AL$5='BAM tables'!B497,1,0),IF(algorithm!$AL$6='BAM tables'!C497,1,0)),1,0)","v":0}]
[8,8,6,8,null,{"$f":"IF(AND(IF(algorithm!$D$4='BAM tables'!D498,1,0),IF(algorithm!$AH$4='BAM tables'!A498,1,0),IF(algorithm!$AH$5='BAM tables'!B498,1,0),IF(algorithm!$AH$6='BAM tables'!C498,1,0)),1,0)","v":0},{"$f":"IF(AND(IF(algorithm!$D$4='BAM tables'!D498,1,0),IF(algorithm!$AL$4='BAM tables'!A498,1,0),IF(algorithm!$AL$5='BAM tables'!B498,1,0),IF(algorithm!$AL$6='BAM tables'!C498,1,0)),1,0)","v":0}]
[8,8,7,8,null,{"$f":"IF(AND(IF(algorithm!$D$4='BAM tables'!D499,1,0),IF(algorithm!$AH$4='BAM tables'!A499,1,0),IF(algorithm!$AH$5='BAM tables'!B499,1,0),IF(algorithm!$AH$6='BAM tables'!C499,1,0)),1,0)","v":0},{"$f":"IF(AND(IF(algorithm!$D$4='BAM tables'!D499,1,0),IF(algorithm!$AL$4='BAM tables'!A499,1,0),IF(algorithm!$AL$5='BAM tables'!B499,1,0),IF(algorithm!$AL$6='BAM tables'!C499,1,0)),1,0)","v":0}]
[8,8,8,8,null,{"$f":"IF(AND(IF(algorithm!$D$4='BAM tables'!D500,1,0),IF(algorithm!$AH$4='BAM tables'!A500,1,0),IF(algorithm!$AH$5='BAM tables'!B500,1,0),IF(algorithm!$AH$6='BAM tables'!C500,1,0)),1,0)","v":0},{"$f":"IF(AND(IF(algorithm!$D$4='BAM tables'!D500,1,0),IF(algorithm!$AL$4='BAM tables'!A500,1,0),IF(algorithm!$AL$5='BAM tables'!B500,1,0),IF(algorithm!$AL$6='BAM tables'!C500,1,0)),1,0)","v":0}]
[9,0,0,10,null,{"$f":"IF(AND(IF(algorithm!$D$4='BAM tables'!D501,1,0),IF(algorithm!$AH$4='BAM tables'!A501,1,0),IF(algorithm!$AH$5='BAM tables'!B501,1,0),IF(algorithm!$AH$6='BAM tables'!C501,1,0)),1,0)","v":0},{"$f":"IF(AND(IF(algorithm!$D$4='BAM tables'!D501,1,0),IF(algorithm!$AL$4='BAM tables'!A501,1,0),IF(algorithm!$AL$5='BAM tables'!B501,1,0),IF(algorithm!$AL$6='BAM tables'!C501,1,0)),1,0)","v":0}]
[9,0,1,10,null,{"$f":"IF(AND(IF(algorithm!$D$4='BAM tables'!D502,1,0),IF(algorithm!$AH$4='BAM tables'!A502,1,0),IF(algorithm!$AH$5='BAM tables'!B502,1,0),IF(algorithm!$AH$6='BAM tables'!C502,1,0)),1,0)","v":0},{"$f":"IF(AND(IF(algorithm!$D$4='BAM tables'!D502,1,0),IF(algorithm!$AL$4='BAM tables'!A502,1,0),IF(algorithm!$AL$5='BAM tables'!B502,1,0),IF(algorithm!$AL$6='BAM tables'!C502,1,0)),1,0)","v":0}]
[9,0,2,10,null,{"$f":"IF(AND(IF(algorithm!$D$4='BAM tables'!D503,1,0),IF(algorithm!$AH$4='BAM tables'!A503,1,0),IF(algorithm!$AH$5='BAM tables'!B503,1,0),IF(algorithm!$AH$6='BAM tables'!C503,1,0)),1,0)","v":0},{"$f":"IF(AND(IF(algorithm!$D$4='BAM tables'!D503,1,0),IF(algorithm!$AL$4='BAM tables'!A503,1,0),IF(algorithm!$AL$5='BAM tables'!B503,1,0),IF(algorithm!$AL$6='BAM tables'!C503,1,0)),1,0)","v":0}]
[9,0,3,10,null,{"$f":"IF(AND(IF(algorithm!$D$4='BAM tables'!D504,1,0),IF(algorithm!$AH$4='BAM tables'!A504,1,0),IF(algorithm!$AH$5='BAM tables'!B504,1,0),IF(algorithm!$AH$6='BAM tables'!C504,1,0)),1,0)","v":0},{"$f":"IF(AND(IF(algorithm!$D$4='BAM tables'!D504,1,0),IF(algorithm!$AL$4='BAM tables'!A504,1,0),IF(algorithm!$AL$5='BAM tables'!B504,1,0),IF(algorithm!$AL$6='BAM tables'!C504,1,0)),1,0)","v":0}]
[9,1,0,10,null,{"$f":"IF(AND(IF(algorithm!$D$4='BAM tables'!D505,1,0),IF(algorithm!$AH$4='BAM tables'!A505,1,0),IF(algorithm!$AH$5='BAM tables'!B505,1,0),IF(algorithm!$AH$6='BAM tables'!C505,1,0)),1,0)","v":0},{"$f":"IF(AND(IF(algorithm!$D$4='BAM tables'!D505,1,0),IF(algorithm!$AL$4='BAM tables'!A505,1,0),IF(algorithm!$AL$5='BAM tables'!B505,1,0),IF(algorithm!$AL$6='BAM tables'!C505,1,0)),1,0)","v":0}]
[9,1,1,10,null,{"$f":"IF(AND(IF(algorithm!$D$4='BAM tables'!D506,1,0),IF(algorithm!$AH$4='BAM tables'!A506,1,0),IF(algorithm!$AH$5='BAM tables'!B506,1,0),IF(algorithm!$AH$6='BAM tables'!C506,1,0)),1,0)","v":0},{"$f":"IF(AND(IF(algorithm!$D$4='BAM tables'!D506,1,0),IF(algorithm!$AL$4='BAM tables'!A506,1,0),IF(algorithm!$AL$5='BAM tables'!B506,1,0),IF(algorithm!$AL$6='BAM tables'!C506,1,0)),1,0)","v":0}]
[9,1,2,10,null,{"$f":"IF(AND(IF(algorithm!$D$4='BAM tables'!D507,1,0),IF(algorithm!$AH$4='BAM tables'!A507,1,0),IF(algorithm!$AH$5='BAM tables'!B507,1,0),IF(algorithm!$AH$6='BAM tables'!C507,1,0)),1,0)","v":0},{"$f":"IF(AND(IF(algorithm!$D$4='BAM tables'!D507,1,0),IF(algorithm!$AL$4='BAM tables'!A507,1,0),IF(algorithm!$AL$5='BAM tables'!B507,1,0),IF(algorithm!$AL$6='BAM tables'!C507,1,0)),1,0)","v":0}]
[9,1,3,10,null,{"$f":"IF(AND(IF(algorithm!$D$4='BAM tables'!D508,1,0),IF(algorithm!$AH$4='BAM tables'!A508,1,0),IF(algorithm!$AH$5='BAM tables'!B508,1,0),IF(algorithm!$AH$6='BAM tables'!C508,1,0)),1,0)","v":0},{"$f":"IF(AND(IF(algorithm!$D$4='BAM tables'!D508,1,0),IF(algorithm!$AL$4='BAM tables'!A508,1,0),IF(algorithm!$AL$5='BAM tables'!B508,1,0),IF(algorithm!$AL$6='BAM tables'!C508,1,0)),1,0)","v":0}]
[9,1,4,10,null,{"$f":"IF(AND(IF(algorithm!$D$4='BAM tables'!D509,1,0),IF(algorithm!$AH$4='BAM tables'!A509,1,0),IF(algorithm!$AH$5='BAM tables'!B509,1,0),IF(algorithm!$AH$6='BAM tables'!C509,1,0)),1,0)","v":0},{"$f":"IF(AND(IF(algorithm!$D$4='BAM tables'!D509,1,0),IF(algorithm!$AL$4='BAM tables'!A509,1,0),IF(algorithm!$AL$5='BAM tables'!B509,1,0),IF(algorithm!$AL$6='BAM tables'!C509,1,0)),1,0)","v":0}]
[9,2,0,10,null,{"$f":"IF(AND(IF(algorithm!$D$4='BAM tables'!D510,1,0),IF(algorithm!$AH$4='BAM tables'!A510,1,0),IF(algorithm!$AH$5='BAM tables'!B510,1,0),IF(algorithm!$AH$6='BAM tables'!C510,1,0)),1,0)","v":0},{"$f":"IF(AND(IF(algorithm!$D$4='BAM tables'!D510,1,0),IF(algorithm!$AL$4='BAM tables'!A510,1,0),IF(algorithm!$AL$5='BAM tables'!B510,1,0),IF(algorithm!$AL$6='BAM tables'!C510,1,0)),1,0)","v":0}]
[9,2,1,10,null,{"$f":"IF(AND(IF(algorithm!$D$4='BAM tables'!D511,1,0),IF(algorithm!$AH$4='BAM tables'!A511,1,0),IF(algorithm!$AH$5='BAM tables'!B511,1,0),IF(algorithm!$AH$6='BAM tables'!C511,1,0)),1,0)","v":0},{"$f":"IF(AND(IF(algorithm!$D$4='BAM tables'!D511,1,0),IF(algorithm!$AL$4='BAM tables'!A511,1,0),IF(algorithm!$AL$5='BAM tables'!B511,1,0),IF(algorithm!$AL$6='BAM tables'!C511,1,0)),1,0)","v":0}]
[9,2,2,10,null,{"$f":"IF(AND(IF(algorithm!$D$4='BAM tables'!D512,1,0),IF(algorithm!$AH$4='BAM tables'!A512,1,0),IF(algorithm!$AH$5='BAM tables'!B512,1,0),IF(algorithm!$AH$6='BAM tables'!C512,1,0)),1,0)","v":0},{"$f":"IF(AND(IF(algorithm!$D$4='BAM tables'!D512,1,0),IF(algorithm!$AL$4='BAM tables'!A512,1,0),IF(algorithm!$AL$5='BAM tables'!B512,1,0),IF(algorithm!$AL$6='BAM tables'!C512,1,0)),1,0)","v":0}]
[9,2,3,10,null,{"$f":"IF(AND(IF(algorithm!$D$4='BAM tables'!D513,1,0),IF(algorithm!$AH$4='BAM tables'!A513,1,0),IF(algorithm!$AH$5='BAM tables'!B513,1,0),IF(algorithm!$AH$6='BAM tables'!C513,1,0)),1,0)","v":0},{"$f":"IF(AND(IF(algorithm!$D$4='BAM tables'!D513,1,0),IF(algorithm!$AL$4='BAM tables'!A513,1,0),IF(algorithm!$AL$5='BAM tables'!B513,1,0),IF(algorithm!$AL$6='BAM tables'!C513,1,0)),1,0)","v":0}]
[9,2,4,10,null,{"$f":"IF(AND(IF(algorithm!$D$4='BAM tables'!D514,1,0),IF(algorithm!$AH$4='BAM tables'!A514,1,0),IF(algorithm!$AH$5='BAM tables'!B514,1,0),IF(algorithm!$AH$6='BAM tables'!C514,1,0)),1,0)","v":0},{"$f":"IF(AND(IF(algorithm!$D$4='BAM tables'!D514,1,0),IF(algorithm!$AL$4='BAM tables'!A514,1,0),IF(algorithm!$AL$5='BAM tables'!B514,1,0),IF(algorithm!$AL$6='BAM tables'!C514,1,0)),1,0)","v":0}]
[9,3,0,10,null,{"$f":"IF(AND(IF(algorithm!$D$4='BAM tables'!D515,1,0),IF(algorithm!$AH$4='BAM tables'!A515,1,0),IF(algorithm!$AH$5='BAM tables'!B515,1,0),IF(algorithm!$AH$6='BAM tables'!C515,1,0)),1,0)","v":0},{"$f":"IF(AND(IF(algorithm!$D$4='BAM tables'!D515,1,0),IF(algorithm!$AL$4='BAM tables'!A515,1,0),IF(algorithm!$AL$5='BAM tables'!B515,1,0),IF(algorithm!$AL$6='BAM tables'!C515,1,0)),1,0)","v":0}]
[9,3,1,10,null,{"$f":"IF(AND(IF(algorithm!$D$4='BAM tables'!D516,1,0),IF(algorithm!$AH$4='BAM tables'!A516,1,0),IF(algorithm!$AH$5='BAM tables'!B516,1,0),IF(algorithm!$AH$6='BAM tables'!C516,1,0)),1,0)","v":0},{"$f":"IF(AND(IF(algorithm!$D$4='BAM tables'!D516,1,0),IF(algorithm!$AL$4='BAM tables'!A516,1,0),IF(algorithm!$AL$5='BAM tables'!B516,1,0),IF(algorithm!$AL$6='BAM tables'!C516,1,0)),1,0)","v":0}]
[9,3,2,10,null,{"$f":"IF(AND(IF(algorithm!$D$4='BAM tables'!D517,1,0),IF(algorithm!$AH$4='BAM tables'!A517,1,0),IF(algorithm!$AH$5='BAM tables'!B517,1,0),IF(algorithm!$AH$6='BAM tables'!C517,1,0)),1,0)","v":0},{"$f":"IF(AND(IF(algorithm!$D$4='BAM tables'!D517,1,0),IF(algorithm!$AL$4='BAM tables'!A517,1,0),IF(algorithm!$AL$5='BAM tables'!B517,1,0),IF(algorithm!$AL$6='BAM tables'!C517,1,0)),1,0)","v":0}]
[9,3,3,10,null,{"$f":"IF(AND(IF(algorithm!$D$4='BAM tables'!D518,1,0),IF(algorithm!$AH$4='BAM tables'!A518,1,0),IF(algorithm!$AH$5='BAM tables'!B518,1,0),IF(algorithm!$AH$6='BAM tables'!C518,1,0)),1,0)","v":0},{"$f":"IF(AND(IF(algorithm!$D$4='BAM tables'!D518,1,0),IF(algorithm!$AL$4='BAM tables'!A518,1,0),IF(algorithm!$AL$5='BAM tables'!B518,1,0),IF(algorithm!$AL$6='BAM tables'!C518,1,0)),1,0)","v":0}]
[9,3,4,10,null,{"$f":"IF(AND(IF(algorithm!$D$4='BAM tables'!D519,1,0),IF(algorithm!$AH$4='BAM tables'!A519,1,0),IF(algorithm!$AH$5='BAM tables'!B519,1,0),IF(algorithm!$AH$6='BAM tables'!C519,1,0)),1,0)","v":0},{"$f":"IF(AND(IF(algorithm!$D$4='BAM tables'!D519,1,0),IF(algorithm!$AL$4='BAM tables'!A519,1,0),IF(algorithm!$AL$5='BAM tables'!B519,1,0),IF(algorithm!$AL$6='BAM tables'!C519,1,0)),1,0)","v":0}]
[9,4,0,10,null,{"$f":"IF(AND(IF(algorithm!$D$4='BAM tables'!D520,1,0),IF(algorithm!$AH$4='BAM tables'!A520,1,0),IF(algorithm!$AH$5='BAM tables'!B520,1,0),IF(algorithm!$AH$6='BAM tables'!C520,1,0)),1,0)","v":0},{"$f":"IF(AND(IF(algorithm!$D$4='BAM tables'!D520,1,0),IF(algorithm!$AL$4='BAM tables'!A520,1,0),IF(algorithm!$AL$5='BAM tables'!B520,1,0),IF(algorithm!$AL$6='BAM tables'!C520,1,0)),1,0)","v":0}]
[9,4,1,10,null,{"$f":"IF(AND(IF(algorithm!$D$4='BAM tables'!D521,1,0),IF(algorithm!$AH$4='BAM tables'!A521,1,0),IF(algorithm!$AH$5='BAM tables'!B521,1,0),IF(algorithm!$AH$6='BAM tables'!C521,1,0)),1,0)","v":0},{"$f":"IF(AND(IF(algorithm!$D$4='BAM tables'!D521,1,0),IF(algorithm!$AL$4='BAM tables'!A521,1,0),IF(algorithm!$AL$5='BAM tables'!B521,1,0),IF(algorithm!$AL$6='BAM tables'!C521,1,0)),1,0)","v":0}]
[9,4,2,10,null,{"$f":"IF(AND(IF(algorithm!$D$4='BAM tables'!D522,1,0),IF(algorithm!$AH$4='BAM tables'!A522,1,0),IF(algorithm!$AH$5='BAM tables'!B522,1,0),IF(algorithm!$AH$6='BAM tables'!C522,1,0)),1,0)","v":0},{"$f":"IF(AND(IF(algorithm!$D$4='BAM tables'!D522,1,0),IF(algorithm!$AL$4='BAM tables'!A522,1,0),IF(algorithm!$AL$5='BAM tables'!B522,1,0),IF(algorithm!$AL$6='BAM tables'!C522,1,0)),1,0)","v":0}]
[9,4,3,10,null,{"$f":"IF(AND(IF(algorithm!$D$4='BAM tables'!D523,1,0),IF(algorithm!$AH$4='BAM tables'!A523,1,0),IF(algorithm!$AH$5='BAM tables'!B523,1,0),IF(algorithm!$AH$6='BAM tables'!C523,1,0)),1,0)","v":0},{"$f":"IF(AND(IF(algorithm!$D$4='BAM tables'!D523,1,0),IF(algorithm!$AL$4='BAM tables'!A523,1,0),IF(algorithm!$AL$5='BAM tables'!B523,1,0),IF(algorithm!$AL$6='BAM tables'!C523,1,0)),1,0)","v":0}]
[9,4,4,10,null,{"$f":"IF(AND(IF(algorithm!$D$4='BAM tables'!D524,1,0),IF(algorithm!$AH$4='BAM tables'!A524,1,0),IF(algorithm!$AH$5='BAM tables'!B524,1,0),IF(algorithm!$AH$6='BAM tables'!C524,1,0)),1,0)","v":0},{"$f":"IF(AND(IF(algorithm!$D$4='BAM tables'!D524,1,0),IF(algorithm!$AL$4='BAM tables'!A524,1,0),IF(algorithm!$AL$5='BAM tables'!B524,1,0),IF(algorithm!$AL$6='BAM tables'!C524,1,0)),1,0)","v":0}]
[9,5,0,10,null,{"$f":"IF(AND(IF(algorithm!$D$4='BAM tables'!D525,1,0),IF(algorithm!$AH$4='BAM tables'!A525,1,0),IF(algorithm!$AH$5='BAM tables'!B525,1,0),IF(algorithm!$AH$6='BAM tables'!C525,1,0)),1,0)","v":0},{"$f":"IF(AND(IF(algorithm!$D$4='BAM tables'!D525,1,0),IF(algorithm!$AL$4='BAM tables'!A525,1,0),IF(algorithm!$AL$5='BAM tables'!B525,1,0),IF(algorithm!$AL$6='BAM tables'!C525,1,0)),1,0)","v":0}]
[9,5,1,10,null,{"$f":"IF(AND(IF(algorithm!$D$4='BAM tables'!D526,1,0),IF(algorithm!$AH$4='BAM tables'!A526,1,0),IF(algorithm!$AH$5='BAM tables'!B526,1,0),IF(algorithm!$AH$6='BAM tables'!C526,1,0)),1,0)","v":0},{"$f":"IF(AND(IF(algorithm!$D$4='BAM tables'!D526,1,0),IF(algorithm!$AL$4='BAM tables'!A526,1,0),IF(algorithm!$AL$5='BAM tables'!B526,1,0),IF(algorithm!$AL$6='BAM tables'!C526,1,0)),1,0)","v":0}]
[9,5,2,10,null,{"$f":"IF(AND(IF(algorithm!$D$4='BAM tables'!D527,1,0),IF(algorithm!$AH$4='BAM tables'!A527,1,0),IF(algorithm!$AH$5='BAM tables'!B527,1,0),IF(algorithm!$AH$6='BAM tables'!C527,1,0)),1,0)","v":0},{"$f":"IF(AND(IF(algorithm!$D$4='BAM tables'!D527,1,0),IF(algorithm!$AL$4='BAM tables'!A527,1,0),IF(algorithm!$AL$5='BAM tables'!B527,1,0),IF(algorithm!$AL$6='BAM tables'!C527,1,0)),1,0)","v":0}]
[9,5,3,10,null,{"$f":"IF(AND(IF(algorithm!$D$4='BAM tables'!D528,1,0),IF(algorithm!$AH$4='BAM tables'!A528,1,0),IF(algorithm!$AH$5='BAM tables'!B528,1,0),IF(algorithm!$AH$6='BAM tables'!C528,1,0)),1,0)","v":0},{"$f":"IF(AND(IF(algorithm!$D$4='BAM tables'!D528,1,0),IF(algorithm!$AL$4='BAM tables'!A528,1,0),IF(algorithm!$AL$5='BAM tables'!B528,1,0),IF(algorithm!$AL$6='BAM tables'!C528,1,0)),1,0)","v":0}]
[9,5,4,10,null,{"$f":"IF(AND(IF(algorithm!$D$4='BAM tables'!D529,1,0),IF(algorithm!$AH$4='BAM tables'!A529,1,0),IF(algorithm!$AH$5='BAM tables'!B529,1,0),IF(algorithm!$AH$6='BAM tables'!C529,1,0)),1,0)","v":0},{"$f":"IF(AND(IF(algorithm!$D$4='BAM tables'!D529,1,0),IF(algorithm!$AL$4='BAM tables'!A529,1,0),IF(algorithm!$AL$5='BAM tables'!B529,1,0),IF(algorithm!$AL$6='BAM tables'!C529,1,0)),1,0)","v":0}]
[9,6,0,10,null,{"$f":"IF(AND(IF(algorithm!$D$4='BAM tables'!D530,1,0),IF(algorithm!$AH$4='BAM tables'!A530,1,0),IF(algorithm!$AH$5='BAM tables'!B530,1,0),IF(algorithm!$AH$6='BAM tables'!C530,1,0)),1,0)","v":0},{"$f":"IF(AND(IF(algorithm!$D$4='BAM tables'!D530,1,0),IF(algorithm!$AL$4='BAM tables'!A530,1,0),IF(algorithm!$AL$5='BAM tables'!B530,1,0),IF(algorithm!$AL$6='BAM tables'!C530,1,0)),1,0)","v":0}]
[9,6,1,10,null,{"$f":"IF(AND(IF(algorithm!$D$4='BAM tables'!D531,1,0),IF(algorithm!$AH$4='BAM tables'!A531,1,0),IF(algorithm!$AH$5='BAM tables'!B531,1,0),IF(algorithm!$AH$6='BAM tables'!C531,1,0)),1,0)","v":0},{"$f":"IF(AND(IF(algorithm!$D$4='BAM tables'!D531,1,0),IF(algorithm!$AL$4='BAM tables'!A531,1,0),IF(algorithm!$AL$5='BAM tables'!B531,1,0),IF(algorithm!$AL$6='BAM tables'!C531,1,0)),1,0)","v":0}]
[9,6,2,10,null,{"$f":"IF(AND(IF(algorithm!$D$4='BAM tables'!D532,1,0),IF(algorithm!$AH$4='BAM tables'!A532,1,0),IF(algorithm!$AH$5='BAM tables'!B532,1,0),IF(algorithm!$AH$6='BAM tables'!C532,1,0)),1,0)","v":0},{"$f":"IF(AND(IF(algorithm!$D$4='BAM tables'!D532,1,0),IF(algorithm!$AL$4='BAM tables'!A532,1,0),IF(algorithm!$AL$5='BAM tables'!B532,1,0),IF(algorithm!$AL$6='BAM tables'!C532,1,0)),1,0)","v":0}]
[9,6,3,10,null,{"$f":"IF(AND(IF(algorithm!$D$4='BAM tables'!D533,1,0),IF(algorithm!$AH$4='BAM tables'!A533,1,0),IF(algorithm!$AH$5='BAM tables'!B533,1,0),IF(algorithm!$AH$6='BAM tables'!C533,1,0)),1,0)","v":0},{"$f":"IF(AND(IF(algorithm!$D$4='BAM tables'!D533,1,0),IF(algorithm!$AL$4='BAM tables'!A533,1,0),IF(algorithm!$AL$5='BAM tables'!B533,1,0),IF(algorithm!$AL$6='BAM tables'!C533,1,0)),1,0)","v":0}]
[9,7,0,10,null,{"$f":"IF(AND(IF(algorithm!$D$4='BAM tables'!D534,1,0),IF(algorithm!$AH$4='BAM tables'!A534,1,0),IF(algorithm!$AH$5='BAM tables'!B534,1,0),IF(algorithm!$AH$6='BAM tables'!C534,1,0)),1,0)","v":0},{"$f":"IF(AND(IF(algorithm!$D$4='BAM tables'!D534,1,0),IF(algorithm!$AL$4='BAM tables'!A534,1,0),IF(algorithm!$AL$5='BAM tables'!B534,1,0),IF(algorithm!$AL$6='BAM tables'!C534,1,0)),1,0)","v":0}]
[9,7,1,10,null,{"$f":"IF(AND(IF(algorithm!$D$4='BAM tables'!D535,1,0),IF(algorithm!$AH$4='BAM tables'!A535,1,0),IF(algorithm!$AH$5='BAM tables'!B535,1,0),IF(algorithm!$AH$6='BAM tables'!C535,1,0)),1,0)","v":0},{"$f":"IF(AND(IF(algorithm!$D$4='BAM tables'!D535,1,0),IF(algorithm!$AL$4='BAM tables'!A535,1,0),IF(algorithm!$AL$5='BAM tables'!B535,1,0),IF(algorithm!$AL$6='BAM tables'!C535,1,0)),1,0)","v":0}]
[9,7,2,10,null,{"$f":"IF(AND(IF(algorithm!$D$4='BAM tables'!D536,1,0),IF(algorithm!$AH$4='BAM tables'!A536,1,0),IF(algorithm!$AH$5='BAM tables'!B536,1,0),IF(algorithm!$AH$6='BAM tables'!C536,1,0)),1,0)","v":0},{"$f":"IF(AND(IF(algorithm!$D$4='BAM tables'!D536,1,0),IF(algorithm!$AL$4='BAM tables'!A536,1,0),IF(algorithm!$AL$5='BAM tables'!B536,1,0),IF(algorithm!$AL$6='BAM tables'!C536,1,0)),1,0)","v":0}]
[9,7,3,10,null,{"$f":"IF(AND(IF(algorithm!$D$4='BAM tables'!D537,1,0),IF(algorithm!$AH$4='BAM tables'!A537,1,0),IF(algorithm!$AH$5='BAM tables'!B537,1,0),IF(algorithm!$AH$6='BAM tables'!C537,1,0)),1,0)","v":0},{"$f":"IF(AND(IF(algorithm!$D$4='BAM tables'!D537,1,0),IF(algorithm!$AL$4='BAM tables'!A537,1,0),IF(algorithm!$AL$5='BAM tables'!B537,1,0),IF(algorithm!$AL$6='BAM tables'!C537,1,0)),1,0)","v":0}]
[9,8,0,10,null,{"$f":"IF(AND(IF(algorithm!$D$4='BAM tables'!D538,1,0),IF(algorithm!$AH$4='BAM tables'!A538,1,0),IF(algorithm!$AH$5='BAM tables'!B538,1,0),IF(algorithm!$AH$6='BAM tables'!C538,1,0)),1,0)","v":0},{"$f":"IF(AND(IF(algorithm!$D$4='BAM tables'!D538,1,0),IF(algorithm!$AL$4='BAM tables'!A538,1,0),IF(algorithm!$AL$5='BAM tables'!B538,1,0),IF(algorithm!$AL$6='BAM tables'!C538,1,0)),1,0)","v":0}]
[9,8,1,10,null,{"$f":"IF(AND(IF(algorithm!$D$4='BAM tables'!D539,1,0),IF(algorithm!$AH$4='BAM tables'!A539,1,0),IF(algorithm!$AH$5='BAM tables'!B539,1,0),IF(algorithm!$AH$6='BAM tables'!C539,1,0)),1,0)","v":0},{"$f":"IF(AND(IF(algorithm!$D$4='BAM tables'!D539,1,0),IF(algorithm!$AL$4='BAM tables'!A539,1,0),IF(algorithm!$AL$5='BAM tables'!B539,1,0),IF(algorithm!$AL$6='BAM tables'!C539,1,0)),1,0)","v":0}]
[9,8,2,10,null,{"$f":"IF(AND(IF(algorithm!$D$4='BAM tables'!D540,1,0),IF(algorithm!$AH$4='BAM tables'!A540,1,0),IF(algorithm!$AH$5='BAM tables'!B540,1,0),IF(algorithm!$AH$6='BAM tables'!C540,1,0)),1,0)","v":0},{"$f":"IF(AND(IF(algorithm!$D$4='BAM tables'!D540,1,0),IF(algorithm!$AL$4='BAM tables'!A540,1,0),IF(algorithm!$AL$5='BAM tables'!B540,1,0),IF(algorithm!$AL$6='BAM tables'!C540,1,0)),1,0)","v":0}]
[9,8,3,10,null,{"$f":"IF(AND(IF(algorithm!$D$4='BAM tables'!D541,1,0),IF(algorithm!$AH$4='BAM tables'!A541,1,0),IF(algorithm!$AH$5='BAM tables'!B541,1,0),IF(algorithm!$AH$6='BAM tables'!C541,1,0)),1,0)","v":0},{"$f":"IF(AND(IF(algorithm!$D$4='BAM tables'!D541,1,0),IF(algorithm!$AL$4='BAM tables'!A541,1,0),IF(algorithm!$AL$5='BAM tables'!B541,1,0),IF(algorithm!$AL$6='BAM tables'!C541,1,0)),1,0)","v":0}]
[9,9,0,10,null,{"$f":"IF(AND(IF(algorithm!$D$4='BAM tables'!D542,1,0),IF(algorithm!$AH$4='BAM tables'!A542,1,0),IF(algorithm!$AH$5='BAM tables'!B542,1,0),IF(algorithm!$AH$6='BAM tables'!C542,1,0)),1,0)","v":0},{"$f":"IF(AND(IF(algorithm!$D$4='BAM tables'!D542,1,0),IF(algorithm!$AL$4='BAM tables'!A542,1,0),IF(algorithm!$AL$5='BAM tables'!B542,1,0),IF(algorithm!$AL$6='BAM tables'!C542,1,0)),1,0)","v":0}]
[9,9,1,10,null,{"$f":"IF(AND(IF(algorithm!$D$4='BAM tables'!D543,1,0),IF(algorithm!$AH$4='BAM tables'!A543,1,0),IF(algorithm!$AH$5='BAM tables'!B543,1,0),IF(algorithm!$AH$6='BAM tables'!C543,1,0)),1,0)","v":0},{"$f":"IF(AND(IF(algorithm!$D$4='BAM tables'!D543,1,0),IF(algorithm!$AL$4='BAM tables'!A543,1,0),IF(algorithm!$AL$5='BAM tables'!B543,1,0),IF(algorithm!$AL$6='BAM tables'!C543,1,0)),1,0)","v":0}]
[9,9,2,10,null,{"$f":"IF(AND(IF(algorithm!$D$4='BAM tables'!D544,1,0),IF(algorithm!$AH$4='BAM tables'!A544,1,0),IF(algorithm!$AH$5='BAM tables'!B544,1,0),IF(algorithm!$AH$6='BAM tables'!C544,1,0)),1,0)","v":0},{"$f":"IF(AND(IF(algorithm!$D$4='BAM tables'!D544,1,0),IF(algorithm!$AL$4='BAM tables'!A544,1,0),IF(algorithm!$AL$5='BAM tables'!B544,1,0),IF(algorithm!$AL$6='BAM tables'!C544,1,0)),1,0)","v":0}]
[10,0,0,10,null,{"$f":"IF(AND(IF(algorithm!$D$4='BAM tables'!D545,1,0),IF(algorithm!$AH$4='BAM tables'!A545,1,0),IF(algorithm!$AH$5='BAM tables'!B545,1,0),IF(algorithm!$AH$6='BAM tables'!C545,1,0)),1,0)","v":0},{"$f":"IF(AND(IF(algorithm!$D$4='BAM tables'!D545,1,0),IF(algorithm!$AL$4='BAM tables'!A545,1,0),IF(algorithm!$AL$5='BAM tables'!B545,1,0),IF(algorithm!$AL$6='BAM tables'!C545,1,0)),1,0)","v":0}]
[10,0,1,10,null,{"$f":"IF(AND(IF(algorithm!$D$4='BAM tables'!D546,1,0),IF(algorithm!$AH$4='BAM tables'!A546,1,0),IF(algorithm!$AH$5='BAM tables'!B546,1,0),IF(algorithm!$AH$6='BAM tables'!C546,1,0)),1,0)","v":0},{"$f":"IF(AND(IF(algorithm!$D$4='BAM tables'!D546,1,0),IF(algorithm!$AL$4='BAM tables'!A546,1,0),IF(algorithm!$AL$5='BAM tables'!B546,1,0),IF(algorithm!$AL$6='BAM tables'!C546,1,0)),1,0)","v":0}]
[10,0,2,10,null,{"$f":"IF(AND(IF(algorithm!$D$4='BAM tables'!D547,1,0),IF(algorithm!$AH$4='BAM tables'!A547,1,0),IF(algorithm!$AH$5='BAM tables'!B547,1,0),IF(algorithm!$AH$6='BAM tables'!C547,1,0)),1,0)","v":0},{"$f":"IF(AND(IF(algorithm!$D$4='BAM tables'!D547,1,0),IF(algorithm!$AL$4='BAM tables'!A547,1,0),IF(algorithm!$AL$5='BAM tables'!B547,1,0),IF(algorithm!$AL$6='BAM tables'!C547,1,0)),1,0)","v":0}]
[10,0,3,10,null,{"$f":"IF(AND(IF(algorithm!$D$4='BAM tables'!D548,1,0),IF(algorithm!$AH$4='BAM tables'!A548,1,0),IF(algorithm!$AH$5='BAM tables'!B548,1,0),IF(algorithm!$AH$6='BAM tables'!C548,1,0)),1,0)","v":0},{"$f":"IF(AND(IF(algorithm!$D$4='BAM tables'!D548,1,0),IF(algorithm!$AL$4='BAM tables'!A548,1,0),IF(algorithm!$AL$5='BAM tables'!B548,1,0),IF(algorithm!$AL$6='BAM tables'!C548,1,0)),1,0)","v":0}]
[10,1,0,10,null,{"$f":"IF(AND(IF(algorithm!$D$4='BAM tables'!D549,1,0),IF(algorithm!$AH$4='BAM tables'!A549,1,0),IF(algorithm!$AH$5='BAM tables'!B549,1,0),IF(algorithm!$AH$6='BAM tables'!C549,1,0)),1,0)","v":0},{"$f":"IF(AND(IF(algorithm!$D$4='BAM tables'!D549,1,0),IF(algorithm!$AL$4='BAM tables'!A549,1,0),IF(algorithm!$AL$5='BAM tables'!B549,1,0),IF(algorithm!$AL$6='BAM tables'!C549,1,0)),1,0)","v":0}]
[10,1,1,10,null,{"$f":"IF(AND(IF(algorithm!$D$4='BAM tables'!D550,1,0),IF(algorithm!$AH$4='BAM tables'!A550,1,0),IF(algorithm!$AH$5='BAM tables'!B550,1,0),IF(algorithm!$AH$6='BAM tables'!C550,1,0)),1,0)","v":0},{"$f":"IF(AND(IF(algorithm!$D$4='BAM tables'!D550,1,0),IF(algorithm!$AL$4='BAM tables'!A550,1,0),IF(algorithm!$AL$5='BAM tables'!B550,1,0),IF(algorithm!$AL$6='BAM tables'!C550,1,0)),1,0)","v":0}]
[10,1,2,10,null,{"$f":"IF(AND(IF(algorithm!$D$4='BAM tables'!D551,1,0),IF(algorithm!$AH$4='BAM tables'!A551,1,0),IF(algorithm!$AH$5='BAM tables'!B551,1,0),IF(algorithm!$AH$6='BAM tables'!C551,1,0)),1,0)","v":0},{"$f":"IF(AND(IF(algorithm!$D$4='BAM tables'!D551,1,0),IF(algorithm!$AL$4='BAM tables'!A551,1,0),IF(algorithm!$AL$5='BAM tables'!B551,1,0),IF(algorithm!$AL$6='BAM tables'!C551,1,0)),1,0)","v":0}]
[10,1,3,10,null,{"$f":"IF(AND(IF(algorithm!$D$4='BAM tables'!D552,1,0),IF(algorithm!$AH$4='BAM tables'!A552,1,0),IF(algorithm!$AH$5='BAM tables'!B552,1,0),IF(algorithm!$AH$6='BAM tables'!C552,1,0)),1,0)","v":0},{"$f":"IF(AND(IF(algorithm!$D$4='BAM tables'!D552,1,0),IF(algorithm!$AL$4='BAM tables'!A552,1,0),IF(algorithm!$AL$5='BAM tables'!B552,1,0),IF(algorithm!$AL$6='BAM tables'!C552,1,0)),1,0)","v":0}]
[10,1,4,10,null,{"$f":"IF(AND(IF(algorithm!$D$4='BAM tables'!D553,1,0),IF(algorithm!$AH$4='BAM tables'!A553,1,0),IF(algorithm!$AH$5='BAM tables'!B553,1,0),IF(algorithm!$AH$6='BAM tables'!C553,1,0)),1,0)","v":0},{"$f":"IF(AND(IF(algorithm!$D$4='BAM tables'!D553,1,0),IF(algorithm!$AL$4='BAM tables'!A553,1,0),IF(algorithm!$AL$5='BAM tables'!B553,1,0),IF(algorithm!$AL$6='BAM tables'!C553,1,0)),1,0)","v":0}]
[10,2,0,10,null,{"$f":"IF(AND(IF(algorithm!$D$4='BAM tables'!D554,1,0),IF(algorithm!$AH$4='BAM tables'!A554,1,0),IF(algorithm!$AH$5='BAM tables'!B554,1,0),IF(algorithm!$AH$6='BAM tables'!C554,1,0)),1,0)","v":0},{"$f":"IF(AND(IF(algorithm!$D$4='BAM tables'!D554,1,0),IF(algorithm!$AL$4='BAM tables'!A554,1,0),IF(algorithm!$AL$5='BAM tables'!B554,1,0),IF(algorithm!$AL$6='BAM tables'!C554,1,0)),1,0)","v":0}]
[10,2,1,10,null,{"$f":"IF(AND(IF(algorithm!$D$4='BAM tables'!D555,1,0),IF(algorithm!$AH$4='BAM tables'!A555,1,0),IF(algorithm!$AH$5='BAM tables'!B555,1,0),IF(algorithm!$AH$6='BAM tables'!C555,1,0)),1,0)","v":0},{"$f":"IF(AND(IF(algorithm!$D$4='BAM tables'!D555,1,0),IF(algorithm!$AL$4='BAM tables'!A555,1,0),IF(algorithm!$AL$5='BAM tables'!B555,1,0),IF(algorithm!$AL$6='BAM tables'!C555,1,0)),1,0)","v":0}]
[10,2,2,10,null,{"$f":"IF(AND(IF(algorithm!$D$4='BAM tables'!D556,1,0),IF(algorithm!$AH$4='BAM tables'!A556,1,0),IF(algorithm!$AH$5='BAM tables'!B556,1,0),IF(algorithm!$AH$6='BAM tables'!C556,1,0)),1,0)","v":0},{"$f":"IF(AND(IF(algorithm!$D$4='BAM tables'!D556,1,0),IF(algorithm!$AL$4='BAM tables'!A556,1,0),IF(algorithm!$AL$5='BAM tables'!B556,1,0),IF(algorithm!$AL$6='BAM tables'!C556,1,0)),1,0)","v":0}]
[10,2,3,10,null,{"$f":"IF(AND(IF(algorithm!$D$4='BAM tables'!D557,1,0),IF(algorithm!$AH$4='BAM tables'!A557,1,0),IF(algorithm!$AH$5='BAM tables'!B557,1,0),IF(algorithm!$AH$6='BAM tables'!C557,1,0)),1,0)","v":0},{"$f":"IF(AND(IF(algorithm!$D$4='BAM tables'!D557,1,0),IF(algorithm!$AL$4='BAM tables'!A557,1,0),IF(algorithm!$AL$5='BAM tables'!B557,1,0),IF(algorithm!$AL$6='BAM tables'!C557,1,0)),1,0)","v":0}]
[10,2,4,10,null,{"$f":"IF(AND(IF(algorithm!$D$4='BAM tables'!D558,1,0),IF(algorithm!$AH$4='BAM tables'!A558,1,0),IF(algorithm!$AH$5='BAM tables'!B558,1,0),IF(algorithm!$AH$6='BAM tables'!C558,1,0)),1,0)","v":0},{"$f":"IF(AND(IF(algorithm!$D$4='BAM tables'!D558,1,0),IF(algorithm!$AL$4='BAM tables'!A558,1,0),IF(algorithm!$AL$5='BAM tables'!B558,1,0),IF(algorithm!$AL$6='BAM tables'!C558,1,0)),1,0)","v":0}]
[10,3,0,10,null,{"$f":"IF(AND(IF(algorithm!$D$4='BAM tables'!D559,1,0),IF(algorithm!$AH$4='BAM tables'!A559,1,0),IF(algorithm!$AH$5='BAM tables'!B559,1,0),IF(algorithm!$AH$6='BAM tables'!C559,1,0)),1,0)","v":0},{"$f":"IF(AND(IF(algorithm!$D$4='BAM tables'!D559,1,0),IF(algorithm!$AL$4='BAM tables'!A559,1,0),IF(algorithm!$AL$5='BAM tables'!B559,1,0),IF(algorithm!$AL$6='BAM tables'!C559,1,0)),1,0)","v":0}]
[10,3,1,10,null,{"$f":"IF(AND(IF(algorithm!$D$4='BAM tables'!D560,1,0),IF(algorithm!$AH$4='BAM tables'!A560,1,0),IF(algorithm!$AH$5='BAM tables'!B560,1,0),IF(algorithm!$AH$6='BAM tables'!C560,1,0)),1,0)","v":0},{"$f":"IF(AND(IF(algorithm!$D$4='BAM tables'!D560,1,0),IF(algorithm!$AL$4='BAM tables'!A560,1,0),IF(algorithm!$AL$5='BAM tables'!B560,1,0),IF(algorithm!$AL$6='BAM tables'!C560,1,0)),1,0)","v":0}]
[10,3,2,10,null,{"$f":"IF(AND(IF(algorithm!$D$4='BAM tables'!D561,1,0),IF(algorithm!$AH$4='BAM tables'!A561,1,0),IF(algorithm!$AH$5='BAM tables'!B561,1,0),IF(algorithm!$AH$6='BAM tables'!C561,1,0)),1,0)","v":0},{"$f":"IF(AND(IF(algorithm!$D$4='BAM tables'!D561,1,0),IF(algorithm!$AL$4='BAM tables'!A561,1,0),IF(algorithm!$AL$5='BAM tables'!B561,1,0),IF(algorithm!$AL$6='BAM tables'!C561,1,0)),1,0)","v":0}]
[10,3,3,10,null,{"$f":"IF(AND(IF(algorithm!$D$4='BAM tables'!D562,1,0),IF(algorithm!$AH$4='BAM tables'!A562,1,0),IF(algorithm!$AH$5='BAM tables'!B562,1,0),IF(algorithm!$AH$6='BAM tables'!C562,1,0)),1,0)","v":0},{"$f":"IF(AND(IF(algorithm!$D$4='BAM tables'!D562,1,0),IF(algorithm!$AL$4='BAM tables'!A562,1,0),IF(algorithm!$AL$5='BAM tables'!B562,1,0),IF(algorithm!$AL$6='BAM tables'!C562,1,0)),1,0)","v":0}]
[10,3,4,10,null,{"$f":"IF(AND(IF(algorithm!$D$4='BAM tables'!D563,1,0),IF(algorithm!$AH$4='BAM tables'!A563,1,0),IF(algorithm!$AH$5='BAM tables'!B563,1,0),IF(algorithm!$AH$6='BAM tables'!C563,1,0)),1,0)","v":0},{"$f":"IF(AND(IF(algorithm!$D$4='BAM tables'!D563,1,0),IF(algorithm!$AL$4='BAM tables'!A563,1,0),IF(algorithm!$AL$5='BAM tables'!B563,1,0),IF(algorithm!$AL$6='BAM tables'!C563,1,0)),1,0)","v":0}]
[10,3,5,10,null,{"$f":"IF(AND(IF(algorithm!$D$4='BAM tables'!D564,1,0),IF(algorithm!$AH$4='BAM tables'!A564,1,0),IF(algorithm!$AH$5='BAM tables'!B564,1,0),IF(algorithm!$AH$6='BAM tables'!C564,1,0)),1,0)","v":0},{"$f":"IF(AND(IF(algorithm!$D$4='BAM tables'!D564,1,0),IF(algorithm!$AL$4='BAM tables'!A564,1,0),IF(algorithm!$AL$5='BAM tables'!B564,1,0),IF(algorithm!$AL$6='BAM tables'!C564,1,0)),1,0)","v":0}]
[10,4,0,10,null,{"$f":"IF(AND(IF(algorithm!$D$4='BAM tables'!D565,1,0),IF(algorithm!$AH$4='BAM tables'!A565,1,0),IF(algorithm!$AH$5='BAM tables'!B565,1,0),IF(algorithm!$AH$6='BAM tables'!C565,1,0)),1,0)","v":0},{"$f":"IF(AND(IF(algorithm!$D$4='BAM tables'!D565,1,0),IF(algorithm!$AL$4='BAM tables'!A565,1,0),IF(algorithm!$AL$5='BAM tables'!B565,1,0),IF(algorithm!$AL$6='BAM tables'!C565,1,0)),1,0)","v":0}]
[10,4,1,10,null,{"$f":"IF(AND(IF(algorithm!$D$4='BAM tables'!D566,1,0),IF(algorithm!$AH$4='BAM tables'!A566,1,0),IF(algorithm!$AH$5='BAM tables'!B566,1,0),IF(algorithm!$AH$6='BAM tables'!C566,1,0)),1,0)","v":0},{"$f":"IF(AND(IF(algorithm!$D$4='BAM tables'!D566,1,0),IF(algorithm!$AL$4='BAM tables'!A566,1,0),IF(algorithm!$AL$5='BAM tables'!B566,1,0),IF(algorithm!$AL$6='BAM tables'!C566,1,0)),1,0)","v":0}]
[10,4,2,10,null,{"$f":"IF(AND(IF(algorithm!$D$4='BAM tables'!D567,1,0),IF(algorithm!$AH$4='BAM tables'!A567,1,0),IF(algorithm!$AH$5='BAM tables'!B567,1,0),IF(algorithm!$AH$6='BAM tables'!C567,1,0)),1,0)","v":0},{"$f":"IF(AND(IF(algorithm!$D$4='BAM tables'!D567,1,0),IF(algorithm!$AL$4='BAM tables'!A567,1,0),IF(algorithm!$AL$5='BAM tables'!B567,1,0),IF(algorithm!$AL$6='BAM tables'!C567,1,0)),1,0)","v":0}]
[10,4,3,10,null,{"$f":"IF(AND(IF(algorithm!$D$4='BAM tables'!D568,1,0),IF(algorithm!$AH$4='BAM tables'!A568,1,0),IF(algorithm!$AH$5='BAM tables'!B568,1,0),IF(algorithm!$AH$6='BAM tables'!C568,1,0)),1,0)","v":0},{"$f":"IF(AND(IF(algorithm!$D$4='BAM tables'!D568,1,0),IF(algorithm!$AL$4='BAM tables'!A568,1,0),IF(algorithm!$AL$5='BAM tables'!B568,1,0),IF(algorithm!$AL$6='BAM tables'!C568,1,0)),1,0)","v":0}]
[10,4,4,10,null,{"$f":"IF(AND(IF(algorithm!$D$4='BAM tables'!D569,1,0),IF(algorithm!$AH$4='BAM tables'!A569,1,0),IF(algorithm!$AH$5='BAM tables'!B569,1,0),IF(algorithm!$AH$6='BAM tables'!C569,1,0)),1,0)","v":0},{"$f":"IF(AND(IF(algorithm!$D$4='BAM tables'!D569,1,0),IF(algorithm!$AL$4='BAM tables'!A569,1,0),IF(algorithm!$AL$5='BAM tables'!B569,1,0),IF(algorithm!$AL$6='BAM tables'!C569,1,0)),1,0)","v":0}]
[10,4,5,10,null,{"$f":"IF(AND(IF(algorithm!$D$4='BAM tables'!D570,1,0),IF(algorithm!$AH$4='BAM tables'!A570,1,0),IF(algorithm!$AH$5='BAM tables'!B570,1,0),IF(algorithm!$AH$6='BAM tables'!C570,1,0)),1,0)","v":0},{"$f":"IF(AND(IF(algorithm!$D$4='BAM tables'!D570,1,0),IF(algorithm!$AL$4='BAM tables'!A570,1,0),IF(algorithm!$AL$5='BAM tables'!B570,1,0),IF(algorithm!$AL$6='BAM tables'!C570,1,0)),1,0)","v":0}]
[10,5,0,10,null,{"$f":"IF(AND(IF(algorithm!$D$4='BAM tables'!D571,1,0),IF(algorithm!$AH$4='BAM tables'!A571,1,0),IF(algorithm!$AH$5='BAM tables'!B571,1,0),IF(algorithm!$AH$6='BAM tables'!C571,1,0)),1,0)","v":0},{"$f":"IF(AND(IF(algorithm!$D$4='BAM tables'!D571,1,0),IF(algorithm!$AL$4='BAM tables'!A571,1,0),IF(algorithm!$AL$5='BAM tables'!B571,1,0),IF(algorithm!$AL$6='BAM tables'!C571,1,0)),1,0)","v":0}]
[10,5,1,10,null,{"$f":"IF(AND(IF(algorithm!$D$4='BAM tables'!D572,1,0),IF(algorithm!$AH$4='BAM tables'!A572,1,0),IF(algorithm!$AH$5='BAM tables'!B572,1,0),IF(algorithm!$AH$6='BAM tables'!C572,1,0)),1,0)","v":0},{"$f":"IF(AND(IF(algorithm!$D$4='BAM tables'!D572,1,0),IF(algorithm!$AL$4='BAM tables'!A572,1,0),IF(algorithm!$AL$5='BAM tables'!B572,1,0),IF(algorithm!$AL$6='BAM tables'!C572,1,0)),1,0)","v":0}]
[10,5,2,10,null,{"$f":"IF(AND(IF(algorithm!$D$4='BAM tables'!D573,1,0),IF(algorithm!$AH$4='BAM tables'!A573,1,0),IF(algorithm!$AH$5='BAM tables'!B573,1,0),IF(algorithm!$AH$6='BAM tables'!C573,1,0)),1,0)","v":0},{"$f":"IF(AND(IF(algorithm!$D$4='BAM tables'!D573,1,0),IF(algorithm!$AL$4='BAM tables'!A573,1,0),IF(algorithm!$AL$5='BAM tables'!B573,1,0),IF(algorithm!$AL$6='BAM tables'!C573,1,0)),1,0)","v":0}]
[10,5,3,10,null,{"$f":"IF(AND(IF(algorithm!$D$4='BAM tables'!D574,1,0),IF(algorithm!$AH$4='BAM tables'!A574,1,0),IF(algorithm!$AH$5='BAM tables'!B574,1,0),IF(algorithm!$AH$6='BAM tables'!C574,1,0)),1,0)","v":0},{"$f":"IF(AND(IF(algorithm!$D$4='BAM tables'!D574,1,0),IF(algorithm!$AL$4='BAM tables'!A574,1,0),IF(algorithm!$AL$5='BAM tables'!B574,1,0),IF(algorithm!$AL$6='BAM tables'!C574,1,0)),1,0)","v":0}]
[10,5,4,10,null,{"$f":"IF(AND(IF(algorithm!$D$4='BAM tables'!D575,1,0),IF(algorithm!$AH$4='BAM tables'!A575,1,0),IF(algorithm!$AH$5='BAM tables'!B575,1,0),IF(algorithm!$AH$6='BAM tables'!C575,1,0)),1,0)","v":0},{"$f":"IF(AND(IF(algorithm!$D$4='BAM tables'!D575,1,0),IF(algorithm!$AL$4='BAM tables'!A575,1,0),IF(algorithm!$AL$5='BAM tables'!B575,1,0),IF(algorithm!$AL$6='BAM tables'!C575,1,0)),1,0)","v":0}]
[10,5,5,10,null,{"$f":"IF(AND(IF(algorithm!$D$4='BAM tables'!D576,1,0),IF(algorithm!$AH$4='BAM tables'!A576,1,0),IF(algorithm!$AH$5='BAM tables'!B576,1,0),IF(algorithm!$AH$6='BAM tables'!C576,1,0)),1,0)","v":0},{"$f":"IF(AND(IF(algorithm!$D$4='BAM tables'!D576,1,0),IF(algorithm!$AL$4='BAM tables'!A576,1,0),IF(algorithm!$AL$5='BAM tables'!B576,1,0),IF(algorithm!$AL$6='BAM tables'!C576,1,0)),1,0)","v":0}]
[10,5,6,10,null,{"$f":"IF(AND(IF(algorithm!$D$4='BAM tables'!D577,1,0),IF(algorithm!$AH$4='BAM tables'!A577,1,0),IF(algorithm!$AH$5='BAM tables'!B577,1,0),IF(algorithm!$AH$6='BAM tables'!C577,1,0)),1,0)","v":0},{"$f":"IF(AND(IF(algorithm!$D$4='BAM tables'!D577,1,0),IF(algorithm!$AL$4='BAM tables'!A577,1,0),IF(algorithm!$AL$5='BAM tables'!B577,1,0),IF(algorithm!$AL$6='BAM tables'!C577,1,0)),1,0)","v":0}]
[10,6,0,10,null,{"$f":"IF(AND(IF(algorithm!$D$4='BAM tables'!D578,1,0),IF(algorithm!$AH$4='BAM tables'!A578,1,0),IF(algorithm!$AH$5='BAM tables'!B578,1,0),IF(algorithm!$AH$6='BAM tables'!C578,1,0)),1,0)","v":0},{"$f":"IF(AND(IF(algorithm!$D$4='BAM tables'!D578,1,0),IF(algorithm!$AL$4='BAM tables'!A578,1,0),IF(algorithm!$AL$5='BAM tables'!B578,1,0),IF(algorithm!$AL$6='BAM tables'!C578,1,0)),1,0)","v":0}]
[10,6,1,10,null,{"$f":"IF(AND(IF(algorithm!$D$4='BAM tables'!D579,1,0),IF(algorithm!$AH$4='BAM tables'!A579,1,0),IF(algorithm!$AH$5='BAM tables'!B579,1,0),IF(algorithm!$AH$6='BAM tables'!C579,1,0)),1,0)","v":0},{"$f":"IF(AND(IF(algorithm!$D$4='BAM tables'!D579,1,0),IF(algorithm!$AL$4='BAM tables'!A579,1,0),IF(algorithm!$AL$5='BAM tables'!B579,1,0),IF(algorithm!$AL$6='BAM tables'!C579,1,0)),1,0)","v":0}]
[10,6,2,10,null,{"$f":"IF(AND(IF(algorithm!$D$4='BAM tables'!D580,1,0),IF(algorithm!$AH$4='BAM tables'!A580,1,0),IF(algorithm!$AH$5='BAM tables'!B580,1,0),IF(algorithm!$AH$6='BAM tables'!C580,1,0)),1,0)","v":0},{"$f":"IF(AND(IF(algorithm!$D$4='BAM tables'!D580,1,0),IF(algorithm!$AL$4='BAM tables'!A580,1,0),IF(algorithm!$AL$5='BAM tables'!B580,1,0),IF(algorithm!$AL$6='BAM tables'!C580,1,0)),1,0)","v":0}]
[10,6,3,10,null,{"$f":"IF(AND(IF(algorithm!$D$4='BAM tables'!D581,1,0),IF(algorithm!$AH$4='BAM tables'!A581,1,0),IF(algorithm!$AH$5='BAM tables'!B581,1,0),IF(algorithm!$AH$6='BAM tables'!C581,1,0)),1,0)","v":0},{"$f":"IF(AND(IF(algorithm!$D$4='BAM tables'!D581,1,0),IF(algorithm!$AL$4='BAM tables'!A581,1,0),IF(algorithm!$AL$5='BAM tables'!B581,1,0),IF(algorithm!$AL$6='BAM tables'!C581,1,0)),1,0)","v":0}]
[10,6,4,10,null,{"$f":"IF(AND(IF(algorithm!$D$4='BAM tables'!D582,1,0),IF(algorithm!$AH$4='BAM tables'!A582,1,0),IF(algorithm!$AH$5='BAM tables'!B582,1,0),IF(algorithm!$AH$6='BAM tables'!C582,1,0)),1,0)","v":0},{"$f":"IF(AND(IF(algorithm!$D$4='BAM tables'!D582,1,0),IF(algorithm!$AL$4='BAM tables'!A582,1,0),IF(algorithm!$AL$5='BAM tables'!B582,1,0),IF(algorithm!$AL$6='BAM tables'!C582,1,0)),1,0)","v":0}]
[10,6,5,10,null,{"$f":"IF(AND(IF(algorithm!$D$4='BAM tables'!D583,1,0),IF(algorithm!$AH$4='BAM tables'!A583,1,0),IF(algorithm!$AH$5='BAM tables'!B583,1,0),IF(algorithm!$AH$6='BAM tables'!C583,1,0)),1,0)","v":0},{"$f":"IF(AND(IF(algorithm!$D$4='BAM tables'!D583,1,0),IF(algorithm!$AL$4='BAM tables'!A583,1,0),IF(algorithm!$AL$5='BAM tables'!B583,1,0),IF(algorithm!$AL$6='BAM tables'!C583,1,0)),1,0)","v":0}]
[10,6,6,10,null,{"$f":"IF(AND(IF(algorithm!$D$4='BAM tables'!D584,1,0),IF(algorithm!$AH$4='BAM tables'!A584,1,0),IF(algorithm!$AH$5='BAM tables'!B584,1,0),IF(algorithm!$AH$6='BAM tables'!C584,1,0)),1,0)","v":0},{"$f":"IF(AND(IF(algorithm!$D$4='BAM tables'!D584,1,0),IF(algorithm!$AL$4='BAM tables'!A584,1,0),IF(algorithm!$AL$5='BAM tables'!B584,1,0),IF(algorithm!$AL$6='BAM tables'!C584,1,0)),1,0)","v":0}]
[10,7,0,10,null,{"$f":"IF(AND(IF(algorithm!$D$4='BAM tables'!D585,1,0),IF(algorithm!$AH$4='BAM tables'!A585,1,0),IF(algorithm!$AH$5='BAM tables'!B585,1,0),IF(algorithm!$AH$6='BAM tables'!C585,1,0)),1,0)","v":0},{"$f":"IF(AND(IF(algorithm!$D$4='BAM tables'!D585,1,0),IF(algorithm!$AL$4='BAM tables'!A585,1,0),IF(algorithm!$AL$5='BAM tables'!B585,1,0),IF(algorithm!$AL$6='BAM tables'!C585,1,0)),1,0)","v":0}]
[10,7,1,10,null,{"$f":"IF(AND(IF(algorithm!$D$4='BAM tables'!D586,1,0),IF(algorithm!$AH$4='BAM tables'!A586,1,0),IF(algorithm!$AH$5='BAM tables'!B586,1,0),IF(algorithm!$AH$6='BAM tables'!C586,1,0)),1,0)","v":0},{"$f":"IF(AND(IF(algorithm!$D$4='BAM tables'!D586,1,0),IF(algorithm!$AL$4='BAM tables'!A586,1,0),IF(algorithm!$AL$5='BAM tables'!B586,1,0),IF(algorithm!$AL$6='BAM tables'!C586,1,0)),1,0)","v":0}]
[10,7,2,10,null,{"$f":"IF(AND(IF(algorithm!$D$4='BAM tables'!D587,1,0),IF(algorithm!$AH$4='BAM tables'!A587,1,0),IF(algorithm!$AH$5='BAM tables'!B587,1,0),IF(algorithm!$AH$6='BAM tables'!C587,1,0)),1,0)","v":0},{"$f":"IF(AND(IF(algorithm!$D$4='BAM tables'!D587,1,0),IF(algorithm!$AL$4='BAM tables'!A587,1,0),IF(algorithm!$AL$5='BAM tables'!B587,1,0),IF(algorithm!$AL$6='BAM tables'!C587,1,0)),1,0)","v":0}]
[10,7,3,10,null,{"$f":"IF(AND(IF(algorithm!$D$4='BAM tables'!D588,1,0),IF(algorithm!$AH$4='BAM tables'!A588,1,0),IF(algorithm!$AH$5='BAM tables'!B588,1,0),IF(algorithm!$AH$6='BAM tables'!C588,1,0)),1,0)","v":0},{"$f":"IF(AND(IF(algorithm!$D$4='BAM tables'!D588,1,0),IF(algorithm!$AL$4='BAM tables'!A588,1,0),IF(algorithm!$AL$5='BAM tables'!B588,1,0),IF(algorithm!$AL$6='BAM tables'!C588,1,0)),1,0)","v":0}]
[10,7,4,10,null,{"$f":"IF(AND(IF(algorithm!$D$4='BAM tables'!D589,1,0),IF(algorithm!$AH$4='BAM tables'!A589,1,0),IF(algorithm!$AH$5='BAM tables'!B589,1,0),IF(algorithm!$AH$6='BAM tables'!C589,1,0)),1,0)","v":0},{"$f":"IF(AND(IF(algorithm!$D$4='BAM tables'!D589,1,0),IF(algorithm!$AL$4='BAM tables'!A589,1,0),IF(algorithm!$AL$5='BAM tables'!B589,1,0),IF(algorithm!$AL$6='BAM tables'!C589,1,0)),1,0)","v":0}]
[10,7,5,10,null,{"$f":"IF(AND(IF(algorithm!$D$4='BAM tables'!D590,1,0),IF(algorithm!$AH$4='BAM tables'!A590,1,0),IF(algorithm!$AH$5='BAM tables'!B590,1,0),IF(algorithm!$AH$6='BAM tables'!C590,1,0)),1,0)","v":0},{"$f":"IF(AND(IF(algorithm!$D$4='BAM tables'!D590,1,0),IF(algorithm!$AL$4='BAM tables'!A590,1,0),IF(algorithm!$AL$5='BAM tables'!B590,1,0),IF(algorithm!$AL$6='BAM tables'!C590,1,0)),1,0)","v":0}]
[10,7,6,10,null,{"$f":"IF(AND(IF(algorithm!$D$4='BAM tables'!D591,1,0),IF(algorithm!$AH$4='BAM tables'!A591,1,0),IF(algorithm!$AH$5='BAM tables'!B591,1,0),IF(algorithm!$AH$6='BAM tables'!C591,1,0)),1,0)","v":0},{"$f":"IF(AND(IF(algorithm!$D$4='BAM tables'!D591,1,0),IF(algorithm!$AL$4='BAM tables'!A591,1,0),IF(algorithm!$AL$5='BAM tables'!B591,1,0),IF(algorithm!$AL$6='BAM tables'!C591,1,0)),1,0)","v":0}]
[10,7,7,10,null,{"$f":"IF(AND(IF(algorithm!$D$4='BAM tables'!D592,1,0),IF(algorithm!$AH$4='BAM tables'!A592,1,0),IF(algorithm!$AH$5='BAM tables'!B592,1,0),IF(algorithm!$AH$6='BAM tables'!C592,1,0)),1,0)","v":0},{"$f":"IF(AND(IF(algorithm!$D$4='BAM tables'!D592,1,0),IF(algorithm!$AL$4='BAM tables'!A592,1,0),IF(algorithm!$AL$5='BAM tables'!B592,1,0),IF(algorithm!$AL$6='BAM tables'!C592,1,0)),1,0)","v":0}]
[10,8,0,10,null,{"$f":"IF(AND(IF(algorithm!$D$4='BAM tables'!D593,1,0),IF(algorithm!$AH$4='BAM tables'!A593,1,0),IF(algorithm!$AH$5='BAM tables'!B593,1,0),IF(algorithm!$AH$6='BAM tables'!C593,1,0)),1,0)","v":0},{"$f":"IF(AND(IF(algorithm!$D$4='BAM tables'!D593,1,0),IF(algorithm!$AL$4='BAM tables'!A593,1,0),IF(algorithm!$AL$5='BAM tables'!B593,1,0),IF(algorithm!$AL$6='BAM tables'!C593,1,0)),1,0)","v":0}]
[10,8,1,10,null,{"$f":"IF(AND(IF(algorithm!$D$4='BAM tables'!D594,1,0),IF(algorithm!$AH$4='BAM tables'!A594,1,0),IF(algorithm!$AH$5='BAM tables'!B594,1,0),IF(algorithm!$AH$6='BAM tables'!C594,1,0)),1,0)","v":0},{"$f":"IF(AND(IF(algorithm!$D$4='BAM tables'!D594,1,0),IF(algorithm!$AL$4='BAM tables'!A594,1,0),IF(algorithm!$AL$5='BAM tables'!B594,1,0),IF(algorithm!$AL$6='BAM tables'!C594,1,0)),1,0)","v":0}]
[10,8,2,10,null,{"$f":"IF(AND(IF(algorithm!$D$4='BAM tables'!D595,1,0),IF(algorithm!$AH$4='BAM tables'!A595,1,0),IF(algorithm!$AH$5='BAM tables'!B595,1,0),IF(algorithm!$AH$6='BAM tables'!C595,1,0)),1,0)","v":0},{"$f":"IF(AND(IF(algorithm!$D$4='BAM tables'!D595,1,0),IF(algorithm!$AL$4='BAM tables'!A595,1,0),IF(algorithm!$AL$5='BAM tables'!B595,1,0),IF(algorithm!$AL$6='BAM tables'!C595,1,0)),1,0)","v":0}]
[10,8,3,10,null,{"$f":"IF(AND(IF(algorithm!$D$4='BAM tables'!D596,1,0),IF(algorithm!$AH$4='BAM tables'!A596,1,0),IF(algorithm!$AH$5='BAM tables'!B596,1,0),IF(algorithm!$AH$6='BAM tables'!C596,1,0)),1,0)","v":0},{"$f":"IF(AND(IF(algorithm!$D$4='BAM tables'!D596,1,0),IF(algorithm!$AL$4='BAM tables'!A596,1,0),IF(algorithm!$AL$5='BAM tables'!B596,1,0),IF(algorithm!$AL$6='BAM tables'!C596,1,0)),1,0)","v":0}]
[10,8,4,10,null,{"$f":"IF(AND(IF(algorithm!$D$4='BAM tables'!D597,1,0),IF(algorithm!$AH$4='BAM tables'!A597,1,0),IF(algorithm!$AH$5='BAM tables'!B597,1,0),IF(algorithm!$AH$6='BAM tables'!C597,1,0)),1,0)","v":0},{"$f":"IF(AND(IF(algorithm!$D$4='BAM tables'!D597,1,0),IF(algorithm!$AL$4='BAM tables'!A597,1,0),IF(algorithm!$AL$5='BAM tables'!B597,1,0),IF(algorithm!$AL$6='BAM tables'!C597,1,0)),1,0)","v":0}]
[10,8,5,10,null,{"$f":"IF(AND(IF(algorithm!$D$4='BAM tables'!D598,1,0),IF(algorithm!$AH$4='BAM tables'!A598,1,0),IF(algorithm!$AH$5='BAM tables'!B598,1,0),IF(algorithm!$AH$6='BAM tables'!C598,1,0)),1,0)","v":0},{"$f":"IF(AND(IF(algorithm!$D$4='BAM tables'!D598,1,0),IF(algorithm!$AL$4='BAM tables'!A598,1,0),IF(algorithm!$AL$5='BAM tables'!B598,1,0),IF(algorithm!$AL$6='BAM tables'!C598,1,0)),1,0)","v":0}]
[10,8,6,10,null,{"$f":"IF(AND(IF(algorithm!$D$4='BAM tables'!D599,1,0),IF(algorithm!$AH$4='BAM tables'!A599,1,0),IF(algorithm!$AH$5='BAM tables'!B599,1,0),IF(algorithm!$AH$6='BAM tables'!C599,1,0)),1,0)","v":0},{"$f":"IF(AND(IF(algorithm!$D$4='BAM tables'!D599,1,0),IF(algorithm!$AL$4='BAM tables'!A599,1,0),IF(algorithm!$AL$5='BAM tables'!B599,1,0),IF(algorithm!$AL$6='BAM tables'!C599,1,0)),1,0)","v":0}]
[10,8,7,10,null,{"$f":"IF(AND(IF(algorithm!$D$4='BAM tables'!D600,1,0),IF(algorithm!$AH$4='BAM tables'!A600,1,0),IF(algorithm!$AH$5='BAM tables'!B600,1,0),IF(algorithm!$AH$6='BAM tables'!C600,1,0)),1,0)","v":0},{"$f":"IF(AND(IF(algorithm!$D$4='BAM tables'!D600,1,0),IF(algorithm!$AL$4='BAM tables'!A600,1,0),IF(algorithm!$AL$5='BAM tables'!B600,1,0),IF(algorithm!$AL$6='BAM tables'!C600,1,0)),1,0)","v":0}]
[10,8,8,10,null,{"$f":"IF(AND(IF(algorithm!$D$4='BAM tables'!D601,1,0),IF(algorithm!$AH$4='BAM tables'!A601,1,0),IF(algorithm!$AH$5='BAM tables'!B601,1,0),IF(algorithm!$AH$6='BAM tables'!C601,1,0)),1,0)","v":0},{"$f":"IF(AND(IF(algorithm!$D$4='BAM tables'!D601,1,0),IF(algorithm!$AL$4='BAM tables'!A601,1,0),IF(algorithm!$AL$5='BAM tables'!B601,1,0),IF(algorithm!$AL$6='BAM tables'!C601,1,0)),1,0)","v":0}]
[10,9,0,10,null,{"$f":"IF(AND(IF(algorithm!$D$4='BAM tables'!D602,1,0),IF(algorithm!$AH$4='BAM tables'!A602,1,0),IF(algorithm!$AH$5='BAM tables'!B602,1,0),IF(algorithm!$AH$6='BAM tables'!C602,1,0)),1,0)","v":0},{"$f":"IF(AND(IF(algorithm!$D$4='BAM tables'!D602,1,0),IF(algorithm!$AL$4='BAM tables'!A602,1,0),IF(algorithm!$AL$5='BAM tables'!B602,1,0),IF(algorithm!$AL$6='BAM tables'!C602,1,0)),1,0)","v":0}]
[10,9,1,10,null,{"$f":"IF(AND(IF(algorithm!$D$4='BAM tables'!D603,1,0),IF(algorithm!$AH$4='BAM tables'!A603,1,0),IF(algorithm!$AH$5='BAM tables'!B603,1,0),IF(algorithm!$AH$6='BAM tables'!C603,1,0)),1,0)","v":0},{"$f":"IF(AND(IF(algorithm!$D$4='BAM tables'!D603,1,0),IF(algorithm!$AL$4='BAM tables'!A603,1,0),IF(algorithm!$AL$5='BAM tables'!B603,1,0),IF(algorithm!$AL$6='BAM tables'!C603,1,0)),1,0)","v":0}]
[10,9,2,10,null,{"$f":"IF(AND(IF(algorithm!$D$4='BAM tables'!D604,1,0),IF(algorithm!$AH$4='BAM tables'!A604,1,0),IF(algorithm!$AH$5='BAM tables'!B604,1,0),IF(algorithm!$AH$6='BAM tables'!C604,1,0)),1,0)","v":0},{"$f":"IF(AND(IF(algorithm!$D$4='BAM tables'!D604,1,0),IF(algorithm!$AL$4='BAM tables'!A604,1,0),IF(algorithm!$AL$5='BAM tables'!B604,1,0),IF(algorithm!$AL$6='BAM tables'!C604,1,0)),1,0)","v":0}]
[10,9,3,10,null,{"$f":"IF(AND(IF(algorithm!$D$4='BAM tables'!D605,1,0),IF(algorithm!$AH$4='BAM tables'!A605,1,0),IF(algorithm!$AH$5='BAM tables'!B605,1,0),IF(algorithm!$AH$6='BAM tables'!C605,1,0)),1,0)","v":0},{"$f":"IF(AND(IF(algorithm!$D$4='BAM tables'!D605,1,0),IF(algorithm!$AL$4='BAM tables'!A605,1,0),IF(algorithm!$AL$5='BAM tables'!B605,1,0),IF(algorithm!$AL$6='BAM tables'!C605,1,0)),1,0)","v":0}]
[10,9,4,10,null,{"$f":"IF(AND(IF(algorithm!$D$4='BAM tables'!D606,1,0),IF(algorithm!$AH$4='BAM tables'!A606,1,0),IF(algorithm!$AH$5='BAM tables'!B606,1,0),IF(algorithm!$AH$6='BAM tables'!C606,1,0)),1,0)","v":0},{"$f":"IF(AND(IF(algorithm!$D$4='BAM tables'!D606,1,0),IF(algorithm!$AL$4='BAM tables'!A606,1,0),IF(algorithm!$AL$5='BAM tables'!B606,1,0),IF(algorithm!$AL$6='BAM tables'!C606,1,0)),1,0)","v":0}]
[10,9,5,10,null,{"$f":"IF(AND(IF(algorithm!$D$4='BAM tables'!D607,1,0),IF(algorithm!$AH$4='BAM tables'!A607,1,0),IF(algorithm!$AH$5='BAM tables'!B607,1,0),IF(algorithm!$AH$6='BAM tables'!C607,1,0)),1,0)","v":0},{"$f":"IF(AND(IF(algorithm!$D$4='BAM tables'!D607,1,0),IF(algorithm!$AL$4='BAM tables'!A607,1,0),IF(algorithm!$AL$5='BAM tables'!B607,1,0),IF(algorithm!$AL$6='BAM tables'!C607,1,0)),1,0)","v":0}]
[10,9,6,10,null,{"$f":"IF(AND(IF(algorithm!$D$4='BAM tables'!D608,1,0),IF(algorithm!$AH$4='BAM tables'!A608,1,0),IF(algorithm!$AH$5='BAM tables'!B608,1,0),IF(algorithm!$AH$6='BAM tables'!C608,1,0)),1,0)","v":0},{"$f":"IF(AND(IF(algorithm!$D$4='BAM tables'!D608,1,0),IF(algorithm!$AL$4='BAM tables'!A608,1,0),IF(algorithm!$AL$5='BAM tables'!B608,1,0),IF(algorithm!$AL$6='BAM tables'!C608,1,0)),1,0)","v":0}]
[10,9,7,10,null,{"$f":"IF(AND(IF(algorithm!$D$4='BAM tables'!D609,1,0),IF(algorithm!$AH$4='BAM tables'!A609,1,0),IF(algorithm!$AH$5='BAM tables'!B609,1,0),IF(algorithm!$AH$6='BAM tables'!C609,1,0)),1,0)","v":0},{"$f":"IF(AND(IF(algorithm!$D$4='BAM tables'!D609,1,0),IF(algorithm!$AL$4='BAM tables'!A609,1,0),IF(algorithm!$AL$5='BAM tables'!B609,1,0),IF(algorithm!$AL$6='BAM tables'!C609,1,0)),1,0)","v":0}]
[10,9,8,10,null,{"$f":"IF(AND(IF(algorithm!$D$4='BAM tables'!D610,1,0),IF(algorithm!$AH$4='BAM tables'!A610,1,0),IF(algorithm!$AH$5='BAM tables'!B610,1,0),IF(algorithm!$AH$6='BAM tables'!C610,1,0)),1,0)","v":0},{"$f":"IF(AND(IF(algorithm!$D$4='BAM tables'!D610,1,0),IF(algorithm!$AL$4='BAM tables'!A610,1,0),IF(algorithm!$AL$5='BAM tables'!B610,1,0),IF(algorithm!$AL$6='BAM tables'!C610,1,0)),1,0)","v":0}]
[10,9,9,10,null,{"$f":"IF(AND(IF(algorithm!$D$4='BAM tables'!D611,1,0),IF(algorithm!$AH$4='BAM tables'!A611,1,0),IF(algorithm!$AH$5='BAM tables'!B611,1,0),IF(algorithm!$AH$6='BAM tables'!C611,1,0)),1,0)","v":0},{"$f":"IF(AND(IF(algorithm!$D$4='BAM tables'!D611,1,0),IF(algorithm!$AL$4='BAM tables'!A611,1,0),IF(algorithm!$AL$5='BAM tables'!B611,1,0),IF(algorithm!$AL$6='BAM tables'!C611,1,0)),1,0)","v":0}]
[10,10,0,10,null,{"$f":"IF(AND(IF(algorithm!$D$4='BAM tables'!D612,1,0),IF(algorithm!$AH$4='BAM tables'!A612,1,0),IF(algorithm!$AH$5='BAM tables'!B612,1,0),IF(algorithm!$AH$6='BAM tables'!C612,1,0)),1,0)","v":0},{"$f":"IF(AND(IF(algorithm!$D$4='BAM tables'!D612,1,0),IF(algorithm!$AL$4='BAM tables'!A612,1,0),IF(algorithm!$AL$5='BAM tables'!B612,1,0),IF(algorithm!$AL$6='BAM tables'!C612,1,0)),1,0)","v":0}]
[10,10,1,10,null,{"$f":"IF(AND(IF(algorithm!$D$4='BAM tables'!D613,1,0),IF(algorithm!$AH$4='BAM tables'!A613,1,0),IF(algorithm!$AH$5='BAM tables'!B613,1,0),IF(algorithm!$AH$6='BAM tables'!C613,1,0)),1,0)","v":0},{"$f":"IF(AND(IF(algorithm!$D$4='BAM tables'!D613,1,0),IF(algorithm!$AL$4='BAM tables'!A613,1,0),IF(algorithm!$AL$5='BAM tables'!B613,1,0),IF(algorithm!$AL$6='BAM tables'!C613,1,0)),1,0)","v":0}]
[10,10,2,10,null,{"$f":"IF(AND(IF(algorithm!$D$4='BAM tables'!D614,1,0),IF(algorithm!$AH$4='BAM tables'!A614,1,0),IF(algorithm!$AH$5='BAM tables'!B614,1,0),IF(algorithm!$AH$6='BAM tables'!C614,1,0)),1,0)","v":0},{"$f":"IF(AND(IF(algorithm!$D$4='BAM tables'!D614,1,0),IF(algorithm!$AL$4='BAM tables'!A614,1,0),IF(algorithm!$AL$5='BAM tables'!B614,1,0),IF(algorithm!$AL$6='BAM tables'!C614,1,0)),1,0)","v":0}]
[10,10,3,10,null,{"$f":"IF(AND(IF(algorithm!$D$4='BAM tables'!D615,1,0),IF(algorithm!$AH$4='BAM tables'!A615,1,0),IF(algorithm!$AH$5='BAM tables'!B615,1,0),IF(algorithm!$AH$6='BAM tables'!C615,1,0)),1,0)","v":0},{"$f":"IF(AND(IF(algorithm!$D$4='BAM tables'!D615,1,0),IF(algorithm!$AL$4='BAM tables'!A615,1,0),IF(algorithm!$AL$5='BAM tables'!B615,1,0),IF(algorithm!$AL$6='BAM tables'!C615,1,0)),1,0)","v":0}]
[10,10,4,10,null,{"$f":"IF(AND(IF(algorithm!$D$4='BAM tables'!D616,1,0),IF(algorithm!$AH$4='BAM tables'!A616,1,0),IF(algorithm!$AH$5='BAM tables'!B616,1,0),IF(algorithm!$AH$6='BAM tables'!C616,1,0)),1,0)","v":0},{"$f":"IF(AND(IF(algorithm!$D$4='BAM tables'!D616,1,0),IF(algorithm!$AL$4='BAM tables'!A616,1,0),IF(algorithm!$AL$5='BAM tables'!B616,1,0),IF(algorithm!$AL$6='BAM tables'!C616,1,0)),1,0)","v":0}]
[10,10,5,10,null,{"$f":"IF(AND(IF(algorithm!$D$4='BAM tables'!D617,1,0),IF(algorithm!$AH$4='BAM tables'!A617,1,0),IF(algorithm!$AH$5='BAM tables'!B617,1,0),IF(algorithm!$AH$6='BAM tables'!C617,1,0)),1,0)","v":0},{"$f":"IF(AND(IF(algorithm!$D$4='BAM tables'!D617,1,0),IF(algorithm!$AL$4='BAM tables'!A617,1,0),IF(algorithm!$AL$5='BAM tables'!B617,1,0),IF(algorithm!$AL$6='BAM tables'!C617,1,0)),1,0)","v":0}]
[10,10,6,10,null,{"$f":"IF(AND(IF(algorithm!$D$4='BAM tables'!D618,1,0),IF(algorithm!$AH$4='BAM tables'!A618,1,0),IF(algorithm!$AH$5='BAM tables'!B618,1,0),IF(algorithm!$AH$6='BAM tables'!C618,1,0)),1,0)","v":0},{"$f":"IF(AND(IF(algorithm!$D$4='BAM tables'!D618,1,0),IF(algorithm!$AL$4='BAM tables'!A618,1,0),IF(algorithm!$AL$5='BAM tables'!B618,1,0),IF(algorithm!$AL$6='BAM tables'!C618,1,0)),1,0)","v":0}]
[10,10,7,10,null,{"$f":"IF(AND(IF(algorithm!$D$4='BAM tables'!D619,1,0),IF(algorithm!$AH$4='BAM tables'!A619,1,0),IF(algorithm!$AH$5='BAM tables'!B619,1,0),IF(algorithm!$AH$6='BAM tables'!C619,1,0)),1,0)","v":0},{"$f":"IF(AND(IF(algorithm!$D$4='BAM tables'!D619,1,0),IF(algorithm!$AL$4='BAM tables'!A619,1,0),IF(algorithm!$AL$5='BAM tables'!B619,1,0),IF(algorithm!$AL$6='BAM tables'!C619,1,0)),1,0)","v":0}]
[10,10,8,10,null,{"$f":"IF(AND(IF(algorithm!$D$4='BAM tables'!D620,1,0),IF(algorithm!$AH$4='BAM tables'!A620,1,0),IF(algorithm!$AH$5='BAM tables'!B620,1,0),IF(algorithm!$AH$6='BAM tables'!C620,1,0)),1,0)","v":0},{"$f":"IF(AND(IF(algorithm!$D$4='BAM tables'!D620,1,0),IF(algorithm!$AL$4='BAM tables'!A620,1,0),IF(algorithm!$AL$5='BAM tables'!B620,1,0),IF(algorithm!$AL$6='BAM tables'!C620,1,0)),1,0)","v":0}]
[10,10,9,10,null,{"$f":"IF(AND(IF(algorithm!$D$4='BAM tables'!D621,1,0),IF(algorithm!$AH$4='BAM tables'!A621,1,0),IF(algorithm!$AH$5='BAM tables'!B621,1,0),IF(algorithm!$AH$6='BAM tables'!C621,1,0)),1,0)","v":0},{"$f":"IF(AND(IF(algorithm!$D$4='BAM tables'!D621,1,0),IF(algorithm!$AL$4='BAM tables'!A621,1,0),IF(algorithm!$AL$5='BAM tables'!B621,1,0),IF(algorithm!$AL$6='BAM tables'!C621,1,0)),1,0)","v":0}]
[10,10,10,10,null,{"$f":"IF(AND(IF(algorithm!$D$4='BAM tables'!D622,1,0),IF(algorithm!$AH$4='BAM tables'!A622,1,0),IF(algorithm!$AH$5='BAM tables'!B622,1,0),IF(algorithm!$AH$6='BAM tables'!C622,1,0)),1,0)","v":0},{"$f":"IF(AND(IF(algorithm!$D$4='BAM tables'!D622,1,0),IF(algorithm!$AL$4='BAM tables'!A622,1,0),IF(algorithm!$AL$5='BAM tables'!B622,1,0),IF(algorithm!$AL$6='BAM tables'!C622,1,0)),1,0)","v":0}]